{"text_format":"1","workbook":"xlsx","n_sheets":12,"sheets":["Instructie","Aansluitmogelijkheden","Instructie Expertversie","Rekenblad 1","Rekenblad 2","Svv","Staat EGW","Staat Portiek","Staat Galerij","Kwaliteit EGW","Kwaliteit Portiek","Kwaliteit Galerij"],"not_rendered":{"charts":2,"images":1,"macros":1,"external_links":0,"defined_names":11,"comments":0,"pivot_tables":0},"unopened":[],"bounds":{"document_bytes":16777216,"sheet_cells":100000,"rows_first":2000,"rows_last":500,"rows_between":2000,"halvings":0,"cell_chars":16384,"cell_head_chars":4096},"cells_cut":0,"cells_raw":0,"read":"whole","date_system":"1900"}

{"sheet":"Instructie","index":0,"n_rows":56,"n_cols":3,"rows_kept":56,"cut":false,"hidden":false,"merged":[[21,5,21,6],[25,5,25,6]]}
[]
[]
[]
[null,null,"Handleiding model   "]
[]
[null,null,"Inleiding "]
[null,null,"Het doel van het model is om warmtebedrijven en gebouweigenaren aan te zetten om andere manieren van aansluiten te overwegen en stof voor gesprek te geven. Het model streeft dus niet om een absolute weergave van de werkelijkheid te geven. Als gevolg van eventuele onjuistheden en/of het gebruik van het instrumenten kan geen aansprakelijkheid worden aanvaard. Het model is gesplitst in een versie voor snel en indicatief gebruik en een versie voor een expert die ook zelf aan de slag wil met de onderleggers van het model. In de versie voor snel en indicatief gebruik heeft de gebruiker toegang tot het tabblad 'Aansluitmogelijkheden'. In de expertversie krijgt de gebruiker met een door RVO te verstrekken wachtwoord toegang tot alle tabbladen. \n\n"]
[null,null,"Het instrument ‘Overzicht aansluitmogelijkheden’ en het bijbehorende rapport zijn tot stand gekomen in het kader van een opdracht van de RVO en in samenwerking met een begeleidingscommissie voor ondersteuning en inbreng. Het rapport is op te vragen via de Helpdesk  "]
[]
[null,null,"Disclaimer"]
[null,null,"Het ‘Overzicht aansluitmogelijkheden’ is ontwikkeld door Atriensis projecten in opdracht van het Expertisecentrum Warmte (ECW). Het is een methode die Atriensis projecten heeft ontwikkeld om mogelijke alternatieven van aansluiten op een warmtenet per woningtype te bepalen op basis van kenmerken van de woning."]
[]
[null,null,"Aan het 'Overzicht aansluitmogelijkheden' kunnen geen rechten worden ontleend."]
[null,null,"Hoewel dit instrument met grootste zorg is samengesteld, kan Atriensis projecten geen enkele aansprakelijkheid aanvaarden voor schade als gevolg van eventuele onjuistheden en/of gebruik van het instrumenten. "]
[]
[null,null,"Het model is standaard enkel zichtbaar als basis-versie. Via de Helpdesk kan het wachtwoord van het model worden opgevraagd. Met dit wachtwoord kunnen achterliggende rekenbladen worden ontgrendeld door bovenaan in het kopje 'controleren' op de knop 'beveiliging blad opheffen' te klikken "]
[]
[]
[null,null,"Handleiding basis-versie"]
[null,null,"Het ‘Overzicht aansluitmogelijkheden’ is een model dat de mogelijke alternatieven van aansluiten op een warmtenet bepaald worden op basis van kenmerken van een woning. Op basis van kostenkengetallen uit de praktijk en een kwalitatieve beoordeling worden de verschillende aansluitmogelijkheden met elkaar vergeleken. Het model berekent deze kosten op basis van kengetallen met prijspeil juni 2022. "]
[]
[null,null,"Door vragen te beantwoorden worden de verschillende aansluitmogelijkheden weergeven. Per aansluitmogelijkheid zijn de indicatieve kosten voor het warmtebedrijf en voor de woningeigenaar opgenomen. Ook is er een kwalitatieve beoordeling weergegeven, waarbij is gekeken naar:\n"]
[null,null,"- Praktische haalbaarheid: hierbij wordt onder andere gekeken naar de eigendomssituatie, esthetische eisen van welstand en veiligsheidsrisio's. \n- Overlast tijdens uitvoering: hierbij wordt onder andere gekeken naar de overlast door graaf- en herstelwerkzaamheden buiten de woning, geluidsoverlast door boringen in de woning en de duur van de werkzaamheden.\n- Impact woning: Hierbij wordt onder andere gekeken naar de hoeveelheid ruimte die wordt opgeofferd in de woning voor de afleverset, zichtbare leidingen in de woning en de hoeveelheid benodigde aanpassingen in de woning.\n- Onderhoud: Hierbij wordt onder andere gekeken naar de bereikbaarheid van afleverset en leidingwerk voor en na de afleverset. "]
[]
[null,null,"Toelichting vragen model"]
[null,null,"Om te beoordelen welke aansluitingen in een specifieke situatie mogelijk zijn, dienen zes vragen beantwoord te worden:"]
[null,null,"1      Kan ik in de lengterichting van het blok onder de onderste woonlaag door"]
[null,null,"2      Wat is de dakvorm van de woningen"]
[null,null,"3      Is er inpandige ruimte in of nabij de entreehal van de woning voor een afleverset"]
[null,null,"4      Wat is de locatie van de combiketel"]
[null,null,"5      Is de plattegrond gespiegeld ten opzichte van die van de aangrenzende woning"]
[null,null,"6      Is 100% deelname van alle woningen in het blok haalbaar, eventueel door verplichting vanuit 70% instemming van huurders"]
[]
[null,null,"1 Kan ik in de lengterichting van het blok onder de onderste woonlaag door"]
[null,null,"Per basistype -eengezinswoning, portiekwoning en galerijwoning- wordt onderscheid gemaakt naar de beschikbaarheid van een volledige niet tot de woning behorende ruimte onder de onderste woonlaag. Indien er onder de onderste woonlaag ruimte beschikbaar is, kan deze benut worden voor de leidingen van het warmtenet. Bij eengezinswoningen betekent dit dat er onder de gehele begane grond een bereikbare en voldoende hoge kruipruimte aanwezig is die niet wordt opgedeeld door een tussenmuren. Bij portiek- en galerijwoningen betekent dit dat de onderste bouwlaag volledig uit bergingen en/of garageboxen bestaat en niet -al dan niet gedeeltelijk- uit woningen of andere functies zoals ontmoetings-, winkel- of praktijkruimtes."]
[]
[null,null,"2 Wat is de dakvorm van de woning"]
[null,null,"Voor de basistypes wordt onderscheid gemaakt tussen platte en hellende daken. De vorm van het dak heeft impact op de aansluitmogelijkheden doordat deze het leidingwerk kunnen beperken. Zo kan het bij een hellend dak mogelijk zijn de leidingen van het warmtenet door de kapruimte te installeren en bij een plat dak buiten over het dak."]
[]
[null,null,"3 Is er inpandige ruimte in of nabij de entreehal van de woning voor een afleverset"]
[null,null,"Voor warmtebedrijven is vanuit hun gebruikelijke werkwijze bij nieuwbouw plaatsing van de afleverset in de meterkast bij de voordeur de norm. Bij bestaande woningen mist die meterkast vaak de ruimte daarvoor. Ook is de ruimte van de gasmeter in die meterkast vaak niet te gebruiken omdat de gasmeter pas verwijderd kan worden nadat de warmteaansluiting gereed is. Voor de hand ligt het dan om te onderzoeken of er nabij die meterkast inpandige ruimte is: de entreehal zelf, een vaste kast in de entreehal, in de portiek nabij de voordeur, een trapkast bij een eengezinswoning of een kast met deur aan de galerij. "]
[]
[null,null,"4 Wat is de locatie van de combiketel"]
[null,null,"Voor gebouweigenaren is juist plaatsing van de afleverset ter plaatse van de huidige locatie vaak de meest wenselijke locatie voor de afleverset vanuit beperking van kosten voor de eigenaar en minimalisering van wijzigingen in de woonhuisinstallatie en daarmee kosten en overlast voor bewoners. Er is al ruimte vanwege het verdwijnen van die combiketel. Daarbij komen allerlei voorzieningen nu al op die plaats uit: de aanvoer- en retourleiding van de ruimteverwarming, de koud- en warm tapwaterleiding, de bedrading van de kamerthermostaat en er is al een elektrische voeding. Vaak bevindt het expansievat zich hier ook al. Deze is nodig bij afleversets met een dubbele scheiding. "]
[]
[null,null,"Bij eengezinswoningen is onderscheid gemaakt tussen woningen met de combiketel op de begane grond en vanaf eerste verdieping, dus op de eerste verdieping of zolder. Voor portiek- en galerijwoningen is aangenomen dat de combiketel in of nabij de keuken toegepast is. "]
[]
[null,null,"5 Is de plattegrond gespiegeld ten opzichte van die van de aangrenzende woning"]
[null,null,"Voor eengezins- en galerijwoningen wordt onderscheid gemaakt tussen woningen waarvan de plattegrond gespiegeld is ten opzichte de aangrenzende woning en woningen waarvoor dit niet geldt. De plattegronden van portiekwoningen zijn altijd gespiegeld ten opzichte van de aangrenzende woning. Wanneer de plattegrond van de woning gespiegeld is ten opzichte van de aangrenzende woning is het mogelijk om de warmteleidingen buiten te combineren en te splitsen voordat deze naar binnen gaan."]
[]
[null,null,"6 Is 100% deelname van alle woningen in het blok haalbaar, eventueel door verplichting vanuit 70% instemming van huurders. "]
[null,null,"Als bij de aanleg van een warmtenet niet de eigenaren en bewoners van het volledig blok woningen bij meerderheid van stemmen verplicht gesteld kunnen worden tot deelname aan het aan het warmtenet, beperkt dit de mogelijkheden van aansluiten. Bij onvolledige deelname is het bijvoorbeeld niet mogelijk het leidingwerk dwars door, over of langs het hele blok te laten lopen. Bij gestapelde woningen is in praktisch opzicht 100% deelname altijd vereist. Bij eengezinswoningen beperkt het niet halen van 100% deelname het aantal oplossingen. Daarbij verhoogt het niet bereiken van 100% deelname bij eengezinswoningen de kosten van het warmtebedrijf."]
[]
[null,null,"Bij complexen met alleen corporatiewoningen kan de corporatie gebruik maken van de regel dat bij 70% vrijwillige deelname van de huurders per bouwkundige eenheid alle huurders tot deelname verplicht kunnen worden."]
[]
[null,null,"Bij een vereniging van eigenaren bij gestapeld bezit is via de algemene ledenvergadering (ALV) ook doorzettingsmacht mogelijk. Bij blokken eengezinswoningen met zowel corporatiewoningen als particulier woningbezit is die doorzettingsmacht voor particuliere woningen niet aanwezig. "]

{"sheet":"Aansluitmogelijkheden","index":1,"n_rows":51,"n_cols":18,"rows_kept":51,"cut":false,"hidden":false,"merged":[[12,9,13,9],[12,10,13,10],[44,3,49,3],[14,3,19,3],[11,14,11,17],[12,11,13,11],[12,12,13,12],[12,13,13,13],[12,14,13,14],[12,15,13,15],[12,16,13,16],[12,17,13,17],[44,2,49,2],[50,2,55,2],[3,14,9,17],[14,2,19,2],[26,2,31,2],[32,2,37,2],[38,2,43,2],[20,3,25,3],[26,3,31,3],[32,3,37,3],[38,3,43,3],[20,2,25,2],[50,3,55,3],[6,4,6,7],[7,4,7,7],[11,11,11,13]]}
[]
[]
[]
[null,null,"ECW overzicht aansluitmogelijkheden"]
[]
[null,null,"Opdrachtgever",null,"Rijksdienst voor Ondernemend Nederland"]
[null,null,"Datum",null,"2022-11-30"]
[null,null,"Versie",null,"1.01"]
[]
[]
[]
[null,null,"Vraag",null,null,"Antwoord",null,null,null,"Aansluitmogelijkheden",null,"Indicatieve kosten",null,null,"Kwalitatieve beoordeling"]
[null,null,null,null,null,null,null,null,null,"Code","Toelichting","Warmtebedrijf","Woningeigenaar","Totaal","Praktisch haalbaarheid","Overlast uitvoering","Impact woning","Onderhoud"]
[]
[null,null,1,"Type gebouw",null,null,null,null,null,null,1,2,2,4,5,6,7,8]
[null,null,null,null,null,null,null,null,null,{"$f":"_xlfn.UNIQUE(_xlfn._xlws.FILTER(Mogelijkheden[Rekenblad 1],Mogelijkheden[Rekenblad 1]<>\"\"))","v":"A1.1"},{"$f":"IFERROR(VLOOKUP($J16,Rekenblad2[],2+Aansluitmogelijkheden!K$15,0),\"\")","v":"Iedere woning afzonderlijk rechtstreeks van buiten cq portiek cq voor de galerijen met afleverset in of nabij de entreehal in het bouwblok zelf"},{"$f":"IFERROR(VLOOKUP($J16,Rekenblad2[],4,0),\"\")","v":3000},{"$f":"IFERROR(VLOOKUP($J16,Rekenblad2[],5,0),\"\")","v":4500},{"$f":"IFERROR(VLOOKUP($J16,Rekenblad2[],2+Aansluitmogelijkheden!N$15,0),\"\")","v":7500},{"$f":"IFERROR(VLOOKUP($J16,Rekenblad2[],2+Aansluitmogelijkheden!O$15,0),\"\")","v":5},{"$f":"IFERROR(VLOOKUP($J16,Rekenblad2[],2+Aansluitmogelijkheden!P$15,0),\"\")","v":2},{"$f":"IFERROR(VLOOKUP($J16,Rekenblad2[],2+Aansluitmogelijkheden!Q$15,0),\"\")","v":4},{"$f":"IFERROR(VLOOKUP($J16,Rekenblad2[],2+Aansluitmogelijkheden!R$15,0),\"\")","v":3}]
[null,null,null,null,null,null,null,null,null,"A1.2",{"$f":"IFERROR(VLOOKUP($J17,Rekenblad2[],2+Aansluitmogelijkheden!K$15,0),\"\")","v":"Iedere woning afzonderlijk rechtstreeks van buiten cq portiek cq voor de galerijen met afleverset in of nabij de entreehal in het bouwblok zelf"},{"$f":"IFERROR(VLOOKUP($J17,Rekenblad2[],4,0),\"\")","v":3000},{"$f":"IFERROR(VLOOKUP($J17,Rekenblad2[],5,0),\"\")","v":5500},{"$f":"IFERROR(VLOOKUP($J17,Rekenblad2[],2+Aansluitmogelijkheden!N$15,0),\"\")","v":8500},{"$f":"IFERROR(VLOOKUP($J17,Rekenblad2[],2+Aansluitmogelijkheden!O$15,0),\"\")","v":4},{"$f":"IFERROR(VLOOKUP($J17,Rekenblad2[],2+Aansluitmogelijkheden!P$15,0),\"\")","v":1},{"$f":"IFERROR(VLOOKUP($J17,Rekenblad2[],2+Aansluitmogelijkheden!Q$15,0),\"\")","v":2},{"$f":"IFERROR(VLOOKUP($J17,Rekenblad2[],2+Aansluitmogelijkheden!R$15,0),\"\")","v":2}]
[null,null,null,null,null,null,null,null,null,"A2.1",{"$f":"IFERROR(VLOOKUP($J18,Rekenblad2[],2+Aansluitmogelijkheden!K$15,0),\"\")","v":"Per 2 woningen rechtstreeks van buiten cq portiek cq voor de galerijen met afleverset in of nabij de entreehal in het bouwblok zelf"},{"$f":"IFERROR(VLOOKUP($J18,Rekenblad2[],4,0),\"\")","v":1500},{"$f":"IFERROR(VLOOKUP($J18,Rekenblad2[],5,0),\"\")","v":4500},{"$f":"IFERROR(VLOOKUP($J18,Rekenblad2[],2+Aansluitmogelijkheden!N$15,0),\"\")","v":6000},{"$f":"IFERROR(VLOOKUP($J18,Rekenblad2[],2+Aansluitmogelijkheden!O$15,0),\"\")","v":4},{"$f":"IFERROR(VLOOKUP($J18,Rekenblad2[],2+Aansluitmogelijkheden!P$15,0),\"\")","v":3},{"$f":"IFERROR(VLOOKUP($J18,Rekenblad2[],2+Aansluitmogelijkheden!Q$15,0),\"\")","v":4},{"$f":"IFERROR(VLOOKUP($J18,Rekenblad2[],2+Aansluitmogelijkheden!R$15,0),\"\")","v":3}]
[null,null,null,null,null,null,null,null,null,"A2.2",{"$f":"IFERROR(VLOOKUP($J19,Rekenblad2[],2+Aansluitmogelijkheden!K$15,0),\"\")","v":"Per 2 woningen rechtstreeks van buiten cq portiek cq voor de galerijen met afleverset in of nabij de entreehal in het bouwblok zelf"},{"$f":"IFERROR(VLOOKUP($J19,Rekenblad2[],4,0),\"\")","v":1500},{"$f":"IFERROR(VLOOKUP($J19,Rekenblad2[],5,0),\"\")","v":5500},{"$f":"IFERROR(VLOOKUP($J19,Rekenblad2[],2+Aansluitmogelijkheden!N$15,0),\"\")","v":7000},{"$f":"IFERROR(VLOOKUP($J19,Rekenblad2[],2+Aansluitmogelijkheden!O$15,0),\"\")","v":4},{"$f":"IFERROR(VLOOKUP($J19,Rekenblad2[],2+Aansluitmogelijkheden!P$15,0),\"\")","v":1},{"$f":"IFERROR(VLOOKUP($J19,Rekenblad2[],2+Aansluitmogelijkheden!Q$15,0),\"\")","v":2},{"$f":"IFERROR(VLOOKUP($J19,Rekenblad2[],2+Aansluitmogelijkheden!R$15,0),\"\")","v":2}]
[null,null,null,null,null,null,null,null,null,"A3.1",{"$f":"IFERROR(VLOOKUP($J20,Rekenblad2[],2+Aansluitmogelijkheden!K$15,0),\"\")","v":"Per woning via verticale leidingen op voor- of achtergevel naar afleverset "},{"$f":"IFERROR(VLOOKUP($J20,Rekenblad2[],4,0),\"\")","v":5500},{"$f":"IFERROR(VLOOKUP($J20,Rekenblad2[],5,0),\"\")","v":5000},{"$f":"IFERROR(VLOOKUP($J20,Rekenblad2[],2+Aansluitmogelijkheden!N$15,0),\"\")","v":10500},{"$f":"IFERROR(VLOOKUP($J20,Rekenblad2[],2+Aansluitmogelijkheden!O$15,0),\"\")","v":2},{"$f":"IFERROR(VLOOKUP($J20,Rekenblad2[],2+Aansluitmogelijkheden!P$15,0),\"\")","v":2},{"$f":"IFERROR(VLOOKUP($J20,Rekenblad2[],2+Aansluitmogelijkheden!Q$15,0),\"\")","v":2},{"$f":"IFERROR(VLOOKUP($J20,Rekenblad2[],2+Aansluitmogelijkheden!R$15,0),\"\")","v":2}]
[null,null,2,"Kan ik in de lengterichting van het blok onder de onderste woonlaag door?",null,null,null,null,null,"A3.2",{"$f":"IFERROR(VLOOKUP($J21,Rekenblad2[],2+Aansluitmogelijkheden!K$15,0),\"\")","v":"Per woning via verticale leidingen op voor- of achtergevel naar afleverset "},{"$f":"IFERROR(VLOOKUP($J21,Rekenblad2[],4,0),\"\")","v":5500},{"$f":"IFERROR(VLOOKUP($J21,Rekenblad2[],5,0),\"\")","v":4000},{"$f":"IFERROR(VLOOKUP($J21,Rekenblad2[],2+Aansluitmogelijkheden!N$15,0),\"\")","v":9500},{"$f":"IFERROR(VLOOKUP($J21,Rekenblad2[],2+Aansluitmogelijkheden!O$15,0),\"\")","v":1},{"$f":"IFERROR(VLOOKUP($J21,Rekenblad2[],2+Aansluitmogelijkheden!P$15,0),\"\")","v":2},{"$f":"IFERROR(VLOOKUP($J21,Rekenblad2[],2+Aansluitmogelijkheden!Q$15,0),\"\")","v":3},{"$f":"IFERROR(VLOOKUP($J21,Rekenblad2[],2+Aansluitmogelijkheden!R$15,0),\"\")","v":2}]
[null,null,null,null,null,null,null,null,null,"A4.1",{"$f":"IFERROR(VLOOKUP($J22,Rekenblad2[],2+Aansluitmogelijkheden!K$15,0),\"\")","v":"Per 2 woningen via verticale leidingen op voor- of achtergevel naar afleverset "},{"$f":"IFERROR(VLOOKUP($J22,Rekenblad2[],4,0),\"\")","v":2500},{"$f":"IFERROR(VLOOKUP($J22,Rekenblad2[],5,0),\"\")","v":5000},{"$f":"IFERROR(VLOOKUP($J22,Rekenblad2[],2+Aansluitmogelijkheden!N$15,0),\"\")","v":7500},{"$f":"IFERROR(VLOOKUP($J22,Rekenblad2[],2+Aansluitmogelijkheden!O$15,0),\"\")","v":2},{"$f":"IFERROR(VLOOKUP($J22,Rekenblad2[],2+Aansluitmogelijkheden!P$15,0),\"\")","v":2},{"$f":"IFERROR(VLOOKUP($J22,Rekenblad2[],2+Aansluitmogelijkheden!Q$15,0),\"\")","v":2},{"$f":"IFERROR(VLOOKUP($J22,Rekenblad2[],2+Aansluitmogelijkheden!R$15,0),\"\")","v":2}]
[null,null,null,null,null,null,null,null,null,"A4.2",{"$f":"IFERROR(VLOOKUP($J23,Rekenblad2[],2+Aansluitmogelijkheden!K$15,0),\"\")","v":"Per 2 woningen via verticale leidingen op voor- of achtergevel naar afleverset "},{"$f":"IFERROR(VLOOKUP($J23,Rekenblad2[],4,0),\"\")","v":2500},{"$f":"IFERROR(VLOOKUP($J23,Rekenblad2[],5,0),\"\")","v":4000},{"$f":"IFERROR(VLOOKUP($J23,Rekenblad2[],2+Aansluitmogelijkheden!N$15,0),\"\")","v":6500},{"$f":"IFERROR(VLOOKUP($J23,Rekenblad2[],2+Aansluitmogelijkheden!O$15,0),\"\")","v":2},{"$f":"IFERROR(VLOOKUP($J23,Rekenblad2[],2+Aansluitmogelijkheden!P$15,0),\"\")","v":2},{"$f":"IFERROR(VLOOKUP($J23,Rekenblad2[],2+Aansluitmogelijkheden!Q$15,0),\"\")","v":4},{"$f":"IFERROR(VLOOKUP($J23,Rekenblad2[],2+Aansluitmogelijkheden!R$15,0),\"\")","v":2}]
[null,null,null,null,null,null,null,null,null,"B1.1",{"$f":"IFERROR(VLOOKUP($J24,Rekenblad2[],2+Aansluitmogelijkheden!K$15,0),\"\")","v":"In de lengterichting van het volledige blok door de kapruimte"},{"$f":"IFERROR(VLOOKUP($J24,Rekenblad2[],4,0),\"\")","v":5000},{"$f":"IFERROR(VLOOKUP($J24,Rekenblad2[],5,0),\"\")","v":5000},{"$f":"IFERROR(VLOOKUP($J24,Rekenblad2[],2+Aansluitmogelijkheden!N$15,0),\"\")","v":10000},{"$f":"IFERROR(VLOOKUP($J24,Rekenblad2[],2+Aansluitmogelijkheden!O$15,0),\"\")","v":2},{"$f":"IFERROR(VLOOKUP($J24,Rekenblad2[],2+Aansluitmogelijkheden!P$15,0),\"\")","v":2},{"$f":"IFERROR(VLOOKUP($J24,Rekenblad2[],2+Aansluitmogelijkheden!Q$15,0),\"\")","v":1},{"$f":"IFERROR(VLOOKUP($J24,Rekenblad2[],2+Aansluitmogelijkheden!R$15,0),\"\")","v":1}]
[null,null,null,null,null,null,null,null,null,"B1.2",{"$f":"IFERROR(VLOOKUP($J25,Rekenblad2[],2+Aansluitmogelijkheden!K$15,0),\"\")","v":"In de lengterichting van het volledige blok door de kapruimte"},{"$f":"IFERROR(VLOOKUP($J25,Rekenblad2[],4,0),\"\")","v":5000},{"$f":"IFERROR(VLOOKUP($J25,Rekenblad2[],5,0),\"\")","v":4000},{"$f":"IFERROR(VLOOKUP($J25,Rekenblad2[],2+Aansluitmogelijkheden!N$15,0),\"\")","v":9000},{"$f":"IFERROR(VLOOKUP($J25,Rekenblad2[],2+Aansluitmogelijkheden!O$15,0),\"\")","v":2},{"$f":"IFERROR(VLOOKUP($J25,Rekenblad2[],2+Aansluitmogelijkheden!P$15,0),\"\")","v":3},{"$f":"IFERROR(VLOOKUP($J25,Rekenblad2[],2+Aansluitmogelijkheden!Q$15,0),\"\")","v":3},{"$f":"IFERROR(VLOOKUP($J25,Rekenblad2[],2+Aansluitmogelijkheden!R$15,0),\"\")","v":2}]
[null,null,null,null,null,null,null,null,null,"B2.1",{"$f":"IFERROR(VLOOKUP($J26,Rekenblad2[],2+Aansluitmogelijkheden!K$15,0),\"\")","v":"In de lengterichting van het volledige blok over de gevel "},{"$f":"IFERROR(VLOOKUP($J26,Rekenblad2[],4,0),\"\")","v":7500},{"$f":"IFERROR(VLOOKUP($J26,Rekenblad2[],5,0),\"\")","v":5000},{"$f":"IFERROR(VLOOKUP($J26,Rekenblad2[],2+Aansluitmogelijkheden!N$15,0),\"\")","v":12500},{"$f":"IFERROR(VLOOKUP($J26,Rekenblad2[],2+Aansluitmogelijkheden!O$15,0),\"\")","v":1},{"$f":"IFERROR(VLOOKUP($J26,Rekenblad2[],2+Aansluitmogelijkheden!P$15,0),\"\")","v":3},{"$f":"IFERROR(VLOOKUP($J26,Rekenblad2[],2+Aansluitmogelijkheden!Q$15,0),\"\")","v":2},{"$f":"IFERROR(VLOOKUP($J26,Rekenblad2[],2+Aansluitmogelijkheden!R$15,0),\"\")","v":2}]
[null,null,3,"Wat is de dakvorm van de woning?",null,null,null,null,null,"B2.2",{"$f":"IFERROR(VLOOKUP($J27,Rekenblad2[],2+Aansluitmogelijkheden!K$15,0),\"\")","v":"In de lengterichting van het volledige blok over de gevel "},{"$f":"IFERROR(VLOOKUP($J27,Rekenblad2[],4,0),\"\")","v":7500},{"$f":"IFERROR(VLOOKUP($J27,Rekenblad2[],5,0),\"\")","v":4000},{"$f":"IFERROR(VLOOKUP($J27,Rekenblad2[],2+Aansluitmogelijkheden!N$15,0),\"\")","v":11500},{"$f":"IFERROR(VLOOKUP($J27,Rekenblad2[],2+Aansluitmogelijkheden!O$15,0),\"\")","v":1},{"$f":"IFERROR(VLOOKUP($J27,Rekenblad2[],2+Aansluitmogelijkheden!P$15,0),\"\")","v":4},{"$f":"IFERROR(VLOOKUP($J27,Rekenblad2[],2+Aansluitmogelijkheden!Q$15,0),\"\")","v":4},{"$f":"IFERROR(VLOOKUP($J27,Rekenblad2[],2+Aansluitmogelijkheden!R$15,0),\"\")","v":2}]
[null,null,null,null,null,null,null,null,null,"B3.1",{"$f":"IFERROR(VLOOKUP($J28,Rekenblad2[],2+Aansluitmogelijkheden!K$15,0),\"\")","v":"In de lengterichting van het volledige blok over het dak "},{"$f":"IFERROR(VLOOKUP($J28,Rekenblad2[],4,0),\"\")","v":4000},{"$f":"IFERROR(VLOOKUP($J28,Rekenblad2[],5,0),\"\")","v":5000},{"$f":"IFERROR(VLOOKUP($J28,Rekenblad2[],2+Aansluitmogelijkheden!N$15,0),\"\")","v":9000},{"$f":"IFERROR(VLOOKUP($J28,Rekenblad2[],2+Aansluitmogelijkheden!O$15,0),\"\")","v":1},{"$f":"IFERROR(VLOOKUP($J28,Rekenblad2[],2+Aansluitmogelijkheden!P$15,0),\"\")","v":2},{"$f":"IFERROR(VLOOKUP($J28,Rekenblad2[],2+Aansluitmogelijkheden!Q$15,0),\"\")","v":2},{"$f":"IFERROR(VLOOKUP($J28,Rekenblad2[],2+Aansluitmogelijkheden!R$15,0),\"\")","v":3}]
[null,null,null,null,null,null,null,null,null,"B3.2",{"$f":"IFERROR(VLOOKUP($J29,Rekenblad2[],2+Aansluitmogelijkheden!K$15,0),\"\")","v":"In de lengterichting van het volledige blok over het dak "},{"$f":"IFERROR(VLOOKUP($J29,Rekenblad2[],4,0),\"\")","v":4000},{"$f":"IFERROR(VLOOKUP($J29,Rekenblad2[],5,0),\"\")","v":4000},{"$f":"IFERROR(VLOOKUP($J29,Rekenblad2[],2+Aansluitmogelijkheden!N$15,0),\"\")","v":8000},{"$f":"IFERROR(VLOOKUP($J29,Rekenblad2[],2+Aansluitmogelijkheden!O$15,0),\"\")","v":1},{"$f":"IFERROR(VLOOKUP($J29,Rekenblad2[],2+Aansluitmogelijkheden!P$15,0),\"\")","v":4},{"$f":"IFERROR(VLOOKUP($J29,Rekenblad2[],2+Aansluitmogelijkheden!Q$15,0),\"\")","v":4},{"$f":"IFERROR(VLOOKUP($J29,Rekenblad2[],2+Aansluitmogelijkheden!R$15,0),\"\")","v":3}]
[null,null,null,null,null,null,null,null,null,"B4.1"]
[null,null,null,null,null,null,null,null,null,"B4.2",{"$f":"IF(NOT(J31=\"\"),\"…...\",\"\")","v":"…..."}]
[null,null,null,null,null,null,null,null,null,"C1"]
[null,null,4,"Is er inpandige ruimte in of nabij de entreehal van de woning zelf voor een afleverset?",null,null,null,null,null,null,"Grafiek"]
[]
[]
[]
[]
[]
[null,null,5,"Wat is de locatie van de combiketel?"]
[]
[]
[]
[]
[]
[null,null,6,"Is de plattegrond gespiegeld ten opzichte van die van de aangrenzende woning?"]
[]
[]
[]
[]
[]
[null,null,7,"Is 100% deelname van alle woningen in het blok haalbaar, eventueel door verplichting vanuit 70% instemming van huurders"]

{"sheet":"Instructie Expertversie","index":2,"n_rows":23,"n_cols":3,"rows_kept":23,"cut":false,"hidden":false,"merged":[]}
[]
[]
[]
[null,null,"Handleiding model   - Expertversie"]
[]
[null,null,"Inleiding "]
[null,null,"Het doel van het model is om warmtebedrijven en gebouweigenaren aan te zetten om andere manieren van aansluiten te overwegen en stof voor gesprek te geven. Het model streeft dus niet om een absolute weergave van de werkelijkheid te geven. Als gevolg van eventuele onjuistheden en/of het gebruik van het instrumenten kan geen aansprakelijkheid worden aanvaard. Het model is gesplitst in een versie voor snel en indicatief gebruik en een versie voor een expert die ook zelf aan de slag wil met de onderleggers van het model. In de versie voor snel en indicatief gebruik heeft de gebruiker toegang tot het tabblad 'Aansluitmogelijkheden'. In de expertversie krijgt de gebruiker met een door RVO te verstrekken wachtwoord toegang tot alle tabbladen. \n"]
[null,null,"Het instrument ‘Overzicht aansluitmogelijkheden’ en het bijbehorende rapport zijn tot stand gekomen in het kader van een opdracht van de RVO en in samenwerking met een begeleidingscommissie voor ondersteuning en inbreng. Het rapport is op te vragen via de Helpdesk  "]
[]
[null,null,"Disclaimer"]
[null,null,"Het ‘Overzicht aansluitmogelijkheden’ is ontwikkeld door Atriensis projecten in opdracht van het Expertisecentrum Warmte (ECW). Het is een methode die Atriensis projecten heeft ontwikkeld om mogelijke alternatieven van aansluiten op een warmtenet per woningtype te bepalen op basis van kenmerken van de woning."]
[]
[null,null,"Aan het Overzicht aansluitmogelijkheden kunnen geen rechten worden ontleend."]
[null,null,"Hoewel dit instrument met grootste zorg is samengesteld, kan Atriensis projecten geen enkele aansprakelijkheid aanvaarden voor schade als gevolg van eventuele onjuistheden en/of gebruik van het instrumenten. "]
[]
[null,null,"Het model is standaard enkel zichtbaar als basis-versie. Via de Helpdesk kan het wachtwoord van het model worden opgevraagd. Met dit wachtwoord kunnen achterliggende rekenbladen worden ontgrendeld door bovenaan in het kopje 'controleren' op de knop 'beveiliging blad opheffen' te klikken "]
[]
[null,null,"Handleiding expert-versie"]
[null,null,"Het ‘Overzicht aansluitmogelijkheden’ is een model dat de mogelijke alternatieven van aansluiten op een warmtenet bepaald worden op basis van kenmerken van een woning. De kosten en de kwalitatieve aspecten van de aansluitingen worden met elkaar vergeleken. Het model berekent deze kosten op basis van kengetallen met prijspeil juni 2022."]
[null,null,"Met het invoeren van het wachtwoord worden de volgende tabbladen zichtbaar:"]
[null,null,"- Rekenbladen: Deze zijn nodig voor de werking van het model. \n- Svv ofwel Staat van Verrekenprijzen: Hierin staan de verrekenprijzen voor werkzaamheden opgenomen.\n- Staat Eéngezinswoning (EGW) / Portiek / Galerij: Hierin staan de indicatieve eenheden voor de afzonderlijke aansluitmogelijkheden opgenomen.\n- Kwaliteit EGW / Portiek / Galerij: Hierin staan de kwalitatieve beoordeling van de verschillende aansluitmogelijkheden opgenomen. "]
[]
[null,null,"Door aanpassingen te maken aan de bovenstaande bladen kunnen de aansluitmogelijkheden voor een specifiek project nauwkeuriger worden berekend. "]

{"sheet":"Rekenblad 1","index":3,"n_rows":210,"n_cols":38,"rows_kept":210,"cut":false,"hidden":false,"merged":[]}
[]
[]
[]
[]
[]
[]
[]
[]
[]
[]
[]
[]
[]
[]
[]
[]
[null,null,"NR","1\nType gebouw","Type (2)","2\nKan ik in de lengterichting van het blok onder de onderste woonlaag door?","3\nWat is de dakvorm van de woning?","4\nIs er inpandige ruimte in of nabij de entreehal van de woning zelf voor een afleverset?","5\nWat is de locatie van de combiketel?","6\nIs de plattegrond gespiegeld ten opzichte van die van de aangrenzende woning?","7 \nIs verplichting mogelijk tot deelname van alle woningen in het blok?","A1\nIedere woning afzonderlijk rechtstreeks van buiten cq portiek cq voor de galerijen met afleverset in of nabij de entreehal in het bouwblok zelf","A1.1\nIedere woning afzonderlijk rechtstreeks van buiten cq portiek cq voor de galerijen met afleverset in of nabij de entreehal in het bouwblok zelf","A1.2\nIedere woning afzonderlijk rechtstreeks van buiten cq portiek cq voor de galerijen met afleverset in of nabij de entreehal in het bouwblok zelf","A2\nPer 2 woningen rechtstreeks van buiten cq portiek cq voor de galerijen met afleverset in of nabij de entreehal in het bouwblok zelf","A2.1\nPer 2 woningen rechtstreeks van buiten cq portiek cq voor de galerijen met afleverset in of nabij de entreehal in het bouwblok zelf","A2.2\nPer 2 woningen rechtstreeks van buiten cq portiek cq voor de galerijen met afleverset in of nabij de entreehal in het bouwblok zel","A3\nPer woning via verticale leidingen op voor- of achtergevel naar afleverset ","A3.1\nPer woning via verticale leidingen op voor- of achtergevel naar afleverset ","A3.2\nPer woning via verticale leidingen op voor- of achtergevel naar afleverset ","A4\nPer 2 woningen via verticale leidingen op voor- of achtergevel naar afleverset ","A4.1\nPer 2 woningen via verticale leidingen op voor- of achtergevel naar afleverset ","A4.2\nPer 2 woningen via verticale leidingen op voor- of achtergevel naar afleverset ","B1\nIn de lengterichting van het volledige blok door de kapruimte","B1.1\nIn de lengterichting van het volledige blok door de kapruimte","B1.2\nIn de lengterichting van het volledige blok door de kapruimte","B2\nIn de lengterichting van het volledige blok over de gevel ","B2.1\nIn de lengterichting van het volledige blok over de gevel ","B2.2\nIn de lengterichting van het volledige blok over de gevel ","B3\nIn de lengterichting van het volledige blok over het dak ","B3.1\nIn de lengterichting van het volledige blok over het dak ","B3.2\nIn de lengterichting van het volledige blok over het dak ","B4\nIn de lengterichting van het volledige blok onder de onderste woonlaag door","B4.1\nIn de lengterichting van het volledige blok onder de onderste woonlaag door","B4.2\nIn de lengterichting van het volledige blok onder de onderste woonlaag door","C\nDe individuele afleverset buiten de woning","Locatie CV (0)","Locatie CV (1+)"]
[null,null,1,"Eengezinswoning",{"$f":"IF(Rekenblad1[[#This Row],[1\nType gebouw]]=\"Eengezinswoning\",1,\nIF(Rekenblad1[[#This Row],[1\nType gebouw]]=\"Portieketage\",2,\nIF(Rekenblad1[[#This Row],[1\nType gebouw]]=\"Galerijflat\",3,0)))","v":1},"Ja","Plat dak","Nee","Begane grond (EGW)","Ja ","Ja ",null,null,null,null,null,null,null,1,null,null,1,null,null,null,null,null,1,null,null,1,null,null,null,null,1,1]
[null,null,2,"Eengezinswoning",{"$f":"IF(Rekenblad1[[#This Row],[1\nType gebouw]]=\"Eengezinswoning\",1,\nIF(Rekenblad1[[#This Row],[1\nType gebouw]]=\"Portieketage\",2,\nIF(Rekenblad1[[#This Row],[1\nType gebouw]]=\"Galerijflat\",3,0)))","v":1},"Ja","Plat dak","Nee","Begane grond (EGW)","Ja ","Nee",null,null,null,null,null,null,null,1,null,null,1,null,null,null,null,null,null,null,null,null,null,null,null,null,1,1]
[null,null,3,"Eengezinswoning",{"$f":"IF(Rekenblad1[[#This Row],[1\nType gebouw]]=\"Eengezinswoning\",1,\nIF(Rekenblad1[[#This Row],[1\nType gebouw]]=\"Portieketage\",2,\nIF(Rekenblad1[[#This Row],[1\nType gebouw]]=\"Galerijflat\",3,0)))","v":1},"Ja","Plat dak","Nee","Begane grond (EGW)","Nee","Ja ",null,null,null,null,null,null,null,1,null,null,null,null,null,null,null,null,1,null,null,1,null,null,null,null,1,1]
[null,null,4,"Eengezinswoning",{"$f":"IF(Rekenblad1[[#This Row],[1\nType gebouw]]=\"Eengezinswoning\",1,\nIF(Rekenblad1[[#This Row],[1\nType gebouw]]=\"Portieketage\",2,\nIF(Rekenblad1[[#This Row],[1\nType gebouw]]=\"Galerijflat\",3,0)))","v":1},"Ja","Plat dak","Nee","Begane grond (EGW)","Nee","Nee",null,null,null,null,null,null,null,1,null,null,null,null,null,null,null,null,null,null,null,null,null,null,null,null,1,1]
[null,null,5,"Eengezinswoning",{"$f":"IF(Rekenblad1[[#This Row],[1\nType gebouw]]=\"Eengezinswoning\",1,\nIF(Rekenblad1[[#This Row],[1\nType gebouw]]=\"Portieketage\",2,\nIF(Rekenblad1[[#This Row],[1\nType gebouw]]=\"Galerijflat\",3,0)))","v":1},"Ja","Plat dak","Nee","Eerste verdieping of hoger (EGW)","Ja ","Ja ",null,null,null,null,null,null,null,null,1,null,null,1,null,null,null,null,null,1,null,null,1,null,null,null,1,null,2]
[null,null,6,"Eengezinswoning",{"$f":"IF(Rekenblad1[[#This Row],[1\nType gebouw]]=\"Eengezinswoning\",1,\nIF(Rekenblad1[[#This Row],[1\nType gebouw]]=\"Portieketage\",2,\nIF(Rekenblad1[[#This Row],[1\nType gebouw]]=\"Galerijflat\",3,0)))","v":1},"Ja","Plat dak","Nee","Eerste verdieping of hoger (EGW)","Ja ","Nee",null,null,null,null,null,null,null,null,1,null,null,1,null,null,null,null,null,null,null,null,null,null,null,null,1,null,2]
[null,null,7,"Eengezinswoning",{"$f":"IF(Rekenblad1[[#This Row],[1\nType gebouw]]=\"Eengezinswoning\",1,\nIF(Rekenblad1[[#This Row],[1\nType gebouw]]=\"Portieketage\",2,\nIF(Rekenblad1[[#This Row],[1\nType gebouw]]=\"Galerijflat\",3,0)))","v":1},"Ja","Plat dak","Nee","Eerste verdieping of hoger (EGW)","Nee","Ja ",null,null,null,null,null,null,null,null,1,null,null,null,null,null,null,null,null,1,null,null,1,null,null,null,1,null,2]
[null,null,8,"Eengezinswoning",{"$f":"IF(Rekenblad1[[#This Row],[1\nType gebouw]]=\"Eengezinswoning\",1,\nIF(Rekenblad1[[#This Row],[1\nType gebouw]]=\"Portieketage\",2,\nIF(Rekenblad1[[#This Row],[1\nType gebouw]]=\"Galerijflat\",3,0)))","v":1},"Ja","Plat dak","Nee","Eerste verdieping of hoger (EGW)","Nee","Nee",null,null,null,null,null,null,null,null,1,null,null,null,null,null,null,null,null,null,null,null,null,null,null,null,1,null,2]
[null,null,9,"Eengezinswoning",{"$f":"IF(Rekenblad1[[#This Row],[1\nType gebouw]]=\"Eengezinswoning\",1,\nIF(Rekenblad1[[#This Row],[1\nType gebouw]]=\"Portieketage\",2,\nIF(Rekenblad1[[#This Row],[1\nType gebouw]]=\"Galerijflat\",3,0)))","v":1},"Ja","Plat dak","Ja","Begane grond (EGW)","Ja ","Ja ",null,1,null,null,1,null,null,1,null,null,1,null,null,null,null,null,1,null,null,1,null,null,1,null,1,1]
[null,null,10,"Eengezinswoning",{"$f":"IF(Rekenblad1[[#This Row],[1\nType gebouw]]=\"Eengezinswoning\",1,\nIF(Rekenblad1[[#This Row],[1\nType gebouw]]=\"Portieketage\",2,\nIF(Rekenblad1[[#This Row],[1\nType gebouw]]=\"Galerijflat\",3,0)))","v":1},"Ja","Plat dak","Ja","Begane grond (EGW)","Ja ","Nee",null,1,null,null,1,null,null,1,null,null,1,null,null,null,null,null,null,null,null,null,null,null,null,null,1,1]
[null,null,11,"Eengezinswoning",{"$f":"IF(Rekenblad1[[#This Row],[1\nType gebouw]]=\"Eengezinswoning\",1,\nIF(Rekenblad1[[#This Row],[1\nType gebouw]]=\"Portieketage\",2,\nIF(Rekenblad1[[#This Row],[1\nType gebouw]]=\"Galerijflat\",3,0)))","v":1},"Ja","Plat dak","Ja","Begane grond (EGW)","Nee","Ja ",null,1,null,null,null,null,null,1,null,null,null,null,null,null,null,null,1,null,null,1,null,null,1,null,1,1]
[null,null,12,"Eengezinswoning",{"$f":"IF(Rekenblad1[[#This Row],[1\nType gebouw]]=\"Eengezinswoning\",1,\nIF(Rekenblad1[[#This Row],[1\nType gebouw]]=\"Portieketage\",2,\nIF(Rekenblad1[[#This Row],[1\nType gebouw]]=\"Galerijflat\",3,0)))","v":1},"Ja","Plat dak","Ja","Begane grond (EGW)","Nee","Nee",null,1,null,null,null,null,null,1,null,null,null,null,null,null,null,null,null,null,null,null,null,null,null,null,1,1]
[null,null,13,"Eengezinswoning",{"$f":"IF(Rekenblad1[[#This Row],[1\nType gebouw]]=\"Eengezinswoning\",1,\nIF(Rekenblad1[[#This Row],[1\nType gebouw]]=\"Portieketage\",2,\nIF(Rekenblad1[[#This Row],[1\nType gebouw]]=\"Galerijflat\",3,0)))","v":1},"Ja","Plat dak","Ja","Eerste verdieping of hoger (EGW)","Ja ","Ja ",null,null,1,null,null,1,null,null,1,null,null,1,null,null,null,null,null,1,null,null,1,null,null,1,1,null,2]
[null,null,14,"Eengezinswoning",{"$f":"IF(Rekenblad1[[#This Row],[1\nType gebouw]]=\"Eengezinswoning\",1,\nIF(Rekenblad1[[#This Row],[1\nType gebouw]]=\"Portieketage\",2,\nIF(Rekenblad1[[#This Row],[1\nType gebouw]]=\"Galerijflat\",3,0)))","v":1},"Ja","Plat dak","Ja","Eerste verdieping of hoger (EGW)","Ja ","Nee",null,null,1,null,null,1,null,null,1,null,null,1,null,null,null,null,null,null,null,null,null,null,null,null,1,null,2]
[null,null,15,"Eengezinswoning",{"$f":"IF(Rekenblad1[[#This Row],[1\nType gebouw]]=\"Eengezinswoning\",1,\nIF(Rekenblad1[[#This Row],[1\nType gebouw]]=\"Portieketage\",2,\nIF(Rekenblad1[[#This Row],[1\nType gebouw]]=\"Galerijflat\",3,0)))","v":1},"Ja","Plat dak","Ja","Eerste verdieping of hoger (EGW)","Nee","Ja ",null,null,1,null,null,null,null,null,1,null,null,null,null,null,null,null,null,1,null,null,1,null,null,1,1,null,2]
[null,null,16,"Eengezinswoning",{"$f":"IF(Rekenblad1[[#This Row],[1\nType gebouw]]=\"Eengezinswoning\",1,\nIF(Rekenblad1[[#This Row],[1\nType gebouw]]=\"Portieketage\",2,\nIF(Rekenblad1[[#This Row],[1\nType gebouw]]=\"Galerijflat\",3,0)))","v":1},"Ja","Plat dak","Ja","Eerste verdieping of hoger (EGW)","Nee","Nee",null,null,1,null,null,null,null,null,1,null,null,null,null,null,null,null,null,null,null,null,null,null,null,null,1,null,2]
[null,null,17,"Eengezinswoning",{"$f":"IF(Rekenblad1[[#This Row],[1\nType gebouw]]=\"Eengezinswoning\",1,\nIF(Rekenblad1[[#This Row],[1\nType gebouw]]=\"Portieketage\",2,\nIF(Rekenblad1[[#This Row],[1\nType gebouw]]=\"Galerijflat\",3,0)))","v":1},"Ja","Hellend dak","Nee","Begane grond (EGW)","Ja ","Ja ",null,null,null,null,null,null,null,1,null,null,1,null,null,1,null,null,1,null,null,null,null,null,null,null,1,1]
[null,null,18,"Eengezinswoning",{"$f":"IF(Rekenblad1[[#This Row],[1\nType gebouw]]=\"Eengezinswoning\",1,\nIF(Rekenblad1[[#This Row],[1\nType gebouw]]=\"Portieketage\",2,\nIF(Rekenblad1[[#This Row],[1\nType gebouw]]=\"Galerijflat\",3,0)))","v":1},"Ja","Hellend dak","Nee","Begane grond (EGW)","Ja ","Nee",null,null,null,null,null,null,null,1,null,null,1,null,null,null,null,null,null,null,null,null,null,null,null,null,1,1]
[null,null,19,"Eengezinswoning",{"$f":"IF(Rekenblad1[[#This Row],[1\nType gebouw]]=\"Eengezinswoning\",1,\nIF(Rekenblad1[[#This Row],[1\nType gebouw]]=\"Portieketage\",2,\nIF(Rekenblad1[[#This Row],[1\nType gebouw]]=\"Galerijflat\",3,0)))","v":1},"Ja","Hellend dak","Nee","Begane grond (EGW)","Nee","Ja ",null,null,null,null,null,null,null,1,null,null,null,null,null,1,null,null,1,null,null,null,null,null,null,null,1,1]
[null,null,20,"Eengezinswoning",{"$f":"IF(Rekenblad1[[#This Row],[1\nType gebouw]]=\"Eengezinswoning\",1,\nIF(Rekenblad1[[#This Row],[1\nType gebouw]]=\"Portieketage\",2,\nIF(Rekenblad1[[#This Row],[1\nType gebouw]]=\"Galerijflat\",3,0)))","v":1},"Ja","Hellend dak","Nee","Begane grond (EGW)","Nee","Nee",null,null,null,null,null,null,null,1,null,null,null,null,null,null,null,null,null,null,null,null,null,null,null,null,1,1]
[null,null,21,"Eengezinswoning",{"$f":"IF(Rekenblad1[[#This Row],[1\nType gebouw]]=\"Eengezinswoning\",1,\nIF(Rekenblad1[[#This Row],[1\nType gebouw]]=\"Portieketage\",2,\nIF(Rekenblad1[[#This Row],[1\nType gebouw]]=\"Galerijflat\",3,0)))","v":1},"Ja","Hellend dak","Nee","Eerste verdieping of hoger (EGW)","Ja ","Ja ",null,null,null,null,null,null,null,null,1,null,null,1,null,null,1,null,null,1,null,null,null,null,null,null,1,null,2]
[null,null,22,"Eengezinswoning",{"$f":"IF(Rekenblad1[[#This Row],[1\nType gebouw]]=\"Eengezinswoning\",1,\nIF(Rekenblad1[[#This Row],[1\nType gebouw]]=\"Portieketage\",2,\nIF(Rekenblad1[[#This Row],[1\nType gebouw]]=\"Galerijflat\",3,0)))","v":1},"Ja","Hellend dak","Nee","Eerste verdieping of hoger (EGW)","Ja ","Nee",null,null,null,null,null,null,null,null,1,null,null,1,null,null,null,null,null,null,null,null,null,null,null,null,1,null,2]
[null,null,23,"Eengezinswoning",{"$f":"IF(Rekenblad1[[#This Row],[1\nType gebouw]]=\"Eengezinswoning\",1,\nIF(Rekenblad1[[#This Row],[1\nType gebouw]]=\"Portieketage\",2,\nIF(Rekenblad1[[#This Row],[1\nType gebouw]]=\"Galerijflat\",3,0)))","v":1},"Ja","Hellend dak","Nee","Eerste verdieping of hoger (EGW)","Nee","Ja ",null,null,null,null,null,null,null,null,1,null,null,null,null,null,1,null,null,1,null,null,null,null,null,null,1,null,2]
[null,null,24,"Eengezinswoning",{"$f":"IF(Rekenblad1[[#This Row],[1\nType gebouw]]=\"Eengezinswoning\",1,\nIF(Rekenblad1[[#This Row],[1\nType gebouw]]=\"Portieketage\",2,\nIF(Rekenblad1[[#This Row],[1\nType gebouw]]=\"Galerijflat\",3,0)))","v":1},"Ja","Hellend dak","Nee","Eerste verdieping of hoger (EGW)","Nee","Nee",null,null,null,null,null,null,null,null,1,null,null,null,null,null,null,null,null,null,null,null,null,null,null,null,1,null,2]
[null,null,25,"Eengezinswoning",{"$f":"IF(Rekenblad1[[#This Row],[1\nType gebouw]]=\"Eengezinswoning\",1,\nIF(Rekenblad1[[#This Row],[1\nType gebouw]]=\"Portieketage\",2,\nIF(Rekenblad1[[#This Row],[1\nType gebouw]]=\"Galerijflat\",3,0)))","v":1},"Ja","Hellend dak","Ja","Begane grond (EGW)","Ja ","Ja ",null,1,null,null,1,null,null,1,null,null,1,null,null,1,null,null,1,null,null,null,null,null,1,null,1,1]
[null,null,26,"Eengezinswoning",{"$f":"IF(Rekenblad1[[#This Row],[1\nType gebouw]]=\"Eengezinswoning\",1,\nIF(Rekenblad1[[#This Row],[1\nType gebouw]]=\"Portieketage\",2,\nIF(Rekenblad1[[#This Row],[1\nType gebouw]]=\"Galerijflat\",3,0)))","v":1},"Ja","Hellend dak","Ja","Begane grond (EGW)","Ja ","Nee",null,1,null,null,1,null,null,1,null,null,1,null,null,null,null,null,null,null,null,null,null,null,null,null,1,1]
[null,null,27,"Eengezinswoning",{"$f":"IF(Rekenblad1[[#This Row],[1\nType gebouw]]=\"Eengezinswoning\",1,\nIF(Rekenblad1[[#This Row],[1\nType gebouw]]=\"Portieketage\",2,\nIF(Rekenblad1[[#This Row],[1\nType gebouw]]=\"Galerijflat\",3,0)))","v":1},"Ja","Hellend dak","Ja","Begane grond (EGW)","Nee","Ja ",null,1,null,null,null,null,null,1,null,null,null,null,null,1,null,null,1,null,null,null,null,null,1,null,1,1]
[null,null,28,"Eengezinswoning",{"$f":"IF(Rekenblad1[[#This Row],[1\nType gebouw]]=\"Eengezinswoning\",1,\nIF(Rekenblad1[[#This Row],[1\nType gebouw]]=\"Portieketage\",2,\nIF(Rekenblad1[[#This Row],[1\nType gebouw]]=\"Galerijflat\",3,0)))","v":1},"Ja","Hellend dak","Ja","Begane grond (EGW)","Nee","Nee",null,1,null,null,null,null,null,1,null,null,null,null,null,null,null,null,null,null,null,null,null,null,null,null,1,1]
[null,null,29,"Eengezinswoning",{"$f":"IF(Rekenblad1[[#This Row],[1\nType gebouw]]=\"Eengezinswoning\",1,\nIF(Rekenblad1[[#This Row],[1\nType gebouw]]=\"Portieketage\",2,\nIF(Rekenblad1[[#This Row],[1\nType gebouw]]=\"Galerijflat\",3,0)))","v":1},"Ja","Hellend dak","Ja","Eerste verdieping of hoger (EGW)","Ja ","Ja ",null,null,1,null,null,1,null,null,1,null,null,1,null,null,1,null,null,1,null,null,null,null,null,1,1,null,2]
[null,null,30,"Eengezinswoning",{"$f":"IF(Rekenblad1[[#This Row],[1\nType gebouw]]=\"Eengezinswoning\",1,\nIF(Rekenblad1[[#This Row],[1\nType gebouw]]=\"Portieketage\",2,\nIF(Rekenblad1[[#This Row],[1\nType gebouw]]=\"Galerijflat\",3,0)))","v":1},"Ja","Hellend dak","Ja","Eerste verdieping of hoger (EGW)","Ja ","Nee",null,null,1,null,null,1,null,null,1,null,null,1,null,null,null,null,null,null,null,null,null,null,null,null,1,null,2]
[null,null,31,"Eengezinswoning",{"$f":"IF(Rekenblad1[[#This Row],[1\nType gebouw]]=\"Eengezinswoning\",1,\nIF(Rekenblad1[[#This Row],[1\nType gebouw]]=\"Portieketage\",2,\nIF(Rekenblad1[[#This Row],[1\nType gebouw]]=\"Galerijflat\",3,0)))","v":1},"Ja","Hellend dak","Ja","Eerste verdieping of hoger (EGW)","Nee","Ja ",null,null,1,null,null,null,null,null,1,null,null,null,null,null,1,null,null,1,null,null,null,null,null,1,1,null,2]
[null,null,32,"Eengezinswoning",{"$f":"IF(Rekenblad1[[#This Row],[1\nType gebouw]]=\"Eengezinswoning\",1,\nIF(Rekenblad1[[#This Row],[1\nType gebouw]]=\"Portieketage\",2,\nIF(Rekenblad1[[#This Row],[1\nType gebouw]]=\"Galerijflat\",3,0)))","v":1},"Ja","Hellend dak","Ja","Eerste verdieping of hoger (EGW)","Nee","Nee",null,null,1,null,null,null,null,null,1,null,null,null,null,null,null,null,null,null,null,null,null,null,null,null,1,null,2]
[null,null,33,"Eengezinswoning",{"$f":"IF(Rekenblad1[[#This Row],[1\nType gebouw]]=\"Eengezinswoning\",1,\nIF(Rekenblad1[[#This Row],[1\nType gebouw]]=\"Portieketage\",2,\nIF(Rekenblad1[[#This Row],[1\nType gebouw]]=\"Galerijflat\",3,0)))","v":1},"Nee","Plat dak","Nee","Begane grond (EGW)","Ja ","Ja ",null,null,null,null,null,null,null,1,null,null,1,null,null,null,null,null,1,null,null,1,null,null,null,null,1,1]
[null,null,34,"Eengezinswoning",{"$f":"IF(Rekenblad1[[#This Row],[1\nType gebouw]]=\"Eengezinswoning\",1,\nIF(Rekenblad1[[#This Row],[1\nType gebouw]]=\"Portieketage\",2,\nIF(Rekenblad1[[#This Row],[1\nType gebouw]]=\"Galerijflat\",3,0)))","v":1},"Nee","Plat dak","Nee","Begane grond (EGW)","Ja ","Nee",null,null,null,null,null,null,null,1,null,null,1,null,null,null,null,null,null,null,null,null,null,null,null,null,1,1]
[null,null,35,"Eengezinswoning",{"$f":"IF(Rekenblad1[[#This Row],[1\nType gebouw]]=\"Eengezinswoning\",1,\nIF(Rekenblad1[[#This Row],[1\nType gebouw]]=\"Portieketage\",2,\nIF(Rekenblad1[[#This Row],[1\nType gebouw]]=\"Galerijflat\",3,0)))","v":1},"Nee","Plat dak","Nee","Begane grond (EGW)","Nee","Ja ",null,null,null,null,null,null,null,1,null,null,null,null,null,null,null,null,1,null,null,1,null,null,null,null,1,1]
[null,null,36,"Eengezinswoning",{"$f":"IF(Rekenblad1[[#This Row],[1\nType gebouw]]=\"Eengezinswoning\",1,\nIF(Rekenblad1[[#This Row],[1\nType gebouw]]=\"Portieketage\",2,\nIF(Rekenblad1[[#This Row],[1\nType gebouw]]=\"Galerijflat\",3,0)))","v":1},"Nee","Plat dak","Nee","Begane grond (EGW)","Nee","Nee",null,null,null,null,null,null,null,1,null,null,null,null,null,null,null,null,null,null,null,null,null,null,null,null,1,1]
[null,null,37,"Eengezinswoning",{"$f":"IF(Rekenblad1[[#This Row],[1\nType gebouw]]=\"Eengezinswoning\",1,\nIF(Rekenblad1[[#This Row],[1\nType gebouw]]=\"Portieketage\",2,\nIF(Rekenblad1[[#This Row],[1\nType gebouw]]=\"Galerijflat\",3,0)))","v":1},"Nee","Plat dak","Nee","Eerste verdieping of hoger (EGW)","Ja ","Ja ",null,null,null,null,null,null,null,null,1,null,null,1,null,null,null,null,null,1,null,null,1,null,null,null,1,null,2]
[null,null,38,"Eengezinswoning",{"$f":"IF(Rekenblad1[[#This Row],[1\nType gebouw]]=\"Eengezinswoning\",1,\nIF(Rekenblad1[[#This Row],[1\nType gebouw]]=\"Portieketage\",2,\nIF(Rekenblad1[[#This Row],[1\nType gebouw]]=\"Galerijflat\",3,0)))","v":1},"Nee","Plat dak","Nee","Eerste verdieping of hoger (EGW)","Ja ","Nee",null,null,null,null,null,null,null,null,1,null,null,1,null,null,null,null,null,null,null,null,null,null,null,null,1,null,2]
[null,null,39,"Eengezinswoning",{"$f":"IF(Rekenblad1[[#This Row],[1\nType gebouw]]=\"Eengezinswoning\",1,\nIF(Rekenblad1[[#This Row],[1\nType gebouw]]=\"Portieketage\",2,\nIF(Rekenblad1[[#This Row],[1\nType gebouw]]=\"Galerijflat\",3,0)))","v":1},"Nee","Plat dak","Nee","Eerste verdieping of hoger (EGW)","Nee","Ja ",null,null,null,null,null,null,null,null,1,null,null,null,null,null,null,null,null,1,null,null,1,null,null,null,1,null,2]
[null,null,40,"Eengezinswoning",{"$f":"IF(Rekenblad1[[#This Row],[1\nType gebouw]]=\"Eengezinswoning\",1,\nIF(Rekenblad1[[#This Row],[1\nType gebouw]]=\"Portieketage\",2,\nIF(Rekenblad1[[#This Row],[1\nType gebouw]]=\"Galerijflat\",3,0)))","v":1},"Nee","Plat dak","Nee","Eerste verdieping of hoger (EGW)","Nee","Nee",null,null,null,null,null,null,null,null,1,null,null,null,null,null,null,null,null,null,null,null,null,null,null,null,1,null,2]
[null,null,41,"Eengezinswoning",{"$f":"IF(Rekenblad1[[#This Row],[1\nType gebouw]]=\"Eengezinswoning\",1,\nIF(Rekenblad1[[#This Row],[1\nType gebouw]]=\"Portieketage\",2,\nIF(Rekenblad1[[#This Row],[1\nType gebouw]]=\"Galerijflat\",3,0)))","v":1},"Nee","Plat dak","Ja","Begane grond (EGW)","Ja ","Ja ",null,1,null,null,1,null,null,1,null,null,1,null,null,null,null,null,1,null,null,1,null,null,null,null,1,1]
[null,null,42,"Eengezinswoning",{"$f":"IF(Rekenblad1[[#This Row],[1\nType gebouw]]=\"Eengezinswoning\",1,\nIF(Rekenblad1[[#This Row],[1\nType gebouw]]=\"Portieketage\",2,\nIF(Rekenblad1[[#This Row],[1\nType gebouw]]=\"Galerijflat\",3,0)))","v":1},"Nee","Plat dak","Ja","Begane grond (EGW)","Ja ","Nee",null,1,null,null,1,null,null,1,null,null,1,null,null,null,null,null,null,null,null,null,null,null,null,null,1,1]
[null,null,43,"Eengezinswoning",{"$f":"IF(Rekenblad1[[#This Row],[1\nType gebouw]]=\"Eengezinswoning\",1,\nIF(Rekenblad1[[#This Row],[1\nType gebouw]]=\"Portieketage\",2,\nIF(Rekenblad1[[#This Row],[1\nType gebouw]]=\"Galerijflat\",3,0)))","v":1},"Nee","Plat dak","Ja","Begane grond (EGW)","Nee","Ja ",null,1,null,null,null,null,null,1,null,null,null,null,null,null,null,null,1,null,null,1,null,null,null,null,1,1]
[null,null,44,"Eengezinswoning",{"$f":"IF(Rekenblad1[[#This Row],[1\nType gebouw]]=\"Eengezinswoning\",1,\nIF(Rekenblad1[[#This Row],[1\nType gebouw]]=\"Portieketage\",2,\nIF(Rekenblad1[[#This Row],[1\nType gebouw]]=\"Galerijflat\",3,0)))","v":1},"Nee","Plat dak","Ja","Begane grond (EGW)","Nee","Nee",null,1,null,null,null,null,null,1,null,null,null,null,null,null,null,null,null,null,null,null,null,null,null,null,1,1]
[null,null,45,"Eengezinswoning",{"$f":"IF(Rekenblad1[[#This Row],[1\nType gebouw]]=\"Eengezinswoning\",1,\nIF(Rekenblad1[[#This Row],[1\nType gebouw]]=\"Portieketage\",2,\nIF(Rekenblad1[[#This Row],[1\nType gebouw]]=\"Galerijflat\",3,0)))","v":1},"Nee","Plat dak","Ja","Eerste verdieping of hoger (EGW)","Ja ","Ja ",null,null,1,null,null,1,null,null,1,null,null,1,null,null,null,null,null,1,null,null,1,null,null,null,1,null,2]
[null,null,46,"Eengezinswoning",{"$f":"IF(Rekenblad1[[#This Row],[1\nType gebouw]]=\"Eengezinswoning\",1,\nIF(Rekenblad1[[#This Row],[1\nType gebouw]]=\"Portieketage\",2,\nIF(Rekenblad1[[#This Row],[1\nType gebouw]]=\"Galerijflat\",3,0)))","v":1},"Nee","Plat dak","Ja","Eerste verdieping of hoger (EGW)","Ja ","Nee",null,null,1,null,null,1,null,null,1,null,null,1,null,null,null,null,null,null,null,null,null,null,null,null,1,null,2]
[null,null,47,"Eengezinswoning",{"$f":"IF(Rekenblad1[[#This Row],[1\nType gebouw]]=\"Eengezinswoning\",1,\nIF(Rekenblad1[[#This Row],[1\nType gebouw]]=\"Portieketage\",2,\nIF(Rekenblad1[[#This Row],[1\nType gebouw]]=\"Galerijflat\",3,0)))","v":1},"Nee","Plat dak","Ja","Eerste verdieping of hoger (EGW)","Nee","Ja ",null,null,1,null,null,null,null,null,1,null,null,null,null,null,null,null,null,1,null,null,1,null,null,null,1,null,2]
[null,null,48,"Eengezinswoning",{"$f":"IF(Rekenblad1[[#This Row],[1\nType gebouw]]=\"Eengezinswoning\",1,\nIF(Rekenblad1[[#This Row],[1\nType gebouw]]=\"Portieketage\",2,\nIF(Rekenblad1[[#This Row],[1\nType gebouw]]=\"Galerijflat\",3,0)))","v":1},"Nee","Plat dak","Ja","Eerste verdieping of hoger (EGW)","Nee","Nee",null,null,1,null,null,null,null,null,1,null,null,null,null,null,null,null,null,null,null,null,null,null,null,null,1,null,2]
[null,null,49,"Eengezinswoning",{"$f":"IF(Rekenblad1[[#This Row],[1\nType gebouw]]=\"Eengezinswoning\",1,\nIF(Rekenblad1[[#This Row],[1\nType gebouw]]=\"Portieketage\",2,\nIF(Rekenblad1[[#This Row],[1\nType gebouw]]=\"Galerijflat\",3,0)))","v":1},"Nee","Hellend dak","Nee","Begane grond (EGW)","Ja ","Ja ",null,null,null,null,null,null,null,1,null,null,1,null,null,1,null,null,1,null,null,null,null,null,null,null,1,1]
[null,null,50,"Eengezinswoning",{"$f":"IF(Rekenblad1[[#This Row],[1\nType gebouw]]=\"Eengezinswoning\",1,\nIF(Rekenblad1[[#This Row],[1\nType gebouw]]=\"Portieketage\",2,\nIF(Rekenblad1[[#This Row],[1\nType gebouw]]=\"Galerijflat\",3,0)))","v":1},"Nee","Hellend dak","Nee","Begane grond (EGW)","Ja ","Nee",null,null,null,null,null,null,null,1,null,null,1,null,null,null,null,null,null,null,null,null,null,null,null,null,1,1]
[null,null,51,"Eengezinswoning",{"$f":"IF(Rekenblad1[[#This Row],[1\nType gebouw]]=\"Eengezinswoning\",1,\nIF(Rekenblad1[[#This Row],[1\nType gebouw]]=\"Portieketage\",2,\nIF(Rekenblad1[[#This Row],[1\nType gebouw]]=\"Galerijflat\",3,0)))","v":1},"Nee","Hellend dak","Nee","Begane grond (EGW)","Nee","Ja ",null,null,null,null,null,null,null,1,null,null,null,null,null,1,null,null,1,null,null,null,null,null,null,null,1,1]
[null,null,52,"Eengezinswoning",{"$f":"IF(Rekenblad1[[#This Row],[1\nType gebouw]]=\"Eengezinswoning\",1,\nIF(Rekenblad1[[#This Row],[1\nType gebouw]]=\"Portieketage\",2,\nIF(Rekenblad1[[#This Row],[1\nType gebouw]]=\"Galerijflat\",3,0)))","v":1},"Nee","Hellend dak","Nee","Begane grond (EGW)","Nee","Nee",null,null,null,null,null,null,null,1,null,null,null,null,null,null,null,null,null,null,null,null,null,null,null,null,1,1]
[null,null,53,"Eengezinswoning",{"$f":"IF(Rekenblad1[[#This Row],[1\nType gebouw]]=\"Eengezinswoning\",1,\nIF(Rekenblad1[[#This Row],[1\nType gebouw]]=\"Portieketage\",2,\nIF(Rekenblad1[[#This Row],[1\nType gebouw]]=\"Galerijflat\",3,0)))","v":1},"Nee","Hellend dak","Nee","Eerste verdieping of hoger (EGW)","Ja ","Ja ",null,null,null,null,null,null,null,null,1,null,null,1,null,null,1,null,null,1,null,null,null,null,null,null,1,null,2]
[null,null,54,"Eengezinswoning",{"$f":"IF(Rekenblad1[[#This Row],[1\nType gebouw]]=\"Eengezinswoning\",1,\nIF(Rekenblad1[[#This Row],[1\nType gebouw]]=\"Portieketage\",2,\nIF(Rekenblad1[[#This Row],[1\nType gebouw]]=\"Galerijflat\",3,0)))","v":1},"Nee","Hellend dak","Nee","Eerste verdieping of hoger (EGW)","Ja ","Nee",null,null,null,null,null,null,null,null,1,null,null,1,null,null,null,null,null,null,null,null,null,null,null,null,1,null,2]
[null,null,55,"Eengezinswoning",{"$f":"IF(Rekenblad1[[#This Row],[1\nType gebouw]]=\"Eengezinswoning\",1,\nIF(Rekenblad1[[#This Row],[1\nType gebouw]]=\"Portieketage\",2,\nIF(Rekenblad1[[#This Row],[1\nType gebouw]]=\"Galerijflat\",3,0)))","v":1},"Nee","Hellend dak","Nee","Eerste verdieping of hoger (EGW)","Nee","Ja ",null,null,null,null,null,null,null,null,1,null,null,null,null,null,1,null,null,1,null,null,null,null,null,null,1,null,2]
[null,null,56,"Eengezinswoning",{"$f":"IF(Rekenblad1[[#This Row],[1\nType gebouw]]=\"Eengezinswoning\",1,\nIF(Rekenblad1[[#This Row],[1\nType gebouw]]=\"Portieketage\",2,\nIF(Rekenblad1[[#This Row],[1\nType gebouw]]=\"Galerijflat\",3,0)))","v":1},"Nee","Hellend dak","Nee","Eerste verdieping of hoger (EGW)","Nee","Nee",null,null,null,null,null,null,null,null,1,null,null,null,null,null,null,null,null,null,null,null,null,null,null,null,1,null,2]
[null,null,57,"Eengezinswoning",{"$f":"IF(Rekenblad1[[#This Row],[1\nType gebouw]]=\"Eengezinswoning\",1,\nIF(Rekenblad1[[#This Row],[1\nType gebouw]]=\"Portieketage\",2,\nIF(Rekenblad1[[#This Row],[1\nType gebouw]]=\"Galerijflat\",3,0)))","v":1},"Nee","Hellend dak","Ja","Begane grond (EGW)","Ja ","Ja ",null,1,null,null,1,null,null,1,null,null,1,null,null,1,null,null,1,null,null,null,null,null,null,null,1,1]
[null,null,58,"Eengezinswoning",{"$f":"IF(Rekenblad1[[#This Row],[1\nType gebouw]]=\"Eengezinswoning\",1,\nIF(Rekenblad1[[#This Row],[1\nType gebouw]]=\"Portieketage\",2,\nIF(Rekenblad1[[#This Row],[1\nType gebouw]]=\"Galerijflat\",3,0)))","v":1},"Nee","Hellend dak","Ja","Begane grond (EGW)","Ja ","Nee",null,1,null,null,1,null,null,1,null,null,1,null,null,null,null,null,null,null,null,null,null,null,null,null,1,1]
[null,null,59,"Eengezinswoning",{"$f":"IF(Rekenblad1[[#This Row],[1\nType gebouw]]=\"Eengezinswoning\",1,\nIF(Rekenblad1[[#This Row],[1\nType gebouw]]=\"Portieketage\",2,\nIF(Rekenblad1[[#This Row],[1\nType gebouw]]=\"Galerijflat\",3,0)))","v":1},"Nee","Hellend dak","Ja","Begane grond (EGW)","Nee","Ja ",null,1,null,null,null,null,null,1,null,null,null,null,null,1,null,null,1,null,null,null,null,null,null,null,1,1]
[null,null,60,"Eengezinswoning",{"$f":"IF(Rekenblad1[[#This Row],[1\nType gebouw]]=\"Eengezinswoning\",1,\nIF(Rekenblad1[[#This Row],[1\nType gebouw]]=\"Portieketage\",2,\nIF(Rekenblad1[[#This Row],[1\nType gebouw]]=\"Galerijflat\",3,0)))","v":1},"Nee","Hellend dak","Ja","Begane grond (EGW)","Nee","Nee",null,1,null,null,null,null,null,1,null,null,null,null,null,null,null,null,null,null,null,null,null,null,null,null,1,1]
[null,null,61,"Eengezinswoning",{"$f":"IF(Rekenblad1[[#This Row],[1\nType gebouw]]=\"Eengezinswoning\",1,\nIF(Rekenblad1[[#This Row],[1\nType gebouw]]=\"Portieketage\",2,\nIF(Rekenblad1[[#This Row],[1\nType gebouw]]=\"Galerijflat\",3,0)))","v":1},"Nee","Hellend dak","Ja","Eerste verdieping of hoger (EGW)","Ja ","Ja ",null,null,1,null,null,1,null,null,1,null,null,1,null,null,1,null,null,1,null,null,null,null,null,null,1,null,2]
[null,null,62,"Eengezinswoning",{"$f":"IF(Rekenblad1[[#This Row],[1\nType gebouw]]=\"Eengezinswoning\",1,\nIF(Rekenblad1[[#This Row],[1\nType gebouw]]=\"Portieketage\",2,\nIF(Rekenblad1[[#This Row],[1\nType gebouw]]=\"Galerijflat\",3,0)))","v":1},"Nee","Hellend dak","Ja","Eerste verdieping of hoger (EGW)","Ja ","Nee",null,null,1,null,null,1,null,null,1,null,null,1,null,null,null,null,null,null,null,null,null,null,null,null,1,null,2]
[null,null,63,"Eengezinswoning",{"$f":"IF(Rekenblad1[[#This Row],[1\nType gebouw]]=\"Eengezinswoning\",1,\nIF(Rekenblad1[[#This Row],[1\nType gebouw]]=\"Portieketage\",2,\nIF(Rekenblad1[[#This Row],[1\nType gebouw]]=\"Galerijflat\",3,0)))","v":1},"Nee","Hellend dak","Ja","Eerste verdieping of hoger (EGW)","Nee","Ja ",null,null,1,null,null,null,null,null,1,null,null,null,null,null,1,null,null,1,null,null,null,null,null,null,1,null,2]
[null,null,64,"Eengezinswoning",{"$f":"IF(Rekenblad1[[#This Row],[1\nType gebouw]]=\"Eengezinswoning\",1,\nIF(Rekenblad1[[#This Row],[1\nType gebouw]]=\"Portieketage\",2,\nIF(Rekenblad1[[#This Row],[1\nType gebouw]]=\"Galerijflat\",3,0)))","v":1},"Nee","Hellend dak","Ja","Eerste verdieping of hoger (EGW)","Nee","Nee",null,null,1,null,null,null,null,null,1,null,null,null,null,null,null,null,null,null,null,null,null,null,null,null,1,null,2]
[null,null,65,"Portieketage",{"$f":"IF(Rekenblad1[[#This Row],[1\nType gebouw]]=\"Eengezinswoning\",1,\nIF(Rekenblad1[[#This Row],[1\nType gebouw]]=\"Portieketage\",2,\nIF(Rekenblad1[[#This Row],[1\nType gebouw]]=\"Galerijflat\",3,0)))","v":2},"Ja","Plat dak","Nee","In de woning (portiek/Galerij)","Ja ","Ja ",null,null,null,null,null,null,null,null,null,null,null,null,null,null,null,null,null,null,1,null,null,1,null,null,1]
[null,null,66,"Portieketage",{"$f":"IF(Rekenblad1[[#This Row],[1\nType gebouw]]=\"Eengezinswoning\",1,\nIF(Rekenblad1[[#This Row],[1\nType gebouw]]=\"Portieketage\",2,\nIF(Rekenblad1[[#This Row],[1\nType gebouw]]=\"Galerijflat\",3,0)))","v":2},"Ja","Plat dak","Nee","In de woning (portiek/Galerij)","Ja ","Ja ",null,null,null,null,null,null,null,null,null,null,null,null,null,null,null,null,null,null,1,null,null,1,null,null,1]
[null,null,67,"Portieketage",{"$f":"IF(Rekenblad1[[#This Row],[1\nType gebouw]]=\"Eengezinswoning\",1,\nIF(Rekenblad1[[#This Row],[1\nType gebouw]]=\"Portieketage\",2,\nIF(Rekenblad1[[#This Row],[1\nType gebouw]]=\"Galerijflat\",3,0)))","v":2},"Ja","Plat dak","Nee","In de woning (portiek/Galerij)","Ja ","Ja ",null,null,null,null,null,null,null,null,null,null,null,null,null,null,null,null,null,null,1,null,null,1,null,null,1]
[null,null,68,"Portieketage",{"$f":"IF(Rekenblad1[[#This Row],[1\nType gebouw]]=\"Eengezinswoning\",1,\nIF(Rekenblad1[[#This Row],[1\nType gebouw]]=\"Portieketage\",2,\nIF(Rekenblad1[[#This Row],[1\nType gebouw]]=\"Galerijflat\",3,0)))","v":2},"Ja","Plat dak","Nee","In de woning (portiek/Galerij)","Ja ","Ja ",null,null,null,null,null,null,null,null,null,null,null,null,null,null,null,null,null,null,1,null,null,1,null,null,1]
[null,null,69,"Portieketage",{"$f":"IF(Rekenblad1[[#This Row],[1\nType gebouw]]=\"Eengezinswoning\",1,\nIF(Rekenblad1[[#This Row],[1\nType gebouw]]=\"Portieketage\",2,\nIF(Rekenblad1[[#This Row],[1\nType gebouw]]=\"Galerijflat\",3,0)))","v":2},"Ja","Plat dak","Nee","In de woning (portiek/Galerij)","Ja ","Ja ",null,null,null,null,null,null,null,null,null,null,null,null,null,null,null,null,null,null,1,null,null,1,null,null,1]
[null,null,70,"Portieketage",{"$f":"IF(Rekenblad1[[#This Row],[1\nType gebouw]]=\"Eengezinswoning\",1,\nIF(Rekenblad1[[#This Row],[1\nType gebouw]]=\"Portieketage\",2,\nIF(Rekenblad1[[#This Row],[1\nType gebouw]]=\"Galerijflat\",3,0)))","v":2},"Ja","Plat dak","Nee","In de woning (portiek/Galerij)","Ja ","Ja ",null,null,null,null,null,null,null,null,null,null,null,null,null,null,null,null,null,null,1,null,null,1,null,null,1]
[null,null,71,"Portieketage",{"$f":"IF(Rekenblad1[[#This Row],[1\nType gebouw]]=\"Eengezinswoning\",1,\nIF(Rekenblad1[[#This Row],[1\nType gebouw]]=\"Portieketage\",2,\nIF(Rekenblad1[[#This Row],[1\nType gebouw]]=\"Galerijflat\",3,0)))","v":2},"Ja","Plat dak","Nee","In de woning (portiek/Galerij)","Ja ","Ja ",null,null,null,null,null,null,null,null,null,null,null,null,null,null,null,null,null,null,1,null,null,1,null,null,1]
[null,null,72,"Portieketage",{"$f":"IF(Rekenblad1[[#This Row],[1\nType gebouw]]=\"Eengezinswoning\",1,\nIF(Rekenblad1[[#This Row],[1\nType gebouw]]=\"Portieketage\",2,\nIF(Rekenblad1[[#This Row],[1\nType gebouw]]=\"Galerijflat\",3,0)))","v":2},"Ja","Plat dak","Nee","In de woning (portiek/Galerij)","Ja ","Ja ",null,null,null,null,null,null,null,null,null,null,null,null,null,null,null,null,null,null,1,null,null,1,null,null,1]
[null,null,73,"Portieketage",{"$f":"IF(Rekenblad1[[#This Row],[1\nType gebouw]]=\"Eengezinswoning\",1,\nIF(Rekenblad1[[#This Row],[1\nType gebouw]]=\"Portieketage\",2,\nIF(Rekenblad1[[#This Row],[1\nType gebouw]]=\"Galerijflat\",3,0)))","v":2},"Ja","Plat dak","Ja","In de woning (portiek/Galerij)","Ja ","Ja ",1,null,null,1,null,null,1,null,null,1,null,null,null,null,null,1,null,null,1,null,null,1,null,null,1]
[null,null,74,"Portieketage",{"$f":"IF(Rekenblad1[[#This Row],[1\nType gebouw]]=\"Eengezinswoning\",1,\nIF(Rekenblad1[[#This Row],[1\nType gebouw]]=\"Portieketage\",2,\nIF(Rekenblad1[[#This Row],[1\nType gebouw]]=\"Galerijflat\",3,0)))","v":2},"Ja","Plat dak","Ja","In de woning (portiek/Galerij)","Ja ","Ja ",1,null,null,1,null,null,1,null,null,1,null,null,null,null,null,1,null,null,1,null,null,1,null,null,1]
[null,null,75,"Portieketage",{"$f":"IF(Rekenblad1[[#This Row],[1\nType gebouw]]=\"Eengezinswoning\",1,\nIF(Rekenblad1[[#This Row],[1\nType gebouw]]=\"Portieketage\",2,\nIF(Rekenblad1[[#This Row],[1\nType gebouw]]=\"Galerijflat\",3,0)))","v":2},"Ja","Plat dak","Ja","In de woning (portiek/Galerij)","Ja ","Ja ",1,null,null,1,null,null,1,null,null,1,null,null,null,null,null,1,null,null,1,null,null,1,null,null,1]
[null,null,76,"Portieketage",{"$f":"IF(Rekenblad1[[#This Row],[1\nType gebouw]]=\"Eengezinswoning\",1,\nIF(Rekenblad1[[#This Row],[1\nType gebouw]]=\"Portieketage\",2,\nIF(Rekenblad1[[#This Row],[1\nType gebouw]]=\"Galerijflat\",3,0)))","v":2},"Ja","Plat dak","Ja","In de woning (portiek/Galerij)","Ja ","Ja ",1,null,null,1,null,null,1,null,null,1,null,null,null,null,null,1,null,null,1,null,null,1,null,null,1]
[null,null,77,"Portieketage",{"$f":"IF(Rekenblad1[[#This Row],[1\nType gebouw]]=\"Eengezinswoning\",1,\nIF(Rekenblad1[[#This Row],[1\nType gebouw]]=\"Portieketage\",2,\nIF(Rekenblad1[[#This Row],[1\nType gebouw]]=\"Galerijflat\",3,0)))","v":2},"Ja","Plat dak","Ja","In de woning (portiek/Galerij)","Ja ","Ja ",1,null,null,1,null,null,1,null,null,1,null,null,null,null,null,1,null,null,1,null,null,1,null,null,1]
[null,null,78,"Portieketage",{"$f":"IF(Rekenblad1[[#This Row],[1\nType gebouw]]=\"Eengezinswoning\",1,\nIF(Rekenblad1[[#This Row],[1\nType gebouw]]=\"Portieketage\",2,\nIF(Rekenblad1[[#This Row],[1\nType gebouw]]=\"Galerijflat\",3,0)))","v":2},"Ja","Plat dak","Ja","In de woning (portiek/Galerij)","Ja ","Ja ",1,null,null,1,null,null,1,null,null,1,null,null,null,null,null,1,null,null,1,null,null,1,null,null,1]
[null,null,79,"Portieketage",{"$f":"IF(Rekenblad1[[#This Row],[1\nType gebouw]]=\"Eengezinswoning\",1,\nIF(Rekenblad1[[#This Row],[1\nType gebouw]]=\"Portieketage\",2,\nIF(Rekenblad1[[#This Row],[1\nType gebouw]]=\"Galerijflat\",3,0)))","v":2},"Ja","Plat dak","Ja","In de woning (portiek/Galerij)","Ja ","Ja ",1,null,null,1,null,null,1,null,null,1,null,null,null,null,null,1,null,null,1,null,null,1,null,null,1]
[null,null,80,"Portieketage",{"$f":"IF(Rekenblad1[[#This Row],[1\nType gebouw]]=\"Eengezinswoning\",1,\nIF(Rekenblad1[[#This Row],[1\nType gebouw]]=\"Portieketage\",2,\nIF(Rekenblad1[[#This Row],[1\nType gebouw]]=\"Galerijflat\",3,0)))","v":2},"Ja","Plat dak","Ja","In de woning (portiek/Galerij)","Ja ","Ja ",1,null,null,1,null,null,1,null,null,1,null,null,null,null,null,1,null,null,1,null,null,1,null,null,1]
[null,null,81,"Portieketage",{"$f":"IF(Rekenblad1[[#This Row],[1\nType gebouw]]=\"Eengezinswoning\",1,\nIF(Rekenblad1[[#This Row],[1\nType gebouw]]=\"Portieketage\",2,\nIF(Rekenblad1[[#This Row],[1\nType gebouw]]=\"Galerijflat\",3,0)))","v":2},"Ja","Hellend dak","Nee","In de woning (portiek/Galerij)","Ja ","Ja ",null,null,null,null,null,null,null,null,null,null,null,null,1,null,null,null,null,null,null,null,null,1,null,null,1]
[null,null,82,"Portieketage",{"$f":"IF(Rekenblad1[[#This Row],[1\nType gebouw]]=\"Eengezinswoning\",1,\nIF(Rekenblad1[[#This Row],[1\nType gebouw]]=\"Portieketage\",2,\nIF(Rekenblad1[[#This Row],[1\nType gebouw]]=\"Galerijflat\",3,0)))","v":2},"Ja","Hellend dak","Nee","In de woning (portiek/Galerij)","Ja ","Ja ",null,null,null,null,null,null,null,null,null,null,null,null,1,null,null,null,null,null,null,null,null,1,null,null,1]
[null,null,83,"Portieketage",{"$f":"IF(Rekenblad1[[#This Row],[1\nType gebouw]]=\"Eengezinswoning\",1,\nIF(Rekenblad1[[#This Row],[1\nType gebouw]]=\"Portieketage\",2,\nIF(Rekenblad1[[#This Row],[1\nType gebouw]]=\"Galerijflat\",3,0)))","v":2},"Ja","Hellend dak","Nee","In de woning (portiek/Galerij)","Ja ","Ja ",null,null,null,null,null,null,null,null,null,null,null,null,1,null,null,null,null,null,null,null,null,1,null,null,1]
[null,null,84,"Portieketage",{"$f":"IF(Rekenblad1[[#This Row],[1\nType gebouw]]=\"Eengezinswoning\",1,\nIF(Rekenblad1[[#This Row],[1\nType gebouw]]=\"Portieketage\",2,\nIF(Rekenblad1[[#This Row],[1\nType gebouw]]=\"Galerijflat\",3,0)))","v":2},"Ja","Hellend dak","Nee","In de woning (portiek/Galerij)","Ja ","Ja ",null,null,null,null,null,null,null,null,null,null,null,null,1,null,null,null,null,null,null,null,null,1,null,null,1]
[null,null,85,"Portieketage",{"$f":"IF(Rekenblad1[[#This Row],[1\nType gebouw]]=\"Eengezinswoning\",1,\nIF(Rekenblad1[[#This Row],[1\nType gebouw]]=\"Portieketage\",2,\nIF(Rekenblad1[[#This Row],[1\nType gebouw]]=\"Galerijflat\",3,0)))","v":2},"Ja","Hellend dak","Nee","In de woning (portiek/Galerij)","Ja ","Ja ",null,null,null,null,null,null,null,null,null,null,null,null,1,null,null,null,null,null,null,null,null,1,null,null,1]
[null,null,86,"Portieketage",{"$f":"IF(Rekenblad1[[#This Row],[1\nType gebouw]]=\"Eengezinswoning\",1,\nIF(Rekenblad1[[#This Row],[1\nType gebouw]]=\"Portieketage\",2,\nIF(Rekenblad1[[#This Row],[1\nType gebouw]]=\"Galerijflat\",3,0)))","v":2},"Ja","Hellend dak","Nee","In de woning (portiek/Galerij)","Ja ","Ja ",null,null,null,null,null,null,null,null,null,null,null,null,1,null,null,null,null,null,null,null,null,1,null,null,1]
[null,null,87,"Portieketage",{"$f":"IF(Rekenblad1[[#This Row],[1\nType gebouw]]=\"Eengezinswoning\",1,\nIF(Rekenblad1[[#This Row],[1\nType gebouw]]=\"Portieketage\",2,\nIF(Rekenblad1[[#This Row],[1\nType gebouw]]=\"Galerijflat\",3,0)))","v":2},"Ja","Hellend dak","Nee","In de woning (portiek/Galerij)","Ja ","Ja ",null,null,null,null,null,null,null,null,null,null,null,null,1,null,null,null,null,null,null,null,null,1,null,null,1]
[null,null,88,"Portieketage",{"$f":"IF(Rekenblad1[[#This Row],[1\nType gebouw]]=\"Eengezinswoning\",1,\nIF(Rekenblad1[[#This Row],[1\nType gebouw]]=\"Portieketage\",2,\nIF(Rekenblad1[[#This Row],[1\nType gebouw]]=\"Galerijflat\",3,0)))","v":2},"Ja","Hellend dak","Nee","In de woning (portiek/Galerij)","Ja ","Ja ",null,null,null,null,null,null,null,null,null,null,null,null,1,null,null,null,null,null,null,null,null,1,null,null,1]
[null,null,89,"Portieketage",{"$f":"IF(Rekenblad1[[#This Row],[1\nType gebouw]]=\"Eengezinswoning\",1,\nIF(Rekenblad1[[#This Row],[1\nType gebouw]]=\"Portieketage\",2,\nIF(Rekenblad1[[#This Row],[1\nType gebouw]]=\"Galerijflat\",3,0)))","v":2},"Ja","Hellend dak","Ja","In de woning (portiek/Galerij)","Ja ","Ja ",1,null,null,1,null,null,1,null,null,1,null,null,1,null,null,1,null,null,null,null,null,1,null,null,1]
[null,null,90,"Portieketage",{"$f":"IF(Rekenblad1[[#This Row],[1\nType gebouw]]=\"Eengezinswoning\",1,\nIF(Rekenblad1[[#This Row],[1\nType gebouw]]=\"Portieketage\",2,\nIF(Rekenblad1[[#This Row],[1\nType gebouw]]=\"Galerijflat\",3,0)))","v":2},"Ja","Hellend dak","Ja","In de woning (portiek/Galerij)","Ja ","Ja ",1,null,null,1,null,null,1,null,null,1,null,null,1,null,null,1,null,null,null,null,null,1,null,null,1]
[null,null,91,"Portieketage",{"$f":"IF(Rekenblad1[[#This Row],[1\nType gebouw]]=\"Eengezinswoning\",1,\nIF(Rekenblad1[[#This Row],[1\nType gebouw]]=\"Portieketage\",2,\nIF(Rekenblad1[[#This Row],[1\nType gebouw]]=\"Galerijflat\",3,0)))","v":2},"Ja","Hellend dak","Ja","In de woning (portiek/Galerij)","Ja ","Ja ",1,null,null,1,null,null,1,null,null,1,null,null,1,null,null,1,null,null,null,null,null,1,null,null,1]
[null,null,92,"Portieketage",{"$f":"IF(Rekenblad1[[#This Row],[1\nType gebouw]]=\"Eengezinswoning\",1,\nIF(Rekenblad1[[#This Row],[1\nType gebouw]]=\"Portieketage\",2,\nIF(Rekenblad1[[#This Row],[1\nType gebouw]]=\"Galerijflat\",3,0)))","v":2},"Ja","Hellend dak","Ja","In de woning (portiek/Galerij)","Ja ","Ja ",1,null,null,1,null,null,1,null,null,1,null,null,1,null,null,1,null,null,null,null,null,1,null,null,1]
[null,null,93,"Portieketage",{"$f":"IF(Rekenblad1[[#This Row],[1\nType gebouw]]=\"Eengezinswoning\",1,\nIF(Rekenblad1[[#This Row],[1\nType gebouw]]=\"Portieketage\",2,\nIF(Rekenblad1[[#This Row],[1\nType gebouw]]=\"Galerijflat\",3,0)))","v":2},"Ja","Hellend dak","Ja","In de woning (portiek/Galerij)","Ja ","Ja ",1,null,null,1,null,null,1,null,null,1,null,null,1,null,null,1,null,null,null,null,null,1,null,null,1]
[null,null,94,"Portieketage",{"$f":"IF(Rekenblad1[[#This Row],[1\nType gebouw]]=\"Eengezinswoning\",1,\nIF(Rekenblad1[[#This Row],[1\nType gebouw]]=\"Portieketage\",2,\nIF(Rekenblad1[[#This Row],[1\nType gebouw]]=\"Galerijflat\",3,0)))","v":2},"Ja","Hellend dak","Ja","In de woning (portiek/Galerij)","Ja ","Ja ",1,null,null,1,null,null,1,null,null,1,null,null,1,null,null,1,null,null,null,null,null,1,null,null,1]
[null,null,95,"Portieketage",{"$f":"IF(Rekenblad1[[#This Row],[1\nType gebouw]]=\"Eengezinswoning\",1,\nIF(Rekenblad1[[#This Row],[1\nType gebouw]]=\"Portieketage\",2,\nIF(Rekenblad1[[#This Row],[1\nType gebouw]]=\"Galerijflat\",3,0)))","v":2},"Ja","Hellend dak","Ja","In de woning (portiek/Galerij)","Ja ","Ja ",1,null,null,1,null,null,1,null,null,1,null,null,1,null,null,1,null,null,null,null,null,1,null,null,1]
[null,null,96,"Portieketage",{"$f":"IF(Rekenblad1[[#This Row],[1\nType gebouw]]=\"Eengezinswoning\",1,\nIF(Rekenblad1[[#This Row],[1\nType gebouw]]=\"Portieketage\",2,\nIF(Rekenblad1[[#This Row],[1\nType gebouw]]=\"Galerijflat\",3,0)))","v":2},"Ja","Hellend dak","Ja","In de woning (portiek/Galerij)","Ja ","Ja ",1,null,null,1,null,null,1,null,null,1,null,null,1,null,null,1,null,null,null,null,null,1,null,null,1]
[null,null,97,"Portieketage",{"$f":"IF(Rekenblad1[[#This Row],[1\nType gebouw]]=\"Eengezinswoning\",1,\nIF(Rekenblad1[[#This Row],[1\nType gebouw]]=\"Portieketage\",2,\nIF(Rekenblad1[[#This Row],[1\nType gebouw]]=\"Galerijflat\",3,0)))","v":2},"Nee","Plat dak","Nee","In de woning (portiek/Galerij)","Ja ","Ja ",null,null,null,null,null,null,null,null,null,null,null,null,null,null,null,null,null,null,1,null,null,null,null,null,1]
[null,null,98,"Portieketage",{"$f":"IF(Rekenblad1[[#This Row],[1\nType gebouw]]=\"Eengezinswoning\",1,\nIF(Rekenblad1[[#This Row],[1\nType gebouw]]=\"Portieketage\",2,\nIF(Rekenblad1[[#This Row],[1\nType gebouw]]=\"Galerijflat\",3,0)))","v":2},"Nee","Plat dak","Nee","In de woning (portiek/Galerij)","Ja ","Ja ",null,null,null,null,null,null,null,null,null,null,null,null,null,null,null,null,null,null,1,null,null,null,null,null,1]
[null,null,99,"Portieketage",{"$f":"IF(Rekenblad1[[#This Row],[1\nType gebouw]]=\"Eengezinswoning\",1,\nIF(Rekenblad1[[#This Row],[1\nType gebouw]]=\"Portieketage\",2,\nIF(Rekenblad1[[#This Row],[1\nType gebouw]]=\"Galerijflat\",3,0)))","v":2},"Nee","Plat dak","Nee","In de woning (portiek/Galerij)","Ja ","Ja ",null,null,null,null,null,null,null,null,null,null,null,null,null,null,null,null,null,null,1,null,null,null,null,null,1]
[null,null,100,"Portieketage",{"$f":"IF(Rekenblad1[[#This Row],[1\nType gebouw]]=\"Eengezinswoning\",1,\nIF(Rekenblad1[[#This Row],[1\nType gebouw]]=\"Portieketage\",2,\nIF(Rekenblad1[[#This Row],[1\nType gebouw]]=\"Galerijflat\",3,0)))","v":2},"Nee","Plat dak","Nee","In de woning (portiek/Galerij)","Ja ","Ja ",null,null,null,null,null,null,null,null,null,null,null,null,null,null,null,null,null,null,1,null,null,null,null,null,1]
[null,null,101,"Portieketage",{"$f":"IF(Rekenblad1[[#This Row],[1\nType gebouw]]=\"Eengezinswoning\",1,\nIF(Rekenblad1[[#This Row],[1\nType gebouw]]=\"Portieketage\",2,\nIF(Rekenblad1[[#This Row],[1\nType gebouw]]=\"Galerijflat\",3,0)))","v":2},"Nee","Plat dak","Nee","In de woning (portiek/Galerij)","Ja ","Ja ",null,null,null,null,null,null,null,null,null,null,null,null,null,null,null,null,null,null,1,null,null,null,null,null,1]
[null,null,102,"Portieketage",{"$f":"IF(Rekenblad1[[#This Row],[1\nType gebouw]]=\"Eengezinswoning\",1,\nIF(Rekenblad1[[#This Row],[1\nType gebouw]]=\"Portieketage\",2,\nIF(Rekenblad1[[#This Row],[1\nType gebouw]]=\"Galerijflat\",3,0)))","v":2},"Nee","Plat dak","Nee","In de woning (portiek/Galerij)","Ja ","Ja ",null,null,null,null,null,null,null,null,null,null,null,null,null,null,null,null,null,null,1,null,null,null,null,null,1]
[null,null,103,"Portieketage",{"$f":"IF(Rekenblad1[[#This Row],[1\nType gebouw]]=\"Eengezinswoning\",1,\nIF(Rekenblad1[[#This Row],[1\nType gebouw]]=\"Portieketage\",2,\nIF(Rekenblad1[[#This Row],[1\nType gebouw]]=\"Galerijflat\",3,0)))","v":2},"Nee","Plat dak","Nee","In de woning (portiek/Galerij)","Ja ","Ja ",null,null,null,null,null,null,null,null,null,null,null,null,null,null,null,null,null,null,1,null,null,null,null,null,1]
[null,null,104,"Portieketage",{"$f":"IF(Rekenblad1[[#This Row],[1\nType gebouw]]=\"Eengezinswoning\",1,\nIF(Rekenblad1[[#This Row],[1\nType gebouw]]=\"Portieketage\",2,\nIF(Rekenblad1[[#This Row],[1\nType gebouw]]=\"Galerijflat\",3,0)))","v":2},"Nee","Plat dak","Nee","In de woning (portiek/Galerij)","Ja ","Ja ",null,null,null,null,null,null,null,null,null,null,null,null,null,null,null,null,null,null,1,null,null,null,null,null,1]
[null,null,105,"Portieketage",{"$f":"IF(Rekenblad1[[#This Row],[1\nType gebouw]]=\"Eengezinswoning\",1,\nIF(Rekenblad1[[#This Row],[1\nType gebouw]]=\"Portieketage\",2,\nIF(Rekenblad1[[#This Row],[1\nType gebouw]]=\"Galerijflat\",3,0)))","v":2},"Nee","Plat dak","Ja","In de woning (portiek/Galerij)","Ja ","Ja ",1,null,null,1,null,null,1,null,null,1,null,null,null,null,null,1,null,null,1,null,null,null,null,null,1]
[null,null,106,"Portieketage",{"$f":"IF(Rekenblad1[[#This Row],[1\nType gebouw]]=\"Eengezinswoning\",1,\nIF(Rekenblad1[[#This Row],[1\nType gebouw]]=\"Portieketage\",2,\nIF(Rekenblad1[[#This Row],[1\nType gebouw]]=\"Galerijflat\",3,0)))","v":2},"Nee","Plat dak","Ja","In de woning (portiek/Galerij)","Ja ","Ja ",1,null,null,1,null,null,1,null,null,1,null,null,null,null,null,1,null,null,1,null,null,null,null,null,1]
[null,null,107,"Portieketage",{"$f":"IF(Rekenblad1[[#This Row],[1\nType gebouw]]=\"Eengezinswoning\",1,\nIF(Rekenblad1[[#This Row],[1\nType gebouw]]=\"Portieketage\",2,\nIF(Rekenblad1[[#This Row],[1\nType gebouw]]=\"Galerijflat\",3,0)))","v":2},"Nee","Plat dak","Ja","In de woning (portiek/Galerij)","Ja ","Ja ",1,null,null,1,null,null,1,null,null,1,null,null,null,null,null,1,null,null,1,null,null,null,null,null,1]
[null,null,108,"Portieketage",{"$f":"IF(Rekenblad1[[#This Row],[1\nType gebouw]]=\"Eengezinswoning\",1,\nIF(Rekenblad1[[#This Row],[1\nType gebouw]]=\"Portieketage\",2,\nIF(Rekenblad1[[#This Row],[1\nType gebouw]]=\"Galerijflat\",3,0)))","v":2},"Nee","Plat dak","Ja","In de woning (portiek/Galerij)","Ja ","Ja ",1,null,null,1,null,null,1,null,null,1,null,null,null,null,null,1,null,null,1,null,null,null,null,null,1]
[null,null,109,"Portieketage",{"$f":"IF(Rekenblad1[[#This Row],[1\nType gebouw]]=\"Eengezinswoning\",1,\nIF(Rekenblad1[[#This Row],[1\nType gebouw]]=\"Portieketage\",2,\nIF(Rekenblad1[[#This Row],[1\nType gebouw]]=\"Galerijflat\",3,0)))","v":2},"Nee","Plat dak","Ja","In de woning (portiek/Galerij)","Ja ","Ja ",1,null,null,1,null,null,1,null,null,1,null,null,null,null,null,1,null,null,1,null,null,null,null,null,1]
[null,null,110,"Portieketage",{"$f":"IF(Rekenblad1[[#This Row],[1\nType gebouw]]=\"Eengezinswoning\",1,\nIF(Rekenblad1[[#This Row],[1\nType gebouw]]=\"Portieketage\",2,\nIF(Rekenblad1[[#This Row],[1\nType gebouw]]=\"Galerijflat\",3,0)))","v":2},"Nee","Plat dak","Ja","In de woning (portiek/Galerij)","Ja ","Ja ",1,null,null,1,null,null,1,null,null,1,null,null,null,null,null,1,null,null,1,null,null,null,null,null,1]
[null,null,111,"Portieketage",{"$f":"IF(Rekenblad1[[#This Row],[1\nType gebouw]]=\"Eengezinswoning\",1,\nIF(Rekenblad1[[#This Row],[1\nType gebouw]]=\"Portieketage\",2,\nIF(Rekenblad1[[#This Row],[1\nType gebouw]]=\"Galerijflat\",3,0)))","v":2},"Nee","Plat dak","Ja","In de woning (portiek/Galerij)","Ja ","Ja ",1,null,null,1,null,null,1,null,null,1,null,null,null,null,null,1,null,null,1,null,null,null,null,null,1]
[null,null,112,"Portieketage",{"$f":"IF(Rekenblad1[[#This Row],[1\nType gebouw]]=\"Eengezinswoning\",1,\nIF(Rekenblad1[[#This Row],[1\nType gebouw]]=\"Portieketage\",2,\nIF(Rekenblad1[[#This Row],[1\nType gebouw]]=\"Galerijflat\",3,0)))","v":2},"Nee","Plat dak","Ja","In de woning (portiek/Galerij)","Ja ","Ja ",1,null,null,1,null,null,1,null,null,1,null,null,null,null,null,1,null,null,1,null,null,null,null,null,1]
[null,null,113,"Portieketage",{"$f":"IF(Rekenblad1[[#This Row],[1\nType gebouw]]=\"Eengezinswoning\",1,\nIF(Rekenblad1[[#This Row],[1\nType gebouw]]=\"Portieketage\",2,\nIF(Rekenblad1[[#This Row],[1\nType gebouw]]=\"Galerijflat\",3,0)))","v":2},"Nee","Hellend dak","Nee","In de woning (portiek/Galerij)","Ja ","Ja ",null,null,null,null,null,null,null,null,null,null,null,null,1,null,null,null,null,null,null,null,null,null,null,null,1]
[null,null,114,"Portieketage",{"$f":"IF(Rekenblad1[[#This Row],[1\nType gebouw]]=\"Eengezinswoning\",1,\nIF(Rekenblad1[[#This Row],[1\nType gebouw]]=\"Portieketage\",2,\nIF(Rekenblad1[[#This Row],[1\nType gebouw]]=\"Galerijflat\",3,0)))","v":2},"Nee","Hellend dak","Nee","In de woning (portiek/Galerij)","Ja ","Ja ",null,null,null,null,null,null,null,null,null,null,null,null,1,null,null,null,null,null,null,null,null,null,null,null,1]
[null,null,115,"Portieketage",{"$f":"IF(Rekenblad1[[#This Row],[1\nType gebouw]]=\"Eengezinswoning\",1,\nIF(Rekenblad1[[#This Row],[1\nType gebouw]]=\"Portieketage\",2,\nIF(Rekenblad1[[#This Row],[1\nType gebouw]]=\"Galerijflat\",3,0)))","v":2},"Nee","Hellend dak","Nee","In de woning (portiek/Galerij)","Ja ","Ja ",null,null,null,null,null,null,null,null,null,null,null,null,1,null,null,null,null,null,null,null,null,null,null,null,1]
[null,null,116,"Portieketage",{"$f":"IF(Rekenblad1[[#This Row],[1\nType gebouw]]=\"Eengezinswoning\",1,\nIF(Rekenblad1[[#This Row],[1\nType gebouw]]=\"Portieketage\",2,\nIF(Rekenblad1[[#This Row],[1\nType gebouw]]=\"Galerijflat\",3,0)))","v":2},"Nee","Hellend dak","Nee","In de woning (portiek/Galerij)","Ja ","Ja ",null,null,null,null,null,null,null,null,null,null,null,null,1,null,null,null,null,null,null,null,null,null,null,null,1]
[null,null,117,"Portieketage",{"$f":"IF(Rekenblad1[[#This Row],[1\nType gebouw]]=\"Eengezinswoning\",1,\nIF(Rekenblad1[[#This Row],[1\nType gebouw]]=\"Portieketage\",2,\nIF(Rekenblad1[[#This Row],[1\nType gebouw]]=\"Galerijflat\",3,0)))","v":2},"Nee","Hellend dak","Nee","In de woning (portiek/Galerij)","Ja ","Ja ",null,null,null,null,null,null,null,null,null,null,null,null,1,null,null,null,null,null,null,null,null,null,null,null,1]
[null,null,118,"Portieketage",{"$f":"IF(Rekenblad1[[#This Row],[1\nType gebouw]]=\"Eengezinswoning\",1,\nIF(Rekenblad1[[#This Row],[1\nType gebouw]]=\"Portieketage\",2,\nIF(Rekenblad1[[#This Row],[1\nType gebouw]]=\"Galerijflat\",3,0)))","v":2},"Nee","Hellend dak","Nee","In de woning (portiek/Galerij)","Ja ","Ja ",null,null,null,null,null,null,null,null,null,null,null,null,1,null,null,null,null,null,null,null,null,null,null,null,1]
[null,null,119,"Portieketage",{"$f":"IF(Rekenblad1[[#This Row],[1\nType gebouw]]=\"Eengezinswoning\",1,\nIF(Rekenblad1[[#This Row],[1\nType gebouw]]=\"Portieketage\",2,\nIF(Rekenblad1[[#This Row],[1\nType gebouw]]=\"Galerijflat\",3,0)))","v":2},"Nee","Hellend dak","Nee","In de woning (portiek/Galerij)","Ja ","Ja ",null,null,null,null,null,null,null,null,null,null,null,null,1,null,null,null,null,null,null,null,null,null,null,null,1]
[null,null,120,"Portieketage",{"$f":"IF(Rekenblad1[[#This Row],[1\nType gebouw]]=\"Eengezinswoning\",1,\nIF(Rekenblad1[[#This Row],[1\nType gebouw]]=\"Portieketage\",2,\nIF(Rekenblad1[[#This Row],[1\nType gebouw]]=\"Galerijflat\",3,0)))","v":2},"Nee","Hellend dak","Nee","In de woning (portiek/Galerij)","Ja ","Ja ",null,null,null,null,null,null,null,null,null,null,null,null,1,null,null,null,null,null,null,null,null,null,null,null,1]
[null,null,121,"Portieketage",{"$f":"IF(Rekenblad1[[#This Row],[1\nType gebouw]]=\"Eengezinswoning\",1,\nIF(Rekenblad1[[#This Row],[1\nType gebouw]]=\"Portieketage\",2,\nIF(Rekenblad1[[#This Row],[1\nType gebouw]]=\"Galerijflat\",3,0)))","v":2},"Nee","Hellend dak","Ja","In de woning (portiek/Galerij)","Ja ","Ja ",1,null,null,1,null,null,1,null,null,1,null,null,1,null,null,1,null,null,null,null,null,null,null,null,1]
[null,null,122,"Portieketage",{"$f":"IF(Rekenblad1[[#This Row],[1\nType gebouw]]=\"Eengezinswoning\",1,\nIF(Rekenblad1[[#This Row],[1\nType gebouw]]=\"Portieketage\",2,\nIF(Rekenblad1[[#This Row],[1\nType gebouw]]=\"Galerijflat\",3,0)))","v":2},"Nee","Hellend dak","Ja","In de woning (portiek/Galerij)","Ja ","Ja ",1,null,null,1,null,null,1,null,null,1,null,null,1,null,null,1,null,null,null,null,null,null,null,null,1]
[null,null,123,"Portieketage",{"$f":"IF(Rekenblad1[[#This Row],[1\nType gebouw]]=\"Eengezinswoning\",1,\nIF(Rekenblad1[[#This Row],[1\nType gebouw]]=\"Portieketage\",2,\nIF(Rekenblad1[[#This Row],[1\nType gebouw]]=\"Galerijflat\",3,0)))","v":2},"Nee","Hellend dak","Ja","In de woning (portiek/Galerij)","Ja ","Ja ",1,null,null,1,null,null,1,null,null,1,null,null,1,null,null,1,null,null,null,null,null,null,null,null,1]
[null,null,124,"Portieketage",{"$f":"IF(Rekenblad1[[#This Row],[1\nType gebouw]]=\"Eengezinswoning\",1,\nIF(Rekenblad1[[#This Row],[1\nType gebouw]]=\"Portieketage\",2,\nIF(Rekenblad1[[#This Row],[1\nType gebouw]]=\"Galerijflat\",3,0)))","v":2},"Nee","Hellend dak","Ja","In de woning (portiek/Galerij)","Ja ","Ja ",1,null,null,1,null,null,1,null,null,1,null,null,1,null,null,1,null,null,null,null,null,null,null,null,1]
[null,null,125,"Portieketage",{"$f":"IF(Rekenblad1[[#This Row],[1\nType gebouw]]=\"Eengezinswoning\",1,\nIF(Rekenblad1[[#This Row],[1\nType gebouw]]=\"Portieketage\",2,\nIF(Rekenblad1[[#This Row],[1\nType gebouw]]=\"Galerijflat\",3,0)))","v":2},"Nee","Hellend dak","Ja","In de woning (portiek/Galerij)","Ja ","Ja ",1,null,null,1,null,null,1,null,null,1,null,null,1,null,null,1,null,null,null,null,null,null,null,null,1]
[null,null,126,"Portieketage",{"$f":"IF(Rekenblad1[[#This Row],[1\nType gebouw]]=\"Eengezinswoning\",1,\nIF(Rekenblad1[[#This Row],[1\nType gebouw]]=\"Portieketage\",2,\nIF(Rekenblad1[[#This Row],[1\nType gebouw]]=\"Galerijflat\",3,0)))","v":2},"Nee","Hellend dak","Ja","In de woning (portiek/Galerij)","Ja ","Ja ",1,null,null,1,null,null,1,null,null,1,null,null,1,null,null,1,null,null,null,null,null,null,null,null,1]
[null,null,127,"Portieketage",{"$f":"IF(Rekenblad1[[#This Row],[1\nType gebouw]]=\"Eengezinswoning\",1,\nIF(Rekenblad1[[#This Row],[1\nType gebouw]]=\"Portieketage\",2,\nIF(Rekenblad1[[#This Row],[1\nType gebouw]]=\"Galerijflat\",3,0)))","v":2},"Nee","Hellend dak","Ja","In de woning (portiek/Galerij)","Ja ","Ja ",1,null,null,1,null,null,1,null,null,1,null,null,1,null,null,1,null,null,null,null,null,null,null,null,1]
[null,null,128,"Portieketage",{"$f":"IF(Rekenblad1[[#This Row],[1\nType gebouw]]=\"Eengezinswoning\",1,\nIF(Rekenblad1[[#This Row],[1\nType gebouw]]=\"Portieketage\",2,\nIF(Rekenblad1[[#This Row],[1\nType gebouw]]=\"Galerijflat\",3,0)))","v":2},"Nee","Hellend dak","Ja","In de woning (portiek/Galerij)","Ja ","Ja ",1,null,null,1,null,null,1,null,null,1,null,null,1,null,null,1,null,null,null,null,null,null,null,null,1]
[null,null,129,"Galerijflat",{"$f":"IF(Rekenblad1[[#This Row],[1\nType gebouw]]=\"Eengezinswoning\",1,\nIF(Rekenblad1[[#This Row],[1\nType gebouw]]=\"Portieketage\",2,\nIF(Rekenblad1[[#This Row],[1\nType gebouw]]=\"Galerijflat\",3,0)))","v":3},"Ja","Plat dak","Nee","In de woning (portiek/Galerij)","Ja ","Ja ",null,null,null,null,null,null,null,null,null,null,null,null,null,null,null,null,null,null,1,null,null,1,null,null,1]
[null,null,130,"Galerijflat",{"$f":"IF(Rekenblad1[[#This Row],[1\nType gebouw]]=\"Eengezinswoning\",1,\nIF(Rekenblad1[[#This Row],[1\nType gebouw]]=\"Portieketage\",2,\nIF(Rekenblad1[[#This Row],[1\nType gebouw]]=\"Galerijflat\",3,0)))","v":3},"Ja","Plat dak","Nee","In de woning (portiek/Galerij)","Ja ","Ja ",null,null,null,null,null,null,null,null,null,null,null,null,null,null,null,null,null,null,1,null,null,1,null,null,1]
[null,null,131,"Galerijflat",{"$f":"IF(Rekenblad1[[#This Row],[1\nType gebouw]]=\"Eengezinswoning\",1,\nIF(Rekenblad1[[#This Row],[1\nType gebouw]]=\"Portieketage\",2,\nIF(Rekenblad1[[#This Row],[1\nType gebouw]]=\"Galerijflat\",3,0)))","v":3},"Ja","Plat dak","Nee","In de woning (portiek/Galerij)","Nee","Ja ",null,null,null,null,null,null,null,null,null,null,null,null,null,null,null,null,null,null,1,null,null,1,null,null,1]
[null,null,132,"Galerijflat",{"$f":"IF(Rekenblad1[[#This Row],[1\nType gebouw]]=\"Eengezinswoning\",1,\nIF(Rekenblad1[[#This Row],[1\nType gebouw]]=\"Portieketage\",2,\nIF(Rekenblad1[[#This Row],[1\nType gebouw]]=\"Galerijflat\",3,0)))","v":3},"Ja","Plat dak","Nee","In de woning (portiek/Galerij)","Nee","Ja ",null,null,null,null,null,null,null,null,null,null,null,null,null,null,null,null,null,null,1,null,null,1,null,null,1]
[null,null,133,"Galerijflat",{"$f":"IF(Rekenblad1[[#This Row],[1\nType gebouw]]=\"Eengezinswoning\",1,\nIF(Rekenblad1[[#This Row],[1\nType gebouw]]=\"Portieketage\",2,\nIF(Rekenblad1[[#This Row],[1\nType gebouw]]=\"Galerijflat\",3,0)))","v":3},"Ja","Plat dak","Nee","In de woning (portiek/Galerij)","Ja ","Ja ",null,null,null,null,null,null,null,null,null,null,null,null,null,null,null,null,null,null,1,null,null,1,null,null,1]
[null,null,134,"Galerijflat",{"$f":"IF(Rekenblad1[[#This Row],[1\nType gebouw]]=\"Eengezinswoning\",1,\nIF(Rekenblad1[[#This Row],[1\nType gebouw]]=\"Portieketage\",2,\nIF(Rekenblad1[[#This Row],[1\nType gebouw]]=\"Galerijflat\",3,0)))","v":3},"Ja","Plat dak","Nee","In de woning (portiek/Galerij)","Ja ","Ja ",null,null,null,null,null,null,null,null,null,null,null,null,null,null,null,null,null,null,1,null,null,1,null,null,1]
[null,null,135,"Galerijflat",{"$f":"IF(Rekenblad1[[#This Row],[1\nType gebouw]]=\"Eengezinswoning\",1,\nIF(Rekenblad1[[#This Row],[1\nType gebouw]]=\"Portieketage\",2,\nIF(Rekenblad1[[#This Row],[1\nType gebouw]]=\"Galerijflat\",3,0)))","v":3},"Ja","Plat dak","Nee","In de woning (portiek/Galerij)","Nee","Ja ",null,null,null,null,null,null,null,null,null,null,null,null,null,null,null,null,null,null,1,null,null,1,null,null,1]
[null,null,136,"Galerijflat",{"$f":"IF(Rekenblad1[[#This Row],[1\nType gebouw]]=\"Eengezinswoning\",1,\nIF(Rekenblad1[[#This Row],[1\nType gebouw]]=\"Portieketage\",2,\nIF(Rekenblad1[[#This Row],[1\nType gebouw]]=\"Galerijflat\",3,0)))","v":3},"Ja","Plat dak","Nee","In de woning (portiek/Galerij)","Nee","Ja ",null,null,null,null,null,null,null,null,null,null,null,null,null,null,null,null,null,null,1,null,null,1,null,null,1]
[null,null,137,"Galerijflat",{"$f":"IF(Rekenblad1[[#This Row],[1\nType gebouw]]=\"Eengezinswoning\",1,\nIF(Rekenblad1[[#This Row],[1\nType gebouw]]=\"Portieketage\",2,\nIF(Rekenblad1[[#This Row],[1\nType gebouw]]=\"Galerijflat\",3,0)))","v":3},"Ja","Plat dak","Ja","In de woning (portiek/Galerij)","Ja ","Ja ",1,null,null,1,null,null,1,null,null,1,null,null,null,null,null,1,null,null,1,null,null,1,null,null,1]
[null,null,138,"Galerijflat",{"$f":"IF(Rekenblad1[[#This Row],[1\nType gebouw]]=\"Eengezinswoning\",1,\nIF(Rekenblad1[[#This Row],[1\nType gebouw]]=\"Portieketage\",2,\nIF(Rekenblad1[[#This Row],[1\nType gebouw]]=\"Galerijflat\",3,0)))","v":3},"Ja","Plat dak","Ja","In de woning (portiek/Galerij)","Ja ","Ja ",1,null,null,1,null,null,1,null,null,1,null,null,null,null,null,1,null,null,1,null,null,1,null,null,1]
[null,null,139,"Galerijflat",{"$f":"IF(Rekenblad1[[#This Row],[1\nType gebouw]]=\"Eengezinswoning\",1,\nIF(Rekenblad1[[#This Row],[1\nType gebouw]]=\"Portieketage\",2,\nIF(Rekenblad1[[#This Row],[1\nType gebouw]]=\"Galerijflat\",3,0)))","v":3},"Ja","Plat dak","Ja","In de woning (portiek/Galerij)","Nee","Ja ",1,null,null,null,null,null,1,null,null,null,null,null,null,null,null,1,null,null,1,null,null,1,null,null,1]
[null,null,140,"Galerijflat",{"$f":"IF(Rekenblad1[[#This Row],[1\nType gebouw]]=\"Eengezinswoning\",1,\nIF(Rekenblad1[[#This Row],[1\nType gebouw]]=\"Portieketage\",2,\nIF(Rekenblad1[[#This Row],[1\nType gebouw]]=\"Galerijflat\",3,0)))","v":3},"Ja","Plat dak","Ja","In de woning (portiek/Galerij)","Nee","Ja ",1,null,null,null,null,null,1,null,null,null,null,null,null,null,null,1,null,null,1,null,null,1,null,null,1]
[null,null,141,"Galerijflat",{"$f":"IF(Rekenblad1[[#This Row],[1\nType gebouw]]=\"Eengezinswoning\",1,\nIF(Rekenblad1[[#This Row],[1\nType gebouw]]=\"Portieketage\",2,\nIF(Rekenblad1[[#This Row],[1\nType gebouw]]=\"Galerijflat\",3,0)))","v":3},"Ja","Plat dak","Ja","In de woning (portiek/Galerij)","Ja ","Ja ",1,null,null,1,null,null,1,null,null,1,null,null,null,null,null,1,null,null,1,null,null,1,null,null,1]
[null,null,142,"Galerijflat",{"$f":"IF(Rekenblad1[[#This Row],[1\nType gebouw]]=\"Eengezinswoning\",1,\nIF(Rekenblad1[[#This Row],[1\nType gebouw]]=\"Portieketage\",2,\nIF(Rekenblad1[[#This Row],[1\nType gebouw]]=\"Galerijflat\",3,0)))","v":3},"Ja","Plat dak","Ja","In de woning (portiek/Galerij)","Ja ","Ja ",1,null,null,1,null,null,1,null,null,1,null,null,null,null,null,1,null,null,1,null,null,1,null,null,1]
[null,null,143,"Galerijflat",{"$f":"IF(Rekenblad1[[#This Row],[1\nType gebouw]]=\"Eengezinswoning\",1,\nIF(Rekenblad1[[#This Row],[1\nType gebouw]]=\"Portieketage\",2,\nIF(Rekenblad1[[#This Row],[1\nType gebouw]]=\"Galerijflat\",3,0)))","v":3},"Ja","Plat dak","Ja","In de woning (portiek/Galerij)","Nee","Ja ",1,null,null,null,null,null,1,null,null,null,null,null,null,null,null,1,null,null,1,null,null,1,null,null,1]
[null,null,144,"Galerijflat",{"$f":"IF(Rekenblad1[[#This Row],[1\nType gebouw]]=\"Eengezinswoning\",1,\nIF(Rekenblad1[[#This Row],[1\nType gebouw]]=\"Portieketage\",2,\nIF(Rekenblad1[[#This Row],[1\nType gebouw]]=\"Galerijflat\",3,0)))","v":3},"Ja","Plat dak","Ja","In de woning (portiek/Galerij)","Nee","Ja ",1,null,null,null,null,null,1,null,null,null,null,null,null,null,null,1,null,null,1,null,null,1,null,null,1]
[null,null,145,"Galerijflat",{"$f":"IF(Rekenblad1[[#This Row],[1\nType gebouw]]=\"Eengezinswoning\",1,\nIF(Rekenblad1[[#This Row],[1\nType gebouw]]=\"Portieketage\",2,\nIF(Rekenblad1[[#This Row],[1\nType gebouw]]=\"Galerijflat\",3,0)))","v":3},"Ja","Hellend dak","Nee","In de woning (portiek/Galerij)","Ja ","Ja ",null,null,null,null,null,null,null,null,null,null,null,null,1,null,null,null,null,null,null,null,null,1,null,null,1]
[null,null,146,"Galerijflat",{"$f":"IF(Rekenblad1[[#This Row],[1\nType gebouw]]=\"Eengezinswoning\",1,\nIF(Rekenblad1[[#This Row],[1\nType gebouw]]=\"Portieketage\",2,\nIF(Rekenblad1[[#This Row],[1\nType gebouw]]=\"Galerijflat\",3,0)))","v":3},"Ja","Hellend dak","Nee","In de woning (portiek/Galerij)","Ja ","Ja ",null,null,null,null,null,null,null,null,null,null,null,null,1,null,null,null,null,null,null,null,null,1,null,null,1]
[null,null,147,"Galerijflat",{"$f":"IF(Rekenblad1[[#This Row],[1\nType gebouw]]=\"Eengezinswoning\",1,\nIF(Rekenblad1[[#This Row],[1\nType gebouw]]=\"Portieketage\",2,\nIF(Rekenblad1[[#This Row],[1\nType gebouw]]=\"Galerijflat\",3,0)))","v":3},"Ja","Hellend dak","Nee","In de woning (portiek/Galerij)","Nee","Ja ",null,null,null,null,null,null,null,null,null,null,null,null,1,null,null,null,null,null,null,null,null,1,null,null,1]
[null,null,148,"Galerijflat",{"$f":"IF(Rekenblad1[[#This Row],[1\nType gebouw]]=\"Eengezinswoning\",1,\nIF(Rekenblad1[[#This Row],[1\nType gebouw]]=\"Portieketage\",2,\nIF(Rekenblad1[[#This Row],[1\nType gebouw]]=\"Galerijflat\",3,0)))","v":3},"Ja","Hellend dak","Nee","In de woning (portiek/Galerij)","Nee","Ja ",null,null,null,null,null,null,null,null,null,null,null,null,1,null,null,null,null,null,null,null,null,1,null,null,1]
[null,null,149,"Galerijflat",{"$f":"IF(Rekenblad1[[#This Row],[1\nType gebouw]]=\"Eengezinswoning\",1,\nIF(Rekenblad1[[#This Row],[1\nType gebouw]]=\"Portieketage\",2,\nIF(Rekenblad1[[#This Row],[1\nType gebouw]]=\"Galerijflat\",3,0)))","v":3},"Ja","Hellend dak","Nee","In de woning (portiek/Galerij)","Ja ","Ja ",null,null,null,null,null,null,null,null,null,null,null,null,1,null,null,null,null,null,null,null,null,1,null,null,1]
[null,null,150,"Galerijflat",{"$f":"IF(Rekenblad1[[#This Row],[1\nType gebouw]]=\"Eengezinswoning\",1,\nIF(Rekenblad1[[#This Row],[1\nType gebouw]]=\"Portieketage\",2,\nIF(Rekenblad1[[#This Row],[1\nType gebouw]]=\"Galerijflat\",3,0)))","v":3},"Ja","Hellend dak","Nee","In de woning (portiek/Galerij)","Ja ","Ja ",null,null,null,null,null,null,null,null,null,null,null,null,1,null,null,null,null,null,null,null,null,1,null,null,1]
[null,null,151,"Galerijflat",{"$f":"IF(Rekenblad1[[#This Row],[1\nType gebouw]]=\"Eengezinswoning\",1,\nIF(Rekenblad1[[#This Row],[1\nType gebouw]]=\"Portieketage\",2,\nIF(Rekenblad1[[#This Row],[1\nType gebouw]]=\"Galerijflat\",3,0)))","v":3},"Ja","Hellend dak","Nee","In de woning (portiek/Galerij)","Nee","Ja ",null,null,null,null,null,null,null,null,null,null,null,null,1,null,null,null,null,null,null,null,null,1,null,null,1]
[null,null,152,"Galerijflat",{"$f":"IF(Rekenblad1[[#This Row],[1\nType gebouw]]=\"Eengezinswoning\",1,\nIF(Rekenblad1[[#This Row],[1\nType gebouw]]=\"Portieketage\",2,\nIF(Rekenblad1[[#This Row],[1\nType gebouw]]=\"Galerijflat\",3,0)))","v":3},"Ja","Hellend dak","Nee","In de woning (portiek/Galerij)","Nee","Ja ",null,null,null,null,null,null,null,null,null,null,null,null,1,null,null,null,null,null,null,null,null,1,null,null,1]
[null,null,153,"Galerijflat",{"$f":"IF(Rekenblad1[[#This Row],[1\nType gebouw]]=\"Eengezinswoning\",1,\nIF(Rekenblad1[[#This Row],[1\nType gebouw]]=\"Portieketage\",2,\nIF(Rekenblad1[[#This Row],[1\nType gebouw]]=\"Galerijflat\",3,0)))","v":3},"Ja","Hellend dak","Ja","In de woning (portiek/Galerij)","Ja ","Ja ",1,null,null,1,null,null,1,null,null,1,null,null,1,null,null,1,null,null,null,null,null,1,null,null,1]
[null,null,154,"Galerijflat",{"$f":"IF(Rekenblad1[[#This Row],[1\nType gebouw]]=\"Eengezinswoning\",1,\nIF(Rekenblad1[[#This Row],[1\nType gebouw]]=\"Portieketage\",2,\nIF(Rekenblad1[[#This Row],[1\nType gebouw]]=\"Galerijflat\",3,0)))","v":3},"Ja","Hellend dak","Ja","In de woning (portiek/Galerij)","Ja ","Ja ",1,null,null,1,null,null,1,null,null,1,null,null,1,null,null,1,null,null,null,null,null,1,null,null,1]
[null,null,155,"Galerijflat",{"$f":"IF(Rekenblad1[[#This Row],[1\nType gebouw]]=\"Eengezinswoning\",1,\nIF(Rekenblad1[[#This Row],[1\nType gebouw]]=\"Portieketage\",2,\nIF(Rekenblad1[[#This Row],[1\nType gebouw]]=\"Galerijflat\",3,0)))","v":3},"Ja","Hellend dak","Ja","In de woning (portiek/Galerij)","Nee","Ja ",1,null,null,null,null,null,1,null,null,null,null,null,1,null,null,1,null,null,null,null,null,1,null,null,1]
[null,null,156,"Galerijflat",{"$f":"IF(Rekenblad1[[#This Row],[1\nType gebouw]]=\"Eengezinswoning\",1,\nIF(Rekenblad1[[#This Row],[1\nType gebouw]]=\"Portieketage\",2,\nIF(Rekenblad1[[#This Row],[1\nType gebouw]]=\"Galerijflat\",3,0)))","v":3},"Ja","Hellend dak","Ja","In de woning (portiek/Galerij)","Nee","Ja ",1,null,null,null,null,null,1,null,null,null,null,null,1,null,null,1,null,null,null,null,null,1,null,null,1]
[null,null,157,"Galerijflat",{"$f":"IF(Rekenblad1[[#This Row],[1\nType gebouw]]=\"Eengezinswoning\",1,\nIF(Rekenblad1[[#This Row],[1\nType gebouw]]=\"Portieketage\",2,\nIF(Rekenblad1[[#This Row],[1\nType gebouw]]=\"Galerijflat\",3,0)))","v":3},"Ja","Hellend dak","Ja","In de woning (portiek/Galerij)","Ja ","Ja ",1,null,null,1,null,null,1,null,null,1,null,null,1,null,null,1,null,null,null,null,null,1,null,null,1]
[null,null,158,"Galerijflat",{"$f":"IF(Rekenblad1[[#This Row],[1\nType gebouw]]=\"Eengezinswoning\",1,\nIF(Rekenblad1[[#This Row],[1\nType gebouw]]=\"Portieketage\",2,\nIF(Rekenblad1[[#This Row],[1\nType gebouw]]=\"Galerijflat\",3,0)))","v":3},"Ja","Hellend dak","Ja","In de woning (portiek/Galerij)","Ja ","Ja ",1,null,null,1,null,null,1,null,null,1,null,null,1,null,null,1,null,null,null,null,null,1,null,null,1]
[null,null,159,"Galerijflat",{"$f":"IF(Rekenblad1[[#This Row],[1\nType gebouw]]=\"Eengezinswoning\",1,\nIF(Rekenblad1[[#This Row],[1\nType gebouw]]=\"Portieketage\",2,\nIF(Rekenblad1[[#This Row],[1\nType gebouw]]=\"Galerijflat\",3,0)))","v":3},"Ja","Hellend dak","Ja","In de woning (portiek/Galerij)","Nee","Ja ",1,null,null,null,null,null,1,null,null,null,null,null,1,null,null,1,null,null,null,null,null,1,null,null,1]
[null,null,160,"Galerijflat",{"$f":"IF(Rekenblad1[[#This Row],[1\nType gebouw]]=\"Eengezinswoning\",1,\nIF(Rekenblad1[[#This Row],[1\nType gebouw]]=\"Portieketage\",2,\nIF(Rekenblad1[[#This Row],[1\nType gebouw]]=\"Galerijflat\",3,0)))","v":3},"Ja","Hellend dak","Ja","In de woning (portiek/Galerij)","Nee","Ja ",1,null,null,null,null,null,1,null,null,null,null,null,1,null,null,1,null,null,null,null,null,1,null,null,1]
[null,null,161,"Galerijflat",{"$f":"IF(Rekenblad1[[#This Row],[1\nType gebouw]]=\"Eengezinswoning\",1,\nIF(Rekenblad1[[#This Row],[1\nType gebouw]]=\"Portieketage\",2,\nIF(Rekenblad1[[#This Row],[1\nType gebouw]]=\"Galerijflat\",3,0)))","v":3},"Nee","Plat dak","Nee","In de woning (portiek/Galerij)","Ja ","Ja ",null,null,null,null,null,null,null,null,null,null,null,null,null,null,null,null,null,null,1,null,null,null,null,null,1]
[null,null,162,"Galerijflat",{"$f":"IF(Rekenblad1[[#This Row],[1\nType gebouw]]=\"Eengezinswoning\",1,\nIF(Rekenblad1[[#This Row],[1\nType gebouw]]=\"Portieketage\",2,\nIF(Rekenblad1[[#This Row],[1\nType gebouw]]=\"Galerijflat\",3,0)))","v":3},"Nee","Plat dak","Nee","In de woning (portiek/Galerij)","Ja ","Ja ",null,null,null,null,null,null,null,null,null,null,null,null,null,null,null,null,null,null,1,null,null,null,null,null,1]
[null,null,163,"Galerijflat",{"$f":"IF(Rekenblad1[[#This Row],[1\nType gebouw]]=\"Eengezinswoning\",1,\nIF(Rekenblad1[[#This Row],[1\nType gebouw]]=\"Portieketage\",2,\nIF(Rekenblad1[[#This Row],[1\nType gebouw]]=\"Galerijflat\",3,0)))","v":3},"Nee","Plat dak","Nee","In de woning (portiek/Galerij)","Nee","Ja ",null,null,null,null,null,null,null,null,null,null,null,null,null,null,null,null,null,null,1,null,null,null,null,null,1]
[null,null,164,"Galerijflat",{"$f":"IF(Rekenblad1[[#This Row],[1\nType gebouw]]=\"Eengezinswoning\",1,\nIF(Rekenblad1[[#This Row],[1\nType gebouw]]=\"Portieketage\",2,\nIF(Rekenblad1[[#This Row],[1\nType gebouw]]=\"Galerijflat\",3,0)))","v":3},"Nee","Plat dak","Nee","In de woning (portiek/Galerij)","Nee","Ja ",null,null,null,null,null,null,null,null,null,null,null,null,null,null,null,null,null,null,1,null,null,null,null,null,1]
[null,null,165,"Galerijflat",{"$f":"IF(Rekenblad1[[#This Row],[1\nType gebouw]]=\"Eengezinswoning\",1,\nIF(Rekenblad1[[#This Row],[1\nType gebouw]]=\"Portieketage\",2,\nIF(Rekenblad1[[#This Row],[1\nType gebouw]]=\"Galerijflat\",3,0)))","v":3},"Nee","Plat dak","Nee","In de woning (portiek/Galerij)","Ja ","Ja ",null,null,null,null,null,null,null,null,null,null,null,null,null,null,null,null,null,null,1,null,null,null,null,null,1]
[null,null,166,"Galerijflat",{"$f":"IF(Rekenblad1[[#This Row],[1\nType gebouw]]=\"Eengezinswoning\",1,\nIF(Rekenblad1[[#This Row],[1\nType gebouw]]=\"Portieketage\",2,\nIF(Rekenblad1[[#This Row],[1\nType gebouw]]=\"Galerijflat\",3,0)))","v":3},"Nee","Plat dak","Nee","In de woning (portiek/Galerij)","Ja ","Ja ",null,null,null,null,null,null,null,null,null,null,null,null,null,null,null,null,null,null,1,null,null,null,null,null,1]
[null,null,167,"Galerijflat",{"$f":"IF(Rekenblad1[[#This Row],[1\nType gebouw]]=\"Eengezinswoning\",1,\nIF(Rekenblad1[[#This Row],[1\nType gebouw]]=\"Portieketage\",2,\nIF(Rekenblad1[[#This Row],[1\nType gebouw]]=\"Galerijflat\",3,0)))","v":3},"Nee","Plat dak","Nee","In de woning (portiek/Galerij)","Nee","Ja ",null,null,null,null,null,null,null,null,null,null,null,null,null,null,null,null,null,null,1,null,null,null,null,null,1]
[null,null,168,"Galerijflat",{"$f":"IF(Rekenblad1[[#This Row],[1\nType gebouw]]=\"Eengezinswoning\",1,\nIF(Rekenblad1[[#This Row],[1\nType gebouw]]=\"Portieketage\",2,\nIF(Rekenblad1[[#This Row],[1\nType gebouw]]=\"Galerijflat\",3,0)))","v":3},"Nee","Plat dak","Nee","In de woning (portiek/Galerij)","Nee","Ja ",null,null,null,null,null,null,null,null,null,null,null,null,null,null,null,null,null,null,1,null,null,null,null,null,1]
[null,null,169,"Galerijflat",{"$f":"IF(Rekenblad1[[#This Row],[1\nType gebouw]]=\"Eengezinswoning\",1,\nIF(Rekenblad1[[#This Row],[1\nType gebouw]]=\"Portieketage\",2,\nIF(Rekenblad1[[#This Row],[1\nType gebouw]]=\"Galerijflat\",3,0)))","v":3},"Nee","Plat dak","Ja","In de woning (portiek/Galerij)","Ja ","Ja ",1,null,null,1,null,null,1,null,null,1,null,null,null,null,null,1,null,null,1,null,null,null,null,null,1]
[null,null,170,"Galerijflat",{"$f":"IF(Rekenblad1[[#This Row],[1\nType gebouw]]=\"Eengezinswoning\",1,\nIF(Rekenblad1[[#This Row],[1\nType gebouw]]=\"Portieketage\",2,\nIF(Rekenblad1[[#This Row],[1\nType gebouw]]=\"Galerijflat\",3,0)))","v":3},"Nee","Plat dak","Ja","In de woning (portiek/Galerij)","Ja ","Ja ",1,null,null,1,null,null,1,null,null,1,null,null,null,null,null,1,null,null,1,null,null,null,null,null,1]
[null,null,171,"Galerijflat",{"$f":"IF(Rekenblad1[[#This Row],[1\nType gebouw]]=\"Eengezinswoning\",1,\nIF(Rekenblad1[[#This Row],[1\nType gebouw]]=\"Portieketage\",2,\nIF(Rekenblad1[[#This Row],[1\nType gebouw]]=\"Galerijflat\",3,0)))","v":3},"Nee","Plat dak","Ja","In de woning (portiek/Galerij)","Nee","Ja ",1,null,null,null,null,null,1,null,null,null,null,null,null,null,null,1,null,null,1,null,null,null,null,null,1]
[null,null,172,"Galerijflat",{"$f":"IF(Rekenblad1[[#This Row],[1\nType gebouw]]=\"Eengezinswoning\",1,\nIF(Rekenblad1[[#This Row],[1\nType gebouw]]=\"Portieketage\",2,\nIF(Rekenblad1[[#This Row],[1\nType gebouw]]=\"Galerijflat\",3,0)))","v":3},"Nee","Plat dak","Ja","In de woning (portiek/Galerij)","Nee","Ja ",1,null,null,null,null,null,1,null,null,null,null,null,null,null,null,1,null,null,1,null,null,null,null,null,1]
[null,null,173,"Galerijflat",{"$f":"IF(Rekenblad1[[#This Row],[1\nType gebouw]]=\"Eengezinswoning\",1,\nIF(Rekenblad1[[#This Row],[1\nType gebouw]]=\"Portieketage\",2,\nIF(Rekenblad1[[#This Row],[1\nType gebouw]]=\"Galerijflat\",3,0)))","v":3},"Nee","Plat dak","Ja","In de woning (portiek/Galerij)","Ja ","Ja ",1,null,null,1,null,null,1,null,null,1,null,null,null,null,null,1,null,null,1,null,null,null,null,null,1]
[null,null,174,"Galerijflat",{"$f":"IF(Rekenblad1[[#This Row],[1\nType gebouw]]=\"Eengezinswoning\",1,\nIF(Rekenblad1[[#This Row],[1\nType gebouw]]=\"Portieketage\",2,\nIF(Rekenblad1[[#This Row],[1\nType gebouw]]=\"Galerijflat\",3,0)))","v":3},"Nee","Plat dak","Ja","In de woning (portiek/Galerij)","Ja ","Ja ",1,null,null,1,null,null,1,null,null,1,null,null,null,null,null,1,null,null,1,null,null,null,null,null,1]
[null,null,175,"Galerijflat",{"$f":"IF(Rekenblad1[[#This Row],[1\nType gebouw]]=\"Eengezinswoning\",1,\nIF(Rekenblad1[[#This Row],[1\nType gebouw]]=\"Portieketage\",2,\nIF(Rekenblad1[[#This Row],[1\nType gebouw]]=\"Galerijflat\",3,0)))","v":3},"Nee","Plat dak","Ja","In de woning (portiek/Galerij)","Nee","Ja ",1,null,null,null,null,null,1,null,null,null,null,null,null,null,null,1,null,null,1,null,null,null,null,null,1]
[null,null,176,"Galerijflat",{"$f":"IF(Rekenblad1[[#This Row],[1\nType gebouw]]=\"Eengezinswoning\",1,\nIF(Rekenblad1[[#This Row],[1\nType gebouw]]=\"Portieketage\",2,\nIF(Rekenblad1[[#This Row],[1\nType gebouw]]=\"Galerijflat\",3,0)))","v":3},"Nee","Plat dak","Ja","In de woning (portiek/Galerij)","Nee","Ja ",1,null,null,null,null,null,1,null,null,null,null,null,null,null,null,1,null,null,1,null,null,null,null,null,1]
[null,null,177,"Galerijflat",{"$f":"IF(Rekenblad1[[#This Row],[1\nType gebouw]]=\"Eengezinswoning\",1,\nIF(Rekenblad1[[#This Row],[1\nType gebouw]]=\"Portieketage\",2,\nIF(Rekenblad1[[#This Row],[1\nType gebouw]]=\"Galerijflat\",3,0)))","v":3},"Nee","Hellend dak","Nee","In de woning (portiek/Galerij)","Ja ","Ja ",null,null,null,null,null,null,null,null,null,null,null,null,1,null,null,null,null,null,null,null,null,null,null,null,1]
[null,null,178,"Galerijflat",{"$f":"IF(Rekenblad1[[#This Row],[1\nType gebouw]]=\"Eengezinswoning\",1,\nIF(Rekenblad1[[#This Row],[1\nType gebouw]]=\"Portieketage\",2,\nIF(Rekenblad1[[#This Row],[1\nType gebouw]]=\"Galerijflat\",3,0)))","v":3},"Nee","Hellend dak","Nee","In de woning (portiek/Galerij)","Ja ","Ja ",null,null,null,null,null,null,null,null,null,null,null,null,1,null,null,null,null,null,null,null,null,null,null,null,1]
[null,null,179,"Galerijflat",{"$f":"IF(Rekenblad1[[#This Row],[1\nType gebouw]]=\"Eengezinswoning\",1,\nIF(Rekenblad1[[#This Row],[1\nType gebouw]]=\"Portieketage\",2,\nIF(Rekenblad1[[#This Row],[1\nType gebouw]]=\"Galerijflat\",3,0)))","v":3},"Nee","Hellend dak","Nee","In de woning (portiek/Galerij)","Nee","Ja ",null,null,null,null,null,null,null,null,null,null,null,null,1,null,null,null,null,null,null,null,null,null,null,null,1]
[null,null,180,"Galerijflat",{"$f":"IF(Rekenblad1[[#This Row],[1\nType gebouw]]=\"Eengezinswoning\",1,\nIF(Rekenblad1[[#This Row],[1\nType gebouw]]=\"Portieketage\",2,\nIF(Rekenblad1[[#This Row],[1\nType gebouw]]=\"Galerijflat\",3,0)))","v":3},"Nee","Hellend dak","Nee","In de woning (portiek/Galerij)","Nee","Ja ",null,null,null,null,null,null,null,null,null,null,null,null,1,null,null,null,null,null,null,null,null,null,null,null,1]
[null,null,181,"Galerijflat",{"$f":"IF(Rekenblad1[[#This Row],[1\nType gebouw]]=\"Eengezinswoning\",1,\nIF(Rekenblad1[[#This Row],[1\nType gebouw]]=\"Portieketage\",2,\nIF(Rekenblad1[[#This Row],[1\nType gebouw]]=\"Galerijflat\",3,0)))","v":3},"Nee","Hellend dak","Nee","In de woning (portiek/Galerij)","Ja ","Ja ",null,null,null,null,null,null,null,null,null,null,null,null,1,null,null,null,null,null,null,null,null,null,null,null,1]
[null,null,182,"Galerijflat",{"$f":"IF(Rekenblad1[[#This Row],[1\nType gebouw]]=\"Eengezinswoning\",1,\nIF(Rekenblad1[[#This Row],[1\nType gebouw]]=\"Portieketage\",2,\nIF(Rekenblad1[[#This Row],[1\nType gebouw]]=\"Galerijflat\",3,0)))","v":3},"Nee","Hellend dak","Nee","In de woning (portiek/Galerij)","Ja ","Ja ",null,null,null,null,null,null,null,null,null,null,null,null,1,null,null,null,null,null,null,null,null,null,null,null,1]
[null,null,183,"Galerijflat",{"$f":"IF(Rekenblad1[[#This Row],[1\nType gebouw]]=\"Eengezinswoning\",1,\nIF(Rekenblad1[[#This Row],[1\nType gebouw]]=\"Portieketage\",2,\nIF(Rekenblad1[[#This Row],[1\nType gebouw]]=\"Galerijflat\",3,0)))","v":3},"Nee","Hellend dak","Nee","In de woning (portiek/Galerij)","Nee","Ja ",null,null,null,null,null,null,null,null,null,null,null,null,1,null,null,null,null,null,null,null,null,null,null,null,1]
[null,null,184,"Galerijflat",{"$f":"IF(Rekenblad1[[#This Row],[1\nType gebouw]]=\"Eengezinswoning\",1,\nIF(Rekenblad1[[#This Row],[1\nType gebouw]]=\"Portieketage\",2,\nIF(Rekenblad1[[#This Row],[1\nType gebouw]]=\"Galerijflat\",3,0)))","v":3},"Nee","Hellend dak","Nee","In de woning (portiek/Galerij)","Nee","Ja ",null,null,null,null,null,null,null,null,null,null,null,null,1,null,null,null,null,null,null,null,null,null,null,null,1]
[null,null,185,"Galerijflat",{"$f":"IF(Rekenblad1[[#This Row],[1\nType gebouw]]=\"Eengezinswoning\",1,\nIF(Rekenblad1[[#This Row],[1\nType gebouw]]=\"Portieketage\",2,\nIF(Rekenblad1[[#This Row],[1\nType gebouw]]=\"Galerijflat\",3,0)))","v":3},"Nee","Hellend dak","Ja","In de woning (portiek/Galerij)","Ja ","Ja ",1,null,null,1,null,null,1,null,null,1,null,null,1,null,null,1,null,null,null,null,null,null,null,null,1]
[null,null,186,"Galerijflat",{"$f":"IF(Rekenblad1[[#This Row],[1\nType gebouw]]=\"Eengezinswoning\",1,\nIF(Rekenblad1[[#This Row],[1\nType gebouw]]=\"Portieketage\",2,\nIF(Rekenblad1[[#This Row],[1\nType gebouw]]=\"Galerijflat\",3,0)))","v":3},"Nee","Hellend dak","Ja","In de woning (portiek/Galerij)","Ja ","Ja ",1,null,null,1,null,null,1,null,null,1,null,null,1,null,null,1,null,null,null,null,null,null,null,null,1]
[null,null,187,"Galerijflat",{"$f":"IF(Rekenblad1[[#This Row],[1\nType gebouw]]=\"Eengezinswoning\",1,\nIF(Rekenblad1[[#This Row],[1\nType gebouw]]=\"Portieketage\",2,\nIF(Rekenblad1[[#This Row],[1\nType gebouw]]=\"Galerijflat\",3,0)))","v":3},"Nee","Hellend dak","Ja","In de woning (portiek/Galerij)","Nee","Ja ",1,null,null,null,null,null,1,null,null,null,null,null,1,null,null,1,null,null,null,null,null,null,null,null,1]
[null,null,188,"Galerijflat",{"$f":"IF(Rekenblad1[[#This Row],[1\nType gebouw]]=\"Eengezinswoning\",1,\nIF(Rekenblad1[[#This Row],[1\nType gebouw]]=\"Portieketage\",2,\nIF(Rekenblad1[[#This Row],[1\nType gebouw]]=\"Galerijflat\",3,0)))","v":3},"Nee","Hellend dak","Ja","In de woning (portiek/Galerij)","Nee","Ja ",1,null,null,null,null,null,1,null,null,null,null,null,1,null,null,1,null,null,null,null,null,null,null,null,1]
[null,null,189,"Galerijflat",{"$f":"IF(Rekenblad1[[#This Row],[1\nType gebouw]]=\"Eengezinswoning\",1,\nIF(Rekenblad1[[#This Row],[1\nType gebouw]]=\"Portieketage\",2,\nIF(Rekenblad1[[#This Row],[1\nType gebouw]]=\"Galerijflat\",3,0)))","v":3},"Nee","Hellend dak","Ja","In de woning (portiek/Galerij)","Ja ","Ja ",1,null,null,1,null,null,1,null,null,1,null,null,1,null,null,1,null,null,null,null,null,null,null,null,1]
[null,null,190,"Galerijflat",{"$f":"IF(Rekenblad1[[#This Row],[1\nType gebouw]]=\"Eengezinswoning\",1,\nIF(Rekenblad1[[#This Row],[1\nType gebouw]]=\"Portieketage\",2,\nIF(Rekenblad1[[#This Row],[1\nType gebouw]]=\"Galerijflat\",3,0)))","v":3},"Nee","Hellend dak","Ja","In de woning (portiek/Galerij)","Ja ","Ja ",1,null,null,1,null,null,1,null,null,1,null,null,1,null,null,1,null,null,null,null,null,null,null,null,1]
[null,null,191,"Galerijflat",{"$f":"IF(Rekenblad1[[#This Row],[1\nType gebouw]]=\"Eengezinswoning\",1,\nIF(Rekenblad1[[#This Row],[1\nType gebouw]]=\"Portieketage\",2,\nIF(Rekenblad1[[#This Row],[1\nType gebouw]]=\"Galerijflat\",3,0)))","v":3},"Nee","Hellend dak","Ja","In de woning (portiek/Galerij)","Nee","Ja ",1,null,null,null,null,null,1,null,null,null,null,null,1,null,null,1,null,null,null,null,null,null,null,null,1]
[null,null,192,"Galerijflat",{"$f":"IF(Rekenblad1[[#This Row],[1\nType gebouw]]=\"Eengezinswoning\",1,\nIF(Rekenblad1[[#This Row],[1\nType gebouw]]=\"Portieketage\",2,\nIF(Rekenblad1[[#This Row],[1\nType gebouw]]=\"Galerijflat\",3,0)))","v":3},"Nee","Hellend dak","Ja","In de woning (portiek/Galerij)","Nee","Ja ",1,null,null,null,null,null,1,null,null,null,null,null,1,null,null,1,null,null,null,null,null,null,null,null,1]
[null,null,"Totaal",null,{"$f":"IF(SUBTOTAL(104,Rekenblad1[Type (2)])=SUBTOTAL(105,Rekenblad1[Type (2)]),SUBTOTAL(104,Rekenblad1[Type (2)]),\"\")","v":1},null,null,null,null,null,null,{"$f":"IF(SUBTOTAL(4,Rekenblad1[A1\nIedere woning afzonderlijk rechtstreeks van buiten cq portiek cq voor de galerijen met afleverset in of nabij de entreehal in het bouwblok zelf])=0,\"\",\"A1\")","v":""},{"$f":"IF(SUBTOTAL(4,Rekenblad1[A1.1\nIedere woning afzonderlijk rechtstreeks van buiten cq portiek cq voor de galerijen met afleverset in of nabij de entreehal in het bouwblok zelf])=0,\"\",\"A1.1\")","v":"A1.1"},{"$f":"IF(SUBTOTAL(4,Rekenblad1[A1.2\nIedere woning afzonderlijk rechtstreeks van buiten cq portiek cq voor de galerijen met afleverset in of nabij de entreehal in het bouwblok zelf])=0,\"\",\"A1.2\")","v":"A1.2"},{"$f":"IF(SUBTOTAL(4,Rekenblad1[A2\nPer 2 woningen rechtstreeks van buiten cq portiek cq voor de galerijen met afleverset in of nabij de entreehal in het bouwblok zelf])=0,\"\",\"A2\")","v":""},{"$f":"IF(SUBTOTAL(4,Rekenblad1[A2.1\nPer 2 woningen rechtstreeks van buiten cq portiek cq voor de galerijen met afleverset in of nabij de entreehal in het bouwblok zelf])=0,\"\",\"A2.1\")","v":"A2.1"},{"$f":"IF(SUBTOTAL(4,Rekenblad1[A2.2\nPer 2 woningen rechtstreeks van buiten cq portiek cq voor de galerijen met afleverset in of nabij de entreehal in het bouwblok zel])=0,\"\",\"A2.2\")","v":"A2.2"},{"$f":"IF(SUBTOTAL(4,Rekenblad1[A3\nPer woning via verticale leidingen op voor- of achtergevel naar afleverset ])=0,\"\",\"A3\")","v":""},{"$f":"IF(SUBTOTAL(4,Rekenblad1[A3.1\nPer woning via verticale leidingen op voor- of achtergevel naar afleverset ])=0,\"\",\"A3.1\")","v":"A3.1"},{"$f":"IF(SUBTOTAL(4,Rekenblad1[A3.2\nPer woning via verticale leidingen op voor- of achtergevel naar afleverset ])=0,\"\",\"A3.2\")","v":"A3.2"},{"$f":"IF(SUBTOTAL(4,Rekenblad1[A4\nPer 2 woningen via verticale leidingen op voor- of achtergevel naar afleverset ])=0,\"\",\"A4\")","v":""},{"$f":"IF(SUBTOTAL(4,Rekenblad1[A4.1\nPer 2 woningen via verticale leidingen op voor- of achtergevel naar afleverset ])=0,\"\",\"A4.1\")","v":"A4.1"},{"$f":"IF(SUBTOTAL(4,Rekenblad1[A4.2\nPer 2 woningen via verticale leidingen op voor- of achtergevel naar afleverset ])=0,\"\",\"A4.2\")","v":"A4.2"},{"$f":"IF(SUBTOTAL(4,Rekenblad1[B1\nIn de lengterichting van het volledige blok door de kapruimte])=0,\"\",\"B1\")","v":""},{"$f":"IF(SUBTOTAL(4,Rekenblad1[B1.1\nIn de lengterichting van het volledige blok door de kapruimte])=0,\"\",\"B1.1\")","v":"B1.1"},{"$f":"IF(SUBTOTAL(4,Rekenblad1[B1.2\nIn de lengterichting van het volledige blok door de kapruimte])=0,\"\",\"B1.2\")","v":"B1.2"},{"$f":"IF(SUBTOTAL(4,Rekenblad1[B2\nIn de lengterichting van het volledige blok over de gevel ])=0,\"\",\"B2\")","v":""},{"$f":"IF(SUBTOTAL(4,Rekenblad1[B2.1\nIn de lengterichting van het volledige blok over de gevel ])=0,\"\",\"B2.1\")","v":"B2.1"},{"$f":"IF(SUBTOTAL(4,Rekenblad1[B2.2\nIn de lengterichting van het volledige blok over de gevel ])=0,\"\",\"B2.2\")","v":"B2.2"},{"$f":"IF(SUBTOTAL(4,Rekenblad1[B3\nIn de lengterichting van het volledige blok over het dak ])=0,\"\",\"B3\")","v":""},{"$f":"IF(SUBTOTAL(4,Rekenblad1[B3.1\nIn de lengterichting van het volledige blok over het dak ])=0,\"\",\"B3.1\")","v":"B3.1"},{"$f":"IF(SUBTOTAL(4,Rekenblad1[B3.2\nIn de lengterichting van het volledige blok over het dak ])=0,\"\",\"B3.2\")","v":"B3.2"},{"$f":"IF(SUBTOTAL(4,Rekenblad1[B4\nIn de lengterichting van het volledige blok onder de onderste woonlaag door])=0,\"\",\"B4\")","v":""},{"$f":"IF(SUBTOTAL(4,Rekenblad1[B4.1\nIn de lengterichting van het volledige blok onder de onderste woonlaag door])=0,\"\",\"B4.1\")","v":"B4.1"},{"$f":"IF(SUBTOTAL(4,Rekenblad1[B4.2\nIn de lengterichting van het volledige blok onder de onderste woonlaag door])=0,\"\",\"B4.2\")","v":"B4.2"},{"$f":"IF(SUBTOTAL(4,Rekenblad1[C\nDe individuele afleverset buiten de woning])=0,\"\",\"C1\")","v":"C1"},{"$f":"IF(SUBTOTAL(104,Rekenblad1[Locatie CV (0)])=0,\"\",SUBTOTAL(104,Rekenblad1[Locatie CV (0)]))","v":1},{"$f":"IF(SUBTOTAL(104,Rekenblad1[Locatie CV (1+)])=0,\"\",SUBTOTAL(104,Rekenblad1[Locatie CV (1+)]))","v":2}]

{"sheet":"Rekenblad 2","index":4,"n_rows":108,"n_cols":12,"rows_kept":108,"cut":false,"hidden":false,"merged":[]}
[]
[]
[]
[]
[]
[null,null,"Rekenblad 1","Type gebouw","Omschrijving","Kosten warmteleverancier","Kosten woningeigenaar","Kosten totaal","Praktisch haalbaarheid","Overlast uitvoering","Impact woning","Onderhoud"]
[null,null,{"$f":"Rekenblad1[[#Totals],[A1\nIedere woning afzonderlijk rechtstreeks van buiten cq portiek cq voor de galerijen met afleverset in of nabij de entreehal in het bouwblok zelf]]","v":""},{"$f":"Rekenblad1[[#Totals],[Type (2)]]","v":1},{"$f":"IFERROR(VLOOKUP(Mogelijkheden[[#This Row],[Rekenblad 1]],$C$35:$E$70,3,0),\"\")","v":""},{"$f":"IFERROR(\nIF(Mogelijkheden[[#This Row],[Type gebouw]]=1,HLOOKUP(Mogelijkheden[[#This Row],[Rekenblad 1]],StaatEGW[[#All],[A1.1]:[C1.2]],40,0),\nIF(Mogelijkheden[[#This Row],[Type gebouw]]=2,HLOOKUP(Mogelijkheden[[#This Row],[Rekenblad 1]],StaatPortiek[[#All],[A1]:[C1]],40,0),\nIF(Mogelijkheden[[#This Row],[Type gebouw]]=3,HLOOKUP(Mogelijkheden[[#This Row],[Rekenblad 1]],StaatGalerij[[#All],[A1]:[C1]],40,0),\n\"Onbekende fout\"))),\"\")","v":""},{"$f":"IFERROR(\nIF(Mogelijkheden[[#This Row],[Type gebouw]]=1,HLOOKUP(Mogelijkheden[[#This Row],[Rekenblad 1]],StaatEGW[[#All],[A1.1]:[C1.2]],41,0),\nIF(Mogelijkheden[[#This Row],[Type gebouw]]=2,HLOOKUP(Mogelijkheden[[#This Row],[Rekenblad 1]],StaatPortiek[[#All],[A1]:[C1]],41,0),\nIF(Mogelijkheden[[#This Row],[Type gebouw]]=3,HLOOKUP(Mogelijkheden[[#This Row],[Rekenblad 1]],StaatGalerij[[#All],[A1]:[C1]],41,0),\n\"Onbekende fout\"))),\"\")","v":""},{"$f":"SUM(Mogelijkheden[[#This Row],[Kosten warmteleverancier]:[Kosten woningeigenaar]])","v":0},{"$f":"IFERROR(IF(Mogelijkheden[[#This Row],[Type gebouw]]=1,HLOOKUP(Mogelijkheden[[#This Row],[Rekenblad 1]],KwaliteitEGW[#All],2,0),\nIF(Mogelijkheden[[#This Row],[Type gebouw]]=2,HLOOKUP(Mogelijkheden[[#This Row],[Rekenblad 1]],KwaliteitPortiek[#All],2,0),\nIF(Mogelijkheden[[#This Row],[Type gebouw]]=3,HLOOKUP(Mogelijkheden[[#This Row],[Rekenblad 1]],KwaliteitGalerij[#All],2,0),\"\"))),\"\")","v":""},{"$f":"IFERROR(IF(Mogelijkheden[[#This Row],[Type gebouw]]=1,HLOOKUP(Mogelijkheden[[#This Row],[Rekenblad 1]],KwaliteitEGW[#All],6,0),\nIF(Mogelijkheden[[#This Row],[Type gebouw]]=2,HLOOKUP(Mogelijkheden[[#This Row],[Rekenblad 1]],KwaliteitPortiek[#All],5,0),\nIF(Mogelijkheden[[#This Row],[Type gebouw]]=3,HLOOKUP(Mogelijkheden[[#This Row],[Rekenblad 1]],KwaliteitGalerij[#All],5,0),\"\"))),\"\")","v":""},{"$f":"IFERROR(IF(Mogelijkheden[[#This Row],[Type gebouw]]=1,HLOOKUP(Mogelijkheden[[#This Row],[Rekenblad 1]],KwaliteitEGW[#All],10,0),\nIF(Mogelijkheden[[#This Row],[Type gebouw]]=2,HLOOKUP(Mogelijkheden[[#This Row],[Rekenblad 1]],KwaliteitPortiek[#All],9,0),\nIF(Mogelijkheden[[#This Row],[Type gebouw]]=3,HLOOKUP(Mogelijkheden[[#This Row],[Rekenblad 1]],KwaliteitGalerij[#All],9,0),\"\"))),\"\")","v":""},{"$f":"IFERROR(IF(Mogelijkheden[[#This Row],[Type gebouw]]=1,HLOOKUP(Mogelijkheden[[#This Row],[Rekenblad 1]],KwaliteitEGW[#All],14,0),\nIF(Mogelijkheden[[#This Row],[Type gebouw]]=2,HLOOKUP(Mogelijkheden[[#This Row],[Rekenblad 1]],KwaliteitPortiek[#All],13,0),\nIF(Mogelijkheden[[#This Row],[Type gebouw]]=3,HLOOKUP(Mogelijkheden[[#This Row],[Rekenblad 1]],KwaliteitGalerij[#All],13,0),\"\"))),\"\")","v":""}]
[null,null,{"$f":"Rekenblad1[[#Totals],[A1.1\nIedere woning afzonderlijk rechtstreeks van buiten cq portiek cq voor de galerijen met afleverset in of nabij de entreehal in het bouwblok zelf]]","v":"A1.1"},{"$f":"Rekenblad1[[#Totals],[Type (2)]]","v":1},{"$f":"IFERROR(VLOOKUP(Mogelijkheden[[#This Row],[Rekenblad 1]],$C$35:$E$70,3,0),\"\")","v":"Iedere woning afzonderlijk rechtstreeks van buiten cq portiek cq voor de galerijen met afleverset in of nabij de entreehal in het bouwblok zelf"},{"$f":"IFERROR(\nIF(Mogelijkheden[[#This Row],[Type gebouw]]=1,HLOOKUP(Mogelijkheden[[#This Row],[Rekenblad 1]],StaatEGW[[#All],[A1.1]:[C1.2]],40,0),\nIF(Mogelijkheden[[#This Row],[Type gebouw]]=2,HLOOKUP(Mogelijkheden[[#This Row],[Rekenblad 1]],StaatPortiek[[#All],[A1]:[C1]],40,0),\nIF(Mogelijkheden[[#This Row],[Type gebouw]]=3,HLOOKUP(Mogelijkheden[[#This Row],[Rekenblad 1]],StaatGalerij[[#All],[A1]:[C1]],40,0),\n\"Onbekende fout\"))),\"\")","v":3000},{"$f":"IFERROR(\nIF(Mogelijkheden[[#This Row],[Type gebouw]]=1,HLOOKUP(Mogelijkheden[[#This Row],[Rekenblad 1]],StaatEGW[[#All],[A1.1]:[C1.2]],41,0),\nIF(Mogelijkheden[[#This Row],[Type gebouw]]=2,HLOOKUP(Mogelijkheden[[#This Row],[Rekenblad 1]],StaatPortiek[[#All],[A1]:[C1]],41,0),\nIF(Mogelijkheden[[#This Row],[Type gebouw]]=3,HLOOKUP(Mogelijkheden[[#This Row],[Rekenblad 1]],StaatGalerij[[#All],[A1]:[C1]],41,0),\n\"Onbekende fout\"))),\"\")","v":4500},{"$f":"SUM(Mogelijkheden[[#This Row],[Kosten warmteleverancier]:[Kosten woningeigenaar]])","v":7500},{"$f":"IFERROR(IF(Mogelijkheden[[#This Row],[Type gebouw]]=1,HLOOKUP(Mogelijkheden[[#This Row],[Rekenblad 1]],KwaliteitEGW[#All],2,0),\nIF(Mogelijkheden[[#This Row],[Type gebouw]]=2,HLOOKUP(Mogelijkheden[[#This Row],[Rekenblad 1]],KwaliteitPortiek[#All],2,0),\nIF(Mogelijkheden[[#This Row],[Type gebouw]]=3,HLOOKUP(Mogelijkheden[[#This Row],[Rekenblad 1]],KwaliteitGalerij[#All],2,0),\"\"))),\"\")","v":5},{"$f":"IFERROR(IF(Mogelijkheden[[#This Row],[Type gebouw]]=1,HLOOKUP(Mogelijkheden[[#This Row],[Rekenblad 1]],KwaliteitEGW[#All],6,0),\nIF(Mogelijkheden[[#This Row],[Type gebouw]]=2,HLOOKUP(Mogelijkheden[[#This Row],[Rekenblad 1]],KwaliteitPortiek[#All],5,0),\nIF(Mogelijkheden[[#This Row],[Type gebouw]]=3,HLOOKUP(Mogelijkheden[[#This Row],[Rekenblad 1]],KwaliteitGalerij[#All],5,0),\"\"))),\"\")","v":2},{"$f":"IFERROR(IF(Mogelijkheden[[#This Row],[Type gebouw]]=1,HLOOKUP(Mogelijkheden[[#This Row],[Rekenblad 1]],KwaliteitEGW[#All],10,0),\nIF(Mogelijkheden[[#This Row],[Type gebouw]]=2,HLOOKUP(Mogelijkheden[[#This Row],[Rekenblad 1]],KwaliteitPortiek[#All],9,0),\nIF(Mogelijkheden[[#This Row],[Type gebouw]]=3,HLOOKUP(Mogelijkheden[[#This Row],[Rekenblad 1]],KwaliteitGalerij[#All],9,0),\"\"))),\"\")","v":4},{"$f":"IFERROR(IF(Mogelijkheden[[#This Row],[Type gebouw]]=1,HLOOKUP(Mogelijkheden[[#This Row],[Rekenblad 1]],KwaliteitEGW[#All],14,0),\nIF(Mogelijkheden[[#This Row],[Type gebouw]]=2,HLOOKUP(Mogelijkheden[[#This Row],[Rekenblad 1]],KwaliteitPortiek[#All],13,0),\nIF(Mogelijkheden[[#This Row],[Type gebouw]]=3,HLOOKUP(Mogelijkheden[[#This Row],[Rekenblad 1]],KwaliteitGalerij[#All],13,0),\"\"))),\"\")","v":3}]
[null,null,{"$f":"Rekenblad1[[#Totals],[A1.2\nIedere woning afzonderlijk rechtstreeks van buiten cq portiek cq voor de galerijen met afleverset in of nabij de entreehal in het bouwblok zelf]]","v":"A1.2"},{"$f":"Rekenblad1[[#Totals],[Type (2)]]","v":1},{"$f":"IFERROR(VLOOKUP(Mogelijkheden[[#This Row],[Rekenblad 1]],$C$35:$E$70,3,0),\"\")","v":"Iedere woning afzonderlijk rechtstreeks van buiten cq portiek cq voor de galerijen met afleverset in of nabij de entreehal in het bouwblok zelf"},{"$f":"IFERROR(\nIF(Mogelijkheden[[#This Row],[Type gebouw]]=1,HLOOKUP(Mogelijkheden[[#This Row],[Rekenblad 1]],StaatEGW[[#All],[A1.1]:[C1.2]],40,0),\nIF(Mogelijkheden[[#This Row],[Type gebouw]]=2,HLOOKUP(Mogelijkheden[[#This Row],[Rekenblad 1]],StaatPortiek[[#All],[A1]:[C1]],40,0),\nIF(Mogelijkheden[[#This Row],[Type gebouw]]=3,HLOOKUP(Mogelijkheden[[#This Row],[Rekenblad 1]],StaatGalerij[[#All],[A1]:[C1]],40,0),\n\"Onbekende fout\"))),\"\")","v":3000},{"$f":"IFERROR(\nIF(Mogelijkheden[[#This Row],[Type gebouw]]=1,HLOOKUP(Mogelijkheden[[#This Row],[Rekenblad 1]],StaatEGW[[#All],[A1.1]:[C1.2]],41,0),\nIF(Mogelijkheden[[#This Row],[Type gebouw]]=2,HLOOKUP(Mogelijkheden[[#This Row],[Rekenblad 1]],StaatPortiek[[#All],[A1]:[C1]],41,0),\nIF(Mogelijkheden[[#This Row],[Type gebouw]]=3,HLOOKUP(Mogelijkheden[[#This Row],[Rekenblad 1]],StaatGalerij[[#All],[A1]:[C1]],41,0),\n\"Onbekende fout\"))),\"\")","v":5500},{"$f":"SUM(Mogelijkheden[[#This Row],[Kosten warmteleverancier]:[Kosten woningeigenaar]])","v":8500},{"$f":"IFERROR(IF(Mogelijkheden[[#This Row],[Type gebouw]]=1,HLOOKUP(Mogelijkheden[[#This Row],[Rekenblad 1]],KwaliteitEGW[#All],2,0),\nIF(Mogelijkheden[[#This Row],[Type gebouw]]=2,HLOOKUP(Mogelijkheden[[#This Row],[Rekenblad 1]],KwaliteitPortiek[#All],2,0),\nIF(Mogelijkheden[[#This Row],[Type gebouw]]=3,HLOOKUP(Mogelijkheden[[#This Row],[Rekenblad 1]],KwaliteitGalerij[#All],2,0),\"\"))),\"\")","v":4},{"$f":"IFERROR(IF(Mogelijkheden[[#This Row],[Type gebouw]]=1,HLOOKUP(Mogelijkheden[[#This Row],[Rekenblad 1]],KwaliteitEGW[#All],6,0),\nIF(Mogelijkheden[[#This Row],[Type gebouw]]=2,HLOOKUP(Mogelijkheden[[#This Row],[Rekenblad 1]],KwaliteitPortiek[#All],5,0),\nIF(Mogelijkheden[[#This Row],[Type gebouw]]=3,HLOOKUP(Mogelijkheden[[#This Row],[Rekenblad 1]],KwaliteitGalerij[#All],5,0),\"\"))),\"\")","v":1},{"$f":"IFERROR(IF(Mogelijkheden[[#This Row],[Type gebouw]]=1,HLOOKUP(Mogelijkheden[[#This Row],[Rekenblad 1]],KwaliteitEGW[#All],10,0),\nIF(Mogelijkheden[[#This Row],[Type gebouw]]=2,HLOOKUP(Mogelijkheden[[#This Row],[Rekenblad 1]],KwaliteitPortiek[#All],9,0),\nIF(Mogelijkheden[[#This Row],[Type gebouw]]=3,HLOOKUP(Mogelijkheden[[#This Row],[Rekenblad 1]],KwaliteitGalerij[#All],9,0),\"\"))),\"\")","v":2},{"$f":"IFERROR(IF(Mogelijkheden[[#This Row],[Type gebouw]]=1,HLOOKUP(Mogelijkheden[[#This Row],[Rekenblad 1]],KwaliteitEGW[#All],14,0),\nIF(Mogelijkheden[[#This Row],[Type gebouw]]=2,HLOOKUP(Mogelijkheden[[#This Row],[Rekenblad 1]],KwaliteitPortiek[#All],13,0),\nIF(Mogelijkheden[[#This Row],[Type gebouw]]=3,HLOOKUP(Mogelijkheden[[#This Row],[Rekenblad 1]],KwaliteitGalerij[#All],13,0),\"\"))),\"\")","v":2}]
[null,null,{"$f":"Rekenblad1[[#Totals],[A2\nPer 2 woningen rechtstreeks van buiten cq portiek cq voor de galerijen met afleverset in of nabij de entreehal in het bouwblok zelf]]","v":""},{"$f":"Rekenblad1[[#Totals],[Type (2)]]","v":1},{"$f":"IFERROR(VLOOKUP(Mogelijkheden[[#This Row],[Rekenblad 1]],$C$35:$E$70,3,0),\"\")","v":""},{"$f":"IFERROR(\nIF(Mogelijkheden[[#This Row],[Type gebouw]]=1,HLOOKUP(Mogelijkheden[[#This Row],[Rekenblad 1]],StaatEGW[[#All],[A1.1]:[C1.2]],40,0),\nIF(Mogelijkheden[[#This Row],[Type gebouw]]=2,HLOOKUP(Mogelijkheden[[#This Row],[Rekenblad 1]],StaatPortiek[[#All],[A1]:[C1]],40,0),\nIF(Mogelijkheden[[#This Row],[Type gebouw]]=3,HLOOKUP(Mogelijkheden[[#This Row],[Rekenblad 1]],StaatGalerij[[#All],[A1]:[C1]],40,0),\n\"Onbekende fout\"))),\"\")","v":""},{"$f":"IFERROR(\nIF(Mogelijkheden[[#This Row],[Type gebouw]]=1,HLOOKUP(Mogelijkheden[[#This Row],[Rekenblad 1]],StaatEGW[[#All],[A1.1]:[C1.2]],41,0),\nIF(Mogelijkheden[[#This Row],[Type gebouw]]=2,HLOOKUP(Mogelijkheden[[#This Row],[Rekenblad 1]],StaatPortiek[[#All],[A1]:[C1]],41,0),\nIF(Mogelijkheden[[#This Row],[Type gebouw]]=3,HLOOKUP(Mogelijkheden[[#This Row],[Rekenblad 1]],StaatGalerij[[#All],[A1]:[C1]],41,0),\n\"Onbekende fout\"))),\"\")","v":""},{"$f":"SUM(Mogelijkheden[[#This Row],[Kosten warmteleverancier]:[Kosten woningeigenaar]])","v":0},{"$f":"IFERROR(IF(Mogelijkheden[[#This Row],[Type gebouw]]=1,HLOOKUP(Mogelijkheden[[#This Row],[Rekenblad 1]],KwaliteitEGW[#All],2,0),\nIF(Mogelijkheden[[#This Row],[Type gebouw]]=2,HLOOKUP(Mogelijkheden[[#This Row],[Rekenblad 1]],KwaliteitPortiek[#All],2,0),\nIF(Mogelijkheden[[#This Row],[Type gebouw]]=3,HLOOKUP(Mogelijkheden[[#This Row],[Rekenblad 1]],KwaliteitGalerij[#All],2,0),\"\"))),\"\")","v":""},{"$f":"IFERROR(IF(Mogelijkheden[[#This Row],[Type gebouw]]=1,HLOOKUP(Mogelijkheden[[#This Row],[Rekenblad 1]],KwaliteitEGW[#All],6,0),\nIF(Mogelijkheden[[#This Row],[Type gebouw]]=2,HLOOKUP(Mogelijkheden[[#This Row],[Rekenblad 1]],KwaliteitPortiek[#All],5,0),\nIF(Mogelijkheden[[#This Row],[Type gebouw]]=3,HLOOKUP(Mogelijkheden[[#This Row],[Rekenblad 1]],KwaliteitGalerij[#All],5,0),\"\"))),\"\")","v":""},{"$f":"IFERROR(IF(Mogelijkheden[[#This Row],[Type gebouw]]=1,HLOOKUP(Mogelijkheden[[#This Row],[Rekenblad 1]],KwaliteitEGW[#All],10,0),\nIF(Mogelijkheden[[#This Row],[Type gebouw]]=2,HLOOKUP(Mogelijkheden[[#This Row],[Rekenblad 1]],KwaliteitPortiek[#All],9,0),\nIF(Mogelijkheden[[#This Row],[Type gebouw]]=3,HLOOKUP(Mogelijkheden[[#This Row],[Rekenblad 1]],KwaliteitGalerij[#All],9,0),\"\"))),\"\")","v":""},{"$f":"IFERROR(IF(Mogelijkheden[[#This Row],[Type gebouw]]=1,HLOOKUP(Mogelijkheden[[#This Row],[Rekenblad 1]],KwaliteitEGW[#All],14,0),\nIF(Mogelijkheden[[#This Row],[Type gebouw]]=2,HLOOKUP(Mogelijkheden[[#This Row],[Rekenblad 1]],KwaliteitPortiek[#All],13,0),\nIF(Mogelijkheden[[#This Row],[Type gebouw]]=3,HLOOKUP(Mogelijkheden[[#This Row],[Rekenblad 1]],KwaliteitGalerij[#All],13,0),\"\"))),\"\")","v":""}]
[null,null,{"$f":"Rekenblad1[[#Totals],[A2.1\nPer 2 woningen rechtstreeks van buiten cq portiek cq voor de galerijen met afleverset in of nabij de entreehal in het bouwblok zelf]]","v":"A2.1"},{"$f":"Rekenblad1[[#Totals],[Type (2)]]","v":1},{"$f":"IFERROR(VLOOKUP(Mogelijkheden[[#This Row],[Rekenblad 1]],$C$35:$E$70,3,0),\"\")","v":"Per 2 woningen rechtstreeks van buiten cq portiek cq voor de galerijen met afleverset in of nabij de entreehal in het bouwblok zelf"},{"$f":"IFERROR(\nIF(Mogelijkheden[[#This Row],[Type gebouw]]=1,HLOOKUP(Mogelijkheden[[#This Row],[Rekenblad 1]],StaatEGW[[#All],[A1.1]:[C1.2]],40,0),\nIF(Mogelijkheden[[#This Row],[Type gebouw]]=2,HLOOKUP(Mogelijkheden[[#This Row],[Rekenblad 1]],StaatPortiek[[#All],[A1]:[C1]],40,0),\nIF(Mogelijkheden[[#This Row],[Type gebouw]]=3,HLOOKUP(Mogelijkheden[[#This Row],[Rekenblad 1]],StaatGalerij[[#All],[A1]:[C1]],40,0),\n\"Onbekende fout\"))),\"\")","v":1500},{"$f":"IFERROR(\nIF(Mogelijkheden[[#This Row],[Type gebouw]]=1,HLOOKUP(Mogelijkheden[[#This Row],[Rekenblad 1]],StaatEGW[[#All],[A1.1]:[C1.2]],41,0),\nIF(Mogelijkheden[[#This Row],[Type gebouw]]=2,HLOOKUP(Mogelijkheden[[#This Row],[Rekenblad 1]],StaatPortiek[[#All],[A1]:[C1]],41,0),\nIF(Mogelijkheden[[#This Row],[Type gebouw]]=3,HLOOKUP(Mogelijkheden[[#This Row],[Rekenblad 1]],StaatGalerij[[#All],[A1]:[C1]],41,0),\n\"Onbekende fout\"))),\"\")","v":4500},{"$f":"SUM(Mogelijkheden[[#This Row],[Kosten warmteleverancier]:[Kosten woningeigenaar]])","v":6000},{"$f":"IFERROR(IF(Mogelijkheden[[#This Row],[Type gebouw]]=1,HLOOKUP(Mogelijkheden[[#This Row],[Rekenblad 1]],KwaliteitEGW[#All],2,0),\nIF(Mogelijkheden[[#This Row],[Type gebouw]]=2,HLOOKUP(Mogelijkheden[[#This Row],[Rekenblad 1]],KwaliteitPortiek[#All],2,0),\nIF(Mogelijkheden[[#This Row],[Type gebouw]]=3,HLOOKUP(Mogelijkheden[[#This Row],[Rekenblad 1]],KwaliteitGalerij[#All],2,0),\"\"))),\"\")","v":4},{"$f":"IFERROR(IF(Mogelijkheden[[#This Row],[Type gebouw]]=1,HLOOKUP(Mogelijkheden[[#This Row],[Rekenblad 1]],KwaliteitEGW[#All],6,0),\nIF(Mogelijkheden[[#This Row],[Type gebouw]]=2,HLOOKUP(Mogelijkheden[[#This Row],[Rekenblad 1]],KwaliteitPortiek[#All],5,0),\nIF(Mogelijkheden[[#This Row],[Type gebouw]]=3,HLOOKUP(Mogelijkheden[[#This Row],[Rekenblad 1]],KwaliteitGalerij[#All],5,0),\"\"))),\"\")","v":3},{"$f":"IFERROR(IF(Mogelijkheden[[#This Row],[Type gebouw]]=1,HLOOKUP(Mogelijkheden[[#This Row],[Rekenblad 1]],KwaliteitEGW[#All],10,0),\nIF(Mogelijkheden[[#This Row],[Type gebouw]]=2,HLOOKUP(Mogelijkheden[[#This Row],[Rekenblad 1]],KwaliteitPortiek[#All],9,0),\nIF(Mogelijkheden[[#This Row],[Type gebouw]]=3,HLOOKUP(Mogelijkheden[[#This Row],[Rekenblad 1]],KwaliteitGalerij[#All],9,0),\"\"))),\"\")","v":4},{"$f":"IFERROR(IF(Mogelijkheden[[#This Row],[Type gebouw]]=1,HLOOKUP(Mogelijkheden[[#This Row],[Rekenblad 1]],KwaliteitEGW[#All],14,0),\nIF(Mogelijkheden[[#This Row],[Type gebouw]]=2,HLOOKUP(Mogelijkheden[[#This Row],[Rekenblad 1]],KwaliteitPortiek[#All],13,0),\nIF(Mogelijkheden[[#This Row],[Type gebouw]]=3,HLOOKUP(Mogelijkheden[[#This Row],[Rekenblad 1]],KwaliteitGalerij[#All],13,0),\"\"))),\"\")","v":3}]
[null,null,{"$f":"Rekenblad1[[#Totals],[A2.2\nPer 2 woningen rechtstreeks van buiten cq portiek cq voor de galerijen met afleverset in of nabij de entreehal in het bouwblok zel]]","v":"A2.2"},{"$f":"Rekenblad1[[#Totals],[Type (2)]]","v":1},{"$f":"IFERROR(VLOOKUP(Mogelijkheden[[#This Row],[Rekenblad 1]],$C$35:$E$70,3,0),\"\")","v":"Per 2 woningen rechtstreeks van buiten cq portiek cq voor de galerijen met afleverset in of nabij de entreehal in het bouwblok zelf"},{"$f":"IFERROR(\nIF(Mogelijkheden[[#This Row],[Type gebouw]]=1,HLOOKUP(Mogelijkheden[[#This Row],[Rekenblad 1]],StaatEGW[[#All],[A1.1]:[C1.2]],40,0),\nIF(Mogelijkheden[[#This Row],[Type gebouw]]=2,HLOOKUP(Mogelijkheden[[#This Row],[Rekenblad 1]],StaatPortiek[[#All],[A1]:[C1]],40,0),\nIF(Mogelijkheden[[#This Row],[Type gebouw]]=3,HLOOKUP(Mogelijkheden[[#This Row],[Rekenblad 1]],StaatGalerij[[#All],[A1]:[C1]],40,0),\n\"Onbekende fout\"))),\"\")","v":1500},{"$f":"IFERROR(\nIF(Mogelijkheden[[#This Row],[Type gebouw]]=1,HLOOKUP(Mogelijkheden[[#This Row],[Rekenblad 1]],StaatEGW[[#All],[A1.1]:[C1.2]],41,0),\nIF(Mogelijkheden[[#This Row],[Type gebouw]]=2,HLOOKUP(Mogelijkheden[[#This Row],[Rekenblad 1]],StaatPortiek[[#All],[A1]:[C1]],41,0),\nIF(Mogelijkheden[[#This Row],[Type gebouw]]=3,HLOOKUP(Mogelijkheden[[#This Row],[Rekenblad 1]],StaatGalerij[[#All],[A1]:[C1]],41,0),\n\"Onbekende fout\"))),\"\")","v":5500},{"$f":"SUM(Mogelijkheden[[#This Row],[Kosten warmteleverancier]:[Kosten woningeigenaar]])","v":7000},{"$f":"IFERROR(IF(Mogelijkheden[[#This Row],[Type gebouw]]=1,HLOOKUP(Mogelijkheden[[#This Row],[Rekenblad 1]],KwaliteitEGW[#All],2,0),\nIF(Mogelijkheden[[#This Row],[Type gebouw]]=2,HLOOKUP(Mogelijkheden[[#This Row],[Rekenblad 1]],KwaliteitPortiek[#All],2,0),\nIF(Mogelijkheden[[#This Row],[Type gebouw]]=3,HLOOKUP(Mogelijkheden[[#This Row],[Rekenblad 1]],KwaliteitGalerij[#All],2,0),\"\"))),\"\")","v":4},{"$f":"IFERROR(IF(Mogelijkheden[[#This Row],[Type gebouw]]=1,HLOOKUP(Mogelijkheden[[#This Row],[Rekenblad 1]],KwaliteitEGW[#All],6,0),\nIF(Mogelijkheden[[#This Row],[Type gebouw]]=2,HLOOKUP(Mogelijkheden[[#This Row],[Rekenblad 1]],KwaliteitPortiek[#All],5,0),\nIF(Mogelijkheden[[#This Row],[Type gebouw]]=3,HLOOKUP(Mogelijkheden[[#This Row],[Rekenblad 1]],KwaliteitGalerij[#All],5,0),\"\"))),\"\")","v":1},{"$f":"IFERROR(IF(Mogelijkheden[[#This Row],[Type gebouw]]=1,HLOOKUP(Mogelijkheden[[#This Row],[Rekenblad 1]],KwaliteitEGW[#All],10,0),\nIF(Mogelijkheden[[#This Row],[Type gebouw]]=2,HLOOKUP(Mogelijkheden[[#This Row],[Rekenblad 1]],KwaliteitPortiek[#All],9,0),\nIF(Mogelijkheden[[#This Row],[Type gebouw]]=3,HLOOKUP(Mogelijkheden[[#This Row],[Rekenblad 1]],KwaliteitGalerij[#All],9,0),\"\"))),\"\")","v":2},{"$f":"IFERROR(IF(Mogelijkheden[[#This Row],[Type gebouw]]=1,HLOOKUP(Mogelijkheden[[#This Row],[Rekenblad 1]],KwaliteitEGW[#All],14,0),\nIF(Mogelijkheden[[#This Row],[Type gebouw]]=2,HLOOKUP(Mogelijkheden[[#This Row],[Rekenblad 1]],KwaliteitPortiek[#All],13,0),\nIF(Mogelijkheden[[#This Row],[Type gebouw]]=3,HLOOKUP(Mogelijkheden[[#This Row],[Rekenblad 1]],KwaliteitGalerij[#All],13,0),\"\"))),\"\")","v":2}]
[null,null,{"$f":"Rekenblad1[[#Totals],[A3\nPer woning via verticale leidingen op voor- of achtergevel naar afleverset ]]","v":""},{"$f":"Rekenblad1[[#Totals],[Type (2)]]","v":1},{"$f":"IFERROR(VLOOKUP(Mogelijkheden[[#This Row],[Rekenblad 1]],$C$35:$E$70,3,0),\"\")","v":""},{"$f":"IFERROR(\nIF(Mogelijkheden[[#This Row],[Type gebouw]]=1,HLOOKUP(Mogelijkheden[[#This Row],[Rekenblad 1]],StaatEGW[[#All],[A1.1]:[C1.2]],40,0),\nIF(Mogelijkheden[[#This Row],[Type gebouw]]=2,HLOOKUP(Mogelijkheden[[#This Row],[Rekenblad 1]],StaatPortiek[[#All],[A1]:[C1]],40,0),\nIF(Mogelijkheden[[#This Row],[Type gebouw]]=3,HLOOKUP(Mogelijkheden[[#This Row],[Rekenblad 1]],StaatGalerij[[#All],[A1]:[C1]],40,0),\n\"Onbekende fout\"))),\"\")","v":""},{"$f":"IFERROR(\nIF(Mogelijkheden[[#This Row],[Type gebouw]]=1,HLOOKUP(Mogelijkheden[[#This Row],[Rekenblad 1]],StaatEGW[[#All],[A1.1]:[C1.2]],41,0),\nIF(Mogelijkheden[[#This Row],[Type gebouw]]=2,HLOOKUP(Mogelijkheden[[#This Row],[Rekenblad 1]],StaatPortiek[[#All],[A1]:[C1]],41,0),\nIF(Mogelijkheden[[#This Row],[Type gebouw]]=3,HLOOKUP(Mogelijkheden[[#This Row],[Rekenblad 1]],StaatGalerij[[#All],[A1]:[C1]],41,0),\n\"Onbekende fout\"))),\"\")","v":""},{"$f":"SUM(Mogelijkheden[[#This Row],[Kosten warmteleverancier]:[Kosten woningeigenaar]])","v":0},{"$f":"IFERROR(IF(Mogelijkheden[[#This Row],[Type gebouw]]=1,HLOOKUP(Mogelijkheden[[#This Row],[Rekenblad 1]],KwaliteitEGW[#All],2,0),\nIF(Mogelijkheden[[#This Row],[Type gebouw]]=2,HLOOKUP(Mogelijkheden[[#This Row],[Rekenblad 1]],KwaliteitPortiek[#All],2,0),\nIF(Mogelijkheden[[#This Row],[Type gebouw]]=3,HLOOKUP(Mogelijkheden[[#This Row],[Rekenblad 1]],KwaliteitGalerij[#All],2,0),\"\"))),\"\")","v":""},{"$f":"IFERROR(IF(Mogelijkheden[[#This Row],[Type gebouw]]=1,HLOOKUP(Mogelijkheden[[#This Row],[Rekenblad 1]],KwaliteitEGW[#All],6,0),\nIF(Mogelijkheden[[#This Row],[Type gebouw]]=2,HLOOKUP(Mogelijkheden[[#This Row],[Rekenblad 1]],KwaliteitPortiek[#All],5,0),\nIF(Mogelijkheden[[#This Row],[Type gebouw]]=3,HLOOKUP(Mogelijkheden[[#This Row],[Rekenblad 1]],KwaliteitGalerij[#All],5,0),\"\"))),\"\")","v":""},{"$f":"IFERROR(IF(Mogelijkheden[[#This Row],[Type gebouw]]=1,HLOOKUP(Mogelijkheden[[#This Row],[Rekenblad 1]],KwaliteitEGW[#All],10,0),\nIF(Mogelijkheden[[#This Row],[Type gebouw]]=2,HLOOKUP(Mogelijkheden[[#This Row],[Rekenblad 1]],KwaliteitPortiek[#All],9,0),\nIF(Mogelijkheden[[#This Row],[Type gebouw]]=3,HLOOKUP(Mogelijkheden[[#This Row],[Rekenblad 1]],KwaliteitGalerij[#All],9,0),\"\"))),\"\")","v":""},{"$f":"IFERROR(IF(Mogelijkheden[[#This Row],[Type gebouw]]=1,HLOOKUP(Mogelijkheden[[#This Row],[Rekenblad 1]],KwaliteitEGW[#All],14,0),\nIF(Mogelijkheden[[#This Row],[Type gebouw]]=2,HLOOKUP(Mogelijkheden[[#This Row],[Rekenblad 1]],KwaliteitPortiek[#All],13,0),\nIF(Mogelijkheden[[#This Row],[Type gebouw]]=3,HLOOKUP(Mogelijkheden[[#This Row],[Rekenblad 1]],KwaliteitGalerij[#All],13,0),\"\"))),\"\")","v":""}]
[null,null,{"$f":"Rekenblad1[[#Totals],[A3.1\nPer woning via verticale leidingen op voor- of achtergevel naar afleverset ]]","v":"A3.1"},{"$f":"Rekenblad1[[#Totals],[Type (2)]]","v":1},{"$f":"IFERROR(VLOOKUP(Mogelijkheden[[#This Row],[Rekenblad 1]],$C$35:$E$70,3,0),\"\")","v":"Per woning via verticale leidingen op voor- of achtergevel naar afleverset "},{"$f":"IFERROR(\nIF(Mogelijkheden[[#This Row],[Type gebouw]]=1,HLOOKUP(Mogelijkheden[[#This Row],[Rekenblad 1]],StaatEGW[[#All],[A1.1]:[C1.2]],40,0),\nIF(Mogelijkheden[[#This Row],[Type gebouw]]=2,HLOOKUP(Mogelijkheden[[#This Row],[Rekenblad 1]],StaatPortiek[[#All],[A1]:[C1]],40,0),\nIF(Mogelijkheden[[#This Row],[Type gebouw]]=3,HLOOKUP(Mogelijkheden[[#This Row],[Rekenblad 1]],StaatGalerij[[#All],[A1]:[C1]],40,0),\n\"Onbekende fout\"))),\"\")","v":5500},{"$f":"IFERROR(\nIF(Mogelijkheden[[#This Row],[Type gebouw]]=1,HLOOKUP(Mogelijkheden[[#This Row],[Rekenblad 1]],StaatEGW[[#All],[A1.1]:[C1.2]],41,0),\nIF(Mogelijkheden[[#This Row],[Type gebouw]]=2,HLOOKUP(Mogelijkheden[[#This Row],[Rekenblad 1]],StaatPortiek[[#All],[A1]:[C1]],41,0),\nIF(Mogelijkheden[[#This Row],[Type gebouw]]=3,HLOOKUP(Mogelijkheden[[#This Row],[Rekenblad 1]],StaatGalerij[[#All],[A1]:[C1]],41,0),\n\"Onbekende fout\"))),\"\")","v":5000},{"$f":"SUM(Mogelijkheden[[#This Row],[Kosten warmteleverancier]:[Kosten woningeigenaar]])","v":10500},{"$f":"IFERROR(IF(Mogelijkheden[[#This Row],[Type gebouw]]=1,HLOOKUP(Mogelijkheden[[#This Row],[Rekenblad 1]],KwaliteitEGW[#All],2,0),\nIF(Mogelijkheden[[#This Row],[Type gebouw]]=2,HLOOKUP(Mogelijkheden[[#This Row],[Rekenblad 1]],KwaliteitPortiek[#All],2,0),\nIF(Mogelijkheden[[#This Row],[Type gebouw]]=3,HLOOKUP(Mogelijkheden[[#This Row],[Rekenblad 1]],KwaliteitGalerij[#All],2,0),\"\"))),\"\")","v":2},{"$f":"IFERROR(IF(Mogelijkheden[[#This Row],[Type gebouw]]=1,HLOOKUP(Mogelijkheden[[#This Row],[Rekenblad 1]],KwaliteitEGW[#All],6,0),\nIF(Mogelijkheden[[#This Row],[Type gebouw]]=2,HLOOKUP(Mogelijkheden[[#This Row],[Rekenblad 1]],KwaliteitPortiek[#All],5,0),\nIF(Mogelijkheden[[#This Row],[Type gebouw]]=3,HLOOKUP(Mogelijkheden[[#This Row],[Rekenblad 1]],KwaliteitGalerij[#All],5,0),\"\"))),\"\")","v":2},{"$f":"IFERROR(IF(Mogelijkheden[[#This Row],[Type gebouw]]=1,HLOOKUP(Mogelijkheden[[#This Row],[Rekenblad 1]],KwaliteitEGW[#All],10,0),\nIF(Mogelijkheden[[#This Row],[Type gebouw]]=2,HLOOKUP(Mogelijkheden[[#This Row],[Rekenblad 1]],KwaliteitPortiek[#All],9,0),\nIF(Mogelijkheden[[#This Row],[Type gebouw]]=3,HLOOKUP(Mogelijkheden[[#This Row],[Rekenblad 1]],KwaliteitGalerij[#All],9,0),\"\"))),\"\")","v":2},{"$f":"IFERROR(IF(Mogelijkheden[[#This Row],[Type gebouw]]=1,HLOOKUP(Mogelijkheden[[#This Row],[Rekenblad 1]],KwaliteitEGW[#All],14,0),\nIF(Mogelijkheden[[#This Row],[Type gebouw]]=2,HLOOKUP(Mogelijkheden[[#This Row],[Rekenblad 1]],KwaliteitPortiek[#All],13,0),\nIF(Mogelijkheden[[#This Row],[Type gebouw]]=3,HLOOKUP(Mogelijkheden[[#This Row],[Rekenblad 1]],KwaliteitGalerij[#All],13,0),\"\"))),\"\")","v":2}]
[null,null,{"$f":"Rekenblad1[[#Totals],[A3.2\nPer woning via verticale leidingen op voor- of achtergevel naar afleverset ]]","v":"A3.2"},{"$f":"Rekenblad1[[#Totals],[Type (2)]]","v":1},{"$f":"IFERROR(VLOOKUP(Mogelijkheden[[#This Row],[Rekenblad 1]],$C$35:$E$70,3,0),\"\")","v":"Per woning via verticale leidingen op voor- of achtergevel naar afleverset "},{"$f":"IFERROR(\nIF(Mogelijkheden[[#This Row],[Type gebouw]]=1,HLOOKUP(Mogelijkheden[[#This Row],[Rekenblad 1]],StaatEGW[[#All],[A1.1]:[C1.2]],40,0),\nIF(Mogelijkheden[[#This Row],[Type gebouw]]=2,HLOOKUP(Mogelijkheden[[#This Row],[Rekenblad 1]],StaatPortiek[[#All],[A1]:[C1]],40,0),\nIF(Mogelijkheden[[#This Row],[Type gebouw]]=3,HLOOKUP(Mogelijkheden[[#This Row],[Rekenblad 1]],StaatGalerij[[#All],[A1]:[C1]],40,0),\n\"Onbekende fout\"))),\"\")","v":5500},{"$f":"IFERROR(\nIF(Mogelijkheden[[#This Row],[Type gebouw]]=1,HLOOKUP(Mogelijkheden[[#This Row],[Rekenblad 1]],StaatEGW[[#All],[A1.1]:[C1.2]],41,0),\nIF(Mogelijkheden[[#This Row],[Type gebouw]]=2,HLOOKUP(Mogelijkheden[[#This Row],[Rekenblad 1]],StaatPortiek[[#All],[A1]:[C1]],41,0),\nIF(Mogelijkheden[[#This Row],[Type gebouw]]=3,HLOOKUP(Mogelijkheden[[#This Row],[Rekenblad 1]],StaatGalerij[[#All],[A1]:[C1]],41,0),\n\"Onbekende fout\"))),\"\")","v":4000},{"$f":"SUM(Mogelijkheden[[#This Row],[Kosten warmteleverancier]:[Kosten woningeigenaar]])","v":9500},{"$f":"IFERROR(IF(Mogelijkheden[[#This Row],[Type gebouw]]=1,HLOOKUP(Mogelijkheden[[#This Row],[Rekenblad 1]],KwaliteitEGW[#All],2,0),\nIF(Mogelijkheden[[#This Row],[Type gebouw]]=2,HLOOKUP(Mogelijkheden[[#This Row],[Rekenblad 1]],KwaliteitPortiek[#All],2,0),\nIF(Mogelijkheden[[#This Row],[Type gebouw]]=3,HLOOKUP(Mogelijkheden[[#This Row],[Rekenblad 1]],KwaliteitGalerij[#All],2,0),\"\"))),\"\")","v":1},{"$f":"IFERROR(IF(Mogelijkheden[[#This Row],[Type gebouw]]=1,HLOOKUP(Mogelijkheden[[#This Row],[Rekenblad 1]],KwaliteitEGW[#All],6,0),\nIF(Mogelijkheden[[#This Row],[Type gebouw]]=2,HLOOKUP(Mogelijkheden[[#This Row],[Rekenblad 1]],KwaliteitPortiek[#All],5,0),\nIF(Mogelijkheden[[#This Row],[Type gebouw]]=3,HLOOKUP(Mogelijkheden[[#This Row],[Rekenblad 1]],KwaliteitGalerij[#All],5,0),\"\"))),\"\")","v":2},{"$f":"IFERROR(IF(Mogelijkheden[[#This Row],[Type gebouw]]=1,HLOOKUP(Mogelijkheden[[#This Row],[Rekenblad 1]],KwaliteitEGW[#All],10,0),\nIF(Mogelijkheden[[#This Row],[Type gebouw]]=2,HLOOKUP(Mogelijkheden[[#This Row],[Rekenblad 1]],KwaliteitPortiek[#All],9,0),\nIF(Mogelijkheden[[#This Row],[Type gebouw]]=3,HLOOKUP(Mogelijkheden[[#This Row],[Rekenblad 1]],KwaliteitGalerij[#All],9,0),\"\"))),\"\")","v":3},{"$f":"IFERROR(IF(Mogelijkheden[[#This Row],[Type gebouw]]=1,HLOOKUP(Mogelijkheden[[#This Row],[Rekenblad 1]],KwaliteitEGW[#All],14,0),\nIF(Mogelijkheden[[#This Row],[Type gebouw]]=2,HLOOKUP(Mogelijkheden[[#This Row],[Rekenblad 1]],KwaliteitPortiek[#All],13,0),\nIF(Mogelijkheden[[#This Row],[Type gebouw]]=3,HLOOKUP(Mogelijkheden[[#This Row],[Rekenblad 1]],KwaliteitGalerij[#All],13,0),\"\"))),\"\")","v":2}]
[null,null,{"$f":"Rekenblad1[[#Totals],[A4\nPer 2 woningen via verticale leidingen op voor- of achtergevel naar afleverset ]]","v":""},{"$f":"Rekenblad1[[#Totals],[Type (2)]]","v":1},{"$f":"IFERROR(VLOOKUP(Mogelijkheden[[#This Row],[Rekenblad 1]],$C$35:$E$70,3,0),\"\")","v":""},{"$f":"IFERROR(\nIF(Mogelijkheden[[#This Row],[Type gebouw]]=1,HLOOKUP(Mogelijkheden[[#This Row],[Rekenblad 1]],StaatEGW[[#All],[A1.1]:[C1.2]],40,0),\nIF(Mogelijkheden[[#This Row],[Type gebouw]]=2,HLOOKUP(Mogelijkheden[[#This Row],[Rekenblad 1]],StaatPortiek[[#All],[A1]:[C1]],40,0),\nIF(Mogelijkheden[[#This Row],[Type gebouw]]=3,HLOOKUP(Mogelijkheden[[#This Row],[Rekenblad 1]],StaatGalerij[[#All],[A1]:[C1]],40,0),\n\"Onbekende fout\"))),\"\")","v":""},{"$f":"IFERROR(\nIF(Mogelijkheden[[#This Row],[Type gebouw]]=1,HLOOKUP(Mogelijkheden[[#This Row],[Rekenblad 1]],StaatEGW[[#All],[A1.1]:[C1.2]],41,0),\nIF(Mogelijkheden[[#This Row],[Type gebouw]]=2,HLOOKUP(Mogelijkheden[[#This Row],[Rekenblad 1]],StaatPortiek[[#All],[A1]:[C1]],41,0),\nIF(Mogelijkheden[[#This Row],[Type gebouw]]=3,HLOOKUP(Mogelijkheden[[#This Row],[Rekenblad 1]],StaatGalerij[[#All],[A1]:[C1]],41,0),\n\"Onbekende fout\"))),\"\")","v":""},{"$f":"SUM(Mogelijkheden[[#This Row],[Kosten warmteleverancier]:[Kosten woningeigenaar]])","v":0},{"$f":"IFERROR(IF(Mogelijkheden[[#This Row],[Type gebouw]]=1,HLOOKUP(Mogelijkheden[[#This Row],[Rekenblad 1]],KwaliteitEGW[#All],2,0),\nIF(Mogelijkheden[[#This Row],[Type gebouw]]=2,HLOOKUP(Mogelijkheden[[#This Row],[Rekenblad 1]],KwaliteitPortiek[#All],2,0),\nIF(Mogelijkheden[[#This Row],[Type gebouw]]=3,HLOOKUP(Mogelijkheden[[#This Row],[Rekenblad 1]],KwaliteitGalerij[#All],2,0),\"\"))),\"\")","v":""},{"$f":"IFERROR(IF(Mogelijkheden[[#This Row],[Type gebouw]]=1,HLOOKUP(Mogelijkheden[[#This Row],[Rekenblad 1]],KwaliteitEGW[#All],6,0),\nIF(Mogelijkheden[[#This Row],[Type gebouw]]=2,HLOOKUP(Mogelijkheden[[#This Row],[Rekenblad 1]],KwaliteitPortiek[#All],5,0),\nIF(Mogelijkheden[[#This Row],[Type gebouw]]=3,HLOOKUP(Mogelijkheden[[#This Row],[Rekenblad 1]],KwaliteitGalerij[#All],5,0),\"\"))),\"\")","v":""},{"$f":"IFERROR(IF(Mogelijkheden[[#This Row],[Type gebouw]]=1,HLOOKUP(Mogelijkheden[[#This Row],[Rekenblad 1]],KwaliteitEGW[#All],10,0),\nIF(Mogelijkheden[[#This Row],[Type gebouw]]=2,HLOOKUP(Mogelijkheden[[#This Row],[Rekenblad 1]],KwaliteitPortiek[#All],9,0),\nIF(Mogelijkheden[[#This Row],[Type gebouw]]=3,HLOOKUP(Mogelijkheden[[#This Row],[Rekenblad 1]],KwaliteitGalerij[#All],9,0),\"\"))),\"\")","v":""},{"$f":"IFERROR(IF(Mogelijkheden[[#This Row],[Type gebouw]]=1,HLOOKUP(Mogelijkheden[[#This Row],[Rekenblad 1]],KwaliteitEGW[#All],14,0),\nIF(Mogelijkheden[[#This Row],[Type gebouw]]=2,HLOOKUP(Mogelijkheden[[#This Row],[Rekenblad 1]],KwaliteitPortiek[#All],13,0),\nIF(Mogelijkheden[[#This Row],[Type gebouw]]=3,HLOOKUP(Mogelijkheden[[#This Row],[Rekenblad 1]],KwaliteitGalerij[#All],13,0),\"\"))),\"\")","v":""}]
[null,null,{"$f":"Rekenblad1[[#Totals],[A4.1\nPer 2 woningen via verticale leidingen op voor- of achtergevel naar afleverset ]]","v":"A4.1"},{"$f":"Rekenblad1[[#Totals],[Type (2)]]","v":1},{"$f":"IFERROR(VLOOKUP(Mogelijkheden[[#This Row],[Rekenblad 1]],$C$35:$E$70,3,0),\"\")","v":"Per 2 woningen via verticale leidingen op voor- of achtergevel naar afleverset "},{"$f":"IFERROR(\nIF(Mogelijkheden[[#This Row],[Type gebouw]]=1,HLOOKUP(Mogelijkheden[[#This Row],[Rekenblad 1]],StaatEGW[[#All],[A1.1]:[C1.2]],40,0),\nIF(Mogelijkheden[[#This Row],[Type gebouw]]=2,HLOOKUP(Mogelijkheden[[#This Row],[Rekenblad 1]],StaatPortiek[[#All],[A1]:[C1]],40,0),\nIF(Mogelijkheden[[#This Row],[Type gebouw]]=3,HLOOKUP(Mogelijkheden[[#This Row],[Rekenblad 1]],StaatGalerij[[#All],[A1]:[C1]],40,0),\n\"Onbekende fout\"))),\"\")","v":2500},{"$f":"IFERROR(\nIF(Mogelijkheden[[#This Row],[Type gebouw]]=1,HLOOKUP(Mogelijkheden[[#This Row],[Rekenblad 1]],StaatEGW[[#All],[A1.1]:[C1.2]],41,0),\nIF(Mogelijkheden[[#This Row],[Type gebouw]]=2,HLOOKUP(Mogelijkheden[[#This Row],[Rekenblad 1]],StaatPortiek[[#All],[A1]:[C1]],41,0),\nIF(Mogelijkheden[[#This Row],[Type gebouw]]=3,HLOOKUP(Mogelijkheden[[#This Row],[Rekenblad 1]],StaatGalerij[[#All],[A1]:[C1]],41,0),\n\"Onbekende fout\"))),\"\")","v":5000},{"$f":"SUM(Mogelijkheden[[#This Row],[Kosten warmteleverancier]:[Kosten woningeigenaar]])","v":7500},{"$f":"IFERROR(IF(Mogelijkheden[[#This Row],[Type gebouw]]=1,HLOOKUP(Mogelijkheden[[#This Row],[Rekenblad 1]],KwaliteitEGW[#All],2,0),\nIF(Mogelijkheden[[#This Row],[Type gebouw]]=2,HLOOKUP(Mogelijkheden[[#This Row],[Rekenblad 1]],KwaliteitPortiek[#All],2,0),\nIF(Mogelijkheden[[#This Row],[Type gebouw]]=3,HLOOKUP(Mogelijkheden[[#This Row],[Rekenblad 1]],KwaliteitGalerij[#All],2,0),\"\"))),\"\")","v":2},{"$f":"IFERROR(IF(Mogelijkheden[[#This Row],[Type gebouw]]=1,HLOOKUP(Mogelijkheden[[#This Row],[Rekenblad 1]],KwaliteitEGW[#All],6,0),\nIF(Mogelijkheden[[#This Row],[Type gebouw]]=2,HLOOKUP(Mogelijkheden[[#This Row],[Rekenblad 1]],KwaliteitPortiek[#All],5,0),\nIF(Mogelijkheden[[#This Row],[Type gebouw]]=3,HLOOKUP(Mogelijkheden[[#This Row],[Rekenblad 1]],KwaliteitGalerij[#All],5,0),\"\"))),\"\")","v":2},{"$f":"IFERROR(IF(Mogelijkheden[[#This Row],[Type gebouw]]=1,HLOOKUP(Mogelijkheden[[#This Row],[Rekenblad 1]],KwaliteitEGW[#All],10,0),\nIF(Mogelijkheden[[#This Row],[Type gebouw]]=2,HLOOKUP(Mogelijkheden[[#This Row],[Rekenblad 1]],KwaliteitPortiek[#All],9,0),\nIF(Mogelijkheden[[#This Row],[Type gebouw]]=3,HLOOKUP(Mogelijkheden[[#This Row],[Rekenblad 1]],KwaliteitGalerij[#All],9,0),\"\"))),\"\")","v":2},{"$f":"IFERROR(IF(Mogelijkheden[[#This Row],[Type gebouw]]=1,HLOOKUP(Mogelijkheden[[#This Row],[Rekenblad 1]],KwaliteitEGW[#All],14,0),\nIF(Mogelijkheden[[#This Row],[Type gebouw]]=2,HLOOKUP(Mogelijkheden[[#This Row],[Rekenblad 1]],KwaliteitPortiek[#All],13,0),\nIF(Mogelijkheden[[#This Row],[Type gebouw]]=3,HLOOKUP(Mogelijkheden[[#This Row],[Rekenblad 1]],KwaliteitGalerij[#All],13,0),\"\"))),\"\")","v":2}]
[null,null,{"$f":"Rekenblad1[[#Totals],[A4.2\nPer 2 woningen via verticale leidingen op voor- of achtergevel naar afleverset ]]","v":"A4.2"},{"$f":"Rekenblad1[[#Totals],[Type (2)]]","v":1},{"$f":"IFERROR(VLOOKUP(Mogelijkheden[[#This Row],[Rekenblad 1]],$C$35:$E$70,3,0),\"\")","v":"Per 2 woningen via verticale leidingen op voor- of achtergevel naar afleverset "},{"$f":"IFERROR(\nIF(Mogelijkheden[[#This Row],[Type gebouw]]=1,HLOOKUP(Mogelijkheden[[#This Row],[Rekenblad 1]],StaatEGW[[#All],[A1.1]:[C1.2]],40,0),\nIF(Mogelijkheden[[#This Row],[Type gebouw]]=2,HLOOKUP(Mogelijkheden[[#This Row],[Rekenblad 1]],StaatPortiek[[#All],[A1]:[C1]],40,0),\nIF(Mogelijkheden[[#This Row],[Type gebouw]]=3,HLOOKUP(Mogelijkheden[[#This Row],[Rekenblad 1]],StaatGalerij[[#All],[A1]:[C1]],40,0),\n\"Onbekende fout\"))),\"\")","v":2500},{"$f":"IFERROR(\nIF(Mogelijkheden[[#This Row],[Type gebouw]]=1,HLOOKUP(Mogelijkheden[[#This Row],[Rekenblad 1]],StaatEGW[[#All],[A1.1]:[C1.2]],41,0),\nIF(Mogelijkheden[[#This Row],[Type gebouw]]=2,HLOOKUP(Mogelijkheden[[#This Row],[Rekenblad 1]],StaatPortiek[[#All],[A1]:[C1]],41,0),\nIF(Mogelijkheden[[#This Row],[Type gebouw]]=3,HLOOKUP(Mogelijkheden[[#This Row],[Rekenblad 1]],StaatGalerij[[#All],[A1]:[C1]],41,0),\n\"Onbekende fout\"))),\"\")","v":4000},{"$f":"SUM(Mogelijkheden[[#This Row],[Kosten warmteleverancier]:[Kosten woningeigenaar]])","v":6500},{"$f":"IFERROR(IF(Mogelijkheden[[#This Row],[Type gebouw]]=1,HLOOKUP(Mogelijkheden[[#This Row],[Rekenblad 1]],KwaliteitEGW[#All],2,0),\nIF(Mogelijkheden[[#This Row],[Type gebouw]]=2,HLOOKUP(Mogelijkheden[[#This Row],[Rekenblad 1]],KwaliteitPortiek[#All],2,0),\nIF(Mogelijkheden[[#This Row],[Type gebouw]]=3,HLOOKUP(Mogelijkheden[[#This Row],[Rekenblad 1]],KwaliteitGalerij[#All],2,0),\"\"))),\"\")","v":2},{"$f":"IFERROR(IF(Mogelijkheden[[#This Row],[Type gebouw]]=1,HLOOKUP(Mogelijkheden[[#This Row],[Rekenblad 1]],KwaliteitEGW[#All],6,0),\nIF(Mogelijkheden[[#This Row],[Type gebouw]]=2,HLOOKUP(Mogelijkheden[[#This Row],[Rekenblad 1]],KwaliteitPortiek[#All],5,0),\nIF(Mogelijkheden[[#This Row],[Type gebouw]]=3,HLOOKUP(Mogelijkheden[[#This Row],[Rekenblad 1]],KwaliteitGalerij[#All],5,0),\"\"))),\"\")","v":2},{"$f":"IFERROR(IF(Mogelijkheden[[#This Row],[Type gebouw]]=1,HLOOKUP(Mogelijkheden[[#This Row],[Rekenblad 1]],KwaliteitEGW[#All],10,0),\nIF(Mogelijkheden[[#This Row],[Type gebouw]]=2,HLOOKUP(Mogelijkheden[[#This Row],[Rekenblad 1]],KwaliteitPortiek[#All],9,0),\nIF(Mogelijkheden[[#This Row],[Type gebouw]]=3,HLOOKUP(Mogelijkheden[[#This Row],[Rekenblad 1]],KwaliteitGalerij[#All],9,0),\"\"))),\"\")","v":4},{"$f":"IFERROR(IF(Mogelijkheden[[#This Row],[Type gebouw]]=1,HLOOKUP(Mogelijkheden[[#This Row],[Rekenblad 1]],KwaliteitEGW[#All],14,0),\nIF(Mogelijkheden[[#This Row],[Type gebouw]]=2,HLOOKUP(Mogelijkheden[[#This Row],[Rekenblad 1]],KwaliteitPortiek[#All],13,0),\nIF(Mogelijkheden[[#This Row],[Type gebouw]]=3,HLOOKUP(Mogelijkheden[[#This Row],[Rekenblad 1]],KwaliteitGalerij[#All],13,0),\"\"))),\"\")","v":2}]
[null,null,{"$f":"Rekenblad1[[#Totals],[B1\nIn de lengterichting van het volledige blok door de kapruimte]]","v":""},{"$f":"Rekenblad1[[#Totals],[Type (2)]]","v":1},{"$f":"IFERROR(VLOOKUP(Mogelijkheden[[#This Row],[Rekenblad 1]],$C$35:$E$70,3,0),\"\")","v":""},{"$f":"IFERROR(\nIF(Mogelijkheden[[#This Row],[Type gebouw]]=1,HLOOKUP(Mogelijkheden[[#This Row],[Rekenblad 1]],StaatEGW[[#All],[A1.1]:[C1.2]],40,0),\nIF(Mogelijkheden[[#This Row],[Type gebouw]]=2,HLOOKUP(Mogelijkheden[[#This Row],[Rekenblad 1]],StaatPortiek[[#All],[A1]:[C1]],40,0),\nIF(Mogelijkheden[[#This Row],[Type gebouw]]=3,HLOOKUP(Mogelijkheden[[#This Row],[Rekenblad 1]],StaatGalerij[[#All],[A1]:[C1]],40,0),\n\"Onbekende fout\"))),\"\")","v":""},{"$f":"IFERROR(\nIF(Mogelijkheden[[#This Row],[Type gebouw]]=1,HLOOKUP(Mogelijkheden[[#This Row],[Rekenblad 1]],StaatEGW[[#All],[A1.1]:[C1.2]],41,0),\nIF(Mogelijkheden[[#This Row],[Type gebouw]]=2,HLOOKUP(Mogelijkheden[[#This Row],[Rekenblad 1]],StaatPortiek[[#All],[A1]:[C1]],41,0),\nIF(Mogelijkheden[[#This Row],[Type gebouw]]=3,HLOOKUP(Mogelijkheden[[#This Row],[Rekenblad 1]],StaatGalerij[[#All],[A1]:[C1]],41,0),\n\"Onbekende fout\"))),\"\")","v":""},{"$f":"SUM(Mogelijkheden[[#This Row],[Kosten warmteleverancier]:[Kosten woningeigenaar]])","v":0},{"$f":"IFERROR(IF(Mogelijkheden[[#This Row],[Type gebouw]]=1,HLOOKUP(Mogelijkheden[[#This Row],[Rekenblad 1]],KwaliteitEGW[#All],2,0),\nIF(Mogelijkheden[[#This Row],[Type gebouw]]=2,HLOOKUP(Mogelijkheden[[#This Row],[Rekenblad 1]],KwaliteitPortiek[#All],2,0),\nIF(Mogelijkheden[[#This Row],[Type gebouw]]=3,HLOOKUP(Mogelijkheden[[#This Row],[Rekenblad 1]],KwaliteitGalerij[#All],2,0),\"\"))),\"\")","v":""},{"$f":"IFERROR(IF(Mogelijkheden[[#This Row],[Type gebouw]]=1,HLOOKUP(Mogelijkheden[[#This Row],[Rekenblad 1]],KwaliteitEGW[#All],6,0),\nIF(Mogelijkheden[[#This Row],[Type gebouw]]=2,HLOOKUP(Mogelijkheden[[#This Row],[Rekenblad 1]],KwaliteitPortiek[#All],5,0),\nIF(Mogelijkheden[[#This Row],[Type gebouw]]=3,HLOOKUP(Mogelijkheden[[#This Row],[Rekenblad 1]],KwaliteitGalerij[#All],5,0),\"\"))),\"\")","v":""},{"$f":"IFERROR(IF(Mogelijkheden[[#This Row],[Type gebouw]]=1,HLOOKUP(Mogelijkheden[[#This Row],[Rekenblad 1]],KwaliteitEGW[#All],10,0),\nIF(Mogelijkheden[[#This Row],[Type gebouw]]=2,HLOOKUP(Mogelijkheden[[#This Row],[Rekenblad 1]],KwaliteitPortiek[#All],9,0),\nIF(Mogelijkheden[[#This Row],[Type gebouw]]=3,HLOOKUP(Mogelijkheden[[#This Row],[Rekenblad 1]],KwaliteitGalerij[#All],9,0),\"\"))),\"\")","v":""},{"$f":"IFERROR(IF(Mogelijkheden[[#This Row],[Type gebouw]]=1,HLOOKUP(Mogelijkheden[[#This Row],[Rekenblad 1]],KwaliteitEGW[#All],14,0),\nIF(Mogelijkheden[[#This Row],[Type gebouw]]=2,HLOOKUP(Mogelijkheden[[#This Row],[Rekenblad 1]],KwaliteitPortiek[#All],13,0),\nIF(Mogelijkheden[[#This Row],[Type gebouw]]=3,HLOOKUP(Mogelijkheden[[#This Row],[Rekenblad 1]],KwaliteitGalerij[#All],13,0),\"\"))),\"\")","v":""}]
[null,null,{"$f":"Rekenblad1[[#Totals],[B1.1\nIn de lengterichting van het volledige blok door de kapruimte]]","v":"B1.1"},{"$f":"Rekenblad1[[#Totals],[Type (2)]]","v":1},{"$f":"IFERROR(VLOOKUP(Mogelijkheden[[#This Row],[Rekenblad 1]],$C$35:$E$70,3,0),\"\")","v":"In de lengterichting van het volledige blok door de kapruimte"},{"$f":"IFERROR(\nIF(Mogelijkheden[[#This Row],[Type gebouw]]=1,HLOOKUP(Mogelijkheden[[#This Row],[Rekenblad 1]],StaatEGW[[#All],[A1.1]:[C1.2]],40,0),\nIF(Mogelijkheden[[#This Row],[Type gebouw]]=2,HLOOKUP(Mogelijkheden[[#This Row],[Rekenblad 1]],StaatPortiek[[#All],[A1]:[C1]],40,0),\nIF(Mogelijkheden[[#This Row],[Type gebouw]]=3,HLOOKUP(Mogelijkheden[[#This Row],[Rekenblad 1]],StaatGalerij[[#All],[A1]:[C1]],40,0),\n\"Onbekende fout\"))),\"\")","v":5000},{"$f":"IFERROR(\nIF(Mogelijkheden[[#This Row],[Type gebouw]]=1,HLOOKUP(Mogelijkheden[[#This Row],[Rekenblad 1]],StaatEGW[[#All],[A1.1]:[C1.2]],41,0),\nIF(Mogelijkheden[[#This Row],[Type gebouw]]=2,HLOOKUP(Mogelijkheden[[#This Row],[Rekenblad 1]],StaatPortiek[[#All],[A1]:[C1]],41,0),\nIF(Mogelijkheden[[#This Row],[Type gebouw]]=3,HLOOKUP(Mogelijkheden[[#This Row],[Rekenblad 1]],StaatGalerij[[#All],[A1]:[C1]],41,0),\n\"Onbekende fout\"))),\"\")","v":5000},{"$f":"SUM(Mogelijkheden[[#This Row],[Kosten warmteleverancier]:[Kosten woningeigenaar]])","v":10000},{"$f":"IFERROR(IF(Mogelijkheden[[#This Row],[Type gebouw]]=1,HLOOKUP(Mogelijkheden[[#This Row],[Rekenblad 1]],KwaliteitEGW[#All],2,0),\nIF(Mogelijkheden[[#This Row],[Type gebouw]]=2,HLOOKUP(Mogelijkheden[[#This Row],[Rekenblad 1]],KwaliteitPortiek[#All],2,0),\nIF(Mogelijkheden[[#This Row],[Type gebouw]]=3,HLOOKUP(Mogelijkheden[[#This Row],[Rekenblad 1]],KwaliteitGalerij[#All],2,0),\"\"))),\"\")","v":2},{"$f":"IFERROR(IF(Mogelijkheden[[#This Row],[Type gebouw]]=1,HLOOKUP(Mogelijkheden[[#This Row],[Rekenblad 1]],KwaliteitEGW[#All],6,0),\nIF(Mogelijkheden[[#This Row],[Type gebouw]]=2,HLOOKUP(Mogelijkheden[[#This Row],[Rekenblad 1]],KwaliteitPortiek[#All],5,0),\nIF(Mogelijkheden[[#This Row],[Type gebouw]]=3,HLOOKUP(Mogelijkheden[[#This Row],[Rekenblad 1]],KwaliteitGalerij[#All],5,0),\"\"))),\"\")","v":2},{"$f":"IFERROR(IF(Mogelijkheden[[#This Row],[Type gebouw]]=1,HLOOKUP(Mogelijkheden[[#This Row],[Rekenblad 1]],KwaliteitEGW[#All],10,0),\nIF(Mogelijkheden[[#This Row],[Type gebouw]]=2,HLOOKUP(Mogelijkheden[[#This Row],[Rekenblad 1]],KwaliteitPortiek[#All],9,0),\nIF(Mogelijkheden[[#This Row],[Type gebouw]]=3,HLOOKUP(Mogelijkheden[[#This Row],[Rekenblad 1]],KwaliteitGalerij[#All],9,0),\"\"))),\"\")","v":1},{"$f":"IFERROR(IF(Mogelijkheden[[#This Row],[Type gebouw]]=1,HLOOKUP(Mogelijkheden[[#This Row],[Rekenblad 1]],KwaliteitEGW[#All],14,0),\nIF(Mogelijkheden[[#This Row],[Type gebouw]]=2,HLOOKUP(Mogelijkheden[[#This Row],[Rekenblad 1]],KwaliteitPortiek[#All],13,0),\nIF(Mogelijkheden[[#This Row],[Type gebouw]]=3,HLOOKUP(Mogelijkheden[[#This Row],[Rekenblad 1]],KwaliteitGalerij[#All],13,0),\"\"))),\"\")","v":1}]
[null,null,{"$f":"Rekenblad1[[#Totals],[B1.2\nIn de lengterichting van het volledige blok door de kapruimte]]","v":"B1.2"},{"$f":"Rekenblad1[[#Totals],[Type (2)]]","v":1},{"$f":"IFERROR(VLOOKUP(Mogelijkheden[[#This Row],[Rekenblad 1]],$C$35:$E$70,3,0),\"\")","v":"In de lengterichting van het volledige blok door de kapruimte"},{"$f":"IFERROR(\nIF(Mogelijkheden[[#This Row],[Type gebouw]]=1,HLOOKUP(Mogelijkheden[[#This Row],[Rekenblad 1]],StaatEGW[[#All],[A1.1]:[C1.2]],40,0),\nIF(Mogelijkheden[[#This Row],[Type gebouw]]=2,HLOOKUP(Mogelijkheden[[#This Row],[Rekenblad 1]],StaatPortiek[[#All],[A1]:[C1]],40,0),\nIF(Mogelijkheden[[#This Row],[Type gebouw]]=3,HLOOKUP(Mogelijkheden[[#This Row],[Rekenblad 1]],StaatGalerij[[#All],[A1]:[C1]],40,0),\n\"Onbekende fout\"))),\"\")","v":5000},{"$f":"IFERROR(\nIF(Mogelijkheden[[#This Row],[Type gebouw]]=1,HLOOKUP(Mogelijkheden[[#This Row],[Rekenblad 1]],StaatEGW[[#All],[A1.1]:[C1.2]],41,0),\nIF(Mogelijkheden[[#This Row],[Type gebouw]]=2,HLOOKUP(Mogelijkheden[[#This Row],[Rekenblad 1]],StaatPortiek[[#All],[A1]:[C1]],41,0),\nIF(Mogelijkheden[[#This Row],[Type gebouw]]=3,HLOOKUP(Mogelijkheden[[#This Row],[Rekenblad 1]],StaatGalerij[[#All],[A1]:[C1]],41,0),\n\"Onbekende fout\"))),\"\")","v":4000},{"$f":"SUM(Mogelijkheden[[#This Row],[Kosten warmteleverancier]:[Kosten woningeigenaar]])","v":9000},{"$f":"IFERROR(IF(Mogelijkheden[[#This Row],[Type gebouw]]=1,HLOOKUP(Mogelijkheden[[#This Row],[Rekenblad 1]],KwaliteitEGW[#All],2,0),\nIF(Mogelijkheden[[#This Row],[Type gebouw]]=2,HLOOKUP(Mogelijkheden[[#This Row],[Rekenblad 1]],KwaliteitPortiek[#All],2,0),\nIF(Mogelijkheden[[#This Row],[Type gebouw]]=3,HLOOKUP(Mogelijkheden[[#This Row],[Rekenblad 1]],KwaliteitGalerij[#All],2,0),\"\"))),\"\")","v":2},{"$f":"IFERROR(IF(Mogelijkheden[[#This Row],[Type gebouw]]=1,HLOOKUP(Mogelijkheden[[#This Row],[Rekenblad 1]],KwaliteitEGW[#All],6,0),\nIF(Mogelijkheden[[#This Row],[Type gebouw]]=2,HLOOKUP(Mogelijkheden[[#This Row],[Rekenblad 1]],KwaliteitPortiek[#All],5,0),\nIF(Mogelijkheden[[#This Row],[Type gebouw]]=3,HLOOKUP(Mogelijkheden[[#This Row],[Rekenblad 1]],KwaliteitGalerij[#All],5,0),\"\"))),\"\")","v":3},{"$f":"IFERROR(IF(Mogelijkheden[[#This Row],[Type gebouw]]=1,HLOOKUP(Mogelijkheden[[#This Row],[Rekenblad 1]],KwaliteitEGW[#All],10,0),\nIF(Mogelijkheden[[#This Row],[Type gebouw]]=2,HLOOKUP(Mogelijkheden[[#This Row],[Rekenblad 1]],KwaliteitPortiek[#All],9,0),\nIF(Mogelijkheden[[#This Row],[Type gebouw]]=3,HLOOKUP(Mogelijkheden[[#This Row],[Rekenblad 1]],KwaliteitGalerij[#All],9,0),\"\"))),\"\")","v":3},{"$f":"IFERROR(IF(Mogelijkheden[[#This Row],[Type gebouw]]=1,HLOOKUP(Mogelijkheden[[#This Row],[Rekenblad 1]],KwaliteitEGW[#All],14,0),\nIF(Mogelijkheden[[#This Row],[Type gebouw]]=2,HLOOKUP(Mogelijkheden[[#This Row],[Rekenblad 1]],KwaliteitPortiek[#All],13,0),\nIF(Mogelijkheden[[#This Row],[Type gebouw]]=3,HLOOKUP(Mogelijkheden[[#This Row],[Rekenblad 1]],KwaliteitGalerij[#All],13,0),\"\"))),\"\")","v":2}]
[null,null,{"$f":"Rekenblad1[[#Totals],[B2\nIn de lengterichting van het volledige blok over de gevel ]]","v":""},{"$f":"Rekenblad1[[#Totals],[Type (2)]]","v":1},{"$f":"IFERROR(VLOOKUP(Mogelijkheden[[#This Row],[Rekenblad 1]],$C$35:$E$70,3,0),\"\")","v":""},{"$f":"IFERROR(\nIF(Mogelijkheden[[#This Row],[Type gebouw]]=1,HLOOKUP(Mogelijkheden[[#This Row],[Rekenblad 1]],StaatEGW[[#All],[A1.1]:[C1.2]],40,0),\nIF(Mogelijkheden[[#This Row],[Type gebouw]]=2,HLOOKUP(Mogelijkheden[[#This Row],[Rekenblad 1]],StaatPortiek[[#All],[A1]:[C1]],40,0),\nIF(Mogelijkheden[[#This Row],[Type gebouw]]=3,HLOOKUP(Mogelijkheden[[#This Row],[Rekenblad 1]],StaatGalerij[[#All],[A1]:[C1]],40,0),\n\"Onbekende fout\"))),\"\")","v":""},{"$f":"IFERROR(\nIF(Mogelijkheden[[#This Row],[Type gebouw]]=1,HLOOKUP(Mogelijkheden[[#This Row],[Rekenblad 1]],StaatEGW[[#All],[A1.1]:[C1.2]],41,0),\nIF(Mogelijkheden[[#This Row],[Type gebouw]]=2,HLOOKUP(Mogelijkheden[[#This Row],[Rekenblad 1]],StaatPortiek[[#All],[A1]:[C1]],41,0),\nIF(Mogelijkheden[[#This Row],[Type gebouw]]=3,HLOOKUP(Mogelijkheden[[#This Row],[Rekenblad 1]],StaatGalerij[[#All],[A1]:[C1]],41,0),\n\"Onbekende fout\"))),\"\")","v":""},{"$f":"SUM(Mogelijkheden[[#This Row],[Kosten warmteleverancier]:[Kosten woningeigenaar]])","v":0},{"$f":"IFERROR(IF(Mogelijkheden[[#This Row],[Type gebouw]]=1,HLOOKUP(Mogelijkheden[[#This Row],[Rekenblad 1]],KwaliteitEGW[#All],2,0),\nIF(Mogelijkheden[[#This Row],[Type gebouw]]=2,HLOOKUP(Mogelijkheden[[#This Row],[Rekenblad 1]],KwaliteitPortiek[#All],2,0),\nIF(Mogelijkheden[[#This Row],[Type gebouw]]=3,HLOOKUP(Mogelijkheden[[#This Row],[Rekenblad 1]],KwaliteitGalerij[#All],2,0),\"\"))),\"\")","v":""},{"$f":"IFERROR(IF(Mogelijkheden[[#This Row],[Type gebouw]]=1,HLOOKUP(Mogelijkheden[[#This Row],[Rekenblad 1]],KwaliteitEGW[#All],6,0),\nIF(Mogelijkheden[[#This Row],[Type gebouw]]=2,HLOOKUP(Mogelijkheden[[#This Row],[Rekenblad 1]],KwaliteitPortiek[#All],5,0),\nIF(Mogelijkheden[[#This Row],[Type gebouw]]=3,HLOOKUP(Mogelijkheden[[#This Row],[Rekenblad 1]],KwaliteitGalerij[#All],5,0),\"\"))),\"\")","v":""},{"$f":"IFERROR(IF(Mogelijkheden[[#This Row],[Type gebouw]]=1,HLOOKUP(Mogelijkheden[[#This Row],[Rekenblad 1]],KwaliteitEGW[#All],10,0),\nIF(Mogelijkheden[[#This Row],[Type gebouw]]=2,HLOOKUP(Mogelijkheden[[#This Row],[Rekenblad 1]],KwaliteitPortiek[#All],9,0),\nIF(Mogelijkheden[[#This Row],[Type gebouw]]=3,HLOOKUP(Mogelijkheden[[#This Row],[Rekenblad 1]],KwaliteitGalerij[#All],9,0),\"\"))),\"\")","v":""},{"$f":"IFERROR(IF(Mogelijkheden[[#This Row],[Type gebouw]]=1,HLOOKUP(Mogelijkheden[[#This Row],[Rekenblad 1]],KwaliteitEGW[#All],14,0),\nIF(Mogelijkheden[[#This Row],[Type gebouw]]=2,HLOOKUP(Mogelijkheden[[#This Row],[Rekenblad 1]],KwaliteitPortiek[#All],13,0),\nIF(Mogelijkheden[[#This Row],[Type gebouw]]=3,HLOOKUP(Mogelijkheden[[#This Row],[Rekenblad 1]],KwaliteitGalerij[#All],13,0),\"\"))),\"\")","v":""}]
[null,null,{"$f":"Rekenblad1[[#Totals],[B2.1\nIn de lengterichting van het volledige blok over de gevel ]]","v":"B2.1"},{"$f":"Rekenblad1[[#Totals],[Type (2)]]","v":1},{"$f":"IFERROR(VLOOKUP(Mogelijkheden[[#This Row],[Rekenblad 1]],$C$35:$E$70,3,0),\"\")","v":"In de lengterichting van het volledige blok over de gevel "},{"$f":"IFERROR(\nIF(Mogelijkheden[[#This Row],[Type gebouw]]=1,HLOOKUP(Mogelijkheden[[#This Row],[Rekenblad 1]],StaatEGW[[#All],[A1.1]:[C1.2]],40,0),\nIF(Mogelijkheden[[#This Row],[Type gebouw]]=2,HLOOKUP(Mogelijkheden[[#This Row],[Rekenblad 1]],StaatPortiek[[#All],[A1]:[C1]],40,0),\nIF(Mogelijkheden[[#This Row],[Type gebouw]]=3,HLOOKUP(Mogelijkheden[[#This Row],[Rekenblad 1]],StaatGalerij[[#All],[A1]:[C1]],40,0),\n\"Onbekende fout\"))),\"\")","v":7500},{"$f":"IFERROR(\nIF(Mogelijkheden[[#This Row],[Type gebouw]]=1,HLOOKUP(Mogelijkheden[[#This Row],[Rekenblad 1]],StaatEGW[[#All],[A1.1]:[C1.2]],41,0),\nIF(Mogelijkheden[[#This Row],[Type gebouw]]=2,HLOOKUP(Mogelijkheden[[#This Row],[Rekenblad 1]],StaatPortiek[[#All],[A1]:[C1]],41,0),\nIF(Mogelijkheden[[#This Row],[Type gebouw]]=3,HLOOKUP(Mogelijkheden[[#This Row],[Rekenblad 1]],StaatGalerij[[#All],[A1]:[C1]],41,0),\n\"Onbekende fout\"))),\"\")","v":5000},{"$f":"SUM(Mogelijkheden[[#This Row],[Kosten warmteleverancier]:[Kosten woningeigenaar]])","v":12500},{"$f":"IFERROR(IF(Mogelijkheden[[#This Row],[Type gebouw]]=1,HLOOKUP(Mogelijkheden[[#This Row],[Rekenblad 1]],KwaliteitEGW[#All],2,0),\nIF(Mogelijkheden[[#This Row],[Type gebouw]]=2,HLOOKUP(Mogelijkheden[[#This Row],[Rekenblad 1]],KwaliteitPortiek[#All],2,0),\nIF(Mogelijkheden[[#This Row],[Type gebouw]]=3,HLOOKUP(Mogelijkheden[[#This Row],[Rekenblad 1]],KwaliteitGalerij[#All],2,0),\"\"))),\"\")","v":1},{"$f":"IFERROR(IF(Mogelijkheden[[#This Row],[Type gebouw]]=1,HLOOKUP(Mogelijkheden[[#This Row],[Rekenblad 1]],KwaliteitEGW[#All],6,0),\nIF(Mogelijkheden[[#This Row],[Type gebouw]]=2,HLOOKUP(Mogelijkheden[[#This Row],[Rekenblad 1]],KwaliteitPortiek[#All],5,0),\nIF(Mogelijkheden[[#This Row],[Type gebouw]]=3,HLOOKUP(Mogelijkheden[[#This Row],[Rekenblad 1]],KwaliteitGalerij[#All],5,0),\"\"))),\"\")","v":3},{"$f":"IFERROR(IF(Mogelijkheden[[#This Row],[Type gebouw]]=1,HLOOKUP(Mogelijkheden[[#This Row],[Rekenblad 1]],KwaliteitEGW[#All],10,0),\nIF(Mogelijkheden[[#This Row],[Type gebouw]]=2,HLOOKUP(Mogelijkheden[[#This Row],[Rekenblad 1]],KwaliteitPortiek[#All],9,0),\nIF(Mogelijkheden[[#This Row],[Type gebouw]]=3,HLOOKUP(Mogelijkheden[[#This Row],[Rekenblad 1]],KwaliteitGalerij[#All],9,0),\"\"))),\"\")","v":2},{"$f":"IFERROR(IF(Mogelijkheden[[#This Row],[Type gebouw]]=1,HLOOKUP(Mogelijkheden[[#This Row],[Rekenblad 1]],KwaliteitEGW[#All],14,0),\nIF(Mogelijkheden[[#This Row],[Type gebouw]]=2,HLOOKUP(Mogelijkheden[[#This Row],[Rekenblad 1]],KwaliteitPortiek[#All],13,0),\nIF(Mogelijkheden[[#This Row],[Type gebouw]]=3,HLOOKUP(Mogelijkheden[[#This Row],[Rekenblad 1]],KwaliteitGalerij[#All],13,0),\"\"))),\"\")","v":2}]
[null,null,{"$f":"Rekenblad1[[#Totals],[B2.2\nIn de lengterichting van het volledige blok over de gevel ]]","v":"B2.2"},{"$f":"Rekenblad1[[#Totals],[Type (2)]]","v":1},{"$f":"IFERROR(VLOOKUP(Mogelijkheden[[#This Row],[Rekenblad 1]],$C$35:$E$70,3,0),\"\")","v":"In de lengterichting van het volledige blok over de gevel "},{"$f":"IFERROR(\nIF(Mogelijkheden[[#This Row],[Type gebouw]]=1,HLOOKUP(Mogelijkheden[[#This Row],[Rekenblad 1]],StaatEGW[[#All],[A1.1]:[C1.2]],40,0),\nIF(Mogelijkheden[[#This Row],[Type gebouw]]=2,HLOOKUP(Mogelijkheden[[#This Row],[Rekenblad 1]],StaatPortiek[[#All],[A1]:[C1]],40,0),\nIF(Mogelijkheden[[#This Row],[Type gebouw]]=3,HLOOKUP(Mogelijkheden[[#This Row],[Rekenblad 1]],StaatGalerij[[#All],[A1]:[C1]],40,0),\n\"Onbekende fout\"))),\"\")","v":7500},{"$f":"IFERROR(\nIF(Mogelijkheden[[#This Row],[Type gebouw]]=1,HLOOKUP(Mogelijkheden[[#This Row],[Rekenblad 1]],StaatEGW[[#All],[A1.1]:[C1.2]],41,0),\nIF(Mogelijkheden[[#This Row],[Type gebouw]]=2,HLOOKUP(Mogelijkheden[[#This Row],[Rekenblad 1]],StaatPortiek[[#All],[A1]:[C1]],41,0),\nIF(Mogelijkheden[[#This Row],[Type gebouw]]=3,HLOOKUP(Mogelijkheden[[#This Row],[Rekenblad 1]],StaatGalerij[[#All],[A1]:[C1]],41,0),\n\"Onbekende fout\"))),\"\")","v":4000},{"$f":"SUM(Mogelijkheden[[#This Row],[Kosten warmteleverancier]:[Kosten woningeigenaar]])","v":11500},{"$f":"IFERROR(IF(Mogelijkheden[[#This Row],[Type gebouw]]=1,HLOOKUP(Mogelijkheden[[#This Row],[Rekenblad 1]],KwaliteitEGW[#All],2,0),\nIF(Mogelijkheden[[#This Row],[Type gebouw]]=2,HLOOKUP(Mogelijkheden[[#This Row],[Rekenblad 1]],KwaliteitPortiek[#All],2,0),\nIF(Mogelijkheden[[#This Row],[Type gebouw]]=3,HLOOKUP(Mogelijkheden[[#This Row],[Rekenblad 1]],KwaliteitGalerij[#All],2,0),\"\"))),\"\")","v":1},{"$f":"IFERROR(IF(Mogelijkheden[[#This Row],[Type gebouw]]=1,HLOOKUP(Mogelijkheden[[#This Row],[Rekenblad 1]],KwaliteitEGW[#All],6,0),\nIF(Mogelijkheden[[#This Row],[Type gebouw]]=2,HLOOKUP(Mogelijkheden[[#This Row],[Rekenblad 1]],KwaliteitPortiek[#All],5,0),\nIF(Mogelijkheden[[#This Row],[Type gebouw]]=3,HLOOKUP(Mogelijkheden[[#This Row],[Rekenblad 1]],KwaliteitGalerij[#All],5,0),\"\"))),\"\")","v":4},{"$f":"IFERROR(IF(Mogelijkheden[[#This Row],[Type gebouw]]=1,HLOOKUP(Mogelijkheden[[#This Row],[Rekenblad 1]],KwaliteitEGW[#All],10,0),\nIF(Mogelijkheden[[#This Row],[Type gebouw]]=2,HLOOKUP(Mogelijkheden[[#This Row],[Rekenblad 1]],KwaliteitPortiek[#All],9,0),\nIF(Mogelijkheden[[#This Row],[Type gebouw]]=3,HLOOKUP(Mogelijkheden[[#This Row],[Rekenblad 1]],KwaliteitGalerij[#All],9,0),\"\"))),\"\")","v":4},{"$f":"IFERROR(IF(Mogelijkheden[[#This Row],[Type gebouw]]=1,HLOOKUP(Mogelijkheden[[#This Row],[Rekenblad 1]],KwaliteitEGW[#All],14,0),\nIF(Mogelijkheden[[#This Row],[Type gebouw]]=2,HLOOKUP(Mogelijkheden[[#This Row],[Rekenblad 1]],KwaliteitPortiek[#All],13,0),\nIF(Mogelijkheden[[#This Row],[Type gebouw]]=3,HLOOKUP(Mogelijkheden[[#This Row],[Rekenblad 1]],KwaliteitGalerij[#All],13,0),\"\"))),\"\")","v":2}]
[null,null,{"$f":"Rekenblad1[[#Totals],[B3\nIn de lengterichting van het volledige blok over het dak ]]","v":""},{"$f":"Rekenblad1[[#Totals],[Type (2)]]","v":1},{"$f":"IFERROR(VLOOKUP(Mogelijkheden[[#This Row],[Rekenblad 1]],$C$35:$E$70,3,0),\"\")","v":""},{"$f":"IFERROR(\nIF(Mogelijkheden[[#This Row],[Type gebouw]]=1,HLOOKUP(Mogelijkheden[[#This Row],[Rekenblad 1]],StaatEGW[[#All],[A1.1]:[C1.2]],40,0),\nIF(Mogelijkheden[[#This Row],[Type gebouw]]=2,HLOOKUP(Mogelijkheden[[#This Row],[Rekenblad 1]],StaatPortiek[[#All],[A1]:[C1]],40,0),\nIF(Mogelijkheden[[#This Row],[Type gebouw]]=3,HLOOKUP(Mogelijkheden[[#This Row],[Rekenblad 1]],StaatGalerij[[#All],[A1]:[C1]],40,0),\n\"Onbekende fout\"))),\"\")","v":""},{"$f":"IFERROR(\nIF(Mogelijkheden[[#This Row],[Type gebouw]]=1,HLOOKUP(Mogelijkheden[[#This Row],[Rekenblad 1]],StaatEGW[[#All],[A1.1]:[C1.2]],41,0),\nIF(Mogelijkheden[[#This Row],[Type gebouw]]=2,HLOOKUP(Mogelijkheden[[#This Row],[Rekenblad 1]],StaatPortiek[[#All],[A1]:[C1]],41,0),\nIF(Mogelijkheden[[#This Row],[Type gebouw]]=3,HLOOKUP(Mogelijkheden[[#This Row],[Rekenblad 1]],StaatGalerij[[#All],[A1]:[C1]],41,0),\n\"Onbekende fout\"))),\"\")","v":""},{"$f":"SUM(Mogelijkheden[[#This Row],[Kosten warmteleverancier]:[Kosten woningeigenaar]])","v":0},{"$f":"IFERROR(IF(Mogelijkheden[[#This Row],[Type gebouw]]=1,HLOOKUP(Mogelijkheden[[#This Row],[Rekenblad 1]],KwaliteitEGW[#All],2,0),\nIF(Mogelijkheden[[#This Row],[Type gebouw]]=2,HLOOKUP(Mogelijkheden[[#This Row],[Rekenblad 1]],KwaliteitPortiek[#All],2,0),\nIF(Mogelijkheden[[#This Row],[Type gebouw]]=3,HLOOKUP(Mogelijkheden[[#This Row],[Rekenblad 1]],KwaliteitGalerij[#All],2,0),\"\"))),\"\")","v":""},{"$f":"IFERROR(IF(Mogelijkheden[[#This Row],[Type gebouw]]=1,HLOOKUP(Mogelijkheden[[#This Row],[Rekenblad 1]],KwaliteitEGW[#All],6,0),\nIF(Mogelijkheden[[#This Row],[Type gebouw]]=2,HLOOKUP(Mogelijkheden[[#This Row],[Rekenblad 1]],KwaliteitPortiek[#All],5,0),\nIF(Mogelijkheden[[#This Row],[Type gebouw]]=3,HLOOKUP(Mogelijkheden[[#This Row],[Rekenblad 1]],KwaliteitGalerij[#All],5,0),\"\"))),\"\")","v":""},{"$f":"IFERROR(IF(Mogelijkheden[[#This Row],[Type gebouw]]=1,HLOOKUP(Mogelijkheden[[#This Row],[Rekenblad 1]],KwaliteitEGW[#All],10,0),\nIF(Mogelijkheden[[#This Row],[Type gebouw]]=2,HLOOKUP(Mogelijkheden[[#This Row],[Rekenblad 1]],KwaliteitPortiek[#All],9,0),\nIF(Mogelijkheden[[#This Row],[Type gebouw]]=3,HLOOKUP(Mogelijkheden[[#This Row],[Rekenblad 1]],KwaliteitGalerij[#All],9,0),\"\"))),\"\")","v":""},{"$f":"IFERROR(IF(Mogelijkheden[[#This Row],[Type gebouw]]=1,HLOOKUP(Mogelijkheden[[#This Row],[Rekenblad 1]],KwaliteitEGW[#All],14,0),\nIF(Mogelijkheden[[#This Row],[Type gebouw]]=2,HLOOKUP(Mogelijkheden[[#This Row],[Rekenblad 1]],KwaliteitPortiek[#All],13,0),\nIF(Mogelijkheden[[#This Row],[Type gebouw]]=3,HLOOKUP(Mogelijkheden[[#This Row],[Rekenblad 1]],KwaliteitGalerij[#All],13,0),\"\"))),\"\")","v":""}]
[null,null,{"$f":"Rekenblad1[[#Totals],[B3.1\nIn de lengterichting van het volledige blok over het dak ]]","v":"B3.1"},{"$f":"Rekenblad1[[#Totals],[Type (2)]]","v":1},{"$f":"IFERROR(VLOOKUP(Mogelijkheden[[#This Row],[Rekenblad 1]],$C$35:$E$70,3,0),\"\")","v":"In de lengterichting van het volledige blok over het dak "},{"$f":"IFERROR(\nIF(Mogelijkheden[[#This Row],[Type gebouw]]=1,HLOOKUP(Mogelijkheden[[#This Row],[Rekenblad 1]],StaatEGW[[#All],[A1.1]:[C1.2]],40,0),\nIF(Mogelijkheden[[#This Row],[Type gebouw]]=2,HLOOKUP(Mogelijkheden[[#This Row],[Rekenblad 1]],StaatPortiek[[#All],[A1]:[C1]],40,0),\nIF(Mogelijkheden[[#This Row],[Type gebouw]]=3,HLOOKUP(Mogelijkheden[[#This Row],[Rekenblad 1]],StaatGalerij[[#All],[A1]:[C1]],40,0),\n\"Onbekende fout\"))),\"\")","v":4000},{"$f":"IFERROR(\nIF(Mogelijkheden[[#This Row],[Type gebouw]]=1,HLOOKUP(Mogelijkheden[[#This Row],[Rekenblad 1]],StaatEGW[[#All],[A1.1]:[C1.2]],41,0),\nIF(Mogelijkheden[[#This Row],[Type gebouw]]=2,HLOOKUP(Mogelijkheden[[#This Row],[Rekenblad 1]],StaatPortiek[[#All],[A1]:[C1]],41,0),\nIF(Mogelijkheden[[#This Row],[Type gebouw]]=3,HLOOKUP(Mogelijkheden[[#This Row],[Rekenblad 1]],StaatGalerij[[#All],[A1]:[C1]],41,0),\n\"Onbekende fout\"))),\"\")","v":5000},{"$f":"SUM(Mogelijkheden[[#This Row],[Kosten warmteleverancier]:[Kosten woningeigenaar]])","v":9000},{"$f":"IFERROR(IF(Mogelijkheden[[#This Row],[Type gebouw]]=1,HLOOKUP(Mogelijkheden[[#This Row],[Rekenblad 1]],KwaliteitEGW[#All],2,0),\nIF(Mogelijkheden[[#This Row],[Type gebouw]]=2,HLOOKUP(Mogelijkheden[[#This Row],[Rekenblad 1]],KwaliteitPortiek[#All],2,0),\nIF(Mogelijkheden[[#This Row],[Type gebouw]]=3,HLOOKUP(Mogelijkheden[[#This Row],[Rekenblad 1]],KwaliteitGalerij[#All],2,0),\"\"))),\"\")","v":1},{"$f":"IFERROR(IF(Mogelijkheden[[#This Row],[Type gebouw]]=1,HLOOKUP(Mogelijkheden[[#This Row],[Rekenblad 1]],KwaliteitEGW[#All],6,0),\nIF(Mogelijkheden[[#This Row],[Type gebouw]]=2,HLOOKUP(Mogelijkheden[[#This Row],[Rekenblad 1]],KwaliteitPortiek[#All],5,0),\nIF(Mogelijkheden[[#This Row],[Type gebouw]]=3,HLOOKUP(Mogelijkheden[[#This Row],[Rekenblad 1]],KwaliteitGalerij[#All],5,0),\"\"))),\"\")","v":2},{"$f":"IFERROR(IF(Mogelijkheden[[#This Row],[Type gebouw]]=1,HLOOKUP(Mogelijkheden[[#This Row],[Rekenblad 1]],KwaliteitEGW[#All],10,0),\nIF(Mogelijkheden[[#This Row],[Type gebouw]]=2,HLOOKUP(Mogelijkheden[[#This Row],[Rekenblad 1]],KwaliteitPortiek[#All],9,0),\nIF(Mogelijkheden[[#This Row],[Type gebouw]]=3,HLOOKUP(Mogelijkheden[[#This Row],[Rekenblad 1]],KwaliteitGalerij[#All],9,0),\"\"))),\"\")","v":2},{"$f":"IFERROR(IF(Mogelijkheden[[#This Row],[Type gebouw]]=1,HLOOKUP(Mogelijkheden[[#This Row],[Rekenblad 1]],KwaliteitEGW[#All],14,0),\nIF(Mogelijkheden[[#This Row],[Type gebouw]]=2,HLOOKUP(Mogelijkheden[[#This Row],[Rekenblad 1]],KwaliteitPortiek[#All],13,0),\nIF(Mogelijkheden[[#This Row],[Type gebouw]]=3,HLOOKUP(Mogelijkheden[[#This Row],[Rekenblad 1]],KwaliteitGalerij[#All],13,0),\"\"))),\"\")","v":3}]
[null,null,{"$f":"Rekenblad1[[#Totals],[B3.2\nIn de lengterichting van het volledige blok over het dak ]]","v":"B3.2"},{"$f":"Rekenblad1[[#Totals],[Type (2)]]","v":1},{"$f":"IFERROR(VLOOKUP(Mogelijkheden[[#This Row],[Rekenblad 1]],$C$35:$E$70,3,0),\"\")","v":"In de lengterichting van het volledige blok over het dak "},{"$f":"IFERROR(\nIF(Mogelijkheden[[#This Row],[Type gebouw]]=1,HLOOKUP(Mogelijkheden[[#This Row],[Rekenblad 1]],StaatEGW[[#All],[A1.1]:[C1.2]],40,0),\nIF(Mogelijkheden[[#This Row],[Type gebouw]]=2,HLOOKUP(Mogelijkheden[[#This Row],[Rekenblad 1]],StaatPortiek[[#All],[A1]:[C1]],40,0),\nIF(Mogelijkheden[[#This Row],[Type gebouw]]=3,HLOOKUP(Mogelijkheden[[#This Row],[Rekenblad 1]],StaatGalerij[[#All],[A1]:[C1]],40,0),\n\"Onbekende fout\"))),\"\")","v":4000},{"$f":"IFERROR(\nIF(Mogelijkheden[[#This Row],[Type gebouw]]=1,HLOOKUP(Mogelijkheden[[#This Row],[Rekenblad 1]],StaatEGW[[#All],[A1.1]:[C1.2]],41,0),\nIF(Mogelijkheden[[#This Row],[Type gebouw]]=2,HLOOKUP(Mogelijkheden[[#This Row],[Rekenblad 1]],StaatPortiek[[#All],[A1]:[C1]],41,0),\nIF(Mogelijkheden[[#This Row],[Type gebouw]]=3,HLOOKUP(Mogelijkheden[[#This Row],[Rekenblad 1]],StaatGalerij[[#All],[A1]:[C1]],41,0),\n\"Onbekende fout\"))),\"\")","v":4000},{"$f":"SUM(Mogelijkheden[[#This Row],[Kosten warmteleverancier]:[Kosten woningeigenaar]])","v":8000},{"$f":"IFERROR(IF(Mogelijkheden[[#This Row],[Type gebouw]]=1,HLOOKUP(Mogelijkheden[[#This Row],[Rekenblad 1]],KwaliteitEGW[#All],2,0),\nIF(Mogelijkheden[[#This Row],[Type gebouw]]=2,HLOOKUP(Mogelijkheden[[#This Row],[Rekenblad 1]],KwaliteitPortiek[#All],2,0),\nIF(Mogelijkheden[[#This Row],[Type gebouw]]=3,HLOOKUP(Mogelijkheden[[#This Row],[Rekenblad 1]],KwaliteitGalerij[#All],2,0),\"\"))),\"\")","v":1},{"$f":"IFERROR(IF(Mogelijkheden[[#This Row],[Type gebouw]]=1,HLOOKUP(Mogelijkheden[[#This Row],[Rekenblad 1]],KwaliteitEGW[#All],6,0),\nIF(Mogelijkheden[[#This Row],[Type gebouw]]=2,HLOOKUP(Mogelijkheden[[#This Row],[Rekenblad 1]],KwaliteitPortiek[#All],5,0),\nIF(Mogelijkheden[[#This Row],[Type gebouw]]=3,HLOOKUP(Mogelijkheden[[#This Row],[Rekenblad 1]],KwaliteitGalerij[#All],5,0),\"\"))),\"\")","v":4},{"$f":"IFERROR(IF(Mogelijkheden[[#This Row],[Type gebouw]]=1,HLOOKUP(Mogelijkheden[[#This Row],[Rekenblad 1]],KwaliteitEGW[#All],10,0),\nIF(Mogelijkheden[[#This Row],[Type gebouw]]=2,HLOOKUP(Mogelijkheden[[#This Row],[Rekenblad 1]],KwaliteitPortiek[#All],9,0),\nIF(Mogelijkheden[[#This Row],[Type gebouw]]=3,HLOOKUP(Mogelijkheden[[#This Row],[Rekenblad 1]],KwaliteitGalerij[#All],9,0),\"\"))),\"\")","v":4},{"$f":"IFERROR(IF(Mogelijkheden[[#This Row],[Type gebouw]]=1,HLOOKUP(Mogelijkheden[[#This Row],[Rekenblad 1]],KwaliteitEGW[#All],14,0),\nIF(Mogelijkheden[[#This Row],[Type gebouw]]=2,HLOOKUP(Mogelijkheden[[#This Row],[Rekenblad 1]],KwaliteitPortiek[#All],13,0),\nIF(Mogelijkheden[[#This Row],[Type gebouw]]=3,HLOOKUP(Mogelijkheden[[#This Row],[Rekenblad 1]],KwaliteitGalerij[#All],13,0),\"\"))),\"\")","v":3}]
[null,null,{"$f":"Rekenblad1[[#Totals],[B4\nIn de lengterichting van het volledige blok onder de onderste woonlaag door]]","v":""},{"$f":"Rekenblad1[[#Totals],[Type (2)]]","v":1},{"$f":"IFERROR(VLOOKUP(Mogelijkheden[[#This Row],[Rekenblad 1]],$C$35:$E$70,3,0),\"\")","v":""},{"$f":"IFERROR(\nIF(Mogelijkheden[[#This Row],[Type gebouw]]=1,HLOOKUP(Mogelijkheden[[#This Row],[Rekenblad 1]],StaatEGW[[#All],[A1.1]:[C1.2]],40,0),\nIF(Mogelijkheden[[#This Row],[Type gebouw]]=2,HLOOKUP(Mogelijkheden[[#This Row],[Rekenblad 1]],StaatPortiek[[#All],[A1]:[C1]],40,0),\nIF(Mogelijkheden[[#This Row],[Type gebouw]]=3,HLOOKUP(Mogelijkheden[[#This Row],[Rekenblad 1]],StaatGalerij[[#All],[A1]:[C1]],40,0),\n\"Onbekende fout\"))),\"\")","v":""},{"$f":"IFERROR(\nIF(Mogelijkheden[[#This Row],[Type gebouw]]=1,HLOOKUP(Mogelijkheden[[#This Row],[Rekenblad 1]],StaatEGW[[#All],[A1.1]:[C1.2]],41,0),\nIF(Mogelijkheden[[#This Row],[Type gebouw]]=2,HLOOKUP(Mogelijkheden[[#This Row],[Rekenblad 1]],StaatPortiek[[#All],[A1]:[C1]],41,0),\nIF(Mogelijkheden[[#This Row],[Type gebouw]]=3,HLOOKUP(Mogelijkheden[[#This Row],[Rekenblad 1]],StaatGalerij[[#All],[A1]:[C1]],41,0),\n\"Onbekende fout\"))),\"\")","v":""},{"$f":"SUM(Mogelijkheden[[#This Row],[Kosten warmteleverancier]:[Kosten woningeigenaar]])","v":0},{"$f":"IFERROR(IF(Mogelijkheden[[#This Row],[Type gebouw]]=1,HLOOKUP(Mogelijkheden[[#This Row],[Rekenblad 1]],KwaliteitEGW[#All],2,0),\nIF(Mogelijkheden[[#This Row],[Type gebouw]]=2,HLOOKUP(Mogelijkheden[[#This Row],[Rekenblad 1]],KwaliteitPortiek[#All],2,0),\nIF(Mogelijkheden[[#This Row],[Type gebouw]]=3,HLOOKUP(Mogelijkheden[[#This Row],[Rekenblad 1]],KwaliteitGalerij[#All],2,0),\"\"))),\"\")","v":""},{"$f":"IFERROR(IF(Mogelijkheden[[#This Row],[Type gebouw]]=1,HLOOKUP(Mogelijkheden[[#This Row],[Rekenblad 1]],KwaliteitEGW[#All],6,0),\nIF(Mogelijkheden[[#This Row],[Type gebouw]]=2,HLOOKUP(Mogelijkheden[[#This Row],[Rekenblad 1]],KwaliteitPortiek[#All],5,0),\nIF(Mogelijkheden[[#This Row],[Type gebouw]]=3,HLOOKUP(Mogelijkheden[[#This Row],[Rekenblad 1]],KwaliteitGalerij[#All],5,0),\"\"))),\"\")","v":""},{"$f":"IFERROR(IF(Mogelijkheden[[#This Row],[Type gebouw]]=1,HLOOKUP(Mogelijkheden[[#This Row],[Rekenblad 1]],KwaliteitEGW[#All],10,0),\nIF(Mogelijkheden[[#This Row],[Type gebouw]]=2,HLOOKUP(Mogelijkheden[[#This Row],[Rekenblad 1]],KwaliteitPortiek[#All],9,0),\nIF(Mogelijkheden[[#This Row],[Type gebouw]]=3,HLOOKUP(Mogelijkheden[[#This Row],[Rekenblad 1]],KwaliteitGalerij[#All],9,0),\"\"))),\"\")","v":""},{"$f":"IFERROR(IF(Mogelijkheden[[#This Row],[Type gebouw]]=1,HLOOKUP(Mogelijkheden[[#This Row],[Rekenblad 1]],KwaliteitEGW[#All],14,0),\nIF(Mogelijkheden[[#This Row],[Type gebouw]]=2,HLOOKUP(Mogelijkheden[[#This Row],[Rekenblad 1]],KwaliteitPortiek[#All],13,0),\nIF(Mogelijkheden[[#This Row],[Type gebouw]]=3,HLOOKUP(Mogelijkheden[[#This Row],[Rekenblad 1]],KwaliteitGalerij[#All],13,0),\"\"))),\"\")","v":""}]
[null,null,{"$f":"Rekenblad1[[#Totals],[B4.1\nIn de lengterichting van het volledige blok onder de onderste woonlaag door]]","v":"B4.1"},{"$f":"Rekenblad1[[#Totals],[Type (2)]]","v":1},{"$f":"IFERROR(VLOOKUP(Mogelijkheden[[#This Row],[Rekenblad 1]],$C$35:$E$70,3,0),\"\")","v":"In de lengterichting van het volledige blok onder de onderste woonlaag door"},{"$f":"IFERROR(\nIF(Mogelijkheden[[#This Row],[Type gebouw]]=1,HLOOKUP(Mogelijkheden[[#This Row],[Rekenblad 1]],StaatEGW[[#All],[A1.1]:[C1.2]],40,0),\nIF(Mogelijkheden[[#This Row],[Type gebouw]]=2,HLOOKUP(Mogelijkheden[[#This Row],[Rekenblad 1]],StaatPortiek[[#All],[A1]:[C1]],40,0),\nIF(Mogelijkheden[[#This Row],[Type gebouw]]=3,HLOOKUP(Mogelijkheden[[#This Row],[Rekenblad 1]],StaatGalerij[[#All],[A1]:[C1]],40,0),\n\"Onbekende fout\"))),\"\")","v":7000},{"$f":"IFERROR(\nIF(Mogelijkheden[[#This Row],[Type gebouw]]=1,HLOOKUP(Mogelijkheden[[#This Row],[Rekenblad 1]],StaatEGW[[#All],[A1.1]:[C1.2]],41,0),\nIF(Mogelijkheden[[#This Row],[Type gebouw]]=2,HLOOKUP(Mogelijkheden[[#This Row],[Rekenblad 1]],StaatPortiek[[#All],[A1]:[C1]],41,0),\nIF(Mogelijkheden[[#This Row],[Type gebouw]]=3,HLOOKUP(Mogelijkheden[[#This Row],[Rekenblad 1]],StaatGalerij[[#All],[A1]:[C1]],41,0),\n\"Onbekende fout\"))),\"\")","v":4500},{"$f":"SUM(Mogelijkheden[[#This Row],[Kosten warmteleverancier]:[Kosten woningeigenaar]])","v":11500},{"$f":"IFERROR(IF(Mogelijkheden[[#This Row],[Type gebouw]]=1,HLOOKUP(Mogelijkheden[[#This Row],[Rekenblad 1]],KwaliteitEGW[#All],2,0),\nIF(Mogelijkheden[[#This Row],[Type gebouw]]=2,HLOOKUP(Mogelijkheden[[#This Row],[Rekenblad 1]],KwaliteitPortiek[#All],2,0),\nIF(Mogelijkheden[[#This Row],[Type gebouw]]=3,HLOOKUP(Mogelijkheden[[#This Row],[Rekenblad 1]],KwaliteitGalerij[#All],2,0),\"\"))),\"\")","v":4},{"$f":"IFERROR(IF(Mogelijkheden[[#This Row],[Type gebouw]]=1,HLOOKUP(Mogelijkheden[[#This Row],[Rekenblad 1]],KwaliteitEGW[#All],6,0),\nIF(Mogelijkheden[[#This Row],[Type gebouw]]=2,HLOOKUP(Mogelijkheden[[#This Row],[Rekenblad 1]],KwaliteitPortiek[#All],5,0),\nIF(Mogelijkheden[[#This Row],[Type gebouw]]=3,HLOOKUP(Mogelijkheden[[#This Row],[Rekenblad 1]],KwaliteitGalerij[#All],5,0),\"\"))),\"\")","v":2},{"$f":"IFERROR(IF(Mogelijkheden[[#This Row],[Type gebouw]]=1,HLOOKUP(Mogelijkheden[[#This Row],[Rekenblad 1]],KwaliteitEGW[#All],10,0),\nIF(Mogelijkheden[[#This Row],[Type gebouw]]=2,HLOOKUP(Mogelijkheden[[#This Row],[Rekenblad 1]],KwaliteitPortiek[#All],9,0),\nIF(Mogelijkheden[[#This Row],[Type gebouw]]=3,HLOOKUP(Mogelijkheden[[#This Row],[Rekenblad 1]],KwaliteitGalerij[#All],9,0),\"\"))),\"\")","v":5},{"$f":"IFERROR(IF(Mogelijkheden[[#This Row],[Type gebouw]]=1,HLOOKUP(Mogelijkheden[[#This Row],[Rekenblad 1]],KwaliteitEGW[#All],14,0),\nIF(Mogelijkheden[[#This Row],[Type gebouw]]=2,HLOOKUP(Mogelijkheden[[#This Row],[Rekenblad 1]],KwaliteitPortiek[#All],13,0),\nIF(Mogelijkheden[[#This Row],[Type gebouw]]=3,HLOOKUP(Mogelijkheden[[#This Row],[Rekenblad 1]],KwaliteitGalerij[#All],13,0),\"\"))),\"\")","v":2}]
[null,null,{"$f":"Rekenblad1[[#Totals],[B4.2\nIn de lengterichting van het volledige blok onder de onderste woonlaag door]]","v":"B4.2"},{"$f":"Rekenblad1[[#Totals],[Type (2)]]","v":1},{"$f":"IFERROR(VLOOKUP(Mogelijkheden[[#This Row],[Rekenblad 1]],$C$35:$E$70,3,0),\"\")","v":"In de lengterichting van het volledige blok onder de onderste woonlaag door"},{"$f":"IFERROR(\nIF(Mogelijkheden[[#This Row],[Type gebouw]]=1,HLOOKUP(Mogelijkheden[[#This Row],[Rekenblad 1]],StaatEGW[[#All],[A1.1]:[C1.2]],40,0),\nIF(Mogelijkheden[[#This Row],[Type gebouw]]=2,HLOOKUP(Mogelijkheden[[#This Row],[Rekenblad 1]],StaatPortiek[[#All],[A1]:[C1]],40,0),\nIF(Mogelijkheden[[#This Row],[Type gebouw]]=3,HLOOKUP(Mogelijkheden[[#This Row],[Rekenblad 1]],StaatGalerij[[#All],[A1]:[C1]],40,0),\n\"Onbekende fout\"))),\"\")","v":7000},{"$f":"IFERROR(\nIF(Mogelijkheden[[#This Row],[Type gebouw]]=1,HLOOKUP(Mogelijkheden[[#This Row],[Rekenblad 1]],StaatEGW[[#All],[A1.1]:[C1.2]],41,0),\nIF(Mogelijkheden[[#This Row],[Type gebouw]]=2,HLOOKUP(Mogelijkheden[[#This Row],[Rekenblad 1]],StaatPortiek[[#All],[A1]:[C1]],41,0),\nIF(Mogelijkheden[[#This Row],[Type gebouw]]=3,HLOOKUP(Mogelijkheden[[#This Row],[Rekenblad 1]],StaatGalerij[[#All],[A1]:[C1]],41,0),\n\"Onbekende fout\"))),\"\")","v":5500},{"$f":"SUM(Mogelijkheden[[#This Row],[Kosten warmteleverancier]:[Kosten woningeigenaar]])","v":12500},{"$f":"IFERROR(IF(Mogelijkheden[[#This Row],[Type gebouw]]=1,HLOOKUP(Mogelijkheden[[#This Row],[Rekenblad 1]],KwaliteitEGW[#All],2,0),\nIF(Mogelijkheden[[#This Row],[Type gebouw]]=2,HLOOKUP(Mogelijkheden[[#This Row],[Rekenblad 1]],KwaliteitPortiek[#All],2,0),\nIF(Mogelijkheden[[#This Row],[Type gebouw]]=3,HLOOKUP(Mogelijkheden[[#This Row],[Rekenblad 1]],KwaliteitGalerij[#All],2,0),\"\"))),\"\")","v":4},{"$f":"IFERROR(IF(Mogelijkheden[[#This Row],[Type gebouw]]=1,HLOOKUP(Mogelijkheden[[#This Row],[Rekenblad 1]],KwaliteitEGW[#All],6,0),\nIF(Mogelijkheden[[#This Row],[Type gebouw]]=2,HLOOKUP(Mogelijkheden[[#This Row],[Rekenblad 1]],KwaliteitPortiek[#All],5,0),\nIF(Mogelijkheden[[#This Row],[Type gebouw]]=3,HLOOKUP(Mogelijkheden[[#This Row],[Rekenblad 1]],KwaliteitGalerij[#All],5,0),\"\"))),\"\")","v":2},{"$f":"IFERROR(IF(Mogelijkheden[[#This Row],[Type gebouw]]=1,HLOOKUP(Mogelijkheden[[#This Row],[Rekenblad 1]],KwaliteitEGW[#All],10,0),\nIF(Mogelijkheden[[#This Row],[Type gebouw]]=2,HLOOKUP(Mogelijkheden[[#This Row],[Rekenblad 1]],KwaliteitPortiek[#All],9,0),\nIF(Mogelijkheden[[#This Row],[Type gebouw]]=3,HLOOKUP(Mogelijkheden[[#This Row],[Rekenblad 1]],KwaliteitGalerij[#All],9,0),\"\"))),\"\")","v":2},{"$f":"IFERROR(IF(Mogelijkheden[[#This Row],[Type gebouw]]=1,HLOOKUP(Mogelijkheden[[#This Row],[Rekenblad 1]],KwaliteitEGW[#All],14,0),\nIF(Mogelijkheden[[#This Row],[Type gebouw]]=2,HLOOKUP(Mogelijkheden[[#This Row],[Rekenblad 1]],KwaliteitPortiek[#All],13,0),\nIF(Mogelijkheden[[#This Row],[Type gebouw]]=3,HLOOKUP(Mogelijkheden[[#This Row],[Rekenblad 1]],KwaliteitGalerij[#All],13,0),\"\"))),\"\")","v":2}]
[null,null,{"$f":"Rekenblad1[[#Totals],[C\nDe individuele afleverset buiten de woning]]","v":"C1"},{"$f":"Rekenblad1[[#Totals],[Type (2)]]","v":1},{"$f":"IFERROR(VLOOKUP(Mogelijkheden[[#This Row],[Rekenblad 1]],$C$35:$E$70,3,0),\"\")","v":"De individuele afleverset buiten de woning"},{"$f":"IFERROR(\nIF(Mogelijkheden[[#This Row],[Type gebouw]]=1,HLOOKUP(Mogelijkheden[[#This Row],[Rekenblad 1]],StaatEGW[[#All],[A1.1]:[C1.2]],40,0),\nIF(Mogelijkheden[[#This Row],[Type gebouw]]=2,HLOOKUP(Mogelijkheden[[#This Row],[Rekenblad 1]],StaatPortiek[[#All],[A1]:[C1]],40,0),\nIF(Mogelijkheden[[#This Row],[Type gebouw]]=3,HLOOKUP(Mogelijkheden[[#This Row],[Rekenblad 1]],StaatGalerij[[#All],[A1]:[C1]],40,0),\n\"Onbekende fout\"))),\"\")","v":""},{"$f":"IFERROR(\nIF(Mogelijkheden[[#This Row],[Type gebouw]]=1,HLOOKUP(Mogelijkheden[[#This Row],[Rekenblad 1]],StaatEGW[[#All],[A1.1]:[C1.2]],41,0),\nIF(Mogelijkheden[[#This Row],[Type gebouw]]=2,HLOOKUP(Mogelijkheden[[#This Row],[Rekenblad 1]],StaatPortiek[[#All],[A1]:[C1]],41,0),\nIF(Mogelijkheden[[#This Row],[Type gebouw]]=3,HLOOKUP(Mogelijkheden[[#This Row],[Rekenblad 1]],StaatGalerij[[#All],[A1]:[C1]],41,0),\n\"Onbekende fout\"))),\"\")","v":""},{"$f":"SUM(Mogelijkheden[[#This Row],[Kosten warmteleverancier]:[Kosten woningeigenaar]])","v":0},{"$f":"IFERROR(IF(Mogelijkheden[[#This Row],[Type gebouw]]=1,HLOOKUP(Mogelijkheden[[#This Row],[Rekenblad 1]],KwaliteitEGW[#All],2,0),\nIF(Mogelijkheden[[#This Row],[Type gebouw]]=2,HLOOKUP(Mogelijkheden[[#This Row],[Rekenblad 1]],KwaliteitPortiek[#All],2,0),\nIF(Mogelijkheden[[#This Row],[Type gebouw]]=3,HLOOKUP(Mogelijkheden[[#This Row],[Rekenblad 1]],KwaliteitGalerij[#All],2,0),\"\"))),\"\")","v":""},{"$f":"IFERROR(IF(Mogelijkheden[[#This Row],[Type gebouw]]=1,HLOOKUP(Mogelijkheden[[#This Row],[Rekenblad 1]],KwaliteitEGW[#All],6,0),\nIF(Mogelijkheden[[#This Row],[Type gebouw]]=2,HLOOKUP(Mogelijkheden[[#This Row],[Rekenblad 1]],KwaliteitPortiek[#All],5,0),\nIF(Mogelijkheden[[#This Row],[Type gebouw]]=3,HLOOKUP(Mogelijkheden[[#This Row],[Rekenblad 1]],KwaliteitGalerij[#All],5,0),\"\"))),\"\")","v":""},{"$f":"IFERROR(IF(Mogelijkheden[[#This Row],[Type gebouw]]=1,HLOOKUP(Mogelijkheden[[#This Row],[Rekenblad 1]],KwaliteitEGW[#All],10,0),\nIF(Mogelijkheden[[#This Row],[Type gebouw]]=2,HLOOKUP(Mogelijkheden[[#This Row],[Rekenblad 1]],KwaliteitPortiek[#All],9,0),\nIF(Mogelijkheden[[#This Row],[Type gebouw]]=3,HLOOKUP(Mogelijkheden[[#This Row],[Rekenblad 1]],KwaliteitGalerij[#All],9,0),\"\"))),\"\")","v":""},{"$f":"IFERROR(IF(Mogelijkheden[[#This Row],[Type gebouw]]=1,HLOOKUP(Mogelijkheden[[#This Row],[Rekenblad 1]],KwaliteitEGW[#All],14,0),\nIF(Mogelijkheden[[#This Row],[Type gebouw]]=2,HLOOKUP(Mogelijkheden[[#This Row],[Rekenblad 1]],KwaliteitPortiek[#All],13,0),\nIF(Mogelijkheden[[#This Row],[Type gebouw]]=3,HLOOKUP(Mogelijkheden[[#This Row],[Rekenblad 1]],KwaliteitGalerij[#All],13,0),\"\"))),\"\")","v":""}]
[]
[]
[null,null,"Rekenblad 1","Type gebouw","Omschrijving","Kosten warmteleverancier","Kosten woningeigenaar","Kosten totaal","Praktisch haalbaarheid","Overlast uitvoering","Impact woning","Onderhoud"]
[null,null,"A1.1",1,"Iedere woning afzonderlijk rechtstreeks van buiten cq portiek cq voor de galerijen met afleverset in of nabij de entreehal in het bouwblok zelf",{"$f":"MROUND(\nIF(Rekenblad2[[#This Row],[Type gebouw]]=0,\"Voer type gebouw in\",\nIF(Rekenblad2[[#This Row],[Type gebouw]]=1,HLOOKUP(Rekenblad2[[#This Row],[Rekenblad 1]],StaatEGW[[#All],[A1.1]:[C1.2]],40,0),\nIF(Rekenblad2[[#This Row],[Type gebouw]]=2,HLOOKUP(Rekenblad2[[#This Row],[Rekenblad 1]],StaatPortiek[[#All],[A1]:[C1]],40,0),\nIF(Rekenblad2[[#This Row],[Type gebouw]]=3,HLOOKUP(Rekenblad2[[#This Row],[Rekenblad 1]],StaatGalerij[[#All],[A1]:[C1]],40,0),\n\"Onbekende fout\")))),\n500)","v":3000},{"$f":"MROUND(\nIF(Rekenblad2[[#This Row],[Type gebouw]]=0,\"Voer type gebouw in\",\nIF(Rekenblad2[[#This Row],[Type gebouw]]=1,HLOOKUP(Rekenblad2[[#This Row],[Rekenblad 1]],StaatEGW[[#All],[A1.1]:[C1.2]],41,0),\nIF(Rekenblad2[[#This Row],[Type gebouw]]=2,HLOOKUP(Rekenblad2[[#This Row],[Rekenblad 1]],StaatPortiek[[#All],[A1]:[C1]],41,0),\nIF(Rekenblad2[[#This Row],[Type gebouw]]=3,HLOOKUP(Rekenblad2[[#This Row],[Rekenblad 1]],StaatGalerij[[#All],[A1]:[C1]],41,0),\n\"Onbekende fout\")))),\n500)","v":4500},{"$f":"SUM(Rekenblad2[[#This Row],[Kosten warmteleverancier]:[Kosten woningeigenaar]])","v":7500},{"$f":"IF(Rekenblad2[[#This Row],[Type gebouw]]=1,HLOOKUP(Rekenblad2[[#This Row],[Rekenblad 1]],KwaliteitEGW[#All],2,0),\nIF(Rekenblad2[[#This Row],[Type gebouw]]=2,HLOOKUP(Rekenblad2[[#This Row],[Rekenblad 1]],KwaliteitPortiek[#All],2,0),\nIF(Rekenblad2[[#This Row],[Type gebouw]]=3,HLOOKUP(Rekenblad2[[#This Row],[Rekenblad 1]],KwaliteitGalerij[#All],2,0))))","v":5},{"$f":"IF(Rekenblad2[[#This Row],[Type gebouw]]=1,HLOOKUP(Rekenblad2[[#This Row],[Rekenblad 1]],KwaliteitEGW[#All],6,0),\nIF(Rekenblad2[[#This Row],[Type gebouw]]=2,HLOOKUP(Rekenblad2[[#This Row],[Rekenblad 1]],KwaliteitPortiek[#All],5,0),\nIF(Rekenblad2[[#This Row],[Type gebouw]]=3,HLOOKUP(Rekenblad2[[#This Row],[Rekenblad 1]],KwaliteitGalerij[#All],5,0))))","v":2},{"$f":"IF(Rekenblad2[[#This Row],[Type gebouw]]=1,HLOOKUP(Rekenblad2[[#This Row],[Rekenblad 1]],KwaliteitEGW[#All],10,0),\nIF(Rekenblad2[[#This Row],[Type gebouw]]=2,HLOOKUP(Rekenblad2[[#This Row],[Rekenblad 1]],KwaliteitPortiek[#All],9,0),\nIF(Rekenblad2[[#This Row],[Type gebouw]]=3,HLOOKUP(Rekenblad2[[#This Row],[Rekenblad 1]],KwaliteitGalerij[#All],9,0))))","v":4},{"$f":"IF(Rekenblad2[[#This Row],[Type gebouw]]=1,HLOOKUP(Rekenblad2[[#This Row],[Rekenblad 1]],KwaliteitEGW[#All],14,0),\nIF(Rekenblad2[[#This Row],[Type gebouw]]=2,HLOOKUP(Rekenblad2[[#This Row],[Rekenblad 1]],KwaliteitPortiek[#All],13,0),\nIF(Rekenblad2[[#This Row],[Type gebouw]]=3,HLOOKUP(Rekenblad2[[#This Row],[Rekenblad 1]],KwaliteitGalerij[#All],13,0))))","v":3}]
[null,null,"A1.2",1,"Iedere woning afzonderlijk rechtstreeks van buiten cq portiek cq voor de galerijen met afleverset in of nabij de entreehal in het bouwblok zelf",{"$f":"MROUND(\nIF(Rekenblad2[[#This Row],[Type gebouw]]=0,\"Voer type gebouw in\",\nIF(Rekenblad2[[#This Row],[Type gebouw]]=1,HLOOKUP(Rekenblad2[[#This Row],[Rekenblad 1]],StaatEGW[[#All],[A1.1]:[C1.2]],40,0),\nIF(Rekenblad2[[#This Row],[Type gebouw]]=2,HLOOKUP(Rekenblad2[[#This Row],[Rekenblad 1]],StaatPortiek[[#All],[A1]:[C1]],40,0),\nIF(Rekenblad2[[#This Row],[Type gebouw]]=3,HLOOKUP(Rekenblad2[[#This Row],[Rekenblad 1]],StaatGalerij[[#All],[A1]:[C1]],40,0),\n\"Onbekende fout\")))),\n500)","v":3000},{"$f":"MROUND(\nIF(Rekenblad2[[#This Row],[Type gebouw]]=0,\"Voer type gebouw in\",\nIF(Rekenblad2[[#This Row],[Type gebouw]]=1,HLOOKUP(Rekenblad2[[#This Row],[Rekenblad 1]],StaatEGW[[#All],[A1.1]:[C1.2]],41,0),\nIF(Rekenblad2[[#This Row],[Type gebouw]]=2,HLOOKUP(Rekenblad2[[#This Row],[Rekenblad 1]],StaatPortiek[[#All],[A1]:[C1]],41,0),\nIF(Rekenblad2[[#This Row],[Type gebouw]]=3,HLOOKUP(Rekenblad2[[#This Row],[Rekenblad 1]],StaatGalerij[[#All],[A1]:[C1]],41,0),\n\"Onbekende fout\")))),\n500)","v":5500},{"$f":"SUM(Rekenblad2[[#This Row],[Kosten warmteleverancier]:[Kosten woningeigenaar]])","v":8500},{"$f":"IF(Rekenblad2[[#This Row],[Type gebouw]]=1,HLOOKUP(Rekenblad2[[#This Row],[Rekenblad 1]],KwaliteitEGW[#All],2,0),\nIF(Rekenblad2[[#This Row],[Type gebouw]]=2,HLOOKUP(Rekenblad2[[#This Row],[Rekenblad 1]],KwaliteitPortiek[#All],2,0),\nIF(Rekenblad2[[#This Row],[Type gebouw]]=3,HLOOKUP(Rekenblad2[[#This Row],[Rekenblad 1]],KwaliteitGalerij[#All],2,0))))","v":4},{"$f":"IF(Rekenblad2[[#This Row],[Type gebouw]]=1,HLOOKUP(Rekenblad2[[#This Row],[Rekenblad 1]],KwaliteitEGW[#All],6,0),\nIF(Rekenblad2[[#This Row],[Type gebouw]]=2,HLOOKUP(Rekenblad2[[#This Row],[Rekenblad 1]],KwaliteitPortiek[#All],5,0),\nIF(Rekenblad2[[#This Row],[Type gebouw]]=3,HLOOKUP(Rekenblad2[[#This Row],[Rekenblad 1]],KwaliteitGalerij[#All],5,0))))","v":1},{"$f":"IF(Rekenblad2[[#This Row],[Type gebouw]]=1,HLOOKUP(Rekenblad2[[#This Row],[Rekenblad 1]],KwaliteitEGW[#All],10,0),\nIF(Rekenblad2[[#This Row],[Type gebouw]]=2,HLOOKUP(Rekenblad2[[#This Row],[Rekenblad 1]],KwaliteitPortiek[#All],9,0),\nIF(Rekenblad2[[#This Row],[Type gebouw]]=3,HLOOKUP(Rekenblad2[[#This Row],[Rekenblad 1]],KwaliteitGalerij[#All],9,0))))","v":2},{"$f":"IF(Rekenblad2[[#This Row],[Type gebouw]]=1,HLOOKUP(Rekenblad2[[#This Row],[Rekenblad 1]],KwaliteitEGW[#All],14,0),\nIF(Rekenblad2[[#This Row],[Type gebouw]]=2,HLOOKUP(Rekenblad2[[#This Row],[Rekenblad 1]],KwaliteitPortiek[#All],13,0),\nIF(Rekenblad2[[#This Row],[Type gebouw]]=3,HLOOKUP(Rekenblad2[[#This Row],[Rekenblad 1]],KwaliteitGalerij[#All],13,0))))","v":2}]
[null,null,"A2.1",1,"Per 2 woningen rechtstreeks van buiten cq portiek cq voor de galerijen met afleverset in of nabij de entreehal in het bouwblok zelf",{"$f":"MROUND(\nIF(Rekenblad2[[#This Row],[Type gebouw]]=0,\"Voer type gebouw in\",\nIF(Rekenblad2[[#This Row],[Type gebouw]]=1,HLOOKUP(Rekenblad2[[#This Row],[Rekenblad 1]],StaatEGW[[#All],[A1.1]:[C1.2]],40,0),\nIF(Rekenblad2[[#This Row],[Type gebouw]]=2,HLOOKUP(Rekenblad2[[#This Row],[Rekenblad 1]],StaatPortiek[[#All],[A1]:[C1]],40,0),\nIF(Rekenblad2[[#This Row],[Type gebouw]]=3,HLOOKUP(Rekenblad2[[#This Row],[Rekenblad 1]],StaatGalerij[[#All],[A1]:[C1]],40,0),\n\"Onbekende fout\")))),\n500)","v":1500},{"$f":"MROUND(\nIF(Rekenblad2[[#This Row],[Type gebouw]]=0,\"Voer type gebouw in\",\nIF(Rekenblad2[[#This Row],[Type gebouw]]=1,HLOOKUP(Rekenblad2[[#This Row],[Rekenblad 1]],StaatEGW[[#All],[A1.1]:[C1.2]],41,0),\nIF(Rekenblad2[[#This Row],[Type gebouw]]=2,HLOOKUP(Rekenblad2[[#This Row],[Rekenblad 1]],StaatPortiek[[#All],[A1]:[C1]],41,0),\nIF(Rekenblad2[[#This Row],[Type gebouw]]=3,HLOOKUP(Rekenblad2[[#This Row],[Rekenblad 1]],StaatGalerij[[#All],[A1]:[C1]],41,0),\n\"Onbekende fout\")))),\n500)","v":4500},{"$f":"SUM(Rekenblad2[[#This Row],[Kosten warmteleverancier]:[Kosten woningeigenaar]])","v":6000},{"$f":"IF(Rekenblad2[[#This Row],[Type gebouw]]=1,HLOOKUP(Rekenblad2[[#This Row],[Rekenblad 1]],KwaliteitEGW[#All],2,0),\nIF(Rekenblad2[[#This Row],[Type gebouw]]=2,HLOOKUP(Rekenblad2[[#This Row],[Rekenblad 1]],KwaliteitPortiek[#All],2,0),\nIF(Rekenblad2[[#This Row],[Type gebouw]]=3,HLOOKUP(Rekenblad2[[#This Row],[Rekenblad 1]],KwaliteitGalerij[#All],2,0))))","v":4},{"$f":"IF(Rekenblad2[[#This Row],[Type gebouw]]=1,HLOOKUP(Rekenblad2[[#This Row],[Rekenblad 1]],KwaliteitEGW[#All],6,0),\nIF(Rekenblad2[[#This Row],[Type gebouw]]=2,HLOOKUP(Rekenblad2[[#This Row],[Rekenblad 1]],KwaliteitPortiek[#All],5,0),\nIF(Rekenblad2[[#This Row],[Type gebouw]]=3,HLOOKUP(Rekenblad2[[#This Row],[Rekenblad 1]],KwaliteitGalerij[#All],5,0))))","v":3},{"$f":"IF(Rekenblad2[[#This Row],[Type gebouw]]=1,HLOOKUP(Rekenblad2[[#This Row],[Rekenblad 1]],KwaliteitEGW[#All],10,0),\nIF(Rekenblad2[[#This Row],[Type gebouw]]=2,HLOOKUP(Rekenblad2[[#This Row],[Rekenblad 1]],KwaliteitPortiek[#All],9,0),\nIF(Rekenblad2[[#This Row],[Type gebouw]]=3,HLOOKUP(Rekenblad2[[#This Row],[Rekenblad 1]],KwaliteitGalerij[#All],9,0))))","v":4},{"$f":"IF(Rekenblad2[[#This Row],[Type gebouw]]=1,HLOOKUP(Rekenblad2[[#This Row],[Rekenblad 1]],KwaliteitEGW[#All],14,0),\nIF(Rekenblad2[[#This Row],[Type gebouw]]=2,HLOOKUP(Rekenblad2[[#This Row],[Rekenblad 1]],KwaliteitPortiek[#All],13,0),\nIF(Rekenblad2[[#This Row],[Type gebouw]]=3,HLOOKUP(Rekenblad2[[#This Row],[Rekenblad 1]],KwaliteitGalerij[#All],13,0))))","v":3}]
[null,null,"A2.2",1,"Per 2 woningen rechtstreeks van buiten cq portiek cq voor de galerijen met afleverset in of nabij de entreehal in het bouwblok zelf",{"$f":"MROUND(\nIF(Rekenblad2[[#This Row],[Type gebouw]]=0,\"Voer type gebouw in\",\nIF(Rekenblad2[[#This Row],[Type gebouw]]=1,HLOOKUP(Rekenblad2[[#This Row],[Rekenblad 1]],StaatEGW[[#All],[A1.1]:[C1.2]],40,0),\nIF(Rekenblad2[[#This Row],[Type gebouw]]=2,HLOOKUP(Rekenblad2[[#This Row],[Rekenblad 1]],StaatPortiek[[#All],[A1]:[C1]],40,0),\nIF(Rekenblad2[[#This Row],[Type gebouw]]=3,HLOOKUP(Rekenblad2[[#This Row],[Rekenblad 1]],StaatGalerij[[#All],[A1]:[C1]],40,0),\n\"Onbekende fout\")))),\n500)","v":1500},{"$f":"MROUND(\nIF(Rekenblad2[[#This Row],[Type gebouw]]=0,\"Voer type gebouw in\",\nIF(Rekenblad2[[#This Row],[Type gebouw]]=1,HLOOKUP(Rekenblad2[[#This Row],[Rekenblad 1]],StaatEGW[[#All],[A1.1]:[C1.2]],41,0),\nIF(Rekenblad2[[#This Row],[Type gebouw]]=2,HLOOKUP(Rekenblad2[[#This Row],[Rekenblad 1]],StaatPortiek[[#All],[A1]:[C1]],41,0),\nIF(Rekenblad2[[#This Row],[Type gebouw]]=3,HLOOKUP(Rekenblad2[[#This Row],[Rekenblad 1]],StaatGalerij[[#All],[A1]:[C1]],41,0),\n\"Onbekende fout\")))),\n500)","v":5500},{"$f":"SUM(Rekenblad2[[#This Row],[Kosten warmteleverancier]:[Kosten woningeigenaar]])","v":7000},{"$f":"IF(Rekenblad2[[#This Row],[Type gebouw]]=1,HLOOKUP(Rekenblad2[[#This Row],[Rekenblad 1]],KwaliteitEGW[#All],2,0),\nIF(Rekenblad2[[#This Row],[Type gebouw]]=2,HLOOKUP(Rekenblad2[[#This Row],[Rekenblad 1]],KwaliteitPortiek[#All],2,0),\nIF(Rekenblad2[[#This Row],[Type gebouw]]=3,HLOOKUP(Rekenblad2[[#This Row],[Rekenblad 1]],KwaliteitGalerij[#All],2,0))))","v":4},{"$f":"IF(Rekenblad2[[#This Row],[Type gebouw]]=1,HLOOKUP(Rekenblad2[[#This Row],[Rekenblad 1]],KwaliteitEGW[#All],6,0),\nIF(Rekenblad2[[#This Row],[Type gebouw]]=2,HLOOKUP(Rekenblad2[[#This Row],[Rekenblad 1]],KwaliteitPortiek[#All],5,0),\nIF(Rekenblad2[[#This Row],[Type gebouw]]=3,HLOOKUP(Rekenblad2[[#This Row],[Rekenblad 1]],KwaliteitGalerij[#All],5,0))))","v":1},{"$f":"IF(Rekenblad2[[#This Row],[Type gebouw]]=1,HLOOKUP(Rekenblad2[[#This Row],[Rekenblad 1]],KwaliteitEGW[#All],10,0),\nIF(Rekenblad2[[#This Row],[Type gebouw]]=2,HLOOKUP(Rekenblad2[[#This Row],[Rekenblad 1]],KwaliteitPortiek[#All],9,0),\nIF(Rekenblad2[[#This Row],[Type gebouw]]=3,HLOOKUP(Rekenblad2[[#This Row],[Rekenblad 1]],KwaliteitGalerij[#All],9,0))))","v":2},{"$f":"IF(Rekenblad2[[#This Row],[Type gebouw]]=1,HLOOKUP(Rekenblad2[[#This Row],[Rekenblad 1]],KwaliteitEGW[#All],14,0),\nIF(Rekenblad2[[#This Row],[Type gebouw]]=2,HLOOKUP(Rekenblad2[[#This Row],[Rekenblad 1]],KwaliteitPortiek[#All],13,0),\nIF(Rekenblad2[[#This Row],[Type gebouw]]=3,HLOOKUP(Rekenblad2[[#This Row],[Rekenblad 1]],KwaliteitGalerij[#All],13,0))))","v":2}]
[null,null,"A3.1",1,"Per woning via verticale leidingen op voor- of achtergevel naar afleverset ",{"$f":"MROUND(\nIF(Rekenblad2[[#This Row],[Type gebouw]]=0,\"Voer type gebouw in\",\nIF(Rekenblad2[[#This Row],[Type gebouw]]=1,HLOOKUP(Rekenblad2[[#This Row],[Rekenblad 1]],StaatEGW[[#All],[A1.1]:[C1.2]],40,0),\nIF(Rekenblad2[[#This Row],[Type gebouw]]=2,HLOOKUP(Rekenblad2[[#This Row],[Rekenblad 1]],StaatPortiek[[#All],[A1]:[C1]],40,0),\nIF(Rekenblad2[[#This Row],[Type gebouw]]=3,HLOOKUP(Rekenblad2[[#This Row],[Rekenblad 1]],StaatGalerij[[#All],[A1]:[C1]],40,0),\n\"Onbekende fout\")))),\n500)","v":5500},{"$f":"MROUND(\nIF(Rekenblad2[[#This Row],[Type gebouw]]=0,\"Voer type gebouw in\",\nIF(Rekenblad2[[#This Row],[Type gebouw]]=1,HLOOKUP(Rekenblad2[[#This Row],[Rekenblad 1]],StaatEGW[[#All],[A1.1]:[C1.2]],41,0),\nIF(Rekenblad2[[#This Row],[Type gebouw]]=2,HLOOKUP(Rekenblad2[[#This Row],[Rekenblad 1]],StaatPortiek[[#All],[A1]:[C1]],41,0),\nIF(Rekenblad2[[#This Row],[Type gebouw]]=3,HLOOKUP(Rekenblad2[[#This Row],[Rekenblad 1]],StaatGalerij[[#All],[A1]:[C1]],41,0),\n\"Onbekende fout\")))),\n500)","v":5000},{"$f":"SUM(Rekenblad2[[#This Row],[Kosten warmteleverancier]:[Kosten woningeigenaar]])","v":10500},{"$f":"IF(Rekenblad2[[#This Row],[Type gebouw]]=1,HLOOKUP(Rekenblad2[[#This Row],[Rekenblad 1]],KwaliteitEGW[#All],2,0),\nIF(Rekenblad2[[#This Row],[Type gebouw]]=2,HLOOKUP(Rekenblad2[[#This Row],[Rekenblad 1]],KwaliteitPortiek[#All],2,0),\nIF(Rekenblad2[[#This Row],[Type gebouw]]=3,HLOOKUP(Rekenblad2[[#This Row],[Rekenblad 1]],KwaliteitGalerij[#All],2,0))))","v":2},{"$f":"IF(Rekenblad2[[#This Row],[Type gebouw]]=1,HLOOKUP(Rekenblad2[[#This Row],[Rekenblad 1]],KwaliteitEGW[#All],6,0),\nIF(Rekenblad2[[#This Row],[Type gebouw]]=2,HLOOKUP(Rekenblad2[[#This Row],[Rekenblad 1]],KwaliteitPortiek[#All],5,0),\nIF(Rekenblad2[[#This Row],[Type gebouw]]=3,HLOOKUP(Rekenblad2[[#This Row],[Rekenblad 1]],KwaliteitGalerij[#All],5,0))))","v":2},{"$f":"IF(Rekenblad2[[#This Row],[Type gebouw]]=1,HLOOKUP(Rekenblad2[[#This Row],[Rekenblad 1]],KwaliteitEGW[#All],10,0),\nIF(Rekenblad2[[#This Row],[Type gebouw]]=2,HLOOKUP(Rekenblad2[[#This Row],[Rekenblad 1]],KwaliteitPortiek[#All],9,0),\nIF(Rekenblad2[[#This Row],[Type gebouw]]=3,HLOOKUP(Rekenblad2[[#This Row],[Rekenblad 1]],KwaliteitGalerij[#All],9,0))))","v":2},{"$f":"IF(Rekenblad2[[#This Row],[Type gebouw]]=1,HLOOKUP(Rekenblad2[[#This Row],[Rekenblad 1]],KwaliteitEGW[#All],14,0),\nIF(Rekenblad2[[#This Row],[Type gebouw]]=2,HLOOKUP(Rekenblad2[[#This Row],[Rekenblad 1]],KwaliteitPortiek[#All],13,0),\nIF(Rekenblad2[[#This Row],[Type gebouw]]=3,HLOOKUP(Rekenblad2[[#This Row],[Rekenblad 1]],KwaliteitGalerij[#All],13,0))))","v":2}]
[null,null,"A3.2",1,"Per woning via verticale leidingen op voor- of achtergevel naar afleverset ",{"$f":"MROUND(\nIF(Rekenblad2[[#This Row],[Type gebouw]]=0,\"Voer type gebouw in\",\nIF(Rekenblad2[[#This Row],[Type gebouw]]=1,HLOOKUP(Rekenblad2[[#This Row],[Rekenblad 1]],StaatEGW[[#All],[A1.1]:[C1.2]],40,0),\nIF(Rekenblad2[[#This Row],[Type gebouw]]=2,HLOOKUP(Rekenblad2[[#This Row],[Rekenblad 1]],StaatPortiek[[#All],[A1]:[C1]],40,0),\nIF(Rekenblad2[[#This Row],[Type gebouw]]=3,HLOOKUP(Rekenblad2[[#This Row],[Rekenblad 1]],StaatGalerij[[#All],[A1]:[C1]],40,0),\n\"Onbekende fout\")))),\n500)","v":5500},{"$f":"MROUND(\nIF(Rekenblad2[[#This Row],[Type gebouw]]=0,\"Voer type gebouw in\",\nIF(Rekenblad2[[#This Row],[Type gebouw]]=1,HLOOKUP(Rekenblad2[[#This Row],[Rekenblad 1]],StaatEGW[[#All],[A1.1]:[C1.2]],41,0),\nIF(Rekenblad2[[#This Row],[Type gebouw]]=2,HLOOKUP(Rekenblad2[[#This Row],[Rekenblad 1]],StaatPortiek[[#All],[A1]:[C1]],41,0),\nIF(Rekenblad2[[#This Row],[Type gebouw]]=3,HLOOKUP(Rekenblad2[[#This Row],[Rekenblad 1]],StaatGalerij[[#All],[A1]:[C1]],41,0),\n\"Onbekende fout\")))),\n500)","v":4000},{"$f":"SUM(Rekenblad2[[#This Row],[Kosten warmteleverancier]:[Kosten woningeigenaar]])","v":9500},{"$f":"IF(Rekenblad2[[#This Row],[Type gebouw]]=1,HLOOKUP(Rekenblad2[[#This Row],[Rekenblad 1]],KwaliteitEGW[#All],2,0),\nIF(Rekenblad2[[#This Row],[Type gebouw]]=2,HLOOKUP(Rekenblad2[[#This Row],[Rekenblad 1]],KwaliteitPortiek[#All],2,0),\nIF(Rekenblad2[[#This Row],[Type gebouw]]=3,HLOOKUP(Rekenblad2[[#This Row],[Rekenblad 1]],KwaliteitGalerij[#All],2,0))))","v":1},{"$f":"IF(Rekenblad2[[#This Row],[Type gebouw]]=1,HLOOKUP(Rekenblad2[[#This Row],[Rekenblad 1]],KwaliteitEGW[#All],6,0),\nIF(Rekenblad2[[#This Row],[Type gebouw]]=2,HLOOKUP(Rekenblad2[[#This Row],[Rekenblad 1]],KwaliteitPortiek[#All],5,0),\nIF(Rekenblad2[[#This Row],[Type gebouw]]=3,HLOOKUP(Rekenblad2[[#This Row],[Rekenblad 1]],KwaliteitGalerij[#All],5,0))))","v":2},{"$f":"IF(Rekenblad2[[#This Row],[Type gebouw]]=1,HLOOKUP(Rekenblad2[[#This Row],[Rekenblad 1]],KwaliteitEGW[#All],10,0),\nIF(Rekenblad2[[#This Row],[Type gebouw]]=2,HLOOKUP(Rekenblad2[[#This Row],[Rekenblad 1]],KwaliteitPortiek[#All],9,0),\nIF(Rekenblad2[[#This Row],[Type gebouw]]=3,HLOOKUP(Rekenblad2[[#This Row],[Rekenblad 1]],KwaliteitGalerij[#All],9,0))))","v":3},{"$f":"IF(Rekenblad2[[#This Row],[Type gebouw]]=1,HLOOKUP(Rekenblad2[[#This Row],[Rekenblad 1]],KwaliteitEGW[#All],14,0),\nIF(Rekenblad2[[#This Row],[Type gebouw]]=2,HLOOKUP(Rekenblad2[[#This Row],[Rekenblad 1]],KwaliteitPortiek[#All],13,0),\nIF(Rekenblad2[[#This Row],[Type gebouw]]=3,HLOOKUP(Rekenblad2[[#This Row],[Rekenblad 1]],KwaliteitGalerij[#All],13,0))))","v":2}]
[null,null,"A4.1",1,"Per 2 woningen via verticale leidingen op voor- of achtergevel naar afleverset ",{"$f":"MROUND(\nIF(Rekenblad2[[#This Row],[Type gebouw]]=0,\"Voer type gebouw in\",\nIF(Rekenblad2[[#This Row],[Type gebouw]]=1,HLOOKUP(Rekenblad2[[#This Row],[Rekenblad 1]],StaatEGW[[#All],[A1.1]:[C1.2]],40,0),\nIF(Rekenblad2[[#This Row],[Type gebouw]]=2,HLOOKUP(Rekenblad2[[#This Row],[Rekenblad 1]],StaatPortiek[[#All],[A1]:[C1]],40,0),\nIF(Rekenblad2[[#This Row],[Type gebouw]]=3,HLOOKUP(Rekenblad2[[#This Row],[Rekenblad 1]],StaatGalerij[[#All],[A1]:[C1]],40,0),\n\"Onbekende fout\")))),\n500)","v":2500},{"$f":"MROUND(\nIF(Rekenblad2[[#This Row],[Type gebouw]]=0,\"Voer type gebouw in\",\nIF(Rekenblad2[[#This Row],[Type gebouw]]=1,HLOOKUP(Rekenblad2[[#This Row],[Rekenblad 1]],StaatEGW[[#All],[A1.1]:[C1.2]],41,0),\nIF(Rekenblad2[[#This Row],[Type gebouw]]=2,HLOOKUP(Rekenblad2[[#This Row],[Rekenblad 1]],StaatPortiek[[#All],[A1]:[C1]],41,0),\nIF(Rekenblad2[[#This Row],[Type gebouw]]=3,HLOOKUP(Rekenblad2[[#This Row],[Rekenblad 1]],StaatGalerij[[#All],[A1]:[C1]],41,0),\n\"Onbekende fout\")))),\n500)","v":5000},{"$f":"SUM(Rekenblad2[[#This Row],[Kosten warmteleverancier]:[Kosten woningeigenaar]])","v":7500},{"$f":"IF(Rekenblad2[[#This Row],[Type gebouw]]=1,HLOOKUP(Rekenblad2[[#This Row],[Rekenblad 1]],KwaliteitEGW[#All],2,0),\nIF(Rekenblad2[[#This Row],[Type gebouw]]=2,HLOOKUP(Rekenblad2[[#This Row],[Rekenblad 1]],KwaliteitPortiek[#All],2,0),\nIF(Rekenblad2[[#This Row],[Type gebouw]]=3,HLOOKUP(Rekenblad2[[#This Row],[Rekenblad 1]],KwaliteitGalerij[#All],2,0))))","v":2},{"$f":"IF(Rekenblad2[[#This Row],[Type gebouw]]=1,HLOOKUP(Rekenblad2[[#This Row],[Rekenblad 1]],KwaliteitEGW[#All],6,0),\nIF(Rekenblad2[[#This Row],[Type gebouw]]=2,HLOOKUP(Rekenblad2[[#This Row],[Rekenblad 1]],KwaliteitPortiek[#All],5,0),\nIF(Rekenblad2[[#This Row],[Type gebouw]]=3,HLOOKUP(Rekenblad2[[#This Row],[Rekenblad 1]],KwaliteitGalerij[#All],5,0))))","v":2},{"$f":"IF(Rekenblad2[[#This Row],[Type gebouw]]=1,HLOOKUP(Rekenblad2[[#This Row],[Rekenblad 1]],KwaliteitEGW[#All],10,0),\nIF(Rekenblad2[[#This Row],[Type gebouw]]=2,HLOOKUP(Rekenblad2[[#This Row],[Rekenblad 1]],KwaliteitPortiek[#All],9,0),\nIF(Rekenblad2[[#This Row],[Type gebouw]]=3,HLOOKUP(Rekenblad2[[#This Row],[Rekenblad 1]],KwaliteitGalerij[#All],9,0))))","v":2},{"$f":"IF(Rekenblad2[[#This Row],[Type gebouw]]=1,HLOOKUP(Rekenblad2[[#This Row],[Rekenblad 1]],KwaliteitEGW[#All],14,0),\nIF(Rekenblad2[[#This Row],[Type gebouw]]=2,HLOOKUP(Rekenblad2[[#This Row],[Rekenblad 1]],KwaliteitPortiek[#All],13,0),\nIF(Rekenblad2[[#This Row],[Type gebouw]]=3,HLOOKUP(Rekenblad2[[#This Row],[Rekenblad 1]],KwaliteitGalerij[#All],13,0))))","v":2}]
[null,null,"A4.2",1,"Per 2 woningen via verticale leidingen op voor- of achtergevel naar afleverset ",{"$f":"MROUND(\nIF(Rekenblad2[[#This Row],[Type gebouw]]=0,\"Voer type gebouw in\",\nIF(Rekenblad2[[#This Row],[Type gebouw]]=1,HLOOKUP(Rekenblad2[[#This Row],[Rekenblad 1]],StaatEGW[[#All],[A1.1]:[C1.2]],40,0),\nIF(Rekenblad2[[#This Row],[Type gebouw]]=2,HLOOKUP(Rekenblad2[[#This Row],[Rekenblad 1]],StaatPortiek[[#All],[A1]:[C1]],40,0),\nIF(Rekenblad2[[#This Row],[Type gebouw]]=3,HLOOKUP(Rekenblad2[[#This Row],[Rekenblad 1]],StaatGalerij[[#All],[A1]:[C1]],40,0),\n\"Onbekende fout\")))),\n500)","v":2500},{"$f":"MROUND(\nIF(Rekenblad2[[#This Row],[Type gebouw]]=0,\"Voer type gebouw in\",\nIF(Rekenblad2[[#This Row],[Type gebouw]]=1,HLOOKUP(Rekenblad2[[#This Row],[Rekenblad 1]],StaatEGW[[#All],[A1.1]:[C1.2]],41,0),\nIF(Rekenblad2[[#This Row],[Type gebouw]]=2,HLOOKUP(Rekenblad2[[#This Row],[Rekenblad 1]],StaatPortiek[[#All],[A1]:[C1]],41,0),\nIF(Rekenblad2[[#This Row],[Type gebouw]]=3,HLOOKUP(Rekenblad2[[#This Row],[Rekenblad 1]],StaatGalerij[[#All],[A1]:[C1]],41,0),\n\"Onbekende fout\")))),\n500)","v":4000},{"$f":"SUM(Rekenblad2[[#This Row],[Kosten warmteleverancier]:[Kosten woningeigenaar]])","v":6500},{"$f":"IF(Rekenblad2[[#This Row],[Type gebouw]]=1,HLOOKUP(Rekenblad2[[#This Row],[Rekenblad 1]],KwaliteitEGW[#All],2,0),\nIF(Rekenblad2[[#This Row],[Type gebouw]]=2,HLOOKUP(Rekenblad2[[#This Row],[Rekenblad 1]],KwaliteitPortiek[#All],2,0),\nIF(Rekenblad2[[#This Row],[Type gebouw]]=3,HLOOKUP(Rekenblad2[[#This Row],[Rekenblad 1]],KwaliteitGalerij[#All],2,0))))","v":2},{"$f":"IF(Rekenblad2[[#This Row],[Type gebouw]]=1,HLOOKUP(Rekenblad2[[#This Row],[Rekenblad 1]],KwaliteitEGW[#All],6,0),\nIF(Rekenblad2[[#This Row],[Type gebouw]]=2,HLOOKUP(Rekenblad2[[#This Row],[Rekenblad 1]],KwaliteitPortiek[#All],5,0),\nIF(Rekenblad2[[#This Row],[Type gebouw]]=3,HLOOKUP(Rekenblad2[[#This Row],[Rekenblad 1]],KwaliteitGalerij[#All],5,0))))","v":2},{"$f":"IF(Rekenblad2[[#This Row],[Type gebouw]]=1,HLOOKUP(Rekenblad2[[#This Row],[Rekenblad 1]],KwaliteitEGW[#All],10,0),\nIF(Rekenblad2[[#This Row],[Type gebouw]]=2,HLOOKUP(Rekenblad2[[#This Row],[Rekenblad 1]],KwaliteitPortiek[#All],9,0),\nIF(Rekenblad2[[#This Row],[Type gebouw]]=3,HLOOKUP(Rekenblad2[[#This Row],[Rekenblad 1]],KwaliteitGalerij[#All],9,0))))","v":4},{"$f":"IF(Rekenblad2[[#This Row],[Type gebouw]]=1,HLOOKUP(Rekenblad2[[#This Row],[Rekenblad 1]],KwaliteitEGW[#All],14,0),\nIF(Rekenblad2[[#This Row],[Type gebouw]]=2,HLOOKUP(Rekenblad2[[#This Row],[Rekenblad 1]],KwaliteitPortiek[#All],13,0),\nIF(Rekenblad2[[#This Row],[Type gebouw]]=3,HLOOKUP(Rekenblad2[[#This Row],[Rekenblad 1]],KwaliteitGalerij[#All],13,0))))","v":2}]
[null,null,"B1.1",1,"In de lengterichting van het volledige blok door de kapruimte",{"$f":"MROUND(\nIF(Rekenblad2[[#This Row],[Type gebouw]]=0,\"Voer type gebouw in\",\nIF(Rekenblad2[[#This Row],[Type gebouw]]=1,HLOOKUP(Rekenblad2[[#This Row],[Rekenblad 1]],StaatEGW[[#All],[A1.1]:[C1.2]],40,0),\nIF(Rekenblad2[[#This Row],[Type gebouw]]=2,HLOOKUP(Rekenblad2[[#This Row],[Rekenblad 1]],StaatPortiek[[#All],[A1]:[C1]],40,0),\nIF(Rekenblad2[[#This Row],[Type gebouw]]=3,HLOOKUP(Rekenblad2[[#This Row],[Rekenblad 1]],StaatGalerij[[#All],[A1]:[C1]],40,0),\n\"Onbekende fout\")))),\n500)","v":5000},{"$f":"MROUND(\nIF(Rekenblad2[[#This Row],[Type gebouw]]=0,\"Voer type gebouw in\",\nIF(Rekenblad2[[#This Row],[Type gebouw]]=1,HLOOKUP(Rekenblad2[[#This Row],[Rekenblad 1]],StaatEGW[[#All],[A1.1]:[C1.2]],41,0),\nIF(Rekenblad2[[#This Row],[Type gebouw]]=2,HLOOKUP(Rekenblad2[[#This Row],[Rekenblad 1]],StaatPortiek[[#All],[A1]:[C1]],41,0),\nIF(Rekenblad2[[#This Row],[Type gebouw]]=3,HLOOKUP(Rekenblad2[[#This Row],[Rekenblad 1]],StaatGalerij[[#All],[A1]:[C1]],41,0),\n\"Onbekende fout\")))),\n500)","v":5000},{"$f":"SUM(Rekenblad2[[#This Row],[Kosten warmteleverancier]:[Kosten woningeigenaar]])","v":10000},{"$f":"IF(Rekenblad2[[#This Row],[Type gebouw]]=1,HLOOKUP(Rekenblad2[[#This Row],[Rekenblad 1]],KwaliteitEGW[#All],2,0),\nIF(Rekenblad2[[#This Row],[Type gebouw]]=2,HLOOKUP(Rekenblad2[[#This Row],[Rekenblad 1]],KwaliteitPortiek[#All],2,0),\nIF(Rekenblad2[[#This Row],[Type gebouw]]=3,HLOOKUP(Rekenblad2[[#This Row],[Rekenblad 1]],KwaliteitGalerij[#All],2,0))))","v":2},{"$f":"IF(Rekenblad2[[#This Row],[Type gebouw]]=1,HLOOKUP(Rekenblad2[[#This Row],[Rekenblad 1]],KwaliteitEGW[#All],6,0),\nIF(Rekenblad2[[#This Row],[Type gebouw]]=2,HLOOKUP(Rekenblad2[[#This Row],[Rekenblad 1]],KwaliteitPortiek[#All],5,0),\nIF(Rekenblad2[[#This Row],[Type gebouw]]=3,HLOOKUP(Rekenblad2[[#This Row],[Rekenblad 1]],KwaliteitGalerij[#All],5,0))))","v":2},{"$f":"IF(Rekenblad2[[#This Row],[Type gebouw]]=1,HLOOKUP(Rekenblad2[[#This Row],[Rekenblad 1]],KwaliteitEGW[#All],10,0),\nIF(Rekenblad2[[#This Row],[Type gebouw]]=2,HLOOKUP(Rekenblad2[[#This Row],[Rekenblad 1]],KwaliteitPortiek[#All],9,0),\nIF(Rekenblad2[[#This Row],[Type gebouw]]=3,HLOOKUP(Rekenblad2[[#This Row],[Rekenblad 1]],KwaliteitGalerij[#All],9,0))))","v":1},{"$f":"IF(Rekenblad2[[#This Row],[Type gebouw]]=1,HLOOKUP(Rekenblad2[[#This Row],[Rekenblad 1]],KwaliteitEGW[#All],14,0),\nIF(Rekenblad2[[#This Row],[Type gebouw]]=2,HLOOKUP(Rekenblad2[[#This Row],[Rekenblad 1]],KwaliteitPortiek[#All],13,0),\nIF(Rekenblad2[[#This Row],[Type gebouw]]=3,HLOOKUP(Rekenblad2[[#This Row],[Rekenblad 1]],KwaliteitGalerij[#All],13,0))))","v":1}]
[null,null,"B1.2",1,"In de lengterichting van het volledige blok door de kapruimte",{"$f":"MROUND(\nIF(Rekenblad2[[#This Row],[Type gebouw]]=0,\"Voer type gebouw in\",\nIF(Rekenblad2[[#This Row],[Type gebouw]]=1,HLOOKUP(Rekenblad2[[#This Row],[Rekenblad 1]],StaatEGW[[#All],[A1.1]:[C1.2]],40,0),\nIF(Rekenblad2[[#This Row],[Type gebouw]]=2,HLOOKUP(Rekenblad2[[#This Row],[Rekenblad 1]],StaatPortiek[[#All],[A1]:[C1]],40,0),\nIF(Rekenblad2[[#This Row],[Type gebouw]]=3,HLOOKUP(Rekenblad2[[#This Row],[Rekenblad 1]],StaatGalerij[[#All],[A1]:[C1]],40,0),\n\"Onbekende fout\")))),\n500)","v":5000},{"$f":"MROUND(\nIF(Rekenblad2[[#This Row],[Type gebouw]]=0,\"Voer type gebouw in\",\nIF(Rekenblad2[[#This Row],[Type gebouw]]=1,HLOOKUP(Rekenblad2[[#This Row],[Rekenblad 1]],StaatEGW[[#All],[A1.1]:[C1.2]],41,0),\nIF(Rekenblad2[[#This Row],[Type gebouw]]=2,HLOOKUP(Rekenblad2[[#This Row],[Rekenblad 1]],StaatPortiek[[#All],[A1]:[C1]],41,0),\nIF(Rekenblad2[[#This Row],[Type gebouw]]=3,HLOOKUP(Rekenblad2[[#This Row],[Rekenblad 1]],StaatGalerij[[#All],[A1]:[C1]],41,0),\n\"Onbekende fout\")))),\n500)","v":4000},{"$f":"SUM(Rekenblad2[[#This Row],[Kosten warmteleverancier]:[Kosten woningeigenaar]])","v":9000},{"$f":"IF(Rekenblad2[[#This Row],[Type gebouw]]=1,HLOOKUP(Rekenblad2[[#This Row],[Rekenblad 1]],KwaliteitEGW[#All],2,0),\nIF(Rekenblad2[[#This Row],[Type gebouw]]=2,HLOOKUP(Rekenblad2[[#This Row],[Rekenblad 1]],KwaliteitPortiek[#All],2,0),\nIF(Rekenblad2[[#This Row],[Type gebouw]]=3,HLOOKUP(Rekenblad2[[#This Row],[Rekenblad 1]],KwaliteitGalerij[#All],2,0))))","v":2},{"$f":"IF(Rekenblad2[[#This Row],[Type gebouw]]=1,HLOOKUP(Rekenblad2[[#This Row],[Rekenblad 1]],KwaliteitEGW[#All],6,0),\nIF(Rekenblad2[[#This Row],[Type gebouw]]=2,HLOOKUP(Rekenblad2[[#This Row],[Rekenblad 1]],KwaliteitPortiek[#All],5,0),\nIF(Rekenblad2[[#This Row],[Type gebouw]]=3,HLOOKUP(Rekenblad2[[#This Row],[Rekenblad 1]],KwaliteitGalerij[#All],5,0))))","v":3},{"$f":"IF(Rekenblad2[[#This Row],[Type gebouw]]=1,HLOOKUP(Rekenblad2[[#This Row],[Rekenblad 1]],KwaliteitEGW[#All],10,0),\nIF(Rekenblad2[[#This Row],[Type gebouw]]=2,HLOOKUP(Rekenblad2[[#This Row],[Rekenblad 1]],KwaliteitPortiek[#All],9,0),\nIF(Rekenblad2[[#This Row],[Type gebouw]]=3,HLOOKUP(Rekenblad2[[#This Row],[Rekenblad 1]],KwaliteitGalerij[#All],9,0))))","v":3},{"$f":"IF(Rekenblad2[[#This Row],[Type gebouw]]=1,HLOOKUP(Rekenblad2[[#This Row],[Rekenblad 1]],KwaliteitEGW[#All],14,0),\nIF(Rekenblad2[[#This Row],[Type gebouw]]=2,HLOOKUP(Rekenblad2[[#This Row],[Rekenblad 1]],KwaliteitPortiek[#All],13,0),\nIF(Rekenblad2[[#This Row],[Type gebouw]]=3,HLOOKUP(Rekenblad2[[#This Row],[Rekenblad 1]],KwaliteitGalerij[#All],13,0))))","v":2}]
[null,null,"B2.1",1,"In de lengterichting van het volledige blok over de gevel ",{"$f":"MROUND(\nIF(Rekenblad2[[#This Row],[Type gebouw]]=0,\"Voer type gebouw in\",\nIF(Rekenblad2[[#This Row],[Type gebouw]]=1,HLOOKUP(Rekenblad2[[#This Row],[Rekenblad 1]],StaatEGW[[#All],[A1.1]:[C1.2]],40,0),\nIF(Rekenblad2[[#This Row],[Type gebouw]]=2,HLOOKUP(Rekenblad2[[#This Row],[Rekenblad 1]],StaatPortiek[[#All],[A1]:[C1]],40,0),\nIF(Rekenblad2[[#This Row],[Type gebouw]]=3,HLOOKUP(Rekenblad2[[#This Row],[Rekenblad 1]],StaatGalerij[[#All],[A1]:[C1]],40,0),\n\"Onbekende fout\")))),\n500)","v":7500},{"$f":"MROUND(\nIF(Rekenblad2[[#This Row],[Type gebouw]]=0,\"Voer type gebouw in\",\nIF(Rekenblad2[[#This Row],[Type gebouw]]=1,HLOOKUP(Rekenblad2[[#This Row],[Rekenblad 1]],StaatEGW[[#All],[A1.1]:[C1.2]],41,0),\nIF(Rekenblad2[[#This Row],[Type gebouw]]=2,HLOOKUP(Rekenblad2[[#This Row],[Rekenblad 1]],StaatPortiek[[#All],[A1]:[C1]],41,0),\nIF(Rekenblad2[[#This Row],[Type gebouw]]=3,HLOOKUP(Rekenblad2[[#This Row],[Rekenblad 1]],StaatGalerij[[#All],[A1]:[C1]],41,0),\n\"Onbekende fout\")))),\n500)","v":5000},{"$f":"SUM(Rekenblad2[[#This Row],[Kosten warmteleverancier]:[Kosten woningeigenaar]])","v":12500},{"$f":"IF(Rekenblad2[[#This Row],[Type gebouw]]=1,HLOOKUP(Rekenblad2[[#This Row],[Rekenblad 1]],KwaliteitEGW[#All],2,0),\nIF(Rekenblad2[[#This Row],[Type gebouw]]=2,HLOOKUP(Rekenblad2[[#This Row],[Rekenblad 1]],KwaliteitPortiek[#All],2,0),\nIF(Rekenblad2[[#This Row],[Type gebouw]]=3,HLOOKUP(Rekenblad2[[#This Row],[Rekenblad 1]],KwaliteitGalerij[#All],2,0))))","v":1},{"$f":"IF(Rekenblad2[[#This Row],[Type gebouw]]=1,HLOOKUP(Rekenblad2[[#This Row],[Rekenblad 1]],KwaliteitEGW[#All],6,0),\nIF(Rekenblad2[[#This Row],[Type gebouw]]=2,HLOOKUP(Rekenblad2[[#This Row],[Rekenblad 1]],KwaliteitPortiek[#All],5,0),\nIF(Rekenblad2[[#This Row],[Type gebouw]]=3,HLOOKUP(Rekenblad2[[#This Row],[Rekenblad 1]],KwaliteitGalerij[#All],5,0))))","v":3},{"$f":"IF(Rekenblad2[[#This Row],[Type gebouw]]=1,HLOOKUP(Rekenblad2[[#This Row],[Rekenblad 1]],KwaliteitEGW[#All],10,0),\nIF(Rekenblad2[[#This Row],[Type gebouw]]=2,HLOOKUP(Rekenblad2[[#This Row],[Rekenblad 1]],KwaliteitPortiek[#All],9,0),\nIF(Rekenblad2[[#This Row],[Type gebouw]]=3,HLOOKUP(Rekenblad2[[#This Row],[Rekenblad 1]],KwaliteitGalerij[#All],9,0))))","v":2},{"$f":"IF(Rekenblad2[[#This Row],[Type gebouw]]=1,HLOOKUP(Rekenblad2[[#This Row],[Rekenblad 1]],KwaliteitEGW[#All],14,0),\nIF(Rekenblad2[[#This Row],[Type gebouw]]=2,HLOOKUP(Rekenblad2[[#This Row],[Rekenblad 1]],KwaliteitPortiek[#All],13,0),\nIF(Rekenblad2[[#This Row],[Type gebouw]]=3,HLOOKUP(Rekenblad2[[#This Row],[Rekenblad 1]],KwaliteitGalerij[#All],13,0))))","v":2}]
[null,null,"B2.2",1,"In de lengterichting van het volledige blok over de gevel ",{"$f":"MROUND(\nIF(Rekenblad2[[#This Row],[Type gebouw]]=0,\"Voer type gebouw in\",\nIF(Rekenblad2[[#This Row],[Type gebouw]]=1,HLOOKUP(Rekenblad2[[#This Row],[Rekenblad 1]],StaatEGW[[#All],[A1.1]:[C1.2]],40,0),\nIF(Rekenblad2[[#This Row],[Type gebouw]]=2,HLOOKUP(Rekenblad2[[#This Row],[Rekenblad 1]],StaatPortiek[[#All],[A1]:[C1]],40,0),\nIF(Rekenblad2[[#This Row],[Type gebouw]]=3,HLOOKUP(Rekenblad2[[#This Row],[Rekenblad 1]],StaatGalerij[[#All],[A1]:[C1]],40,0),\n\"Onbekende fout\")))),\n500)","v":7500},{"$f":"MROUND(\nIF(Rekenblad2[[#This Row],[Type gebouw]]=0,\"Voer type gebouw in\",\nIF(Rekenblad2[[#This Row],[Type gebouw]]=1,HLOOKUP(Rekenblad2[[#This Row],[Rekenblad 1]],StaatEGW[[#All],[A1.1]:[C1.2]],41,0),\nIF(Rekenblad2[[#This Row],[Type gebouw]]=2,HLOOKUP(Rekenblad2[[#This Row],[Rekenblad 1]],StaatPortiek[[#All],[A1]:[C1]],41,0),\nIF(Rekenblad2[[#This Row],[Type gebouw]]=3,HLOOKUP(Rekenblad2[[#This Row],[Rekenblad 1]],StaatGalerij[[#All],[A1]:[C1]],41,0),\n\"Onbekende fout\")))),\n500)","v":4000},{"$f":"SUM(Rekenblad2[[#This Row],[Kosten warmteleverancier]:[Kosten woningeigenaar]])","v":11500},{"$f":"IF(Rekenblad2[[#This Row],[Type gebouw]]=1,HLOOKUP(Rekenblad2[[#This Row],[Rekenblad 1]],KwaliteitEGW[#All],2,0),\nIF(Rekenblad2[[#This Row],[Type gebouw]]=2,HLOOKUP(Rekenblad2[[#This Row],[Rekenblad 1]],KwaliteitPortiek[#All],2,0),\nIF(Rekenblad2[[#This Row],[Type gebouw]]=3,HLOOKUP(Rekenblad2[[#This Row],[Rekenblad 1]],KwaliteitGalerij[#All],2,0))))","v":1},{"$f":"IF(Rekenblad2[[#This Row],[Type gebouw]]=1,HLOOKUP(Rekenblad2[[#This Row],[Rekenblad 1]],KwaliteitEGW[#All],6,0),\nIF(Rekenblad2[[#This Row],[Type gebouw]]=2,HLOOKUP(Rekenblad2[[#This Row],[Rekenblad 1]],KwaliteitPortiek[#All],5,0),\nIF(Rekenblad2[[#This Row],[Type gebouw]]=3,HLOOKUP(Rekenblad2[[#This Row],[Rekenblad 1]],KwaliteitGalerij[#All],5,0))))","v":4},{"$f":"IF(Rekenblad2[[#This Row],[Type gebouw]]=1,HLOOKUP(Rekenblad2[[#This Row],[Rekenblad 1]],KwaliteitEGW[#All],10,0),\nIF(Rekenblad2[[#This Row],[Type gebouw]]=2,HLOOKUP(Rekenblad2[[#This Row],[Rekenblad 1]],KwaliteitPortiek[#All],9,0),\nIF(Rekenblad2[[#This Row],[Type gebouw]]=3,HLOOKUP(Rekenblad2[[#This Row],[Rekenblad 1]],KwaliteitGalerij[#All],9,0))))","v":4},{"$f":"IF(Rekenblad2[[#This Row],[Type gebouw]]=1,HLOOKUP(Rekenblad2[[#This Row],[Rekenblad 1]],KwaliteitEGW[#All],14,0),\nIF(Rekenblad2[[#This Row],[Type gebouw]]=2,HLOOKUP(Rekenblad2[[#This Row],[Rekenblad 1]],KwaliteitPortiek[#All],13,0),\nIF(Rekenblad2[[#This Row],[Type gebouw]]=3,HLOOKUP(Rekenblad2[[#This Row],[Rekenblad 1]],KwaliteitGalerij[#All],13,0))))","v":2}]
[null,null,"B3.1",1,"In de lengterichting van het volledige blok over het dak ",{"$f":"MROUND(\nIF(Rekenblad2[[#This Row],[Type gebouw]]=0,\"Voer type gebouw in\",\nIF(Rekenblad2[[#This Row],[Type gebouw]]=1,HLOOKUP(Rekenblad2[[#This Row],[Rekenblad 1]],StaatEGW[[#All],[A1.1]:[C1.2]],40,0),\nIF(Rekenblad2[[#This Row],[Type gebouw]]=2,HLOOKUP(Rekenblad2[[#This Row],[Rekenblad 1]],StaatPortiek[[#All],[A1]:[C1]],40,0),\nIF(Rekenblad2[[#This Row],[Type gebouw]]=3,HLOOKUP(Rekenblad2[[#This Row],[Rekenblad 1]],StaatGalerij[[#All],[A1]:[C1]],40,0),\n\"Onbekende fout\")))),\n500)","v":4000},{"$f":"MROUND(\nIF(Rekenblad2[[#This Row],[Type gebouw]]=0,\"Voer type gebouw in\",\nIF(Rekenblad2[[#This Row],[Type gebouw]]=1,HLOOKUP(Rekenblad2[[#This Row],[Rekenblad 1]],StaatEGW[[#All],[A1.1]:[C1.2]],41,0),\nIF(Rekenblad2[[#This Row],[Type gebouw]]=2,HLOOKUP(Rekenblad2[[#This Row],[Rekenblad 1]],StaatPortiek[[#All],[A1]:[C1]],41,0),\nIF(Rekenblad2[[#This Row],[Type gebouw]]=3,HLOOKUP(Rekenblad2[[#This Row],[Rekenblad 1]],StaatGalerij[[#All],[A1]:[C1]],41,0),\n\"Onbekende fout\")))),\n500)","v":5000},{"$f":"SUM(Rekenblad2[[#This Row],[Kosten warmteleverancier]:[Kosten woningeigenaar]])","v":9000},{"$f":"IF(Rekenblad2[[#This Row],[Type gebouw]]=1,HLOOKUP(Rekenblad2[[#This Row],[Rekenblad 1]],KwaliteitEGW[#All],2,0),\nIF(Rekenblad2[[#This Row],[Type gebouw]]=2,HLOOKUP(Rekenblad2[[#This Row],[Rekenblad 1]],KwaliteitPortiek[#All],2,0),\nIF(Rekenblad2[[#This Row],[Type gebouw]]=3,HLOOKUP(Rekenblad2[[#This Row],[Rekenblad 1]],KwaliteitGalerij[#All],2,0))))","v":1},{"$f":"IF(Rekenblad2[[#This Row],[Type gebouw]]=1,HLOOKUP(Rekenblad2[[#This Row],[Rekenblad 1]],KwaliteitEGW[#All],6,0),\nIF(Rekenblad2[[#This Row],[Type gebouw]]=2,HLOOKUP(Rekenblad2[[#This Row],[Rekenblad 1]],KwaliteitPortiek[#All],5,0),\nIF(Rekenblad2[[#This Row],[Type gebouw]]=3,HLOOKUP(Rekenblad2[[#This Row],[Rekenblad 1]],KwaliteitGalerij[#All],5,0))))","v":2},{"$f":"IF(Rekenblad2[[#This Row],[Type gebouw]]=1,HLOOKUP(Rekenblad2[[#This Row],[Rekenblad 1]],KwaliteitEGW[#All],10,0),\nIF(Rekenblad2[[#This Row],[Type gebouw]]=2,HLOOKUP(Rekenblad2[[#This Row],[Rekenblad 1]],KwaliteitPortiek[#All],9,0),\nIF(Rekenblad2[[#This Row],[Type gebouw]]=3,HLOOKUP(Rekenblad2[[#This Row],[Rekenblad 1]],KwaliteitGalerij[#All],9,0))))","v":2},{"$f":"IF(Rekenblad2[[#This Row],[Type gebouw]]=1,HLOOKUP(Rekenblad2[[#This Row],[Rekenblad 1]],KwaliteitEGW[#All],14,0),\nIF(Rekenblad2[[#This Row],[Type gebouw]]=2,HLOOKUP(Rekenblad2[[#This Row],[Rekenblad 1]],KwaliteitPortiek[#All],13,0),\nIF(Rekenblad2[[#This Row],[Type gebouw]]=3,HLOOKUP(Rekenblad2[[#This Row],[Rekenblad 1]],KwaliteitGalerij[#All],13,0))))","v":3}]
[null,null,"B3.2",1,"In de lengterichting van het volledige blok over het dak ",{"$f":"MROUND(\nIF(Rekenblad2[[#This Row],[Type gebouw]]=0,\"Voer type gebouw in\",\nIF(Rekenblad2[[#This Row],[Type gebouw]]=1,HLOOKUP(Rekenblad2[[#This Row],[Rekenblad 1]],StaatEGW[[#All],[A1.1]:[C1.2]],40,0),\nIF(Rekenblad2[[#This Row],[Type gebouw]]=2,HLOOKUP(Rekenblad2[[#This Row],[Rekenblad 1]],StaatPortiek[[#All],[A1]:[C1]],40,0),\nIF(Rekenblad2[[#This Row],[Type gebouw]]=3,HLOOKUP(Rekenblad2[[#This Row],[Rekenblad 1]],StaatGalerij[[#All],[A1]:[C1]],40,0),\n\"Onbekende fout\")))),\n500)","v":4000},{"$f":"MROUND(\nIF(Rekenblad2[[#This Row],[Type gebouw]]=0,\"Voer type gebouw in\",\nIF(Rekenblad2[[#This Row],[Type gebouw]]=1,HLOOKUP(Rekenblad2[[#This Row],[Rekenblad 1]],StaatEGW[[#All],[A1.1]:[C1.2]],41,0),\nIF(Rekenblad2[[#This Row],[Type gebouw]]=2,HLOOKUP(Rekenblad2[[#This Row],[Rekenblad 1]],StaatPortiek[[#All],[A1]:[C1]],41,0),\nIF(Rekenblad2[[#This Row],[Type gebouw]]=3,HLOOKUP(Rekenblad2[[#This Row],[Rekenblad 1]],StaatGalerij[[#All],[A1]:[C1]],41,0),\n\"Onbekende fout\")))),\n500)","v":4000},{"$f":"SUM(Rekenblad2[[#This Row],[Kosten warmteleverancier]:[Kosten woningeigenaar]])","v":8000},{"$f":"IF(Rekenblad2[[#This Row],[Type gebouw]]=1,HLOOKUP(Rekenblad2[[#This Row],[Rekenblad 1]],KwaliteitEGW[#All],2,0),\nIF(Rekenblad2[[#This Row],[Type gebouw]]=2,HLOOKUP(Rekenblad2[[#This Row],[Rekenblad 1]],KwaliteitPortiek[#All],2,0),\nIF(Rekenblad2[[#This Row],[Type gebouw]]=3,HLOOKUP(Rekenblad2[[#This Row],[Rekenblad 1]],KwaliteitGalerij[#All],2,0))))","v":1},{"$f":"IF(Rekenblad2[[#This Row],[Type gebouw]]=1,HLOOKUP(Rekenblad2[[#This Row],[Rekenblad 1]],KwaliteitEGW[#All],6,0),\nIF(Rekenblad2[[#This Row],[Type gebouw]]=2,HLOOKUP(Rekenblad2[[#This Row],[Rekenblad 1]],KwaliteitPortiek[#All],5,0),\nIF(Rekenblad2[[#This Row],[Type gebouw]]=3,HLOOKUP(Rekenblad2[[#This Row],[Rekenblad 1]],KwaliteitGalerij[#All],5,0))))","v":4},{"$f":"IF(Rekenblad2[[#This Row],[Type gebouw]]=1,HLOOKUP(Rekenblad2[[#This Row],[Rekenblad 1]],KwaliteitEGW[#All],10,0),\nIF(Rekenblad2[[#This Row],[Type gebouw]]=2,HLOOKUP(Rekenblad2[[#This Row],[Rekenblad 1]],KwaliteitPortiek[#All],9,0),\nIF(Rekenblad2[[#This Row],[Type gebouw]]=3,HLOOKUP(Rekenblad2[[#This Row],[Rekenblad 1]],KwaliteitGalerij[#All],9,0))))","v":4},{"$f":"IF(Rekenblad2[[#This Row],[Type gebouw]]=1,HLOOKUP(Rekenblad2[[#This Row],[Rekenblad 1]],KwaliteitEGW[#All],14,0),\nIF(Rekenblad2[[#This Row],[Type gebouw]]=2,HLOOKUP(Rekenblad2[[#This Row],[Rekenblad 1]],KwaliteitPortiek[#All],13,0),\nIF(Rekenblad2[[#This Row],[Type gebouw]]=3,HLOOKUP(Rekenblad2[[#This Row],[Rekenblad 1]],KwaliteitGalerij[#All],13,0))))","v":3}]
[null,null,"B4.1",1,"In de lengterichting van het volledige blok onder de onderste woonlaag door",{"$f":"MROUND(\nIF(Rekenblad2[[#This Row],[Type gebouw]]=0,\"Voer type gebouw in\",\nIF(Rekenblad2[[#This Row],[Type gebouw]]=1,HLOOKUP(Rekenblad2[[#This Row],[Rekenblad 1]],StaatEGW[[#All],[A1.1]:[C1.2]],40,0),\nIF(Rekenblad2[[#This Row],[Type gebouw]]=2,HLOOKUP(Rekenblad2[[#This Row],[Rekenblad 1]],StaatPortiek[[#All],[A1]:[C1]],40,0),\nIF(Rekenblad2[[#This Row],[Type gebouw]]=3,HLOOKUP(Rekenblad2[[#This Row],[Rekenblad 1]],StaatGalerij[[#All],[A1]:[C1]],40,0),\n\"Onbekende fout\")))),\n500)","v":7000},{"$f":"MROUND(\nIF(Rekenblad2[[#This Row],[Type gebouw]]=0,\"Voer type gebouw in\",\nIF(Rekenblad2[[#This Row],[Type gebouw]]=1,HLOOKUP(Rekenblad2[[#This Row],[Rekenblad 1]],StaatEGW[[#All],[A1.1]:[C1.2]],41,0),\nIF(Rekenblad2[[#This Row],[Type gebouw]]=2,HLOOKUP(Rekenblad2[[#This Row],[Rekenblad 1]],StaatPortiek[[#All],[A1]:[C1]],41,0),\nIF(Rekenblad2[[#This Row],[Type gebouw]]=3,HLOOKUP(Rekenblad2[[#This Row],[Rekenblad 1]],StaatGalerij[[#All],[A1]:[C1]],41,0),\n\"Onbekende fout\")))),\n500)","v":4500},{"$f":"SUM(Rekenblad2[[#This Row],[Kosten warmteleverancier]:[Kosten woningeigenaar]])","v":11500},{"$f":"IF(Rekenblad2[[#This Row],[Type gebouw]]=1,HLOOKUP(Rekenblad2[[#This Row],[Rekenblad 1]],KwaliteitEGW[#All],2,0),\nIF(Rekenblad2[[#This Row],[Type gebouw]]=2,HLOOKUP(Rekenblad2[[#This Row],[Rekenblad 1]],KwaliteitPortiek[#All],2,0),\nIF(Rekenblad2[[#This Row],[Type gebouw]]=3,HLOOKUP(Rekenblad2[[#This Row],[Rekenblad 1]],KwaliteitGalerij[#All],2,0))))","v":4},{"$f":"IF(Rekenblad2[[#This Row],[Type gebouw]]=1,HLOOKUP(Rekenblad2[[#This Row],[Rekenblad 1]],KwaliteitEGW[#All],6,0),\nIF(Rekenblad2[[#This Row],[Type gebouw]]=2,HLOOKUP(Rekenblad2[[#This Row],[Rekenblad 1]],KwaliteitPortiek[#All],5,0),\nIF(Rekenblad2[[#This Row],[Type gebouw]]=3,HLOOKUP(Rekenblad2[[#This Row],[Rekenblad 1]],KwaliteitGalerij[#All],5,0))))","v":2},{"$f":"IF(Rekenblad2[[#This Row],[Type gebouw]]=1,HLOOKUP(Rekenblad2[[#This Row],[Rekenblad 1]],KwaliteitEGW[#All],10,0),\nIF(Rekenblad2[[#This Row],[Type gebouw]]=2,HLOOKUP(Rekenblad2[[#This Row],[Rekenblad 1]],KwaliteitPortiek[#All],9,0),\nIF(Rekenblad2[[#This Row],[Type gebouw]]=3,HLOOKUP(Rekenblad2[[#This Row],[Rekenblad 1]],KwaliteitGalerij[#All],9,0))))","v":5},{"$f":"IF(Rekenblad2[[#This Row],[Type gebouw]]=1,HLOOKUP(Rekenblad2[[#This Row],[Rekenblad 1]],KwaliteitEGW[#All],14,0),\nIF(Rekenblad2[[#This Row],[Type gebouw]]=2,HLOOKUP(Rekenblad2[[#This Row],[Rekenblad 1]],KwaliteitPortiek[#All],13,0),\nIF(Rekenblad2[[#This Row],[Type gebouw]]=3,HLOOKUP(Rekenblad2[[#This Row],[Rekenblad 1]],KwaliteitGalerij[#All],13,0))))","v":2}]
[null,null,"B4.2",1,"In de lengterichting van het volledige blok onder de onderste woonlaag door",{"$f":"MROUND(\nIF(Rekenblad2[[#This Row],[Type gebouw]]=0,\"Voer type gebouw in\",\nIF(Rekenblad2[[#This Row],[Type gebouw]]=1,HLOOKUP(Rekenblad2[[#This Row],[Rekenblad 1]],StaatEGW[[#All],[A1.1]:[C1.2]],40,0),\nIF(Rekenblad2[[#This Row],[Type gebouw]]=2,HLOOKUP(Rekenblad2[[#This Row],[Rekenblad 1]],StaatPortiek[[#All],[A1]:[C1]],40,0),\nIF(Rekenblad2[[#This Row],[Type gebouw]]=3,HLOOKUP(Rekenblad2[[#This Row],[Rekenblad 1]],StaatGalerij[[#All],[A1]:[C1]],40,0),\n\"Onbekende fout\")))),\n500)","v":7000},{"$f":"MROUND(\nIF(Rekenblad2[[#This Row],[Type gebouw]]=0,\"Voer type gebouw in\",\nIF(Rekenblad2[[#This Row],[Type gebouw]]=1,HLOOKUP(Rekenblad2[[#This Row],[Rekenblad 1]],StaatEGW[[#All],[A1.1]:[C1.2]],41,0),\nIF(Rekenblad2[[#This Row],[Type gebouw]]=2,HLOOKUP(Rekenblad2[[#This Row],[Rekenblad 1]],StaatPortiek[[#All],[A1]:[C1]],41,0),\nIF(Rekenblad2[[#This Row],[Type gebouw]]=3,HLOOKUP(Rekenblad2[[#This Row],[Rekenblad 1]],StaatGalerij[[#All],[A1]:[C1]],41,0),\n\"Onbekende fout\")))),\n500)","v":5500},{"$f":"SUM(Rekenblad2[[#This Row],[Kosten warmteleverancier]:[Kosten woningeigenaar]])","v":12500},{"$f":"IF(Rekenblad2[[#This Row],[Type gebouw]]=1,HLOOKUP(Rekenblad2[[#This Row],[Rekenblad 1]],KwaliteitEGW[#All],2,0),\nIF(Rekenblad2[[#This Row],[Type gebouw]]=2,HLOOKUP(Rekenblad2[[#This Row],[Rekenblad 1]],KwaliteitPortiek[#All],2,0),\nIF(Rekenblad2[[#This Row],[Type gebouw]]=3,HLOOKUP(Rekenblad2[[#This Row],[Rekenblad 1]],KwaliteitGalerij[#All],2,0))))","v":4},{"$f":"IF(Rekenblad2[[#This Row],[Type gebouw]]=1,HLOOKUP(Rekenblad2[[#This Row],[Rekenblad 1]],KwaliteitEGW[#All],6,0),\nIF(Rekenblad2[[#This Row],[Type gebouw]]=2,HLOOKUP(Rekenblad2[[#This Row],[Rekenblad 1]],KwaliteitPortiek[#All],5,0),\nIF(Rekenblad2[[#This Row],[Type gebouw]]=3,HLOOKUP(Rekenblad2[[#This Row],[Rekenblad 1]],KwaliteitGalerij[#All],5,0))))","v":2},{"$f":"IF(Rekenblad2[[#This Row],[Type gebouw]]=1,HLOOKUP(Rekenblad2[[#This Row],[Rekenblad 1]],KwaliteitEGW[#All],10,0),\nIF(Rekenblad2[[#This Row],[Type gebouw]]=2,HLOOKUP(Rekenblad2[[#This Row],[Rekenblad 1]],KwaliteitPortiek[#All],9,0),\nIF(Rekenblad2[[#This Row],[Type gebouw]]=3,HLOOKUP(Rekenblad2[[#This Row],[Rekenblad 1]],KwaliteitGalerij[#All],9,0))))","v":2},{"$f":"IF(Rekenblad2[[#This Row],[Type gebouw]]=1,HLOOKUP(Rekenblad2[[#This Row],[Rekenblad 1]],KwaliteitEGW[#All],14,0),\nIF(Rekenblad2[[#This Row],[Type gebouw]]=2,HLOOKUP(Rekenblad2[[#This Row],[Rekenblad 1]],KwaliteitPortiek[#All],13,0),\nIF(Rekenblad2[[#This Row],[Type gebouw]]=3,HLOOKUP(Rekenblad2[[#This Row],[Rekenblad 1]],KwaliteitGalerij[#All],13,0))))","v":2}]
[null,null,"C1.1",1,"De individuele afleverset buiten de woning",{"$f":"MROUND(\nIF(Rekenblad2[[#This Row],[Type gebouw]]=0,\"Voer type gebouw in\",\nIF(Rekenblad2[[#This Row],[Type gebouw]]=1,HLOOKUP(Rekenblad2[[#This Row],[Rekenblad 1]],StaatEGW[[#All],[A1.1]:[C1.2]],40,0),\nIF(Rekenblad2[[#This Row],[Type gebouw]]=2,HLOOKUP(Rekenblad2[[#This Row],[Rekenblad 1]],StaatPortiek[[#All],[A1]:[C1]],40,0),\nIF(Rekenblad2[[#This Row],[Type gebouw]]=3,HLOOKUP(Rekenblad2[[#This Row],[Rekenblad 1]],StaatGalerij[[#All],[A1]:[C1]],40,0),\n\"Onbekende fout\")))),\n500)","v":3500},{"$f":"MROUND(\nIF(Rekenblad2[[#This Row],[Type gebouw]]=0,\"Voer type gebouw in\",\nIF(Rekenblad2[[#This Row],[Type gebouw]]=1,HLOOKUP(Rekenblad2[[#This Row],[Rekenblad 1]],StaatEGW[[#All],[A1.1]:[C1.2]],41,0),\nIF(Rekenblad2[[#This Row],[Type gebouw]]=2,HLOOKUP(Rekenblad2[[#This Row],[Rekenblad 1]],StaatPortiek[[#All],[A1]:[C1]],41,0),\nIF(Rekenblad2[[#This Row],[Type gebouw]]=3,HLOOKUP(Rekenblad2[[#This Row],[Rekenblad 1]],StaatGalerij[[#All],[A1]:[C1]],41,0),\n\"Onbekende fout\")))),\n500)","v":4500},{"$f":"SUM(Rekenblad2[[#This Row],[Kosten warmteleverancier]:[Kosten woningeigenaar]])","v":8000},{"$f":"IF(Rekenblad2[[#This Row],[Type gebouw]]=1,HLOOKUP(Rekenblad2[[#This Row],[Rekenblad 1]],KwaliteitEGW[#All],2,0),\nIF(Rekenblad2[[#This Row],[Type gebouw]]=2,HLOOKUP(Rekenblad2[[#This Row],[Rekenblad 1]],KwaliteitPortiek[#All],2,0),\nIF(Rekenblad2[[#This Row],[Type gebouw]]=3,HLOOKUP(Rekenblad2[[#This Row],[Rekenblad 1]],KwaliteitGalerij[#All],2,0))))","v":4},{"$f":"IF(Rekenblad2[[#This Row],[Type gebouw]]=1,HLOOKUP(Rekenblad2[[#This Row],[Rekenblad 1]],KwaliteitEGW[#All],6,0),\nIF(Rekenblad2[[#This Row],[Type gebouw]]=2,HLOOKUP(Rekenblad2[[#This Row],[Rekenblad 1]],KwaliteitPortiek[#All],5,0),\nIF(Rekenblad2[[#This Row],[Type gebouw]]=3,HLOOKUP(Rekenblad2[[#This Row],[Rekenblad 1]],KwaliteitGalerij[#All],5,0))))","v":2},{"$f":"IF(Rekenblad2[[#This Row],[Type gebouw]]=1,HLOOKUP(Rekenblad2[[#This Row],[Rekenblad 1]],KwaliteitEGW[#All],10,0),\nIF(Rekenblad2[[#This Row],[Type gebouw]]=2,HLOOKUP(Rekenblad2[[#This Row],[Rekenblad 1]],KwaliteitPortiek[#All],9,0),\nIF(Rekenblad2[[#This Row],[Type gebouw]]=3,HLOOKUP(Rekenblad2[[#This Row],[Rekenblad 1]],KwaliteitGalerij[#All],9,0))))","v":5},{"$f":"IF(Rekenblad2[[#This Row],[Type gebouw]]=1,HLOOKUP(Rekenblad2[[#This Row],[Rekenblad 1]],KwaliteitEGW[#All],14,0),\nIF(Rekenblad2[[#This Row],[Type gebouw]]=2,HLOOKUP(Rekenblad2[[#This Row],[Rekenblad 1]],KwaliteitPortiek[#All],13,0),\nIF(Rekenblad2[[#This Row],[Type gebouw]]=3,HLOOKUP(Rekenblad2[[#This Row],[Rekenblad 1]],KwaliteitGalerij[#All],13,0))))","v":3}]
[null,null,"C1.2",1,"De individuele afleverset buiten de woning",{"$f":"MROUND(\nIF(Rekenblad2[[#This Row],[Type gebouw]]=0,\"Voer type gebouw in\",\nIF(Rekenblad2[[#This Row],[Type gebouw]]=1,HLOOKUP(Rekenblad2[[#This Row],[Rekenblad 1]],StaatEGW[[#All],[A1.1]:[C1.2]],40,0),\nIF(Rekenblad2[[#This Row],[Type gebouw]]=2,HLOOKUP(Rekenblad2[[#This Row],[Rekenblad 1]],StaatPortiek[[#All],[A1]:[C1]],40,0),\nIF(Rekenblad2[[#This Row],[Type gebouw]]=3,HLOOKUP(Rekenblad2[[#This Row],[Rekenblad 1]],StaatGalerij[[#All],[A1]:[C1]],40,0),\n\"Onbekende fout\")))),\n500)","v":3500},{"$f":"MROUND(\nIF(Rekenblad2[[#This Row],[Type gebouw]]=0,\"Voer type gebouw in\",\nIF(Rekenblad2[[#This Row],[Type gebouw]]=1,HLOOKUP(Rekenblad2[[#This Row],[Rekenblad 1]],StaatEGW[[#All],[A1.1]:[C1.2]],41,0),\nIF(Rekenblad2[[#This Row],[Type gebouw]]=2,HLOOKUP(Rekenblad2[[#This Row],[Rekenblad 1]],StaatPortiek[[#All],[A1]:[C1]],41,0),\nIF(Rekenblad2[[#This Row],[Type gebouw]]=3,HLOOKUP(Rekenblad2[[#This Row],[Rekenblad 1]],StaatGalerij[[#All],[A1]:[C1]],41,0),\n\"Onbekende fout\")))),\n500)","v":5500},{"$f":"SUM(Rekenblad2[[#This Row],[Kosten warmteleverancier]:[Kosten woningeigenaar]])","v":9000},{"$f":"IF(Rekenblad2[[#This Row],[Type gebouw]]=1,HLOOKUP(Rekenblad2[[#This Row],[Rekenblad 1]],KwaliteitEGW[#All],2,0),\nIF(Rekenblad2[[#This Row],[Type gebouw]]=2,HLOOKUP(Rekenblad2[[#This Row],[Rekenblad 1]],KwaliteitPortiek[#All],2,0),\nIF(Rekenblad2[[#This Row],[Type gebouw]]=3,HLOOKUP(Rekenblad2[[#This Row],[Rekenblad 1]],KwaliteitGalerij[#All],2,0))))","v":4},{"$f":"IF(Rekenblad2[[#This Row],[Type gebouw]]=1,HLOOKUP(Rekenblad2[[#This Row],[Rekenblad 1]],KwaliteitEGW[#All],6,0),\nIF(Rekenblad2[[#This Row],[Type gebouw]]=2,HLOOKUP(Rekenblad2[[#This Row],[Rekenblad 1]],KwaliteitPortiek[#All],5,0),\nIF(Rekenblad2[[#This Row],[Type gebouw]]=3,HLOOKUP(Rekenblad2[[#This Row],[Rekenblad 1]],KwaliteitGalerij[#All],5,0))))","v":1},{"$f":"IF(Rekenblad2[[#This Row],[Type gebouw]]=1,HLOOKUP(Rekenblad2[[#This Row],[Rekenblad 1]],KwaliteitEGW[#All],10,0),\nIF(Rekenblad2[[#This Row],[Type gebouw]]=2,HLOOKUP(Rekenblad2[[#This Row],[Rekenblad 1]],KwaliteitPortiek[#All],9,0),\nIF(Rekenblad2[[#This Row],[Type gebouw]]=3,HLOOKUP(Rekenblad2[[#This Row],[Rekenblad 1]],KwaliteitGalerij[#All],9,0))))","v":2},{"$f":"IF(Rekenblad2[[#This Row],[Type gebouw]]=1,HLOOKUP(Rekenblad2[[#This Row],[Rekenblad 1]],KwaliteitEGW[#All],14,0),\nIF(Rekenblad2[[#This Row],[Type gebouw]]=2,HLOOKUP(Rekenblad2[[#This Row],[Rekenblad 1]],KwaliteitPortiek[#All],13,0),\nIF(Rekenblad2[[#This Row],[Type gebouw]]=3,HLOOKUP(Rekenblad2[[#This Row],[Rekenblad 1]],KwaliteitGalerij[#All],13,0))))","v":3}]
[null,null,"A1",2,"Iedere woning afzonderlijk rechtstreeks van buiten cq portiek cq voor de galerijen met afleverset in of nabij de entreehal in het bouwblok zelf",{"$f":"MROUND(\nIF(Rekenblad2[[#This Row],[Type gebouw]]=0,\"Voer type gebouw in\",\nIF(Rekenblad2[[#This Row],[Type gebouw]]=1,HLOOKUP(Rekenblad2[[#This Row],[Rekenblad 1]],StaatEGW[[#All],[A1.1]:[C1.2]],40,0),\nIF(Rekenblad2[[#This Row],[Type gebouw]]=2,HLOOKUP(Rekenblad2[[#This Row],[Rekenblad 1]],StaatPortiek[[#All],[A1]:[C1]],40,0),\nIF(Rekenblad2[[#This Row],[Type gebouw]]=3,HLOOKUP(Rekenblad2[[#This Row],[Rekenblad 1]],StaatGalerij[[#All],[A1]:[C1]],40,0),\n\"Onbekende fout\")))),\n500)","v":1500},{"$f":"MROUND(\nIF(Rekenblad2[[#This Row],[Type gebouw]]=0,\"Voer type gebouw in\",\nIF(Rekenblad2[[#This Row],[Type gebouw]]=1,HLOOKUP(Rekenblad2[[#This Row],[Rekenblad 1]],StaatEGW[[#All],[A1.1]:[C1.2]],41,0),\nIF(Rekenblad2[[#This Row],[Type gebouw]]=2,HLOOKUP(Rekenblad2[[#This Row],[Rekenblad 1]],StaatPortiek[[#All],[A1]:[C1]],41,0),\nIF(Rekenblad2[[#This Row],[Type gebouw]]=3,HLOOKUP(Rekenblad2[[#This Row],[Rekenblad 1]],StaatGalerij[[#All],[A1]:[C1]],41,0),\n\"Onbekende fout\")))),\n500)","v":5500},{"$f":"SUM(Rekenblad2[[#This Row],[Kosten warmteleverancier]:[Kosten woningeigenaar]])","v":7000},{"$f":"IF(Rekenblad2[[#This Row],[Type gebouw]]=1,HLOOKUP(Rekenblad2[[#This Row],[Rekenblad 1]],KwaliteitEGW[#All],2,0),\nIF(Rekenblad2[[#This Row],[Type gebouw]]=2,HLOOKUP(Rekenblad2[[#This Row],[Rekenblad 1]],KwaliteitPortiek[#All],2,0),\nIF(Rekenblad2[[#This Row],[Type gebouw]]=3,HLOOKUP(Rekenblad2[[#This Row],[Rekenblad 1]],KwaliteitGalerij[#All],2,0))))","v":3},{"$f":"IF(Rekenblad2[[#This Row],[Type gebouw]]=1,HLOOKUP(Rekenblad2[[#This Row],[Rekenblad 1]],KwaliteitEGW[#All],6,0),\nIF(Rekenblad2[[#This Row],[Type gebouw]]=2,HLOOKUP(Rekenblad2[[#This Row],[Rekenblad 1]],KwaliteitPortiek[#All],5,0),\nIF(Rekenblad2[[#This Row],[Type gebouw]]=3,HLOOKUP(Rekenblad2[[#This Row],[Rekenblad 1]],KwaliteitGalerij[#All],5,0))))","v":2},{"$f":"IF(Rekenblad2[[#This Row],[Type gebouw]]=1,HLOOKUP(Rekenblad2[[#This Row],[Rekenblad 1]],KwaliteitEGW[#All],10,0),\nIF(Rekenblad2[[#This Row],[Type gebouw]]=2,HLOOKUP(Rekenblad2[[#This Row],[Rekenblad 1]],KwaliteitPortiek[#All],9,0),\nIF(Rekenblad2[[#This Row],[Type gebouw]]=3,HLOOKUP(Rekenblad2[[#This Row],[Rekenblad 1]],KwaliteitGalerij[#All],9,0))))","v":2},{"$f":"IF(Rekenblad2[[#This Row],[Type gebouw]]=1,HLOOKUP(Rekenblad2[[#This Row],[Rekenblad 1]],KwaliteitEGW[#All],14,0),\nIF(Rekenblad2[[#This Row],[Type gebouw]]=2,HLOOKUP(Rekenblad2[[#This Row],[Rekenblad 1]],KwaliteitPortiek[#All],13,0),\nIF(Rekenblad2[[#This Row],[Type gebouw]]=3,HLOOKUP(Rekenblad2[[#This Row],[Rekenblad 1]],KwaliteitGalerij[#All],13,0))))","v":3}]
[null,null,"A2",2,"Per 2 woningen rechtstreeks van buiten cq portiek cq voor de galerijen met afleverset in of nabij de entreehal in het bouwblok zelf",{"$f":"MROUND(\nIF(Rekenblad2[[#This Row],[Type gebouw]]=0,\"Voer type gebouw in\",\nIF(Rekenblad2[[#This Row],[Type gebouw]]=1,HLOOKUP(Rekenblad2[[#This Row],[Rekenblad 1]],StaatEGW[[#All],[A1.1]:[C1.2]],40,0),\nIF(Rekenblad2[[#This Row],[Type gebouw]]=2,HLOOKUP(Rekenblad2[[#This Row],[Rekenblad 1]],StaatPortiek[[#All],[A1]:[C1]],40,0),\nIF(Rekenblad2[[#This Row],[Type gebouw]]=3,HLOOKUP(Rekenblad2[[#This Row],[Rekenblad 1]],StaatGalerij[[#All],[A1]:[C1]],40,0),\n\"Onbekende fout\")))),\n500)","v":1500},{"$f":"MROUND(\nIF(Rekenblad2[[#This Row],[Type gebouw]]=0,\"Voer type gebouw in\",\nIF(Rekenblad2[[#This Row],[Type gebouw]]=1,HLOOKUP(Rekenblad2[[#This Row],[Rekenblad 1]],StaatEGW[[#All],[A1.1]:[C1.2]],41,0),\nIF(Rekenblad2[[#This Row],[Type gebouw]]=2,HLOOKUP(Rekenblad2[[#This Row],[Rekenblad 1]],StaatPortiek[[#All],[A1]:[C1]],41,0),\nIF(Rekenblad2[[#This Row],[Type gebouw]]=3,HLOOKUP(Rekenblad2[[#This Row],[Rekenblad 1]],StaatGalerij[[#All],[A1]:[C1]],41,0),\n\"Onbekende fout\")))),\n500)","v":5500},{"$f":"SUM(Rekenblad2[[#This Row],[Kosten warmteleverancier]:[Kosten woningeigenaar]])","v":7000},{"$f":"IF(Rekenblad2[[#This Row],[Type gebouw]]=1,HLOOKUP(Rekenblad2[[#This Row],[Rekenblad 1]],KwaliteitEGW[#All],2,0),\nIF(Rekenblad2[[#This Row],[Type gebouw]]=2,HLOOKUP(Rekenblad2[[#This Row],[Rekenblad 1]],KwaliteitPortiek[#All],2,0),\nIF(Rekenblad2[[#This Row],[Type gebouw]]=3,HLOOKUP(Rekenblad2[[#This Row],[Rekenblad 1]],KwaliteitGalerij[#All],2,0))))","v":3},{"$f":"IF(Rekenblad2[[#This Row],[Type gebouw]]=1,HLOOKUP(Rekenblad2[[#This Row],[Rekenblad 1]],KwaliteitEGW[#All],6,0),\nIF(Rekenblad2[[#This Row],[Type gebouw]]=2,HLOOKUP(Rekenblad2[[#This Row],[Rekenblad 1]],KwaliteitPortiek[#All],5,0),\nIF(Rekenblad2[[#This Row],[Type gebouw]]=3,HLOOKUP(Rekenblad2[[#This Row],[Rekenblad 1]],KwaliteitGalerij[#All],5,0))))","v":2},{"$f":"IF(Rekenblad2[[#This Row],[Type gebouw]]=1,HLOOKUP(Rekenblad2[[#This Row],[Rekenblad 1]],KwaliteitEGW[#All],10,0),\nIF(Rekenblad2[[#This Row],[Type gebouw]]=2,HLOOKUP(Rekenblad2[[#This Row],[Rekenblad 1]],KwaliteitPortiek[#All],9,0),\nIF(Rekenblad2[[#This Row],[Type gebouw]]=3,HLOOKUP(Rekenblad2[[#This Row],[Rekenblad 1]],KwaliteitGalerij[#All],9,0))))","v":2},{"$f":"IF(Rekenblad2[[#This Row],[Type gebouw]]=1,HLOOKUP(Rekenblad2[[#This Row],[Rekenblad 1]],KwaliteitEGW[#All],14,0),\nIF(Rekenblad2[[#This Row],[Type gebouw]]=2,HLOOKUP(Rekenblad2[[#This Row],[Rekenblad 1]],KwaliteitPortiek[#All],13,0),\nIF(Rekenblad2[[#This Row],[Type gebouw]]=3,HLOOKUP(Rekenblad2[[#This Row],[Rekenblad 1]],KwaliteitGalerij[#All],13,0))))","v":3}]
[null,null,"A3",2,"Per woning via verticale leidingen op voor- of achtergevel naar afleverset ",{"$f":"MROUND(\nIF(Rekenblad2[[#This Row],[Type gebouw]]=0,\"Voer type gebouw in\",\nIF(Rekenblad2[[#This Row],[Type gebouw]]=1,HLOOKUP(Rekenblad2[[#This Row],[Rekenblad 1]],StaatEGW[[#All],[A1.1]:[C1.2]],40,0),\nIF(Rekenblad2[[#This Row],[Type gebouw]]=2,HLOOKUP(Rekenblad2[[#This Row],[Rekenblad 1]],StaatPortiek[[#All],[A1]:[C1]],40,0),\nIF(Rekenblad2[[#This Row],[Type gebouw]]=3,HLOOKUP(Rekenblad2[[#This Row],[Rekenblad 1]],StaatGalerij[[#All],[A1]:[C1]],40,0),\n\"Onbekende fout\")))),\n500)","v":2000},{"$f":"MROUND(\nIF(Rekenblad2[[#This Row],[Type gebouw]]=0,\"Voer type gebouw in\",\nIF(Rekenblad2[[#This Row],[Type gebouw]]=1,HLOOKUP(Rekenblad2[[#This Row],[Rekenblad 1]],StaatEGW[[#All],[A1.1]:[C1.2]],41,0),\nIF(Rekenblad2[[#This Row],[Type gebouw]]=2,HLOOKUP(Rekenblad2[[#This Row],[Rekenblad 1]],StaatPortiek[[#All],[A1]:[C1]],41,0),\nIF(Rekenblad2[[#This Row],[Type gebouw]]=3,HLOOKUP(Rekenblad2[[#This Row],[Rekenblad 1]],StaatGalerij[[#All],[A1]:[C1]],41,0),\n\"Onbekende fout\")))),\n500)","v":5500},{"$f":"SUM(Rekenblad2[[#This Row],[Kosten warmteleverancier]:[Kosten woningeigenaar]])","v":7500},{"$f":"IF(Rekenblad2[[#This Row],[Type gebouw]]=1,HLOOKUP(Rekenblad2[[#This Row],[Rekenblad 1]],KwaliteitEGW[#All],2,0),\nIF(Rekenblad2[[#This Row],[Type gebouw]]=2,HLOOKUP(Rekenblad2[[#This Row],[Rekenblad 1]],KwaliteitPortiek[#All],2,0),\nIF(Rekenblad2[[#This Row],[Type gebouw]]=3,HLOOKUP(Rekenblad2[[#This Row],[Rekenblad 1]],KwaliteitGalerij[#All],2,0))))","v":2},{"$f":"IF(Rekenblad2[[#This Row],[Type gebouw]]=1,HLOOKUP(Rekenblad2[[#This Row],[Rekenblad 1]],KwaliteitEGW[#All],6,0),\nIF(Rekenblad2[[#This Row],[Type gebouw]]=2,HLOOKUP(Rekenblad2[[#This Row],[Rekenblad 1]],KwaliteitPortiek[#All],5,0),\nIF(Rekenblad2[[#This Row],[Type gebouw]]=3,HLOOKUP(Rekenblad2[[#This Row],[Rekenblad 1]],KwaliteitGalerij[#All],5,0))))","v":2},{"$f":"IF(Rekenblad2[[#This Row],[Type gebouw]]=1,HLOOKUP(Rekenblad2[[#This Row],[Rekenblad 1]],KwaliteitEGW[#All],10,0),\nIF(Rekenblad2[[#This Row],[Type gebouw]]=2,HLOOKUP(Rekenblad2[[#This Row],[Rekenblad 1]],KwaliteitPortiek[#All],9,0),\nIF(Rekenblad2[[#This Row],[Type gebouw]]=3,HLOOKUP(Rekenblad2[[#This Row],[Rekenblad 1]],KwaliteitGalerij[#All],9,0))))","v":2},{"$f":"IF(Rekenblad2[[#This Row],[Type gebouw]]=1,HLOOKUP(Rekenblad2[[#This Row],[Rekenblad 1]],KwaliteitEGW[#All],14,0),\nIF(Rekenblad2[[#This Row],[Type gebouw]]=2,HLOOKUP(Rekenblad2[[#This Row],[Rekenblad 1]],KwaliteitPortiek[#All],13,0),\nIF(Rekenblad2[[#This Row],[Type gebouw]]=3,HLOOKUP(Rekenblad2[[#This Row],[Rekenblad 1]],KwaliteitGalerij[#All],13,0))))","v":2}]
[null,null,"A4",2,"Per 2 woningen via verticale leidingen op voor- of achtergevel naar afleverset ",{"$f":"MROUND(\nIF(Rekenblad2[[#This Row],[Type gebouw]]=0,\"Voer type gebouw in\",\nIF(Rekenblad2[[#This Row],[Type gebouw]]=1,HLOOKUP(Rekenblad2[[#This Row],[Rekenblad 1]],StaatEGW[[#All],[A1.1]:[C1.2]],40,0),\nIF(Rekenblad2[[#This Row],[Type gebouw]]=2,HLOOKUP(Rekenblad2[[#This Row],[Rekenblad 1]],StaatPortiek[[#All],[A1]:[C1]],40,0),\nIF(Rekenblad2[[#This Row],[Type gebouw]]=3,HLOOKUP(Rekenblad2[[#This Row],[Rekenblad 1]],StaatGalerij[[#All],[A1]:[C1]],40,0),\n\"Onbekende fout\")))),\n500)","v":2000},{"$f":"MROUND(\nIF(Rekenblad2[[#This Row],[Type gebouw]]=0,\"Voer type gebouw in\",\nIF(Rekenblad2[[#This Row],[Type gebouw]]=1,HLOOKUP(Rekenblad2[[#This Row],[Rekenblad 1]],StaatEGW[[#All],[A1.1]:[C1.2]],41,0),\nIF(Rekenblad2[[#This Row],[Type gebouw]]=2,HLOOKUP(Rekenblad2[[#This Row],[Rekenblad 1]],StaatPortiek[[#All],[A1]:[C1]],41,0),\nIF(Rekenblad2[[#This Row],[Type gebouw]]=3,HLOOKUP(Rekenblad2[[#This Row],[Rekenblad 1]],StaatGalerij[[#All],[A1]:[C1]],41,0),\n\"Onbekende fout\")))),\n500)","v":5500},{"$f":"SUM(Rekenblad2[[#This Row],[Kosten warmteleverancier]:[Kosten woningeigenaar]])","v":7500},{"$f":"IF(Rekenblad2[[#This Row],[Type gebouw]]=1,HLOOKUP(Rekenblad2[[#This Row],[Rekenblad 1]],KwaliteitEGW[#All],2,0),\nIF(Rekenblad2[[#This Row],[Type gebouw]]=2,HLOOKUP(Rekenblad2[[#This Row],[Rekenblad 1]],KwaliteitPortiek[#All],2,0),\nIF(Rekenblad2[[#This Row],[Type gebouw]]=3,HLOOKUP(Rekenblad2[[#This Row],[Rekenblad 1]],KwaliteitGalerij[#All],2,0))))","v":2},{"$f":"IF(Rekenblad2[[#This Row],[Type gebouw]]=1,HLOOKUP(Rekenblad2[[#This Row],[Rekenblad 1]],KwaliteitEGW[#All],6,0),\nIF(Rekenblad2[[#This Row],[Type gebouw]]=2,HLOOKUP(Rekenblad2[[#This Row],[Rekenblad 1]],KwaliteitPortiek[#All],5,0),\nIF(Rekenblad2[[#This Row],[Type gebouw]]=3,HLOOKUP(Rekenblad2[[#This Row],[Rekenblad 1]],KwaliteitGalerij[#All],5,0))))","v":2},{"$f":"IF(Rekenblad2[[#This Row],[Type gebouw]]=1,HLOOKUP(Rekenblad2[[#This Row],[Rekenblad 1]],KwaliteitEGW[#All],10,0),\nIF(Rekenblad2[[#This Row],[Type gebouw]]=2,HLOOKUP(Rekenblad2[[#This Row],[Rekenblad 1]],KwaliteitPortiek[#All],9,0),\nIF(Rekenblad2[[#This Row],[Type gebouw]]=3,HLOOKUP(Rekenblad2[[#This Row],[Rekenblad 1]],KwaliteitGalerij[#All],9,0))))","v":2},{"$f":"IF(Rekenblad2[[#This Row],[Type gebouw]]=1,HLOOKUP(Rekenblad2[[#This Row],[Rekenblad 1]],KwaliteitEGW[#All],14,0),\nIF(Rekenblad2[[#This Row],[Type gebouw]]=2,HLOOKUP(Rekenblad2[[#This Row],[Rekenblad 1]],KwaliteitPortiek[#All],13,0),\nIF(Rekenblad2[[#This Row],[Type gebouw]]=3,HLOOKUP(Rekenblad2[[#This Row],[Rekenblad 1]],KwaliteitGalerij[#All],13,0))))","v":2}]
[null,null,"B1",2,"In de lengterichting van het volledige blok door de kapruimte",{"$f":"MROUND(\nIF(Rekenblad2[[#This Row],[Type gebouw]]=0,\"Voer type gebouw in\",\nIF(Rekenblad2[[#This Row],[Type gebouw]]=1,HLOOKUP(Rekenblad2[[#This Row],[Rekenblad 1]],StaatEGW[[#All],[A1.1]:[C1.2]],40,0),\nIF(Rekenblad2[[#This Row],[Type gebouw]]=2,HLOOKUP(Rekenblad2[[#This Row],[Rekenblad 1]],StaatPortiek[[#All],[A1]:[C1]],40,0),\nIF(Rekenblad2[[#This Row],[Type gebouw]]=3,HLOOKUP(Rekenblad2[[#This Row],[Rekenblad 1]],StaatGalerij[[#All],[A1]:[C1]],40,0),\n\"Onbekende fout\")))),\n500)","v":3000},{"$f":"MROUND(\nIF(Rekenblad2[[#This Row],[Type gebouw]]=0,\"Voer type gebouw in\",\nIF(Rekenblad2[[#This Row],[Type gebouw]]=1,HLOOKUP(Rekenblad2[[#This Row],[Rekenblad 1]],StaatEGW[[#All],[A1.1]:[C1.2]],41,0),\nIF(Rekenblad2[[#This Row],[Type gebouw]]=2,HLOOKUP(Rekenblad2[[#This Row],[Rekenblad 1]],StaatPortiek[[#All],[A1]:[C1]],41,0),\nIF(Rekenblad2[[#This Row],[Type gebouw]]=3,HLOOKUP(Rekenblad2[[#This Row],[Rekenblad 1]],StaatGalerij[[#All],[A1]:[C1]],41,0),\n\"Onbekende fout\")))),\n500)","v":4500},{"$f":"SUM(Rekenblad2[[#This Row],[Kosten warmteleverancier]:[Kosten woningeigenaar]])","v":7500},{"$f":"IF(Rekenblad2[[#This Row],[Type gebouw]]=1,HLOOKUP(Rekenblad2[[#This Row],[Rekenblad 1]],KwaliteitEGW[#All],2,0),\nIF(Rekenblad2[[#This Row],[Type gebouw]]=2,HLOOKUP(Rekenblad2[[#This Row],[Rekenblad 1]],KwaliteitPortiek[#All],2,0),\nIF(Rekenblad2[[#This Row],[Type gebouw]]=3,HLOOKUP(Rekenblad2[[#This Row],[Rekenblad 1]],KwaliteitGalerij[#All],2,0))))","v":4},{"$f":"IF(Rekenblad2[[#This Row],[Type gebouw]]=1,HLOOKUP(Rekenblad2[[#This Row],[Rekenblad 1]],KwaliteitEGW[#All],6,0),\nIF(Rekenblad2[[#This Row],[Type gebouw]]=2,HLOOKUP(Rekenblad2[[#This Row],[Rekenblad 1]],KwaliteitPortiek[#All],5,0),\nIF(Rekenblad2[[#This Row],[Type gebouw]]=3,HLOOKUP(Rekenblad2[[#This Row],[Rekenblad 1]],KwaliteitGalerij[#All],5,0))))","v":3},{"$f":"IF(Rekenblad2[[#This Row],[Type gebouw]]=1,HLOOKUP(Rekenblad2[[#This Row],[Rekenblad 1]],KwaliteitEGW[#All],10,0),\nIF(Rekenblad2[[#This Row],[Type gebouw]]=2,HLOOKUP(Rekenblad2[[#This Row],[Rekenblad 1]],KwaliteitPortiek[#All],9,0),\nIF(Rekenblad2[[#This Row],[Type gebouw]]=3,HLOOKUP(Rekenblad2[[#This Row],[Rekenblad 1]],KwaliteitGalerij[#All],9,0))))","v":4},{"$f":"IF(Rekenblad2[[#This Row],[Type gebouw]]=1,HLOOKUP(Rekenblad2[[#This Row],[Rekenblad 1]],KwaliteitEGW[#All],14,0),\nIF(Rekenblad2[[#This Row],[Type gebouw]]=2,HLOOKUP(Rekenblad2[[#This Row],[Rekenblad 1]],KwaliteitPortiek[#All],13,0),\nIF(Rekenblad2[[#This Row],[Type gebouw]]=3,HLOOKUP(Rekenblad2[[#This Row],[Rekenblad 1]],KwaliteitGalerij[#All],13,0))))","v":2}]
[null,null,"B2",2,"In de lengterichting van het volledige blok over de gevel ",{"$f":"MROUND(\nIF(Rekenblad2[[#This Row],[Type gebouw]]=0,\"Voer type gebouw in\",\nIF(Rekenblad2[[#This Row],[Type gebouw]]=1,HLOOKUP(Rekenblad2[[#This Row],[Rekenblad 1]],StaatEGW[[#All],[A1.1]:[C1.2]],40,0),\nIF(Rekenblad2[[#This Row],[Type gebouw]]=2,HLOOKUP(Rekenblad2[[#This Row],[Rekenblad 1]],StaatPortiek[[#All],[A1]:[C1]],40,0),\nIF(Rekenblad2[[#This Row],[Type gebouw]]=3,HLOOKUP(Rekenblad2[[#This Row],[Rekenblad 1]],StaatGalerij[[#All],[A1]:[C1]],40,0),\n\"Onbekende fout\")))),\n500)","v":2000},{"$f":"MROUND(\nIF(Rekenblad2[[#This Row],[Type gebouw]]=0,\"Voer type gebouw in\",\nIF(Rekenblad2[[#This Row],[Type gebouw]]=1,HLOOKUP(Rekenblad2[[#This Row],[Rekenblad 1]],StaatEGW[[#All],[A1.1]:[C1.2]],41,0),\nIF(Rekenblad2[[#This Row],[Type gebouw]]=2,HLOOKUP(Rekenblad2[[#This Row],[Rekenblad 1]],StaatPortiek[[#All],[A1]:[C1]],41,0),\nIF(Rekenblad2[[#This Row],[Type gebouw]]=3,HLOOKUP(Rekenblad2[[#This Row],[Rekenblad 1]],StaatGalerij[[#All],[A1]:[C1]],41,0),\n\"Onbekende fout\")))),\n500)","v":5500},{"$f":"SUM(Rekenblad2[[#This Row],[Kosten warmteleverancier]:[Kosten woningeigenaar]])","v":7500},{"$f":"IF(Rekenblad2[[#This Row],[Type gebouw]]=1,HLOOKUP(Rekenblad2[[#This Row],[Rekenblad 1]],KwaliteitEGW[#All],2,0),\nIF(Rekenblad2[[#This Row],[Type gebouw]]=2,HLOOKUP(Rekenblad2[[#This Row],[Rekenblad 1]],KwaliteitPortiek[#All],2,0),\nIF(Rekenblad2[[#This Row],[Type gebouw]]=3,HLOOKUP(Rekenblad2[[#This Row],[Rekenblad 1]],KwaliteitGalerij[#All],2,0))))","v":2},{"$f":"IF(Rekenblad2[[#This Row],[Type gebouw]]=1,HLOOKUP(Rekenblad2[[#This Row],[Rekenblad 1]],KwaliteitEGW[#All],6,0),\nIF(Rekenblad2[[#This Row],[Type gebouw]]=2,HLOOKUP(Rekenblad2[[#This Row],[Rekenblad 1]],KwaliteitPortiek[#All],5,0),\nIF(Rekenblad2[[#This Row],[Type gebouw]]=3,HLOOKUP(Rekenblad2[[#This Row],[Rekenblad 1]],KwaliteitGalerij[#All],5,0))))","v":3},{"$f":"IF(Rekenblad2[[#This Row],[Type gebouw]]=1,HLOOKUP(Rekenblad2[[#This Row],[Rekenblad 1]],KwaliteitEGW[#All],10,0),\nIF(Rekenblad2[[#This Row],[Type gebouw]]=2,HLOOKUP(Rekenblad2[[#This Row],[Rekenblad 1]],KwaliteitPortiek[#All],9,0),\nIF(Rekenblad2[[#This Row],[Type gebouw]]=3,HLOOKUP(Rekenblad2[[#This Row],[Rekenblad 1]],KwaliteitGalerij[#All],9,0))))","v":2},{"$f":"IF(Rekenblad2[[#This Row],[Type gebouw]]=1,HLOOKUP(Rekenblad2[[#This Row],[Rekenblad 1]],KwaliteitEGW[#All],14,0),\nIF(Rekenblad2[[#This Row],[Type gebouw]]=2,HLOOKUP(Rekenblad2[[#This Row],[Rekenblad 1]],KwaliteitPortiek[#All],13,0),\nIF(Rekenblad2[[#This Row],[Type gebouw]]=3,HLOOKUP(Rekenblad2[[#This Row],[Rekenblad 1]],KwaliteitGalerij[#All],13,0))))","v":1}]
[null,null,"B3",2,"In de lengterichting van het volledige blok over het dak ",{"$f":"MROUND(\nIF(Rekenblad2[[#This Row],[Type gebouw]]=0,\"Voer type gebouw in\",\nIF(Rekenblad2[[#This Row],[Type gebouw]]=1,HLOOKUP(Rekenblad2[[#This Row],[Rekenblad 1]],StaatEGW[[#All],[A1.1]:[C1.2]],40,0),\nIF(Rekenblad2[[#This Row],[Type gebouw]]=2,HLOOKUP(Rekenblad2[[#This Row],[Rekenblad 1]],StaatPortiek[[#All],[A1]:[C1]],40,0),\nIF(Rekenblad2[[#This Row],[Type gebouw]]=3,HLOOKUP(Rekenblad2[[#This Row],[Rekenblad 1]],StaatGalerij[[#All],[A1]:[C1]],40,0),\n\"Onbekende fout\")))),\n500)","v":2000},{"$f":"MROUND(\nIF(Rekenblad2[[#This Row],[Type gebouw]]=0,\"Voer type gebouw in\",\nIF(Rekenblad2[[#This Row],[Type gebouw]]=1,HLOOKUP(Rekenblad2[[#This Row],[Rekenblad 1]],StaatEGW[[#All],[A1.1]:[C1.2]],41,0),\nIF(Rekenblad2[[#This Row],[Type gebouw]]=2,HLOOKUP(Rekenblad2[[#This Row],[Rekenblad 1]],StaatPortiek[[#All],[A1]:[C1]],41,0),\nIF(Rekenblad2[[#This Row],[Type gebouw]]=3,HLOOKUP(Rekenblad2[[#This Row],[Rekenblad 1]],StaatGalerij[[#All],[A1]:[C1]],41,0),\n\"Onbekende fout\")))),\n500)","v":4500},{"$f":"SUM(Rekenblad2[[#This Row],[Kosten warmteleverancier]:[Kosten woningeigenaar]])","v":6500},{"$f":"IF(Rekenblad2[[#This Row],[Type gebouw]]=1,HLOOKUP(Rekenblad2[[#This Row],[Rekenblad 1]],KwaliteitEGW[#All],2,0),\nIF(Rekenblad2[[#This Row],[Type gebouw]]=2,HLOOKUP(Rekenblad2[[#This Row],[Rekenblad 1]],KwaliteitPortiek[#All],2,0),\nIF(Rekenblad2[[#This Row],[Type gebouw]]=3,HLOOKUP(Rekenblad2[[#This Row],[Rekenblad 1]],KwaliteitGalerij[#All],2,0))))","v":5},{"$f":"IF(Rekenblad2[[#This Row],[Type gebouw]]=1,HLOOKUP(Rekenblad2[[#This Row],[Rekenblad 1]],KwaliteitEGW[#All],6,0),\nIF(Rekenblad2[[#This Row],[Type gebouw]]=2,HLOOKUP(Rekenblad2[[#This Row],[Rekenblad 1]],KwaliteitPortiek[#All],5,0),\nIF(Rekenblad2[[#This Row],[Type gebouw]]=3,HLOOKUP(Rekenblad2[[#This Row],[Rekenblad 1]],KwaliteitGalerij[#All],5,0))))","v":3},{"$f":"IF(Rekenblad2[[#This Row],[Type gebouw]]=1,HLOOKUP(Rekenblad2[[#This Row],[Rekenblad 1]],KwaliteitEGW[#All],10,0),\nIF(Rekenblad2[[#This Row],[Type gebouw]]=2,HLOOKUP(Rekenblad2[[#This Row],[Rekenblad 1]],KwaliteitPortiek[#All],9,0),\nIF(Rekenblad2[[#This Row],[Type gebouw]]=3,HLOOKUP(Rekenblad2[[#This Row],[Rekenblad 1]],KwaliteitGalerij[#All],9,0))))","v":4},{"$f":"IF(Rekenblad2[[#This Row],[Type gebouw]]=1,HLOOKUP(Rekenblad2[[#This Row],[Rekenblad 1]],KwaliteitEGW[#All],14,0),\nIF(Rekenblad2[[#This Row],[Type gebouw]]=2,HLOOKUP(Rekenblad2[[#This Row],[Rekenblad 1]],KwaliteitPortiek[#All],13,0),\nIF(Rekenblad2[[#This Row],[Type gebouw]]=3,HLOOKUP(Rekenblad2[[#This Row],[Rekenblad 1]],KwaliteitGalerij[#All],13,0))))","v":2}]
[null,null,"B4",2,"In de lengterichting van het volledige blok onder de onderste woonlaag door",{"$f":"MROUND(\nIF(Rekenblad2[[#This Row],[Type gebouw]]=0,\"Voer type gebouw in\",\nIF(Rekenblad2[[#This Row],[Type gebouw]]=1,HLOOKUP(Rekenblad2[[#This Row],[Rekenblad 1]],StaatEGW[[#All],[A1.1]:[C1.2]],40,0),\nIF(Rekenblad2[[#This Row],[Type gebouw]]=2,HLOOKUP(Rekenblad2[[#This Row],[Rekenblad 1]],StaatPortiek[[#All],[A1]:[C1]],40,0),\nIF(Rekenblad2[[#This Row],[Type gebouw]]=3,HLOOKUP(Rekenblad2[[#This Row],[Rekenblad 1]],StaatGalerij[[#All],[A1]:[C1]],40,0),\n\"Onbekende fout\")))),\n500)","v":5000},{"$f":"MROUND(\nIF(Rekenblad2[[#This Row],[Type gebouw]]=0,\"Voer type gebouw in\",\nIF(Rekenblad2[[#This Row],[Type gebouw]]=1,HLOOKUP(Rekenblad2[[#This Row],[Rekenblad 1]],StaatEGW[[#All],[A1.1]:[C1.2]],41,0),\nIF(Rekenblad2[[#This Row],[Type gebouw]]=2,HLOOKUP(Rekenblad2[[#This Row],[Rekenblad 1]],StaatPortiek[[#All],[A1]:[C1]],41,0),\nIF(Rekenblad2[[#This Row],[Type gebouw]]=3,HLOOKUP(Rekenblad2[[#This Row],[Rekenblad 1]],StaatGalerij[[#All],[A1]:[C1]],41,0),\n\"Onbekende fout\")))),\n500)","v":4500},{"$f":"SUM(Rekenblad2[[#This Row],[Kosten warmteleverancier]:[Kosten woningeigenaar]])","v":9500},{"$f":"IF(Rekenblad2[[#This Row],[Type gebouw]]=1,HLOOKUP(Rekenblad2[[#This Row],[Rekenblad 1]],KwaliteitEGW[#All],2,0),\nIF(Rekenblad2[[#This Row],[Type gebouw]]=2,HLOOKUP(Rekenblad2[[#This Row],[Rekenblad 1]],KwaliteitPortiek[#All],2,0),\nIF(Rekenblad2[[#This Row],[Type gebouw]]=3,HLOOKUP(Rekenblad2[[#This Row],[Rekenblad 1]],KwaliteitGalerij[#All],2,0))))","v":5},{"$f":"IF(Rekenblad2[[#This Row],[Type gebouw]]=1,HLOOKUP(Rekenblad2[[#This Row],[Rekenblad 1]],KwaliteitEGW[#All],6,0),\nIF(Rekenblad2[[#This Row],[Type gebouw]]=2,HLOOKUP(Rekenblad2[[#This Row],[Rekenblad 1]],KwaliteitPortiek[#All],5,0),\nIF(Rekenblad2[[#This Row],[Type gebouw]]=3,HLOOKUP(Rekenblad2[[#This Row],[Rekenblad 1]],KwaliteitGalerij[#All],5,0))))","v":2},{"$f":"IF(Rekenblad2[[#This Row],[Type gebouw]]=1,HLOOKUP(Rekenblad2[[#This Row],[Rekenblad 1]],KwaliteitEGW[#All],10,0),\nIF(Rekenblad2[[#This Row],[Type gebouw]]=2,HLOOKUP(Rekenblad2[[#This Row],[Rekenblad 1]],KwaliteitPortiek[#All],9,0),\nIF(Rekenblad2[[#This Row],[Type gebouw]]=3,HLOOKUP(Rekenblad2[[#This Row],[Rekenblad 1]],KwaliteitGalerij[#All],9,0))))","v":4},{"$f":"IF(Rekenblad2[[#This Row],[Type gebouw]]=1,HLOOKUP(Rekenblad2[[#This Row],[Rekenblad 1]],KwaliteitEGW[#All],14,0),\nIF(Rekenblad2[[#This Row],[Type gebouw]]=2,HLOOKUP(Rekenblad2[[#This Row],[Rekenblad 1]],KwaliteitPortiek[#All],13,0),\nIF(Rekenblad2[[#This Row],[Type gebouw]]=3,HLOOKUP(Rekenblad2[[#This Row],[Rekenblad 1]],KwaliteitGalerij[#All],13,0))))","v":2}]
[null,null,"C1",2,"De individuele afleverset buiten de woning",{"$f":"MROUND(\nIF(Rekenblad2[[#This Row],[Type gebouw]]=0,\"Voer type gebouw in\",\nIF(Rekenblad2[[#This Row],[Type gebouw]]=1,HLOOKUP(Rekenblad2[[#This Row],[Rekenblad 1]],StaatEGW[[#All],[A1.1]:[C1.2]],40,0),\nIF(Rekenblad2[[#This Row],[Type gebouw]]=2,HLOOKUP(Rekenblad2[[#This Row],[Rekenblad 1]],StaatPortiek[[#All],[A1]:[C1]],40,0),\nIF(Rekenblad2[[#This Row],[Type gebouw]]=3,HLOOKUP(Rekenblad2[[#This Row],[Rekenblad 1]],StaatGalerij[[#All],[A1]:[C1]],40,0),\n\"Onbekende fout\")))),\n500)","v":1500},{"$f":"MROUND(\nIF(Rekenblad2[[#This Row],[Type gebouw]]=0,\"Voer type gebouw in\",\nIF(Rekenblad2[[#This Row],[Type gebouw]]=1,HLOOKUP(Rekenblad2[[#This Row],[Rekenblad 1]],StaatEGW[[#All],[A1.1]:[C1.2]],41,0),\nIF(Rekenblad2[[#This Row],[Type gebouw]]=2,HLOOKUP(Rekenblad2[[#This Row],[Rekenblad 1]],StaatPortiek[[#All],[A1]:[C1]],41,0),\nIF(Rekenblad2[[#This Row],[Type gebouw]]=3,HLOOKUP(Rekenblad2[[#This Row],[Rekenblad 1]],StaatGalerij[[#All],[A1]:[C1]],41,0),\n\"Onbekende fout\")))),\n500)","v":5500},{"$f":"SUM(Rekenblad2[[#This Row],[Kosten warmteleverancier]:[Kosten woningeigenaar]])","v":7000},{"$f":"IF(Rekenblad2[[#This Row],[Type gebouw]]=1,HLOOKUP(Rekenblad2[[#This Row],[Rekenblad 1]],KwaliteitEGW[#All],2,0),\nIF(Rekenblad2[[#This Row],[Type gebouw]]=2,HLOOKUP(Rekenblad2[[#This Row],[Rekenblad 1]],KwaliteitPortiek[#All],2,0),\nIF(Rekenblad2[[#This Row],[Type gebouw]]=3,HLOOKUP(Rekenblad2[[#This Row],[Rekenblad 1]],KwaliteitGalerij[#All],2,0))))","v":4},{"$f":"IF(Rekenblad2[[#This Row],[Type gebouw]]=1,HLOOKUP(Rekenblad2[[#This Row],[Rekenblad 1]],KwaliteitEGW[#All],6,0),\nIF(Rekenblad2[[#This Row],[Type gebouw]]=2,HLOOKUP(Rekenblad2[[#This Row],[Rekenblad 1]],KwaliteitPortiek[#All],5,0),\nIF(Rekenblad2[[#This Row],[Type gebouw]]=3,HLOOKUP(Rekenblad2[[#This Row],[Rekenblad 1]],KwaliteitGalerij[#All],5,0))))","v":1},{"$f":"IF(Rekenblad2[[#This Row],[Type gebouw]]=1,HLOOKUP(Rekenblad2[[#This Row],[Rekenblad 1]],KwaliteitEGW[#All],10,0),\nIF(Rekenblad2[[#This Row],[Type gebouw]]=2,HLOOKUP(Rekenblad2[[#This Row],[Rekenblad 1]],KwaliteitPortiek[#All],9,0),\nIF(Rekenblad2[[#This Row],[Type gebouw]]=3,HLOOKUP(Rekenblad2[[#This Row],[Rekenblad 1]],KwaliteitGalerij[#All],9,0))))","v":2},{"$f":"IF(Rekenblad2[[#This Row],[Type gebouw]]=1,HLOOKUP(Rekenblad2[[#This Row],[Rekenblad 1]],KwaliteitEGW[#All],14,0),\nIF(Rekenblad2[[#This Row],[Type gebouw]]=2,HLOOKUP(Rekenblad2[[#This Row],[Rekenblad 1]],KwaliteitPortiek[#All],13,0),\nIF(Rekenblad2[[#This Row],[Type gebouw]]=3,HLOOKUP(Rekenblad2[[#This Row],[Rekenblad 1]],KwaliteitGalerij[#All],13,0))))","v":3}]
[null,null,"A1",3,"Iedere woning afzonderlijk rechtstreeks van buiten cq portiek cq voor de galerijen met afleverset in of nabij de entreehal in het bouwblok zelf",{"$f":"MROUND(\nIF(Rekenblad2[[#This Row],[Type gebouw]]=0,\"Voer type gebouw in\",\nIF(Rekenblad2[[#This Row],[Type gebouw]]=1,HLOOKUP(Rekenblad2[[#This Row],[Rekenblad 1]],StaatEGW[[#All],[A1.1]:[C1.2]],40,0),\nIF(Rekenblad2[[#This Row],[Type gebouw]]=2,HLOOKUP(Rekenblad2[[#This Row],[Rekenblad 1]],StaatPortiek[[#All],[A1]:[C1]],40,0),\nIF(Rekenblad2[[#This Row],[Type gebouw]]=3,HLOOKUP(Rekenblad2[[#This Row],[Rekenblad 1]],StaatGalerij[[#All],[A1]:[C1]],40,0),\n\"Onbekende fout\")))),\n500)","v":2000},{"$f":"MROUND(\nIF(Rekenblad2[[#This Row],[Type gebouw]]=0,\"Voer type gebouw in\",\nIF(Rekenblad2[[#This Row],[Type gebouw]]=1,HLOOKUP(Rekenblad2[[#This Row],[Rekenblad 1]],StaatEGW[[#All],[A1.1]:[C1.2]],41,0),\nIF(Rekenblad2[[#This Row],[Type gebouw]]=2,HLOOKUP(Rekenblad2[[#This Row],[Rekenblad 1]],StaatPortiek[[#All],[A1]:[C1]],41,0),\nIF(Rekenblad2[[#This Row],[Type gebouw]]=3,HLOOKUP(Rekenblad2[[#This Row],[Rekenblad 1]],StaatGalerij[[#All],[A1]:[C1]],41,0),\n\"Onbekende fout\")))),\n500)","v":4500},{"$f":"SUM(Rekenblad2[[#This Row],[Kosten warmteleverancier]:[Kosten woningeigenaar]])","v":6500},{"$f":"IF(Rekenblad2[[#This Row],[Type gebouw]]=1,HLOOKUP(Rekenblad2[[#This Row],[Rekenblad 1]],KwaliteitEGW[#All],2,0),\nIF(Rekenblad2[[#This Row],[Type gebouw]]=2,HLOOKUP(Rekenblad2[[#This Row],[Rekenblad 1]],KwaliteitPortiek[#All],2,0),\nIF(Rekenblad2[[#This Row],[Type gebouw]]=3,HLOOKUP(Rekenblad2[[#This Row],[Rekenblad 1]],KwaliteitGalerij[#All],2,0))))","v":2},{"$f":"IF(Rekenblad2[[#This Row],[Type gebouw]]=1,HLOOKUP(Rekenblad2[[#This Row],[Rekenblad 1]],KwaliteitEGW[#All],6,0),\nIF(Rekenblad2[[#This Row],[Type gebouw]]=2,HLOOKUP(Rekenblad2[[#This Row],[Rekenblad 1]],KwaliteitPortiek[#All],5,0),\nIF(Rekenblad2[[#This Row],[Type gebouw]]=3,HLOOKUP(Rekenblad2[[#This Row],[Rekenblad 1]],KwaliteitGalerij[#All],5,0))))","v":2},{"$f":"IF(Rekenblad2[[#This Row],[Type gebouw]]=1,HLOOKUP(Rekenblad2[[#This Row],[Rekenblad 1]],KwaliteitEGW[#All],10,0),\nIF(Rekenblad2[[#This Row],[Type gebouw]]=2,HLOOKUP(Rekenblad2[[#This Row],[Rekenblad 1]],KwaliteitPortiek[#All],9,0),\nIF(Rekenblad2[[#This Row],[Type gebouw]]=3,HLOOKUP(Rekenblad2[[#This Row],[Rekenblad 1]],KwaliteitGalerij[#All],9,0))))","v":2},{"$f":"IF(Rekenblad2[[#This Row],[Type gebouw]]=1,HLOOKUP(Rekenblad2[[#This Row],[Rekenblad 1]],KwaliteitEGW[#All],14,0),\nIF(Rekenblad2[[#This Row],[Type gebouw]]=2,HLOOKUP(Rekenblad2[[#This Row],[Rekenblad 1]],KwaliteitPortiek[#All],13,0),\nIF(Rekenblad2[[#This Row],[Type gebouw]]=3,HLOOKUP(Rekenblad2[[#This Row],[Rekenblad 1]],KwaliteitGalerij[#All],13,0))))","v":2}]
[null,null,"A2",3,"Per 2 woningen rechtstreeks van buiten cq portiek cq voor de galerijen met afleverset in of nabij de entreehal in het bouwblok zelf",{"$f":"MROUND(\nIF(Rekenblad2[[#This Row],[Type gebouw]]=0,\"Voer type gebouw in\",\nIF(Rekenblad2[[#This Row],[Type gebouw]]=1,HLOOKUP(Rekenblad2[[#This Row],[Rekenblad 1]],StaatEGW[[#All],[A1.1]:[C1.2]],40,0),\nIF(Rekenblad2[[#This Row],[Type gebouw]]=2,HLOOKUP(Rekenblad2[[#This Row],[Rekenblad 1]],StaatPortiek[[#All],[A1]:[C1]],40,0),\nIF(Rekenblad2[[#This Row],[Type gebouw]]=3,HLOOKUP(Rekenblad2[[#This Row],[Rekenblad 1]],StaatGalerij[[#All],[A1]:[C1]],40,0),\n\"Onbekende fout\")))),\n500)","v":1500},{"$f":"MROUND(\nIF(Rekenblad2[[#This Row],[Type gebouw]]=0,\"Voer type gebouw in\",\nIF(Rekenblad2[[#This Row],[Type gebouw]]=1,HLOOKUP(Rekenblad2[[#This Row],[Rekenblad 1]],StaatEGW[[#All],[A1.1]:[C1.2]],41,0),\nIF(Rekenblad2[[#This Row],[Type gebouw]]=2,HLOOKUP(Rekenblad2[[#This Row],[Rekenblad 1]],StaatPortiek[[#All],[A1]:[C1]],41,0),\nIF(Rekenblad2[[#This Row],[Type gebouw]]=3,HLOOKUP(Rekenblad2[[#This Row],[Rekenblad 1]],StaatGalerij[[#All],[A1]:[C1]],41,0),\n\"Onbekende fout\")))),\n500)","v":4500},{"$f":"SUM(Rekenblad2[[#This Row],[Kosten warmteleverancier]:[Kosten woningeigenaar]])","v":6000},{"$f":"IF(Rekenblad2[[#This Row],[Type gebouw]]=1,HLOOKUP(Rekenblad2[[#This Row],[Rekenblad 1]],KwaliteitEGW[#All],2,0),\nIF(Rekenblad2[[#This Row],[Type gebouw]]=2,HLOOKUP(Rekenblad2[[#This Row],[Rekenblad 1]],KwaliteitPortiek[#All],2,0),\nIF(Rekenblad2[[#This Row],[Type gebouw]]=3,HLOOKUP(Rekenblad2[[#This Row],[Rekenblad 1]],KwaliteitGalerij[#All],2,0))))","v":3},{"$f":"IF(Rekenblad2[[#This Row],[Type gebouw]]=1,HLOOKUP(Rekenblad2[[#This Row],[Rekenblad 1]],KwaliteitEGW[#All],6,0),\nIF(Rekenblad2[[#This Row],[Type gebouw]]=2,HLOOKUP(Rekenblad2[[#This Row],[Rekenblad 1]],KwaliteitPortiek[#All],5,0),\nIF(Rekenblad2[[#This Row],[Type gebouw]]=3,HLOOKUP(Rekenblad2[[#This Row],[Rekenblad 1]],KwaliteitGalerij[#All],5,0))))","v":3},{"$f":"IF(Rekenblad2[[#This Row],[Type gebouw]]=1,HLOOKUP(Rekenblad2[[#This Row],[Rekenblad 1]],KwaliteitEGW[#All],10,0),\nIF(Rekenblad2[[#This Row],[Type gebouw]]=2,HLOOKUP(Rekenblad2[[#This Row],[Rekenblad 1]],KwaliteitPortiek[#All],9,0),\nIF(Rekenblad2[[#This Row],[Type gebouw]]=3,HLOOKUP(Rekenblad2[[#This Row],[Rekenblad 1]],KwaliteitGalerij[#All],9,0))))","v":2},{"$f":"IF(Rekenblad2[[#This Row],[Type gebouw]]=1,HLOOKUP(Rekenblad2[[#This Row],[Rekenblad 1]],KwaliteitEGW[#All],14,0),\nIF(Rekenblad2[[#This Row],[Type gebouw]]=2,HLOOKUP(Rekenblad2[[#This Row],[Rekenblad 1]],KwaliteitPortiek[#All],13,0),\nIF(Rekenblad2[[#This Row],[Type gebouw]]=3,HLOOKUP(Rekenblad2[[#This Row],[Rekenblad 1]],KwaliteitGalerij[#All],13,0))))","v":2}]
[null,null,"A3",3,"Per woning via verticale leidingen op voor- of achtergevel naar afleverset ",{"$f":"MROUND(\nIF(Rekenblad2[[#This Row],[Type gebouw]]=0,\"Voer type gebouw in\",\nIF(Rekenblad2[[#This Row],[Type gebouw]]=1,HLOOKUP(Rekenblad2[[#This Row],[Rekenblad 1]],StaatEGW[[#All],[A1.1]:[C1.2]],40,0),\nIF(Rekenblad2[[#This Row],[Type gebouw]]=2,HLOOKUP(Rekenblad2[[#This Row],[Rekenblad 1]],StaatPortiek[[#All],[A1]:[C1]],40,0),\nIF(Rekenblad2[[#This Row],[Type gebouw]]=3,HLOOKUP(Rekenblad2[[#This Row],[Rekenblad 1]],StaatGalerij[[#All],[A1]:[C1]],40,0),\n\"Onbekende fout\")))),\n500)","v":2000},{"$f":"MROUND(\nIF(Rekenblad2[[#This Row],[Type gebouw]]=0,\"Voer type gebouw in\",\nIF(Rekenblad2[[#This Row],[Type gebouw]]=1,HLOOKUP(Rekenblad2[[#This Row],[Rekenblad 1]],StaatEGW[[#All],[A1.1]:[C1.2]],41,0),\nIF(Rekenblad2[[#This Row],[Type gebouw]]=2,HLOOKUP(Rekenblad2[[#This Row],[Rekenblad 1]],StaatPortiek[[#All],[A1]:[C1]],41,0),\nIF(Rekenblad2[[#This Row],[Type gebouw]]=3,HLOOKUP(Rekenblad2[[#This Row],[Rekenblad 1]],StaatGalerij[[#All],[A1]:[C1]],41,0),\n\"Onbekende fout\")))),\n500)","v":4500},{"$f":"SUM(Rekenblad2[[#This Row],[Kosten warmteleverancier]:[Kosten woningeigenaar]])","v":6500},{"$f":"IF(Rekenblad2[[#This Row],[Type gebouw]]=1,HLOOKUP(Rekenblad2[[#This Row],[Rekenblad 1]],KwaliteitEGW[#All],2,0),\nIF(Rekenblad2[[#This Row],[Type gebouw]]=2,HLOOKUP(Rekenblad2[[#This Row],[Rekenblad 1]],KwaliteitPortiek[#All],2,0),\nIF(Rekenblad2[[#This Row],[Type gebouw]]=3,HLOOKUP(Rekenblad2[[#This Row],[Rekenblad 1]],KwaliteitGalerij[#All],2,0))))","v":3},{"$f":"IF(Rekenblad2[[#This Row],[Type gebouw]]=1,HLOOKUP(Rekenblad2[[#This Row],[Rekenblad 1]],KwaliteitEGW[#All],6,0),\nIF(Rekenblad2[[#This Row],[Type gebouw]]=2,HLOOKUP(Rekenblad2[[#This Row],[Rekenblad 1]],KwaliteitPortiek[#All],5,0),\nIF(Rekenblad2[[#This Row],[Type gebouw]]=3,HLOOKUP(Rekenblad2[[#This Row],[Rekenblad 1]],KwaliteitGalerij[#All],5,0))))","v":1},{"$f":"IF(Rekenblad2[[#This Row],[Type gebouw]]=1,HLOOKUP(Rekenblad2[[#This Row],[Rekenblad 1]],KwaliteitEGW[#All],10,0),\nIF(Rekenblad2[[#This Row],[Type gebouw]]=2,HLOOKUP(Rekenblad2[[#This Row],[Rekenblad 1]],KwaliteitPortiek[#All],9,0),\nIF(Rekenblad2[[#This Row],[Type gebouw]]=3,HLOOKUP(Rekenblad2[[#This Row],[Rekenblad 1]],KwaliteitGalerij[#All],9,0))))","v":2},{"$f":"IF(Rekenblad2[[#This Row],[Type gebouw]]=1,HLOOKUP(Rekenblad2[[#This Row],[Rekenblad 1]],KwaliteitEGW[#All],14,0),\nIF(Rekenblad2[[#This Row],[Type gebouw]]=2,HLOOKUP(Rekenblad2[[#This Row],[Rekenblad 1]],KwaliteitPortiek[#All],13,0),\nIF(Rekenblad2[[#This Row],[Type gebouw]]=3,HLOOKUP(Rekenblad2[[#This Row],[Rekenblad 1]],KwaliteitGalerij[#All],13,0))))","v":3}]
[null,null,"A4",3,"Per 2 woningen via verticale leidingen op voor- of achtergevel naar afleverset ",{"$f":"MROUND(\nIF(Rekenblad2[[#This Row],[Type gebouw]]=0,\"Voer type gebouw in\",\nIF(Rekenblad2[[#This Row],[Type gebouw]]=1,HLOOKUP(Rekenblad2[[#This Row],[Rekenblad 1]],StaatEGW[[#All],[A1.1]:[C1.2]],40,0),\nIF(Rekenblad2[[#This Row],[Type gebouw]]=2,HLOOKUP(Rekenblad2[[#This Row],[Rekenblad 1]],StaatPortiek[[#All],[A1]:[C1]],40,0),\nIF(Rekenblad2[[#This Row],[Type gebouw]]=3,HLOOKUP(Rekenblad2[[#This Row],[Rekenblad 1]],StaatGalerij[[#All],[A1]:[C1]],40,0),\n\"Onbekende fout\")))),\n500)","v":1000},{"$f":"MROUND(\nIF(Rekenblad2[[#This Row],[Type gebouw]]=0,\"Voer type gebouw in\",\nIF(Rekenblad2[[#This Row],[Type gebouw]]=1,HLOOKUP(Rekenblad2[[#This Row],[Rekenblad 1]],StaatEGW[[#All],[A1.1]:[C1.2]],41,0),\nIF(Rekenblad2[[#This Row],[Type gebouw]]=2,HLOOKUP(Rekenblad2[[#This Row],[Rekenblad 1]],StaatPortiek[[#All],[A1]:[C1]],41,0),\nIF(Rekenblad2[[#This Row],[Type gebouw]]=3,HLOOKUP(Rekenblad2[[#This Row],[Rekenblad 1]],StaatGalerij[[#All],[A1]:[C1]],41,0),\n\"Onbekende fout\")))),\n500)","v":4500},{"$f":"SUM(Rekenblad2[[#This Row],[Kosten warmteleverancier]:[Kosten woningeigenaar]])","v":5500},{"$f":"IF(Rekenblad2[[#This Row],[Type gebouw]]=1,HLOOKUP(Rekenblad2[[#This Row],[Rekenblad 1]],KwaliteitEGW[#All],2,0),\nIF(Rekenblad2[[#This Row],[Type gebouw]]=2,HLOOKUP(Rekenblad2[[#This Row],[Rekenblad 1]],KwaliteitPortiek[#All],2,0),\nIF(Rekenblad2[[#This Row],[Type gebouw]]=3,HLOOKUP(Rekenblad2[[#This Row],[Rekenblad 1]],KwaliteitGalerij[#All],2,0))))","v":4},{"$f":"IF(Rekenblad2[[#This Row],[Type gebouw]]=1,HLOOKUP(Rekenblad2[[#This Row],[Rekenblad 1]],KwaliteitEGW[#All],6,0),\nIF(Rekenblad2[[#This Row],[Type gebouw]]=2,HLOOKUP(Rekenblad2[[#This Row],[Rekenblad 1]],KwaliteitPortiek[#All],5,0),\nIF(Rekenblad2[[#This Row],[Type gebouw]]=3,HLOOKUP(Rekenblad2[[#This Row],[Rekenblad 1]],KwaliteitGalerij[#All],5,0))))","v":2},{"$f":"IF(Rekenblad2[[#This Row],[Type gebouw]]=1,HLOOKUP(Rekenblad2[[#This Row],[Rekenblad 1]],KwaliteitEGW[#All],10,0),\nIF(Rekenblad2[[#This Row],[Type gebouw]]=2,HLOOKUP(Rekenblad2[[#This Row],[Rekenblad 1]],KwaliteitPortiek[#All],9,0),\nIF(Rekenblad2[[#This Row],[Type gebouw]]=3,HLOOKUP(Rekenblad2[[#This Row],[Rekenblad 1]],KwaliteitGalerij[#All],9,0))))","v":2},{"$f":"IF(Rekenblad2[[#This Row],[Type gebouw]]=1,HLOOKUP(Rekenblad2[[#This Row],[Rekenblad 1]],KwaliteitEGW[#All],14,0),\nIF(Rekenblad2[[#This Row],[Type gebouw]]=2,HLOOKUP(Rekenblad2[[#This Row],[Rekenblad 1]],KwaliteitPortiek[#All],13,0),\nIF(Rekenblad2[[#This Row],[Type gebouw]]=3,HLOOKUP(Rekenblad2[[#This Row],[Rekenblad 1]],KwaliteitGalerij[#All],13,0))))","v":2}]
[null,null,"B1",3,"In de lengterichting van het volledige blok door de kapruimte",{"$f":"MROUND(\nIF(Rekenblad2[[#This Row],[Type gebouw]]=0,\"Voer type gebouw in\",\nIF(Rekenblad2[[#This Row],[Type gebouw]]=1,HLOOKUP(Rekenblad2[[#This Row],[Rekenblad 1]],StaatEGW[[#All],[A1.1]:[C1.2]],40,0),\nIF(Rekenblad2[[#This Row],[Type gebouw]]=2,HLOOKUP(Rekenblad2[[#This Row],[Rekenblad 1]],StaatPortiek[[#All],[A1]:[C1]],40,0),\nIF(Rekenblad2[[#This Row],[Type gebouw]]=3,HLOOKUP(Rekenblad2[[#This Row],[Rekenblad 1]],StaatGalerij[[#All],[A1]:[C1]],40,0),\n\"Onbekende fout\")))),\n500)","v":3500},{"$f":"MROUND(\nIF(Rekenblad2[[#This Row],[Type gebouw]]=0,\"Voer type gebouw in\",\nIF(Rekenblad2[[#This Row],[Type gebouw]]=1,HLOOKUP(Rekenblad2[[#This Row],[Rekenblad 1]],StaatEGW[[#All],[A1.1]:[C1.2]],41,0),\nIF(Rekenblad2[[#This Row],[Type gebouw]]=2,HLOOKUP(Rekenblad2[[#This Row],[Rekenblad 1]],StaatPortiek[[#All],[A1]:[C1]],41,0),\nIF(Rekenblad2[[#This Row],[Type gebouw]]=3,HLOOKUP(Rekenblad2[[#This Row],[Rekenblad 1]],StaatGalerij[[#All],[A1]:[C1]],41,0),\n\"Onbekende fout\")))),\n500)","v":3500},{"$f":"SUM(Rekenblad2[[#This Row],[Kosten warmteleverancier]:[Kosten woningeigenaar]])","v":7000},{"$f":"IF(Rekenblad2[[#This Row],[Type gebouw]]=1,HLOOKUP(Rekenblad2[[#This Row],[Rekenblad 1]],KwaliteitEGW[#All],2,0),\nIF(Rekenblad2[[#This Row],[Type gebouw]]=2,HLOOKUP(Rekenblad2[[#This Row],[Rekenblad 1]],KwaliteitPortiek[#All],2,0),\nIF(Rekenblad2[[#This Row],[Type gebouw]]=3,HLOOKUP(Rekenblad2[[#This Row],[Rekenblad 1]],KwaliteitGalerij[#All],2,0))))","v":3},{"$f":"IF(Rekenblad2[[#This Row],[Type gebouw]]=1,HLOOKUP(Rekenblad2[[#This Row],[Rekenblad 1]],KwaliteitEGW[#All],6,0),\nIF(Rekenblad2[[#This Row],[Type gebouw]]=2,HLOOKUP(Rekenblad2[[#This Row],[Rekenblad 1]],KwaliteitPortiek[#All],5,0),\nIF(Rekenblad2[[#This Row],[Type gebouw]]=3,HLOOKUP(Rekenblad2[[#This Row],[Rekenblad 1]],KwaliteitGalerij[#All],5,0))))","v":3},{"$f":"IF(Rekenblad2[[#This Row],[Type gebouw]]=1,HLOOKUP(Rekenblad2[[#This Row],[Rekenblad 1]],KwaliteitEGW[#All],10,0),\nIF(Rekenblad2[[#This Row],[Type gebouw]]=2,HLOOKUP(Rekenblad2[[#This Row],[Rekenblad 1]],KwaliteitPortiek[#All],9,0),\nIF(Rekenblad2[[#This Row],[Type gebouw]]=3,HLOOKUP(Rekenblad2[[#This Row],[Rekenblad 1]],KwaliteitGalerij[#All],9,0))))","v":4},{"$f":"IF(Rekenblad2[[#This Row],[Type gebouw]]=1,HLOOKUP(Rekenblad2[[#This Row],[Rekenblad 1]],KwaliteitEGW[#All],14,0),\nIF(Rekenblad2[[#This Row],[Type gebouw]]=2,HLOOKUP(Rekenblad2[[#This Row],[Rekenblad 1]],KwaliteitPortiek[#All],13,0),\nIF(Rekenblad2[[#This Row],[Type gebouw]]=3,HLOOKUP(Rekenblad2[[#This Row],[Rekenblad 1]],KwaliteitGalerij[#All],13,0))))","v":1}]
[null,null,"B2",3,"In de lengterichting van het volledige blok over de gevel ",{"$f":"MROUND(\nIF(Rekenblad2[[#This Row],[Type gebouw]]=0,\"Voer type gebouw in\",\nIF(Rekenblad2[[#This Row],[Type gebouw]]=1,HLOOKUP(Rekenblad2[[#This Row],[Rekenblad 1]],StaatEGW[[#All],[A1.1]:[C1.2]],40,0),\nIF(Rekenblad2[[#This Row],[Type gebouw]]=2,HLOOKUP(Rekenblad2[[#This Row],[Rekenblad 1]],StaatPortiek[[#All],[A1]:[C1]],40,0),\nIF(Rekenblad2[[#This Row],[Type gebouw]]=3,HLOOKUP(Rekenblad2[[#This Row],[Rekenblad 1]],StaatGalerij[[#All],[A1]:[C1]],40,0),\n\"Onbekende fout\")))),\n500)","v":2500},{"$f":"MROUND(\nIF(Rekenblad2[[#This Row],[Type gebouw]]=0,\"Voer type gebouw in\",\nIF(Rekenblad2[[#This Row],[Type gebouw]]=1,HLOOKUP(Rekenblad2[[#This Row],[Rekenblad 1]],StaatEGW[[#All],[A1.1]:[C1.2]],41,0),\nIF(Rekenblad2[[#This Row],[Type gebouw]]=2,HLOOKUP(Rekenblad2[[#This Row],[Rekenblad 1]],StaatPortiek[[#All],[A1]:[C1]],41,0),\nIF(Rekenblad2[[#This Row],[Type gebouw]]=3,HLOOKUP(Rekenblad2[[#This Row],[Rekenblad 1]],StaatGalerij[[#All],[A1]:[C1]],41,0),\n\"Onbekende fout\")))),\n500)","v":4500},{"$f":"SUM(Rekenblad2[[#This Row],[Kosten warmteleverancier]:[Kosten woningeigenaar]])","v":7000},{"$f":"IF(Rekenblad2[[#This Row],[Type gebouw]]=1,HLOOKUP(Rekenblad2[[#This Row],[Rekenblad 1]],KwaliteitEGW[#All],2,0),\nIF(Rekenblad2[[#This Row],[Type gebouw]]=2,HLOOKUP(Rekenblad2[[#This Row],[Rekenblad 1]],KwaliteitPortiek[#All],2,0),\nIF(Rekenblad2[[#This Row],[Type gebouw]]=3,HLOOKUP(Rekenblad2[[#This Row],[Rekenblad 1]],KwaliteitGalerij[#All],2,0))))","v":2},{"$f":"IF(Rekenblad2[[#This Row],[Type gebouw]]=1,HLOOKUP(Rekenblad2[[#This Row],[Rekenblad 1]],KwaliteitEGW[#All],6,0),\nIF(Rekenblad2[[#This Row],[Type gebouw]]=2,HLOOKUP(Rekenblad2[[#This Row],[Rekenblad 1]],KwaliteitPortiek[#All],5,0),\nIF(Rekenblad2[[#This Row],[Type gebouw]]=3,HLOOKUP(Rekenblad2[[#This Row],[Rekenblad 1]],KwaliteitGalerij[#All],5,0))))","v":3},{"$f":"IF(Rekenblad2[[#This Row],[Type gebouw]]=1,HLOOKUP(Rekenblad2[[#This Row],[Rekenblad 1]],KwaliteitEGW[#All],10,0),\nIF(Rekenblad2[[#This Row],[Type gebouw]]=2,HLOOKUP(Rekenblad2[[#This Row],[Rekenblad 1]],KwaliteitPortiek[#All],9,0),\nIF(Rekenblad2[[#This Row],[Type gebouw]]=3,HLOOKUP(Rekenblad2[[#This Row],[Rekenblad 1]],KwaliteitGalerij[#All],9,0))))","v":1},{"$f":"IF(Rekenblad2[[#This Row],[Type gebouw]]=1,HLOOKUP(Rekenblad2[[#This Row],[Rekenblad 1]],KwaliteitEGW[#All],14,0),\nIF(Rekenblad2[[#This Row],[Type gebouw]]=2,HLOOKUP(Rekenblad2[[#This Row],[Rekenblad 1]],KwaliteitPortiek[#All],13,0),\nIF(Rekenblad2[[#This Row],[Type gebouw]]=3,HLOOKUP(Rekenblad2[[#This Row],[Rekenblad 1]],KwaliteitGalerij[#All],13,0))))","v":2}]
[null,null,"B3",3,"In de lengterichting van het volledige blok over het dak ",{"$f":"MROUND(\nIF(Rekenblad2[[#This Row],[Type gebouw]]=0,\"Voer type gebouw in\",\nIF(Rekenblad2[[#This Row],[Type gebouw]]=1,HLOOKUP(Rekenblad2[[#This Row],[Rekenblad 1]],StaatEGW[[#All],[A1.1]:[C1.2]],40,0),\nIF(Rekenblad2[[#This Row],[Type gebouw]]=2,HLOOKUP(Rekenblad2[[#This Row],[Rekenblad 1]],StaatPortiek[[#All],[A1]:[C1]],40,0),\nIF(Rekenblad2[[#This Row],[Type gebouw]]=3,HLOOKUP(Rekenblad2[[#This Row],[Rekenblad 1]],StaatGalerij[[#All],[A1]:[C1]],40,0),\n\"Onbekende fout\")))),\n500)","v":2500},{"$f":"MROUND(\nIF(Rekenblad2[[#This Row],[Type gebouw]]=0,\"Voer type gebouw in\",\nIF(Rekenblad2[[#This Row],[Type gebouw]]=1,HLOOKUP(Rekenblad2[[#This Row],[Rekenblad 1]],StaatEGW[[#All],[A1.1]:[C1.2]],41,0),\nIF(Rekenblad2[[#This Row],[Type gebouw]]=2,HLOOKUP(Rekenblad2[[#This Row],[Rekenblad 1]],StaatPortiek[[#All],[A1]:[C1]],41,0),\nIF(Rekenblad2[[#This Row],[Type gebouw]]=3,HLOOKUP(Rekenblad2[[#This Row],[Rekenblad 1]],StaatGalerij[[#All],[A1]:[C1]],41,0),\n\"Onbekende fout\")))),\n500)","v":3500},{"$f":"SUM(Rekenblad2[[#This Row],[Kosten warmteleverancier]:[Kosten woningeigenaar]])","v":6000},{"$f":"IF(Rekenblad2[[#This Row],[Type gebouw]]=1,HLOOKUP(Rekenblad2[[#This Row],[Rekenblad 1]],KwaliteitEGW[#All],2,0),\nIF(Rekenblad2[[#This Row],[Type gebouw]]=2,HLOOKUP(Rekenblad2[[#This Row],[Rekenblad 1]],KwaliteitPortiek[#All],2,0),\nIF(Rekenblad2[[#This Row],[Type gebouw]]=3,HLOOKUP(Rekenblad2[[#This Row],[Rekenblad 1]],KwaliteitGalerij[#All],2,0))))","v":2},{"$f":"IF(Rekenblad2[[#This Row],[Type gebouw]]=1,HLOOKUP(Rekenblad2[[#This Row],[Rekenblad 1]],KwaliteitEGW[#All],6,0),\nIF(Rekenblad2[[#This Row],[Type gebouw]]=2,HLOOKUP(Rekenblad2[[#This Row],[Rekenblad 1]],KwaliteitPortiek[#All],5,0),\nIF(Rekenblad2[[#This Row],[Type gebouw]]=3,HLOOKUP(Rekenblad2[[#This Row],[Rekenblad 1]],KwaliteitGalerij[#All],5,0))))","v":3},{"$f":"IF(Rekenblad2[[#This Row],[Type gebouw]]=1,HLOOKUP(Rekenblad2[[#This Row],[Rekenblad 1]],KwaliteitEGW[#All],10,0),\nIF(Rekenblad2[[#This Row],[Type gebouw]]=2,HLOOKUP(Rekenblad2[[#This Row],[Rekenblad 1]],KwaliteitPortiek[#All],9,0),\nIF(Rekenblad2[[#This Row],[Type gebouw]]=3,HLOOKUP(Rekenblad2[[#This Row],[Rekenblad 1]],KwaliteitGalerij[#All],9,0))))","v":4},{"$f":"IF(Rekenblad2[[#This Row],[Type gebouw]]=1,HLOOKUP(Rekenblad2[[#This Row],[Rekenblad 1]],KwaliteitEGW[#All],14,0),\nIF(Rekenblad2[[#This Row],[Type gebouw]]=2,HLOOKUP(Rekenblad2[[#This Row],[Rekenblad 1]],KwaliteitPortiek[#All],13,0),\nIF(Rekenblad2[[#This Row],[Type gebouw]]=3,HLOOKUP(Rekenblad2[[#This Row],[Rekenblad 1]],KwaliteitGalerij[#All],13,0))))","v":1}]
[null,null,"B4",3,"In de lengterichting van het volledige blok onder de onderste woonlaag door",{"$f":"MROUND(\nIF(Rekenblad2[[#This Row],[Type gebouw]]=0,\"Voer type gebouw in\",\nIF(Rekenblad2[[#This Row],[Type gebouw]]=1,HLOOKUP(Rekenblad2[[#This Row],[Rekenblad 1]],StaatEGW[[#All],[A1.1]:[C1.2]],40,0),\nIF(Rekenblad2[[#This Row],[Type gebouw]]=2,HLOOKUP(Rekenblad2[[#This Row],[Rekenblad 1]],StaatPortiek[[#All],[A1]:[C1]],40,0),\nIF(Rekenblad2[[#This Row],[Type gebouw]]=3,HLOOKUP(Rekenblad2[[#This Row],[Rekenblad 1]],StaatGalerij[[#All],[A1]:[C1]],40,0),\n\"Onbekende fout\")))),\n500)","v":2500},{"$f":"MROUND(\nIF(Rekenblad2[[#This Row],[Type gebouw]]=0,\"Voer type gebouw in\",\nIF(Rekenblad2[[#This Row],[Type gebouw]]=1,HLOOKUP(Rekenblad2[[#This Row],[Rekenblad 1]],StaatEGW[[#All],[A1.1]:[C1.2]],41,0),\nIF(Rekenblad2[[#This Row],[Type gebouw]]=2,HLOOKUP(Rekenblad2[[#This Row],[Rekenblad 1]],StaatPortiek[[#All],[A1]:[C1]],41,0),\nIF(Rekenblad2[[#This Row],[Type gebouw]]=3,HLOOKUP(Rekenblad2[[#This Row],[Rekenblad 1]],StaatGalerij[[#All],[A1]:[C1]],41,0),\n\"Onbekende fout\")))),\n500)","v":3500},{"$f":"SUM(Rekenblad2[[#This Row],[Kosten warmteleverancier]:[Kosten woningeigenaar]])","v":6000},{"$f":"IF(Rekenblad2[[#This Row],[Type gebouw]]=1,HLOOKUP(Rekenblad2[[#This Row],[Rekenblad 1]],KwaliteitEGW[#All],2,0),\nIF(Rekenblad2[[#This Row],[Type gebouw]]=2,HLOOKUP(Rekenblad2[[#This Row],[Rekenblad 1]],KwaliteitPortiek[#All],2,0),\nIF(Rekenblad2[[#This Row],[Type gebouw]]=3,HLOOKUP(Rekenblad2[[#This Row],[Rekenblad 1]],KwaliteitGalerij[#All],2,0))))","v":5},{"$f":"IF(Rekenblad2[[#This Row],[Type gebouw]]=1,HLOOKUP(Rekenblad2[[#This Row],[Rekenblad 1]],KwaliteitEGW[#All],6,0),\nIF(Rekenblad2[[#This Row],[Type gebouw]]=2,HLOOKUP(Rekenblad2[[#This Row],[Rekenblad 1]],KwaliteitPortiek[#All],5,0),\nIF(Rekenblad2[[#This Row],[Type gebouw]]=3,HLOOKUP(Rekenblad2[[#This Row],[Rekenblad 1]],KwaliteitGalerij[#All],5,0))))","v":1},{"$f":"IF(Rekenblad2[[#This Row],[Type gebouw]]=1,HLOOKUP(Rekenblad2[[#This Row],[Rekenblad 1]],KwaliteitEGW[#All],10,0),\nIF(Rekenblad2[[#This Row],[Type gebouw]]=2,HLOOKUP(Rekenblad2[[#This Row],[Rekenblad 1]],KwaliteitPortiek[#All],9,0),\nIF(Rekenblad2[[#This Row],[Type gebouw]]=3,HLOOKUP(Rekenblad2[[#This Row],[Rekenblad 1]],KwaliteitGalerij[#All],9,0))))","v":4},{"$f":"IF(Rekenblad2[[#This Row],[Type gebouw]]=1,HLOOKUP(Rekenblad2[[#This Row],[Rekenblad 1]],KwaliteitEGW[#All],14,0),\nIF(Rekenblad2[[#This Row],[Type gebouw]]=2,HLOOKUP(Rekenblad2[[#This Row],[Rekenblad 1]],KwaliteitPortiek[#All],13,0),\nIF(Rekenblad2[[#This Row],[Type gebouw]]=3,HLOOKUP(Rekenblad2[[#This Row],[Rekenblad 1]],KwaliteitGalerij[#All],13,0))))","v":1}]
[null,null,"C1",3,"De individuele afleverset buiten de woning",{"$f":"MROUND(\nIF(Rekenblad2[[#This Row],[Type gebouw]]=0,\"Voer type gebouw in\",\nIF(Rekenblad2[[#This Row],[Type gebouw]]=1,HLOOKUP(Rekenblad2[[#This Row],[Rekenblad 1]],StaatEGW[[#All],[A1.1]:[C1.2]],40,0),\nIF(Rekenblad2[[#This Row],[Type gebouw]]=2,HLOOKUP(Rekenblad2[[#This Row],[Rekenblad 1]],StaatPortiek[[#All],[A1]:[C1]],40,0),\nIF(Rekenblad2[[#This Row],[Type gebouw]]=3,HLOOKUP(Rekenblad2[[#This Row],[Rekenblad 1]],StaatGalerij[[#All],[A1]:[C1]],40,0),\n\"Onbekende fout\")))),\n500)","v":500},{"$f":"MROUND(\nIF(Rekenblad2[[#This Row],[Type gebouw]]=0,\"Voer type gebouw in\",\nIF(Rekenblad2[[#This Row],[Type gebouw]]=1,HLOOKUP(Rekenblad2[[#This Row],[Rekenblad 1]],StaatEGW[[#All],[A1.1]:[C1.2]],41,0),\nIF(Rekenblad2[[#This Row],[Type gebouw]]=2,HLOOKUP(Rekenblad2[[#This Row],[Rekenblad 1]],StaatPortiek[[#All],[A1]:[C1]],41,0),\nIF(Rekenblad2[[#This Row],[Type gebouw]]=3,HLOOKUP(Rekenblad2[[#This Row],[Rekenblad 1]],StaatGalerij[[#All],[A1]:[C1]],41,0),\n\"Onbekende fout\")))),\n500)","v":4500},{"$f":"SUM(Rekenblad2[[#This Row],[Kosten warmteleverancier]:[Kosten woningeigenaar]])","v":5000},{"$f":"IF(Rekenblad2[[#This Row],[Type gebouw]]=1,HLOOKUP(Rekenblad2[[#This Row],[Rekenblad 1]],KwaliteitEGW[#All],2,0),\nIF(Rekenblad2[[#This Row],[Type gebouw]]=2,HLOOKUP(Rekenblad2[[#This Row],[Rekenblad 1]],KwaliteitPortiek[#All],2,0),\nIF(Rekenblad2[[#This Row],[Type gebouw]]=3,HLOOKUP(Rekenblad2[[#This Row],[Rekenblad 1]],KwaliteitGalerij[#All],2,0))))","v":2},{"$f":"IF(Rekenblad2[[#This Row],[Type gebouw]]=1,HLOOKUP(Rekenblad2[[#This Row],[Rekenblad 1]],KwaliteitEGW[#All],6,0),\nIF(Rekenblad2[[#This Row],[Type gebouw]]=2,HLOOKUP(Rekenblad2[[#This Row],[Rekenblad 1]],KwaliteitPortiek[#All],5,0),\nIF(Rekenblad2[[#This Row],[Type gebouw]]=3,HLOOKUP(Rekenblad2[[#This Row],[Rekenblad 1]],KwaliteitGalerij[#All],5,0))))","v":2},{"$f":"IF(Rekenblad2[[#This Row],[Type gebouw]]=1,HLOOKUP(Rekenblad2[[#This Row],[Rekenblad 1]],KwaliteitEGW[#All],10,0),\nIF(Rekenblad2[[#This Row],[Type gebouw]]=2,HLOOKUP(Rekenblad2[[#This Row],[Rekenblad 1]],KwaliteitPortiek[#All],9,0),\nIF(Rekenblad2[[#This Row],[Type gebouw]]=3,HLOOKUP(Rekenblad2[[#This Row],[Rekenblad 1]],KwaliteitGalerij[#All],9,0))))","v":3},{"$f":"IF(Rekenblad2[[#This Row],[Type gebouw]]=1,HLOOKUP(Rekenblad2[[#This Row],[Rekenblad 1]],KwaliteitEGW[#All],14,0),\nIF(Rekenblad2[[#This Row],[Type gebouw]]=2,HLOOKUP(Rekenblad2[[#This Row],[Rekenblad 1]],KwaliteitPortiek[#All],13,0),\nIF(Rekenblad2[[#This Row],[Type gebouw]]=3,HLOOKUP(Rekenblad2[[#This Row],[Rekenblad 1]],KwaliteitGalerij[#All],13,0))))","v":3}]
[]
[null,null,"Code","Toets"]
[null,null,"A1.1","A1.1"]
[null,null,"A1.2","A1.2"]
[null,null,"A2.1","A2.1"]
[null,null,"A2.2","A2.2"]
[null,null,"A3.1","A3.1"]
[null,null,"A3.2","A3.2"]
[null,null,"A4.1","A4.1"]
[null,null,"A4.2","A4.2"]
[null,null,"B1.1","B1.1"]
[null,null,"B1.2","B1.2"]
[null,null,"B2.1","B2.1"]
[null,null,"B2.2","B2.2"]
[null,null,"B3.1","B3.1"]
[null,null,"B3.2","B3.2"]
[null,null,"B4.1","B4.1"]
[null,null,"B4.2","B4.2"]
[null,null,"C1.1","C1.1"]
[null,null,"C1.2","C1.2"]
[null,null,"A1","A1"]
[null,null,"A2","A2"]
[null,null,"A3","A3"]
[null,null,"A4","A4"]
[null,null,"B1","B1"]
[null,null,"B2","B2"]
[null,null,"B3","B3"]
[null,null,"B4","B4"]
[null,null,"C1","C1"]
[null,null,"A1","A1"]
[null,null,"A2","A2"]
[null,null,"A3","A3"]
[null,null,"A4","A4"]
[null,null,"B1","B1"]
[null,null,"B2","B2"]
[null,null,"B3","B3"]
[null,null,"B4","B4"]
[null,null,"C1","C1"]

{"sheet":"Svv","index":5,"n_rows":48,"n_cols":9,"rows_kept":48,"cut":false,"hidden":false,"merged":[]}
["Code","Dienst, levering of handeling","Eenheid","Aantal","Prijs per eenheid exlusief btw en inclusief alle opslagen","Prijs per eenheid inclusief btw en inclusief alle opslagen ","Totaal exlusief btw en inclusief alle opslagen","Totaal inclusief btw en inclusief alle opslagen ","Bron"]
[null,"Kosten warmtebedrijf (tot aan de afleverset)"]
[1,"Graaf- en herstelkwerkzaamheden"]
["1.1.a","Graaf- en herstelwerkzaamheden bij gesloten verharding (asfalt)","meter",null,340,{"$f":"Staat[[#This Row],[Prijs per eenheid exlusief btw en inclusief alle opslagen]]*1.21","v":411.4},{"$f":"Staat[[#This Row],[Prijs per eenheid exlusief btw en inclusief alle opslagen]]*Staat[[#This Row],[Aantal]]","v":0},{"$f":"Staat[[#This Row],[Aantal]]*Staat[[#This Row],[Prijs per eenheid inclusief btw en inclusief alle opslagen ]]","v":0},"Bouwkosten Online / Marktonderzoek"]
["1.1.b","Graaf- en herstelwerkzaamheden bij elementen verharding (tegels 30*30cm) ","meter",null,{"$f":"22.71+70","v":92.710000000000008},{"$f":"Staat[[#This Row],[Prijs per eenheid exlusief btw en inclusief alle opslagen]]*1.21","v":112.17910000000001},{"$f":"Staat[[#This Row],[Prijs per eenheid exlusief btw en inclusief alle opslagen]]*Staat[[#This Row],[Aantal]]","v":0},{"$f":"Staat[[#This Row],[Aantal]]*Staat[[#This Row],[Prijs per eenheid inclusief btw en inclusief alle opslagen ]]","v":0},"Bouwkosten Online / Marktonderzoek"]
["1.1.c","Graaf- en herstelwerkzaamheden bij groen ","meter",null,{"$f":"(70)","v":70},{"$f":"Staat[[#This Row],[Prijs per eenheid exlusief btw en inclusief alle opslagen]]*1.21","v":84.7},{"$f":"Staat[[#This Row],[Prijs per eenheid exlusief btw en inclusief alle opslagen]]*Staat[[#This Row],[Aantal]]","v":0},{"$f":"Staat[[#This Row],[Aantal]]*Staat[[#This Row],[Prijs per eenheid inclusief btw en inclusief alle opslagen ]]","v":0},"Bouwkosten Online / Marktonderzoek"]
["1.2","Ondiepe kruipruimte leeggraven ","woning",null,2500,{"$f":"Staat[[#This Row],[Prijs per eenheid exlusief btw en inclusief alle opslagen]]*1.21","v":3025},{"$f":"Staat[[#This Row],[Prijs per eenheid exlusief btw en inclusief alle opslagen]]*Staat[[#This Row],[Aantal]]","v":0},{"$f":"Staat[[#This Row],[Aantal]]*Staat[[#This Row],[Prijs per eenheid inclusief btw en inclusief alle opslagen ]]","v":0},"Kruipruimte specialist "]
[2,"Leidingwerk"]
["2.1","DN22 (1-2 woningen)","meter",null,156,{"$f":"Staat[[#This Row],[Prijs per eenheid exlusief btw en inclusief alle opslagen]]*1.21","v":188.76},{"$f":"Staat[[#This Row],[Prijs per eenheid exlusief btw en inclusief alle opslagen]]*Staat[[#This Row],[Aantal]]","v":0},{"$f":"Staat[[#This Row],[Aantal]]*Staat[[#This Row],[Prijs per eenheid inclusief btw en inclusief alle opslagen ]]","v":0},"Kostenboek / Marktonderzoek"]
["2.3","DN35  (>3 woningen)","meter",null,182,{"$f":"Staat[[#This Row],[Prijs per eenheid exlusief btw en inclusief alle opslagen]]*1.21","v":220.22},{"$f":"Staat[[#This Row],[Prijs per eenheid exlusief btw en inclusief alle opslagen]]*Staat[[#This Row],[Aantal]]","v":0},{"$f":"Staat[[#This Row],[Aantal]]*Staat[[#This Row],[Prijs per eenheid inclusief btw en inclusief alle opslagen ]]","v":0},"Kostenboek / Marktonderzoek"]
["2.4","Aanboren/aftakken warmtebuis (aansluiten op nieuwe distributieleiding)","aftakking",null,750,{"$f":"Staat[[#This Row],[Prijs per eenheid exlusief btw en inclusief alle opslagen]]*1.21","v":907.5},{"$f":"Staat[[#This Row],[Prijs per eenheid exlusief btw en inclusief alle opslagen]]*Staat[[#This Row],[Aantal]]","v":0},{"$f":"Staat[[#This Row],[Aantal]]*Staat[[#This Row],[Prijs per eenheid inclusief btw en inclusief alle opslagen ]]","v":0}]
["2.5","Aanboren/aftakken warmtebuis (aansluiten op bestaande distributieleiding)","aftakking",null,1500,{"$f":"Staat[[#This Row],[Prijs per eenheid exlusief btw en inclusief alle opslagen]]*1.21","v":1815},{"$f":"Staat[[#This Row],[Prijs per eenheid exlusief btw en inclusief alle opslagen]]*Staat[[#This Row],[Aantal]]","v":0},{"$f":"Staat[[#This Row],[Aantal]]*Staat[[#This Row],[Prijs per eenheid inclusief btw en inclusief alle opslagen ]]","v":0}]
[3,"Boorwerk"]
["3.1.a","Boren stenen gevel (Ø 90mm)","stuk",null,24.5,{"$f":"Staat[[#This Row],[Prijs per eenheid exlusief btw en inclusief alle opslagen]]*1.21","v":29.645},{"$f":"Staat[[#This Row],[Prijs per eenheid exlusief btw en inclusief alle opslagen]]*Staat[[#This Row],[Aantal]]","v":0},{"$f":"Staat[[#This Row],[Aantal]]*Staat[[#This Row],[Prijs per eenheid inclusief btw en inclusief alle opslagen ]]","v":0},"Bouwkosten Online "]
["3.1.b","Boren stenen gevel (Ø 150mm)","stuk",null,31.5,{"$f":"Staat[[#This Row],[Prijs per eenheid exlusief btw en inclusief alle opslagen]]*1.21","v":38.115000000000002},{"$f":"Staat[[#This Row],[Prijs per eenheid exlusief btw en inclusief alle opslagen]]*Staat[[#This Row],[Aantal]]","v":0},{"$f":"Staat[[#This Row],[Aantal]]*Staat[[#This Row],[Prijs per eenheid inclusief btw en inclusief alle opslagen ]]","v":0},"Bouwkosten Online "]
["3.2.a","Boren fundering (Ø 90mm)","stuk",null,43.199999999999996,{"$f":"Staat[[#This Row],[Prijs per eenheid exlusief btw en inclusief alle opslagen]]*1.21","v":52.271999999999991},{"$f":"Staat[[#This Row],[Prijs per eenheid exlusief btw en inclusief alle opslagen]]*Staat[[#This Row],[Aantal]]","v":0},{"$f":"Staat[[#This Row],[Aantal]]*Staat[[#This Row],[Prijs per eenheid inclusief btw en inclusief alle opslagen ]]","v":0},"Bouwkosten Online "]
["3.2.b","Boren fundering (Ø 150mm)","stuk",null,52.8,{"$f":"Staat[[#This Row],[Prijs per eenheid exlusief btw en inclusief alle opslagen]]*1.21","v":63.887999999999998},{"$f":"Staat[[#This Row],[Prijs per eenheid exlusief btw en inclusief alle opslagen]]*Staat[[#This Row],[Aantal]]","v":0},{"$f":"Staat[[#This Row],[Aantal]]*Staat[[#This Row],[Prijs per eenheid inclusief btw en inclusief alle opslagen ]]","v":0},"Bouwkosten Online "]
["3.3.a","Boren betonvloer (Ø 90mm)","stuk",null,28.799999999999997,{"$f":"Staat[[#This Row],[Prijs per eenheid exlusief btw en inclusief alle opslagen]]*1.21","v":34.847999999999999},{"$f":"Staat[[#This Row],[Prijs per eenheid exlusief btw en inclusief alle opslagen]]*Staat[[#This Row],[Aantal]]","v":0},{"$f":"Staat[[#This Row],[Aantal]]*Staat[[#This Row],[Prijs per eenheid inclusief btw en inclusief alle opslagen ]]","v":0},"Bouwkosten Online "]
["3.3.b","Boren betonvloer (Ø 150mm)","stuk",null,35.200000000000003,{"$f":"Staat[[#This Row],[Prijs per eenheid exlusief btw en inclusief alle opslagen]]*1.21","v":42.591999999999999},{"$f":"Staat[[#This Row],[Prijs per eenheid exlusief btw en inclusief alle opslagen]]*Staat[[#This Row],[Aantal]]","v":0},{"$f":"Staat[[#This Row],[Aantal]]*Staat[[#This Row],[Prijs per eenheid inclusief btw en inclusief alle opslagen ]]","v":0},"Bouwkosten Online "]
["3.4.a","Boren tussenwand (Ø 90mm)","stuk",null,9.8000000000000007,{"$f":"Staat[[#This Row],[Prijs per eenheid exlusief btw en inclusief alle opslagen]]*1.21","v":11.858000000000001},{"$f":"Staat[[#This Row],[Prijs per eenheid exlusief btw en inclusief alle opslagen]]*Staat[[#This Row],[Aantal]]","v":0},{"$f":"Staat[[#This Row],[Aantal]]*Staat[[#This Row],[Prijs per eenheid inclusief btw en inclusief alle opslagen ]]","v":0},"Bouwkosten Online "]
["3.4.b","Boren tussenwand (Ø 150mm)","stuk",null,12.6,{"$f":"Staat[[#This Row],[Prijs per eenheid exlusief btw en inclusief alle opslagen]]*1.21","v":15.245999999999999},{"$f":"Staat[[#This Row],[Prijs per eenheid exlusief btw en inclusief alle opslagen]]*Staat[[#This Row],[Aantal]]","v":0},{"$f":"Staat[[#This Row],[Aantal]]*Staat[[#This Row],[Prijs per eenheid inclusief btw en inclusief alle opslagen ]]","v":0},"Bouwkosten Online "]
["3.5","Brandwerende doorvoeren","stuk",null,100,{"$f":"Staat[[#This Row],[Prijs per eenheid exlusief btw en inclusief alle opslagen]]*1.21","v":121},{"$f":"Staat[[#This Row],[Prijs per eenheid exlusief btw en inclusief alle opslagen]]*Staat[[#This Row],[Aantal]]","v":0},{"$f":"Staat[[#This Row],[Aantal]]*Staat[[#This Row],[Prijs per eenheid inclusief btw en inclusief alle opslagen ]]","v":0}]
[4,"Afwerking en maatwerk"]
["4.1","Maatwerk bij alternatief A3/A4: isolerende beschermingskap aan buitenzijde en veiligheidsmaatregelen","woning",null,300,{"$f":"Staat[[#This Row],[Prijs per eenheid exlusief btw en inclusief alle opslagen]]*1.21","v":363},{"$f":"Staat[[#This Row],[Prijs per eenheid exlusief btw en inclusief alle opslagen]]*Staat[[#This Row],[Aantal]]","v":0},{"$f":"Staat[[#This Row],[Aantal]]*Staat[[#This Row],[Prijs per eenheid inclusief btw en inclusief alle opslagen ]]","v":0},"Prijzenboek Atriensis projecten"]
["4.2","Maatwerk bij alternatief B1: aftimmeren knieschot binnenzijde zolder en veiligheidsmaatregelen bij alternatief B1","woning",null,800,{"$f":"Staat[[#This Row],[Prijs per eenheid exlusief btw en inclusief alle opslagen]]*1.21","v":968},{"$f":"Staat[[#This Row],[Prijs per eenheid exlusief btw en inclusief alle opslagen]]*Staat[[#This Row],[Aantal]]","v":0},{"$f":"Staat[[#This Row],[Aantal]]*Staat[[#This Row],[Prijs per eenheid inclusief btw en inclusief alle opslagen ]]","v":0},"Prijzenboek Atriensis projecten"]
["4.3","Maatwerk bij alternatief B2: verwerken van leiding nabij de dakgoot","woning",null,3000,{"$f":"Staat[[#This Row],[Prijs per eenheid exlusief btw en inclusief alle opslagen]]*1.21","v":3630},{"$f":"Staat[[#This Row],[Prijs per eenheid exlusief btw en inclusief alle opslagen]]*Staat[[#This Row],[Aantal]]","v":0},{"$f":"Staat[[#This Row],[Aantal]]*Staat[[#This Row],[Prijs per eenheid inclusief btw en inclusief alle opslagen ]]","v":0}]
["4.4","Maatwerk bij alternatief B3: Koof ten behoeve van leidingwerk op dak","woning",null,93.023255813953483,{"$f":"Staat[[#This Row],[Prijs per eenheid exlusief btw en inclusief alle opslagen]]*1.21","v":112.55813953488371},{"$f":"Staat[[#This Row],[Prijs per eenheid exlusief btw en inclusief alle opslagen]]*Staat[[#This Row],[Aantal]]","v":0},{"$f":"Staat[[#This Row],[Aantal]]*Staat[[#This Row],[Prijs per eenheid inclusief btw en inclusief alle opslagen ]]","v":0},"Prijzenboek Atriensis projecten"]
["4.5","Afleverset","woning",null,0,{"$f":"Staat[[#This Row],[Prijs per eenheid exlusief btw en inclusief alle opslagen]]*1.21","v":0},{"$f":"Staat[[#This Row],[Prijs per eenheid exlusief btw en inclusief alle opslagen]]*Staat[[#This Row],[Aantal]]","v":0},{"$f":"Staat[[#This Row],[Aantal]]*Staat[[#This Row],[Prijs per eenheid inclusief btw en inclusief alle opslagen ]]","v":0},"Prijzenboek Atriensis projecten"]
[null,"Kosten gebouweigenaar (achter de afleverset)"]
[5,"Maatregelen achter de voordeur "]
["5.1.a","Verwijderen combiketel en aanpassingen in de woning. Prijs geldt indien afleverset in dezelfde ruimte en binnen 2 meter van de plek van de combiketel wordt geplaatst.","woning",null,972,{"$f":"Staat[[#This Row],[Prijs per eenheid exlusief btw en inclusief alle opslagen]]*1.21","v":1176.1199999999999},{"$f":"Staat[[#This Row],[Prijs per eenheid exlusief btw en inclusief alle opslagen]]*Staat[[#This Row],[Aantal]]","v":0},{"$f":"Staat[[#This Row],[Aantal]]*Staat[[#This Row],[Prijs per eenheid inclusief btw en inclusief alle opslagen ]]","v":0},"Prijzenboek Atriensis projecten"]
["5.2.b ","Toeslag indien afleverset in een andere ruimte en/of een afstand groter dan 2 meter van plek van de combiketel wordt geplaatst.","woning",null,965,{"$f":"Staat[[#This Row],[Prijs per eenheid exlusief btw en inclusief alle opslagen]]*1.21","v":1167.6499999999999},{"$f":"Staat[[#This Row],[Prijs per eenheid exlusief btw en inclusief alle opslagen]]*Staat[[#This Row],[Aantal]]","v":0},{"$f":"Staat[[#This Row],[Aantal]]*Staat[[#This Row],[Prijs per eenheid inclusief btw en inclusief alle opslagen ]]","v":0},"Prijzenboek Atriensis projecten"]
["5.3","Omkasting voor afleverset als deze in verkeersruimte buiten meterkast of in verblijfsruimte geprojecteerd is ","stuk",null,500,{"$f":"Staat[[#This Row],[Prijs per eenheid exlusief btw en inclusief alle opslagen]]*1.21","v":605},{"$f":"Staat[[#This Row],[Prijs per eenheid exlusief btw en inclusief alle opslagen]]*Staat[[#This Row],[Aantal]]","v":0},{"$f":"Staat[[#This Row],[Aantal]]*Staat[[#This Row],[Prijs per eenheid inclusief btw en inclusief alle opslagen ]]","v":0},"Prijzenboek Atriensis projecten"]
["5.4","Verwijderen gasleidingen in het zicht plus aanhelen","woning",null,240,{"$f":"Staat[[#This Row],[Prijs per eenheid exlusief btw en inclusief alle opslagen]]*1.21","v":290.39999999999998},{"$f":"Staat[[#This Row],[Prijs per eenheid exlusief btw en inclusief alle opslagen]]*Staat[[#This Row],[Aantal]]","v":0},{"$f":"Staat[[#This Row],[Aantal]]*Staat[[#This Row],[Prijs per eenheid inclusief btw en inclusief alle opslagen ]]","v":0},"Prijzenboek Atriensis projecten"]
["5.5","Filteren, spoelen, afpersen en volledig waterzijdig inregelen van woonhuisinstallatie  ","woning",null,248,{"$f":"Staat[[#This Row],[Prijs per eenheid exlusief btw en inclusief alle opslagen]]*1.21","v":300.08},{"$f":"Staat[[#This Row],[Prijs per eenheid exlusief btw en inclusief alle opslagen]]*Staat[[#This Row],[Aantal]]","v":0},{"$f":"Staat[[#This Row],[Aantal]]*Staat[[#This Row],[Prijs per eenheid inclusief btw en inclusief alle opslagen ]]","v":0},"Prijzenboek Atriensis projecten"]
["5.6","Vervangen van radiator (aanname dat twee per woning)","woning",null,{"$f":"2*410","v":820},{"$f":"Staat[[#This Row],[Prijs per eenheid exlusief btw en inclusief alle opslagen]]*1.21","v":992.19999999999993},{"$f":"Staat[[#This Row],[Prijs per eenheid exlusief btw en inclusief alle opslagen]]*Staat[[#This Row],[Aantal]]","v":0},{"$f":"Staat[[#This Row],[Aantal]]*Staat[[#This Row],[Prijs per eenheid inclusief btw en inclusief alle opslagen ]]","v":0},"Prijzenboek Atriensis projecten"]
["5.7","Vervangen of inbouwen dynamische thermostatische regelventielen bij te handhaven radiator (aaname 2 per woning)","woning",null,{"$f":"78*2","v":156},{"$f":"Staat[[#This Row],[Prijs per eenheid exlusief btw en inclusief alle opslagen]]*1.21","v":188.76},{"$f":"Staat[[#This Row],[Prijs per eenheid exlusief btw en inclusief alle opslagen]]*Staat[[#This Row],[Aantal]]","v":0},{"$f":"Staat[[#This Row],[Aantal]]*Staat[[#This Row],[Prijs per eenheid inclusief btw en inclusief alle opslagen ]]","v":0}]
["5.8","Inductie kookplaat een aanpassing meterkast voor elektrisch koken","woning",null,683,{"$f":"Staat[[#This Row],[Prijs per eenheid exlusief btw en inclusief alle opslagen]]*1.21","v":826.43},{"$f":"Staat[[#This Row],[Prijs per eenheid exlusief btw en inclusief alle opslagen]]*Staat[[#This Row],[Aantal]]","v":0},{"$f":"Staat[[#This Row],[Aantal]]*Staat[[#This Row],[Prijs per eenheid inclusief btw en inclusief alle opslagen ]]","v":0},"Prijzenboek Atriensis projecten"]
[]
[]
[null,"Kosten warmtebedrijf exclusief BTW",{"$f":"SUM(G1:G28)","v":0}]
[null,"Kosten warmtebedrijf inclusief BTW",{"$f":"SUM(H2:H28)","v":0}]
[]
[null,"Kosten gebouweigenaar exclusief BTW",{"$f":"SUM(G30:G38)","v":0}]
[null,"Kosten gebouweigenaar inclusief BTW",{"$f":"SUM(H31:H38)","v":0}]
[]
[null,"Totaal exclusief BTW",{"$f":"SUM(G3:G38)","v":0}]
[null,"Totaal inclusief BTW",{"$f":"SUM(Staat[[Totaal inclusief btw en inclusief alle opslagen ]])","v":0}]

{"sheet":"Staat EGW","index":6,"n_rows":48,"n_cols":22,"rows_kept":48,"cut":false,"hidden":false,"merged":[]}
["Nr","Overige kenmerken","Aantal",null,null,"Breedte ","Hoogte"]
[7,"Aantal meter gesloten verharding (asfalt) vanaf hoofleiding tot gevel",2,null,null,6.4,2.6]
[8,"Aantal meter elementen verharding (tegels 30*30cm) vanaf hoofleiding tot gevel",3]
[9,"Aantal meter groen vanaf hoofleiding tot gevel"]
[]
["Code","Dienst, levering of handeling","Eenheid","A1.1","A1.2","A2.1","A2.2","A3.1","A3.2","A4.1","A4.2","B1.1","B1.2","B2.1","B2.2","B3.1","B3.2","B4.1","B4.2","C1.1","C1.2"]
[null,"Warmtebedrijf (tot aan de afleverset)"]
[{"$f":"Svv!A3","v":1},{"$f":"Svv!B3","v":"Graaf- en herstelkwerkzaamheden"}]
[{"$f":"Svv!A4","v":"1.1.a"},{"$f":"Svv!B4","v":"Graaf- en herstelwerkzaamheden bij gesloten verharding (asfalt)"},{"$f":"Svv!C4","v":"meter"},{"$f":"C2","v":2},{"$f":"C2","v":2},{"$f":"C2*0.5","v":1},{"$f":"C2*0.5","v":1},{"$f":"C2","v":2},{"$f":"C2","v":2},{"$f":"C2*0.5","v":1},{"$f":"C2*0.5","v":1},{"$f":"C2/6","v":0.33333333333333331},{"$f":"C2/6","v":0.33333333333333331},{"$f":"C2/6","v":0.33333333333333331},{"$f":"C2/6","v":0.33333333333333331},{"$f":"C2/6","v":0.33333333333333331},{"$f":"C2/6","v":0.33333333333333331},{"$f":"C2/6","v":0.33333333333333331},{"$f":"C2/6","v":0.33333333333333331},{"$f":"C2","v":2},{"$f":"C2","v":2},"Aantallen worden gedeel als meer woningen te gelijk aangesloten"]
[{"$f":"Svv!A5","v":"1.1.b"},{"$f":"Svv!B5","v":"Graaf- en herstelwerkzaamheden bij elementen verharding (tegels 30*30cm) "},{"$f":"Svv!C5","v":"meter"},{"$f":"C3","v":3},{"$f":"C3","v":3},{"$f":"C3*0.5","v":1.5},{"$f":"C3*0.5","v":1.5},{"$f":"C3","v":3},{"$f":"C3","v":3},{"$f":"C3*0.5","v":1.5},{"$f":"C3*0.5","v":1.5},{"$f":"C3/6","v":0.5},{"$f":"C3/6","v":0.5},{"$f":"C3/6","v":0.5},{"$f":"C3/6","v":0.5},{"$f":"C3/6","v":0.5},{"$f":"C3/6","v":0.5},{"$f":"C3/6","v":0.5},{"$f":"C3/6","v":0.5},{"$f":"C3","v":3},{"$f":"C3","v":3}]
[{"$f":"Svv!A6","v":"1.1.c"},{"$f":"Svv!B6","v":"Graaf- en herstelwerkzaamheden bij groen "},{"$f":"Svv!C6","v":"meter"},{"$f":"C4","v":0},{"$f":"C4","v":0},{"$f":"C4*0.5","v":0},{"$f":"C4*0.5","v":0},{"$f":"C4","v":0},{"$f":"C4","v":0},{"$f":"C4*0.5","v":0},{"$f":"C4*0.5","v":0},{"$f":"C4/6","v":0},{"$f":"C4/6","v":0},{"$f":"C4/6","v":0},{"$f":"C4/6","v":0},{"$f":"C4/6","v":0},{"$f":"C4/6","v":0},{"$f":"C4/6","v":0},{"$f":"C4/6","v":0},{"$f":"C4","v":0},0]
[{"$f":"Svv!A7","v":"1.2"},{"$f":"Svv!B7","v":"Ondiepe kruipruimte leeggraven "},{"$f":"Svv!C7","v":"woning"},null,null,null,null,null,null,null,null,null,null,null,null,null,null,1,1]
[{"$f":"Svv!A8","v":2},{"$f":"Svv!B8","v":"Leidingwerk"}]
[{"$f":"Svv!A9","v":"2.1"},{"$f":"Svv!B9","v":"DN22 (1-2 woningen)"},{"$f":"Svv!C9","v":"meter"},{"$f":"SUM(ParEGW[Aantal])*2","v":10},{"$f":"SUM(ParEGW[Aantal])*2","v":10},{"$f":"SUM(ParEGW[Aantal]*0.5)*2","v":5},{"$f":"SUM(ParEGW[Aantal]*0.5)*2","v":5},{"$f":"(SUM(ParEGW[Aantal])+G2*2)*2","v":20.399999999999999},{"$f":"(SUM(ParEGW[Aantal])+G2*2)*2","v":20.399999999999999},{"$f":"((SUM(ParEGW[Aantal])+G2*2)*0.5)*2","v":10.199999999999999},{"$f":"((SUM(ParEGW[Aantal])+G2*2)*0.5)*2","v":10.199999999999999}]
[{"$f":"Svv!A10","v":"2.3"},{"$f":"Svv!B10","v":"DN35  (>3 woningen)"},{"$f":"Svv!C10","v":"meter"},null,null,null,null,null,null,null,null,{"$f":"((SUM(ParEGW[Aantal])+(F2*6)+G2*2)/6)*2","v":16.200000000000003},{"$f":"((SUM(ParEGW[Aantal])+(F2*6)+(G2*2))/6)*2","v":16.200000000000003},{"$f":"((SUM(ParEGW[Aantal])+(F2*6)+(G2*2))/6)*2","v":16.200000000000003},{"$f":"((SUM(ParEGW[Aantal])+(F2*6)+(G2*2))/6)*2","v":16.200000000000003},{"$f":"((SUM(ParEGW[Aantal])+(F2*6)+(G2*2))/6)*2","v":16.200000000000003},{"$f":"((SUM(ParEGW[Aantal])+(F2*6)+(G2*2))/6)*2","v":16.200000000000003},{"$f":"((SUM(ParEGW[Aantal])+(6*F2))/6)*2","v":14.466666666666669},{"$f":"((SUM(ParEGW[Aantal])+(6*F2))/6)*2","v":14.466666666666669},{"$f":"SUM(ParEGW[Aantal])*2","v":10},{"$f":"SUM(ParEGW[Aantal])*2","v":10}]
[{"$f":"Svv!A11","v":"2.4"},{"$f":"Svv!B11","v":"Aanboren/aftakken warmtebuis (aansluiten op nieuwe distributieleiding)"},{"$f":"Svv!C11","v":"aftakking"}]
[{"$f":"Svv!A12","v":"2.5"},{"$f":"Svv!B12","v":"Aanboren/aftakken warmtebuis (aansluiten op bestaande distributieleiding)"},{"$f":"Svv!C12","v":"aftakking"}]
[{"$f":"Svv!A13","v":3},{"$f":"Svv!B13","v":"Boorwerk"}]
[{"$f":"Svv!A14","v":"3.1.a"},{"$f":"Svv!B14","v":"Boren stenen gevel (Ø 90mm)"},{"$f":"Svv!C14","v":"stuk"},null,null,null,null,2,2,2,2,null,null,2,2,2,2]
[{"$f":"Svv!A15","v":"3.1.b"},{"$f":"Svv!B15","v":"Boren stenen gevel (Ø 150mm)"},{"$f":"Svv!C15","v":"stuk"},null,null,null,null,null,null,null,null,{"$f":"2/6","v":0.33333333333333331},{"$f":"2/6","v":0.33333333333333331}]
[{"$f":"Svv!A16","v":"3.2.a"},{"$f":"Svv!B16","v":"Boren fundering (Ø 90mm)"},{"$f":"Svv!C16","v":"stuk"},2,2,2,2,null,null,null,null,null,null,null,null,null,null,2,2,2,2]
[{"$f":"Svv!A17","v":"3.2.b"},{"$f":"Svv!B17","v":"Boren fundering (Ø 150mm)"},{"$f":"Svv!C17","v":"stuk"},null,null,null,null,null,null,null,null,null,null,null,null,null,null,{"$f":"2/6","v":0.33333333333333331},{"$f":"2/6","v":0.33333333333333331}]
[{"$f":"Svv!A18","v":"3.3.a"},{"$f":"Svv!B18","v":"Boren betonvloer (Ø 90mm)"},{"$f":"Svv!C18","v":"stuk"},2,2,2,2,null,null,null,null,null,null,null,null,2]
[{"$f":"Svv!A19","v":"3.3.b"},{"$f":"Svv!B19","v":"Boren betonvloer (Ø 150mm)"},{"$f":"Svv!C19","v":"stuk"}]
[{"$f":"Svv!A20","v":"3.4.a"},{"$f":"Svv!B20","v":"Boren tussenwand (Ø 90mm)"},{"$f":"Svv!C20","v":"stuk"}]
[{"$f":"Svv!A21","v":"3.4.b"},{"$f":"Svv!B21","v":"Boren tussenwand (Ø 150mm)"},{"$f":"Svv!C21","v":"stuk"},null,null,null,null,null,null,null,null,{"$f":"10/6","v":1.6666666666666667},{"$f":"10/6","v":1.6666666666666667}]
[{"$f":"Svv!A22","v":"3.5"},{"$f":"Svv!B22","v":"Brandwerende doorvoeren"},{"$f":"Svv!C22","v":"stuk"},null,null,null,null,null,null,null,null,2,2,2,2,2,2,2,2,2]
[{"$f":"Svv!A23","v":4},{"$f":"Svv!B23","v":"Afwerking en maatwerk"}]
[{"$f":"Svv!A24","v":"4.1"},{"$f":"Svv!B24","v":"Maatwerk bij alternatief A3/A4: isolerende beschermingskap aan buitenzijde en veiligheidsmaatregelen"},{"$f":"Svv!C24","v":"woning"},null,null,null,null,1,1,0.5,0.5]
[{"$f":"Svv!A25","v":"4.2"},{"$f":"Svv!B25","v":"Maatwerk bij alternatief B1: aftimmeren knieschot binnenzijde zolder en veiligheidsmaatregelen bij alternatief B1"},{"$f":"Svv!C25","v":"woning"},null,null,null,null,null,null,null,null,1,1]
[{"$f":"Svv!A26","v":"4.3"},{"$f":"Svv!B26","v":"Maatwerk bij alternatief B2: verwerken van leiding nabij de dakgoot"},{"$f":"Svv!C26","v":"woning"},null,null,null,null,null,null,null,null,null,null,1,1]
[{"$f":"Svv!A27","v":"4.4"},{"$f":"Svv!B27","v":"Maatwerk bij alternatief B3: Koof ten behoeve van leidingwerk op dak"},{"$f":"Svv!C27","v":"woning"},null,null,null,null,null,null,null,null,null,null,null,null,1,1]
[{"$f":"Svv!A28","v":"4.5"},{"$f":"Svv!B28","v":"Afleverset"},{"$f":"Svv!C28","v":"woning"},1,1,1,1,1,1,1,1,1,1,1,1,1,1,1,1,1,1]
[{"$f":"Svv!A29","v":0},{"$f":"Svv!B29","v":"Kosten gebouweigenaar (achter de afleverset)"}]
[{"$f":"Svv!A30","v":5},{"$f":"Svv!B30","v":"Maatregelen achter de voordeur "}]
[{"$f":"Svv!A31","v":"5.1.a"},{"$f":"Svv!B31","v":"Verwijderen combiketel en aanpassingen in de woning. Prijs geldt indien afleverset in dezelfde ruimte en binnen 2 meter van de plek van de combiketel wordt geplaatst."},{"$f":"Svv!C31","v":"woning"},1,1,1,1,1,1,1,1,1,1,1,1,1,1,1,1,1,1]
[{"$f":"Svv!A32","v":"5.2.b "},{"$f":"Svv!B32","v":"Toeslag indien afleverset in een andere ruimte en/of een afstand groter dan 2 meter van plek van de combiketel wordt geplaatst."},{"$f":"Svv!C32","v":"woning"},0,1,0,1,1,0,1,0,1,0,1,0,1,0,0,1,0,1]
[{"$f":"Svv!A33","v":"5.3"},{"$f":"Svv!B33","v":"Omkasting voor afleverset als deze in verkeersruimte buiten meterkast of in verblijfsruimte geprojecteerd is "},{"$f":"Svv!C33","v":"stuk"},1,1,1,1,null,null,null,null,null,null,null,null,null,null,1,1,1,1]
[{"$f":"Svv!A34","v":"5.4"},{"$f":"Svv!B34","v":"Verwijderen gasleidingen in het zicht plus aanhelen"},{"$f":"Svv!C34","v":"woning"},1,1,1,1,1,1,1,1,1,1,1,1,1,1,1,1,1,1]
[{"$f":"Svv!A35","v":"5.5"},{"$f":"Svv!B35","v":"Filteren, spoelen, afpersen en volledig waterzijdig inregelen van woonhuisinstallatie  "},{"$f":"Svv!C35","v":"woning"},1,1,1,1,1,1,1,1,1,1,1,1,1,1,1,1,1,1]
[{"$f":"Svv!A36","v":"5.6"},{"$f":"Svv!B36","v":"Vervangen van radiator (aanname dat twee per woning)"},{"$f":"Svv!C36","v":"woning"},1,1,1,1,1,1,1,1,1,1,1,1,1,1,1,1,1,1]
[{"$f":"Svv!A37","v":"5.7"},{"$f":"Svv!B37","v":"Vervangen of inbouwen dynamische thermostatische regelventielen bij te handhaven radiator (aaname 2 per woning)"},{"$f":"Svv!C37","v":"woning"},1,1,1,1,1,1,1,1,1,1,1,1,1,1,1,1,1,1]
[{"$f":"Svv!A38","v":"5.8"},{"$f":"Svv!B38","v":"Inductie kookplaat een aanpassing meterkast voor elektrisch koken"},{"$f":"Svv!C38","v":"woning"},1,1,1,1,1,1,1,1,1,1,1,1,1,1,1,1,1,1]
[null,"Kosten"]
[null,"Kosten warmtebedrijf ",null,{"$f":"MROUND(SUMPRODUCT('Staat EGW'!D7:D33,Svv!$F$2:$F$28),500)","v":3000},{"$f":"MROUND(SUMPRODUCT('Staat EGW'!E7:E33,Svv!$F$2:$F$28),500)","v":3000},{"$f":"MROUND(SUMPRODUCT('Staat EGW'!F7:F33,Svv!$F$2:$F$28),500)","v":1500},{"$f":"MROUND(SUMPRODUCT('Staat EGW'!G7:G33,Svv!$F$2:$F$28),500)","v":1500},{"$f":"MROUND(SUMPRODUCT('Staat EGW'!H7:H33,Svv!$F$2:$F$28),500)","v":5500},{"$f":"MROUND(SUMPRODUCT('Staat EGW'!I7:I33,Svv!$F$2:$F$28),500)","v":5500},{"$f":"MROUND(SUMPRODUCT('Staat EGW'!J7:J33,Svv!$F$2:$F$28),500)","v":2500},{"$f":"MROUND(SUMPRODUCT('Staat EGW'!K7:K33,Svv!$F$2:$F$28),500)","v":2500},{"$f":"MROUND(SUMPRODUCT('Staat EGW'!L7:L33,Svv!$F$2:$F$28),500)","v":5000},{"$f":"MROUND(SUMPRODUCT('Staat EGW'!M7:M33,Svv!$F$2:$F$28),500)","v":5000},{"$f":"MROUND(SUMPRODUCT('Staat EGW'!N7:N33,Svv!$F$2:$F$28),500)","v":7500},{"$f":"MROUND(SUMPRODUCT('Staat EGW'!O7:O33,Svv!$F$2:$F$28),500)","v":7500},{"$f":"MROUND(SUMPRODUCT('Staat EGW'!P7:P33,Svv!$F$2:$F$28),500)","v":4000},{"$f":"MROUND(SUMPRODUCT('Staat EGW'!Q7:Q33,Svv!$F$2:$F$28),500)","v":4000},{"$f":"MROUND(SUMPRODUCT('Staat EGW'!R7:R33,Svv!$F$2:$F$28),500)","v":7000},{"$f":"MROUND(SUMPRODUCT('Staat EGW'!S7:S33,Svv!$F$2:$F$28),500)","v":7000},{"$f":"MROUND(SUMPRODUCT('Staat EGW'!T7:T33,Svv!$F$2:$F$28),500)","v":3500},{"$f":"MROUND(SUMPRODUCT('Staat EGW'!U7:U33,Svv!$F$2:$F$28),500)","v":3500}]
[null,"Kosten gebouweigenaar",null,{"$f":"MROUND(SUMPRODUCT(D34:D43,Svv!$F$29:$F$38),500)","v":4500},{"$f":"MROUND(SUMPRODUCT(E34:E43,Svv!$F$29:$F$38),500)","v":5500},{"$f":"MROUND(SUMPRODUCT(F34:F43,Svv!$F$29:$F$38),500)","v":4500},{"$f":"MROUND(SUMPRODUCT(G34:G43,Svv!$F$29:$F$38),500)","v":5500},{"$f":"MROUND(SUMPRODUCT(H34:H43,Svv!$F$29:$F$38),500)","v":5000},{"$f":"MROUND(SUMPRODUCT(I34:I43,Svv!$F$29:$F$38),500)","v":4000},{"$f":"MROUND(SUMPRODUCT(J34:J43,Svv!$F$29:$F$38),500)","v":5000},{"$f":"MROUND(SUMPRODUCT(K34:K43,Svv!$F$29:$F$38),500)","v":4000},{"$f":"MROUND(SUMPRODUCT(L34:L43,Svv!$F$29:$F$38),500)","v":5000},{"$f":"MROUND(SUMPRODUCT(M34:M43,Svv!$F$29:$F$38),500)","v":4000},{"$f":"MROUND(SUMPRODUCT(N34:N43,Svv!$F$29:$F$38),500)","v":5000},{"$f":"MROUND(SUMPRODUCT(O34:O43,Svv!$F$29:$F$38),500)","v":4000},{"$f":"MROUND(SUMPRODUCT(P34:P43,Svv!$F$29:$F$38),500)","v":5000},{"$f":"MROUND(SUMPRODUCT(Q34:Q43,Svv!$F$29:$F$38),500)","v":4000},{"$f":"MROUND(SUMPRODUCT(R34:R43,Svv!$F$29:$F$38),500)","v":4500},{"$f":"MROUND(SUMPRODUCT(S34:S43,Svv!$F$29:$F$38),500)","v":5500},{"$f":"MROUND(SUMPRODUCT(T34:T43,Svv!$F$29:$F$38),500)","v":4500},{"$f":"MROUND(SUMPRODUCT(U34:U43,Svv!$F$29:$F$38),500)","v":5500}]
[null,"Totaal",null,{"$f":"SUM(D45:D46)","v":7500},{"$f":"SUM(E45:E46)","v":8500},6000,7000,10500,9500,7500,6500,10000,9000,12500,11500,9000,8000,11500,12500,8000,9000]
["Kosten"]

{"sheet":"Staat Portiek","index":7,"n_rows":47,"n_cols":12,"rows_kept":47,"cut":false,"hidden":false,"merged":[]}
["Nr","Overige kenmerken","Aantal",null,"Breedte ","Hoogte"]
[7,"Aantal meter gesloten verharding (asfalt) vanaf hoofleiding tot gevel",2,null,7.8,2.6]
[8,"Aantal meter elementen verharding (tegels 30*30cm) vanaf hoofleiding tot gevel",3]
[9,"Aantal meter groen vanaf hoofleiding tot gevel"]
[]
["Code","Dienst, levering of handeling","Eenheid","A1","A2","A3","A4","B1","B2","B3","B4","C1"]
[null,"Warmtebedrijf (tot aan de afleverset)"]
[{"$f":"Svv!A3","v":1},{"$f":"Svv!B3","v":"Graaf- en herstelkwerkzaamheden"}]
[{"$f":"Svv!A4","v":"1.1.a"},{"$f":"Svv!B4","v":"Graaf- en herstelwerkzaamheden bij gesloten verharding (asfalt)"},{"$f":"Svv!C4","v":"meter"},{"$f":"C2/6","v":0.33333333333333331},{"$f":"C2/6","v":0.33333333333333331},{"$f":"C2/6","v":0.33333333333333331},{"$f":"C2/6","v":0.33333333333333331},{"$f":"C2/18","v":0.1111111111111111},{"$f":"C2/18","v":0.1111111111111111},{"$f":"C2/18","v":0.1111111111111111},{"$f":"C2/18","v":0.1111111111111111},{"$f":"C2/6","v":0.33333333333333331}]
[{"$f":"Svv!A5","v":"1.1.b"},{"$f":"Svv!B5","v":"Graaf- en herstelwerkzaamheden bij elementen verharding (tegels 30*30cm) "},{"$f":"Svv!C5","v":"meter"},{"$f":"C3/6","v":0.5},{"$f":"C3/6","v":0.5},{"$f":"C3/6","v":0.5},{"$f":"C3/6","v":0.5},{"$f":"C3/18","v":0.16666666666666666},{"$f":"C3/18","v":0.16666666666666666},{"$f":"C3/18","v":0.16666666666666666},{"$f":"C3/18","v":0.16666666666666666},{"$f":"C3/6","v":0.5}]
[{"$f":"Svv!A6","v":"1.1.c"},{"$f":"Svv!B6","v":"Graaf- en herstelwerkzaamheden bij groen "},{"$f":"Svv!C6","v":"meter"},{"$f":"C4/6","v":0},{"$f":"C4/6","v":0},{"$f":"C4/6","v":0},{"$f":"C4/6","v":0},{"$f":"C4/18","v":0},{"$f":"C4/18","v":0},{"$f":"C4/18","v":0},{"$f":"C4/18","v":0},{"$f":"C4/6","v":0}]
[{"$f":"Svv!A7","v":"1.2"},{"$f":"Svv!B7","v":"Ondiepe kruipruimte leeggraven "},{"$f":"Svv!C7","v":"woning"},null,null,null,null,null,null,null,1]
[{"$f":"Svv!A8","v":2},{"$f":"Svv!B8","v":"Leidingwerk"}]
[{"$f":"Svv!A9","v":"2.1"},{"$f":"Svv!B9","v":"DN22 (1-2 woningen)"},{"$f":"Svv!C9","v":"meter"},2,2,4,4,null,null,null,null,2]
[{"$f":"Svv!A10","v":"2.3"},{"$f":"Svv!B10","v":"DN35  (>3 woningen)"},{"$f":"Svv!C10","v":"meter"},{"$f":"((SUM(ParPortiek[Aantal])+(F2*3))/6)*2","v":4.2666666666666666},{"$f":"((SUM(ParPortiek[Aantal])+(F2*3))/6)*2","v":4.2666666666666666},{"$f":"((SUM(ParPortiek[Aantal])+(F2*3))/6)*2","v":4.2666666666666666},{"$f":"((SUM(ParPortiek[Aantal])+(F2*3))/6)*2","v":4.2666666666666666},{"$f":"((SUM(ParPortiek[Aantal])+(F2*3)+(E2*6))/18)*2","v":6.6222222222222218},{"$f":"((SUM(ParPortiek[Aantal])+(F2*3)+(E2*6))/18)*2","v":6.6222222222222218},{"$f":"((SUM(ParPortiek[Aantal])+(F2*3)+(E2*6))/18)*2","v":6.6222222222222218},{"$f":"((SUM(ParPortiek[Aantal])+(F2*3)+(E2*6))/18)*2","v":6.6222222222222218},{"$f":"((SUM(ParPortiek[Aantal])+(F2*3))/6)*2","v":4.2666666666666666}]
[{"$f":"Svv!A11","v":"2.4"},{"$f":"Svv!B11","v":"Aanboren/aftakken warmtebuis (aansluiten op nieuwe distributieleiding)"},{"$f":"Svv!C11","v":"aftakking"}]
[{"$f":"Svv!A12","v":"2.5"},{"$f":"Svv!B12","v":"Aanboren/aftakken warmtebuis (aansluiten op bestaande distributieleiding)"},{"$f":"Svv!C12","v":"aftakking"}]
[{"$f":"Svv!A13","v":3},{"$f":"Svv!B13","v":"Boorwerk"}]
[{"$f":"Svv!A14","v":"3.1.a"},{"$f":"Svv!B14","v":"Boren stenen gevel (Ø 90mm)"},{"$f":"Svv!C14","v":"stuk"},2,2,2,2,null,2,null,null,2]
[{"$f":"Svv!A15","v":"3.1.b"},{"$f":"Svv!B15","v":"Boren stenen gevel (Ø 150mm)"},{"$f":"Svv!C15","v":"stuk"},{"$f":"2/6","v":0.33333333333333331},{"$f":"2/6","v":0.33333333333333331},{"$f":"2/2","v":1},{"$f":"2/2","v":1},{"$f":"2/18","v":0.1111111111111111},{"$f":"18/18","v":1},{"$f":"3/18","v":0.16666666666666666},{"$f":"6/18","v":0.33333333333333331},{"$f":"2/6","v":0.33333333333333331}]
[{"$f":"Svv!A16","v":"3.2.a"},{"$f":"Svv!B16","v":"Boren fundering (Ø 90mm)"},{"$f":"Svv!C16","v":"stuk"}]
[{"$f":"Svv!A17","v":"3.2.b"},{"$f":"Svv!B17","v":"Boren fundering (Ø 150mm)"},{"$f":"Svv!C17","v":"stuk"}]
[{"$f":"Svv!A18","v":"3.3.a"},{"$f":"Svv!B18","v":"Boren betonvloer (Ø 90mm)"},{"$f":"Svv!C18","v":"stuk"},{"$f":"4/6","v":0.66666666666666663},{"$f":"4/6","v":0.66666666666666663},null,null,null,null,null,null,{"$f":"4/6","v":0.66666666666666663}]
[{"$f":"Svv!A19","v":"3.3.b"},{"$f":"Svv!B19","v":"Boren betonvloer (Ø 150mm)"},{"$f":"Svv!C19","v":"stuk"},null,null,null,null,{"$f":"12/18","v":0.66666666666666663},null,{"$f":"12/18","v":0.66666666666666663},{"$f":"12/18","v":0.66666666666666663}]
[{"$f":"Svv!A20","v":"3.4.a"},{"$f":"Svv!B20","v":"Boren tussenwand (Ø 90mm)"},{"$f":"Svv!C20","v":"stuk"}]
[{"$f":"Svv!A21","v":"3.4.b"},{"$f":"Svv!B21","v":"Boren tussenwand (Ø 150mm)"},{"$f":"Svv!C21","v":"stuk"},null,null,null,null,{"$f":"5/18","v":0.27777777777777779}]
[{"$f":"Svv!A22","v":"3.5"},{"$f":"Svv!B22","v":"Brandwerende doorvoeren"},{"$f":"Svv!C22","v":"stuk"},null,null,null,null,2,2,2,2]
[{"$f":"Svv!A23","v":4},{"$f":"Svv!B23","v":"Afwerking en maatwerk"}]
[{"$f":"Svv!A24","v":"4.1"},{"$f":"Svv!B24","v":"Maatwerk bij alternatief A3/A4: isolerende beschermingskap aan buitenzijde en veiligheidsmaatregelen"},{"$f":"Svv!C24","v":"woning"},null,null,{"$f":"1/2","v":0.5},{"$f":"1/2","v":0.5},null,0.5,0.5]
[{"$f":"Svv!A25","v":"4.2"},{"$f":"Svv!B25","v":"Maatwerk bij alternatief B1: aftimmeren knieschot binnenzijde zolder en veiligheidsmaatregelen bij alternatief B1"},{"$f":"Svv!C25","v":"woning"},null,null,null,null,1]
[{"$f":"Svv!A26","v":"4.3"},{"$f":"Svv!B26","v":"Maatwerk bij alternatief B2: verwerken van leiding nabij de dakgoot"},{"$f":"Svv!C26","v":"woning"}]
[{"$f":"Svv!A27","v":"4.4"},{"$f":"Svv!B27","v":"Maatwerk bij alternatief B3: Koof ten behoeve van leidingwerk op dak"},{"$f":"Svv!C27","v":"woning"},null,null,null,null,null,null,1]
[{"$f":"Svv!A28","v":"4.5"},{"$f":"Svv!B28","v":"Afleverset"},{"$f":"Svv!C28","v":"woning"},1,1,1,1,1,1,1,1,1]
[{"$f":"Svv!A29","v":0},{"$f":"Svv!B29","v":"Kosten gebouweigenaar (achter de afleverset)"}]
[{"$f":"Svv!A30","v":5},{"$f":"Svv!B30","v":"Maatregelen achter de voordeur "}]
[{"$f":"Svv!A31","v":"5.1.a"},{"$f":"Svv!B31","v":"Verwijderen combiketel en aanpassingen in de woning. Prijs geldt indien afleverset in dezelfde ruimte en binnen 2 meter van de plek van de combiketel wordt geplaatst."},{"$f":"Svv!C31","v":"woning"},1,1,1,1,1,1,1,1,1]
[{"$f":"Svv!A32","v":"5.2.b "},{"$f":"Svv!B32","v":"Toeslag indien afleverset in een andere ruimte en/of een afstand groter dan 2 meter van plek van de combiketel wordt geplaatst."},{"$f":"Svv!C32","v":"woning"},1,1,1,1,0,1,0,0,1]
[{"$f":"Svv!A33","v":"5.3"},{"$f":"Svv!B33","v":"Omkasting voor afleverset als deze in verkeersruimte buiten meterkast of in verblijfsruimte geprojecteerd is "},{"$f":"Svv!C33","v":"stuk"},1,1,1,1,1,1,1,1,1]
[{"$f":"Svv!A34","v":"5.4"},{"$f":"Svv!B34","v":"Verwijderen gasleidingen in het zicht plus aanhelen"},{"$f":"Svv!C34","v":"woning"},1,1,1,1,1,1,1,1,1]
[{"$f":"Svv!A35","v":"5.5"},{"$f":"Svv!B35","v":"Filteren, spoelen, afpersen en volledig waterzijdig inregelen van woonhuisinstallatie  "},{"$f":"Svv!C35","v":"woning"},1,1,1,1,1,1,1,1,1]
[{"$f":"Svv!A36","v":"5.6"},{"$f":"Svv!B36","v":"Vervangen van radiator (aanname dat twee per woning)"},{"$f":"Svv!C36","v":"woning"},1,1,1,1,1,1,1,1,1]
[{"$f":"Svv!A37","v":"5.7"},{"$f":"Svv!B37","v":"Vervangen of inbouwen dynamische thermostatische regelventielen bij te handhaven radiator (aaname 2 per woning)"},{"$f":"Svv!C37","v":"woning"},1,1,1,1,1,1,1,1,1]
[{"$f":"Svv!A38","v":"5.8"},{"$f":"Svv!B38","v":"Inductie kookplaat een aanpassing meterkast voor elektrisch koken"},{"$f":"Svv!C38","v":"woning"},1,1,1,1,1,1,1,1,1]
[null,"Kosten gebouweigenaar"]
[null,"Kosten warmtebedrijf ",null,{"$f":"MROUND(SUMPRODUCT(D7:D33,Svv!$F$2:$F$28),500)","v":1500},{"$f":"MROUND(SUMPRODUCT(E7:E33,Svv!$F$2:$F$28),500)","v":1500},{"$f":"MROUND(SUMPRODUCT(F7:F33,Svv!$F$2:$F$28),500)","v":2000},{"$f":"MROUND(SUMPRODUCT(G7:G33,Svv!$F$2:$F$28),500)","v":2000},{"$f":"MROUND(SUMPRODUCT(H7:H33,Svv!$F$2:$F$28),500)","v":3000},{"$f":"MROUND(SUMPRODUCT(I7:I33,Svv!$F$2:$F$28),500)","v":2000},{"$f":"MROUND(SUMPRODUCT(J7:J33,Svv!$F$2:$F$28),500)","v":2000},{"$f":"MROUND(SUMPRODUCT(K7:K33,Svv!$F$2:$F$28),500)","v":5000},{"$f":"MROUND(SUMPRODUCT(L7:L33,Svv!$F$2:$F$28),500)","v":1500}]
[null,"Kosten gebouweigenaar",null,{"$f":"MROUND(SUMPRODUCT(D34:D43,Svv!$F$29:$F$38),500)","v":5500},{"$f":"MROUND(SUMPRODUCT(E34:E43,Svv!$F$29:$F$38),500)","v":5500},{"$f":"MROUND(SUMPRODUCT(F34:F43,Svv!$F$29:$F$38),500)","v":5500},{"$f":"MROUND(SUMPRODUCT(G34:G43,Svv!$F$29:$F$38),500)","v":5500},{"$f":"MROUND(SUMPRODUCT(H34:H43,Svv!$F$29:$F$38),500)","v":4500},{"$f":"MROUND(SUMPRODUCT(I34:I43,Svv!$F$29:$F$38),500)","v":5500},{"$f":"MROUND(SUMPRODUCT(J34:J43,Svv!$F$29:$F$38),500)","v":4500},{"$f":"MROUND(SUMPRODUCT(K34:K43,Svv!$F$29:$F$38),500)","v":4500},{"$f":"MROUND(SUMPRODUCT(L34:L43,Svv!$F$29:$F$38),500)","v":5500}]
[null,"Totaal",null,{"$f":"SUM(D45:D46)","v":7000},{"$f":"SUM(E45:E46)","v":7000},7500,7500,7500,7500,6500,9500,7000]

{"sheet":"Staat Galerij","index":8,"n_rows":47,"n_cols":12,"rows_kept":47,"cut":false,"hidden":false,"merged":[]}
["Nr","Overige kenmerken","Aantal",null,"Breedte ","Hoogte"]
[7,"Aantal meter gesloten verharding (asfalt) vanaf hoofleiding tot gevel",2,null,7.8,2.6]
[8,"Aantal meter elementen verharding (tegels 30*30cm) vanaf hoofleiding tot gevel",3]
[9,"Aantal meter groen vanaf hoofleiding tot gevel"]
[]
["Code","Dienst, levering of handeling","Eenheid","A1","A2","A3","A4","B1","B2","B3","B4","C1"]
[null,"Warmtebedrijf (tot aan de afleverset)"]
[{"$f":"Svv!A3","v":1},{"$f":"Svv!B3","v":"Graaf- en herstelkwerkzaamheden"}]
[{"$f":"Svv!A4","v":"1.1.a"},{"$f":"Svv!B4","v":"Graaf- en herstelwerkzaamheden bij gesloten verharding (asfalt)"},{"$f":"Svv!C4","v":"meter"},{"$f":"C2/6","v":0.33333333333333331},{"$f":"C2/12","v":0.16666666666666666},{"$f":"C2/6","v":0.33333333333333331},{"$f":"C2/12","v":0.16666666666666666},{"$f":"C2/18","v":0.1111111111111111},{"$f":"C2/18","v":0.1111111111111111},{"$f":"C2/18","v":0.1111111111111111},{"$f":"C2/18","v":0.1111111111111111},{"$f":"C2/6","v":0.33333333333333331}]
[{"$f":"Svv!A5","v":"1.1.b"},{"$f":"Svv!B5","v":"Graaf- en herstelwerkzaamheden bij elementen verharding (tegels 30*30cm) "},{"$f":"Svv!C5","v":"meter"},{"$f":"C3/6","v":0.5},{"$f":"C3/12","v":0.25},{"$f":"C3/6","v":0.5},{"$f":"C3/12","v":0.25},{"$f":"C3/18","v":0.16666666666666666},{"$f":"C3/18","v":0.16666666666666666},{"$f":"C3/18","v":0.16666666666666666},{"$f":"C3/18","v":0.16666666666666666},{"$f":"C3/6","v":0.5}]
[{"$f":"Svv!A6","v":"1.1.c"},{"$f":"Svv!B6","v":"Graaf- en herstelwerkzaamheden bij groen "},{"$f":"Svv!C6","v":"meter"},{"$f":"C4/6","v":0},{"$f":"C4/12","v":0},{"$f":"C4/6","v":0},{"$f":"C4/12","v":0},{"$f":"C4/18","v":0},{"$f":"C4/18","v":0},{"$f":"C4/18","v":0},{"$f":"C4/18","v":0},0]
[{"$f":"Svv!A7","v":"1.2"},{"$f":"Svv!B7","v":"Ondiepe kruipruimte leeggraven "},{"$f":"Svv!C7","v":"woning"}]
[{"$f":"Svv!A8","v":2},{"$f":"Svv!B8","v":"Leidingwerk"}]
[{"$f":"Svv!A9","v":"2.1"},{"$f":"Svv!B9","v":"DN22 (1-2 woningen)"},{"$f":"Svv!C9","v":"meter"},2,2,{"$f":"2/4","v":0.5},{"$f":"2/4","v":0.5},null,2]
[{"$f":"Svv!A10","v":"2.3"},{"$f":"Svv!B10","v":"DN35  (>3 woningen)"},{"$f":"Svv!C10","v":"meter"},{"$f":"((SUM(ParGalerij[Aantal])+(F2*6))/6)*2","v":6.8666666666666671},{"$f":"((SUM(ParGalerij[Aantal])+(F2*6))/12)*2","v":3.4333333333333336},{"$f":"((SUM(ParGalerij[Aantal])+(F2*6))/6)*2","v":6.8666666666666671},{"$f":"((SUM(ParGalerij[Aantal])+(F2*6))/12)*2","v":3.4333333333333336},{"$f":"((SUM(ParGalerij[Aantal])+(F2*6)+(E2*8))/18)*2","v":9.2222222222222214},{"$f":"((SUM(ParGalerij[Aantal])+(F2*6)+(E2*8))/18)*2","v":9.2222222222222214},{"$f":"((SUM(ParGalerij[Aantal])+(E2*8)+(6*F2))/18)*2","v":9.2222222222222214},{"$f":"((SUM(ParGalerij[Aantal])+(E2*8)+(6*F2))/18)*2","v":9.2222222222222214},2]
[{"$f":"Svv!A11","v":"2.4"},{"$f":"Svv!B11","v":"Aanboren/aftakken warmtebuis (aansluiten op nieuwe distributieleiding)"},{"$f":"Svv!C11","v":"aftakking"}]
[{"$f":"Svv!A12","v":"2.5"},{"$f":"Svv!B12","v":"Aanboren/aftakken warmtebuis (aansluiten op bestaande distributieleiding)"},{"$f":"Svv!C12","v":"aftakking"}]
[{"$f":"Svv!A13","v":3},{"$f":"Svv!B13","v":"Boorwerk"},null,null,null,null,null,null,null,null,null,{"$f":"((SUM(ParGalerij[Aantal])+(F2*6))/6)*2","v":6.8666666666666671}]
[{"$f":"Svv!A14","v":"3.1.a"},{"$f":"Svv!B14","v":"Boren stenen gevel (Ø 90mm)"},{"$f":"Svv!C14","v":"stuk"},2,2,2,2,null,2,null,null,2]
[{"$f":"Svv!A15","v":"3.1.b"},{"$f":"Svv!B15","v":"Boren stenen gevel (Ø 150mm)"},{"$f":"Svv!C15","v":"stuk"},null,null,null,null,{"$f":"2/18","v":0.1111111111111111}]
[{"$f":"Svv!A16","v":"3.2.a"},{"$f":"Svv!B16","v":"Boren fundering (Ø 90mm)"},{"$f":"Svv!C16","v":"stuk"}]
[{"$f":"Svv!A17","v":"3.2.b"},{"$f":"Svv!B17","v":"Boren fundering (Ø 150mm)"},{"$f":"Svv!C17","v":"stuk"}]
[{"$f":"Svv!A18","v":"3.3.a"},{"$f":"Svv!B18","v":"Boren betonvloer (Ø 90mm)"},{"$f":"Svv!C18","v":"stuk"}]
[{"$f":"Svv!A19","v":"3.3.b"},{"$f":"Svv!B19","v":"Boren betonvloer (Ø 150mm)"},{"$f":"Svv!C19","v":"stuk"},null,{"$f":"12/6","v":2},{"$f":"10/6","v":1.6666666666666667},{"$f":"10/12","v":0.83333333333333337},{"$f":"10/6","v":1.6666666666666667},null,{"$f":"10/6","v":1.6666666666666667},{"$f":"10/6","v":1.6666666666666667}]
[{"$f":"Svv!A20","v":"3.4.a"},{"$f":"Svv!B20","v":"Boren tussenwand (Ø 90mm)"},{"$f":"Svv!C20","v":"stuk"}]
[{"$f":"Svv!A21","v":"3.4.b"},{"$f":"Svv!B21","v":"Boren tussenwand (Ø 150mm)"},{"$f":"Svv!C21","v":"stuk"}]
[{"$f":"Svv!A22","v":"3.5"},{"$f":"Svv!B22","v":"Brandwerende doorvoeren"},{"$f":"Svv!C22","v":"stuk"},null,null,null,null,2,null,2,2]
[{"$f":"Svv!A23","v":4},{"$f":"Svv!B23","v":"Afwerking en maatwerk"}]
[{"$f":"Svv!A24","v":"4.1"},{"$f":"Svv!B24","v":"Maatwerk bij alternatief A3/A4: isolerende beschermingskap aan buitenzijde en veiligheidsmaatregelen"},{"$f":"Svv!C24","v":"woning"}]
[{"$f":"Svv!A25","v":"4.2"},{"$f":"Svv!B25","v":"Maatwerk bij alternatief B1: aftimmeren knieschot binnenzijde zolder en veiligheidsmaatregelen bij alternatief B1"},{"$f":"Svv!C25","v":"woning"},null,null,null,null,1]
[{"$f":"Svv!A26","v":"4.3"},{"$f":"Svv!B26","v":"Maatwerk bij alternatief B2: verwerken van leiding nabij de dakgoot"},{"$f":"Svv!C26","v":"woning"}]
[{"$f":"Svv!A27","v":"4.4"},{"$f":"Svv!B27","v":"Maatwerk bij alternatief B3: Koof ten behoeve van leidingwerk op dak"},{"$f":"Svv!C27","v":"woning"},null,null,null,null,null,null,1]
[{"$f":"Svv!A28","v":"4.5"},{"$f":"Svv!B28","v":"Afleverset"},{"$f":"Svv!C28","v":"woning"},1,1,1,1,1,1,1,1,1]
[{"$f":"Svv!A29","v":0},{"$f":"Svv!B29","v":"Kosten gebouweigenaar (achter de afleverset)"}]
[{"$f":"Svv!A30","v":5},{"$f":"Svv!B30","v":"Maatregelen achter de voordeur "}]
[{"$f":"Svv!A31","v":"5.1.a"},{"$f":"Svv!B31","v":"Verwijderen combiketel en aanpassingen in de woning. Prijs geldt indien afleverset in dezelfde ruimte en binnen 2 meter van de plek van de combiketel wordt geplaatst."},{"$f":"Svv!C31","v":"woning"},1,1,1,1,1,1,1,1,1]
[{"$f":"Svv!A32","v":"5.2.b "},{"$f":"Svv!B32","v":"Toeslag indien afleverset in een andere ruimte en/of een afstand groter dan 2 meter van plek van de combiketel wordt geplaatst."},{"$f":"Svv!C32","v":"woning"},1,1,1,1,0,1,0,0,1]
[{"$f":"Svv!A33","v":"5.3"},{"$f":"Svv!B33","v":"Omkasting voor afleverset als deze in verkeersruimte buiten meterkast of in verblijfsruimte geprojecteerd is "},{"$f":"Svv!C33","v":"stuk"},1,1,1,1,1,1,1,1,1]
[{"$f":"Svv!A34","v":"5.4"},{"$f":"Svv!B34","v":"Verwijderen gasleidingen in het zicht plus aanhelen"},{"$f":"Svv!C34","v":"woning"},1,1,1,1,1,1,1,1,1]
[{"$f":"Svv!A35","v":"5.5"},{"$f":"Svv!B35","v":"Filteren, spoelen, afpersen en volledig waterzijdig inregelen van woonhuisinstallatie  "},{"$f":"Svv!C35","v":"woning"},1,1,1,1,1,1,1,1,1]
[{"$f":"Svv!A36","v":"5.6"},{"$f":"Svv!B36","v":"Vervangen van radiator (aanname dat twee per woning)"},{"$f":"Svv!C36","v":"woning"},1,1,1,1,1,1,1,1,1]
[{"$f":"Svv!A37","v":"5.7"},{"$f":"Svv!B37","v":"Vervangen of inbouwen dynamische thermostatische regelventielen bij te handhaven radiator (aaname 2 per woning)"},{"$f":"Svv!C37","v":"woning"},1,1,1,1,1,1,1,1,1]
[{"$f":"Svv!A38","v":"5.8"},{"$f":"Svv!B38","v":"Inductie kookplaat een aanpassing meterkast voor elektrisch koken"},{"$f":"Svv!C38","v":"woning"},1,1,1,1,1,1,1,1,1]
[null,"Kosten "]
[null,"Kosten warmtebedrijf ",null,{"$f":"MROUND(SUMPRODUCT(D7:D33,Svv!$F$2:$F$28),500)","v":2000},{"$f":"MROUND(SUMPRODUCT(E7:E33,Svv!$F$2:$F$28),500)","v":1500},{"$f":"MROUND(SUMPRODUCT(F7:F33,Svv!$F$2:$F$28),500)","v":2000},{"$f":"MROUND(SUMPRODUCT(G7:G33,Svv!$F$2:$F$28),500)","v":1000},{"$f":"MROUND(SUMPRODUCT(H7:H33,Svv!$F$2:$F$28),500)","v":3500},{"$f":"MROUND(SUMPRODUCT(I7:I33,Svv!$F$2:$F$28),500)","v":2500},{"$f":"MROUND(SUMPRODUCT(J7:J33,Svv!$F$2:$F$28),500)","v":2500},{"$f":"MROUND(SUMPRODUCT(K7:K33,Svv!$F$2:$F$28),500)","v":2500},{"$f":"MROUND(SUMPRODUCT(L7:L33,Svv!$F$2:$F$28),500)","v":500}]
[null,"Kosten gebouweigenaar",null,{"$f":"MROUND(SUMPRODUCT(D34:D43,Svv!$E$29:$E$38),500)","v":4500},{"$f":"MROUND(SUMPRODUCT(E34:E43,Svv!$E$29:$E$38),500)","v":4500},{"$f":"MROUND(SUMPRODUCT(F34:F43,Svv!$E$29:$E$38),500)","v":4500},{"$f":"MROUND(SUMPRODUCT(G34:G43,Svv!$E$29:$E$38),500)","v":4500},{"$f":"MROUND(SUMPRODUCT(H34:H43,Svv!$E$29:$E$38),500)","v":3500},{"$f":"MROUND(SUMPRODUCT(I34:I43,Svv!$E$29:$E$38),500)","v":4500},{"$f":"MROUND(SUMPRODUCT(J34:J43,Svv!$E$29:$E$38),500)","v":3500},{"$f":"MROUND(SUMPRODUCT(K34:K43,Svv!$E$29:$E$38),500)","v":3500},{"$f":"MROUND(SUMPRODUCT(L34:L43,Svv!$E$29:$E$38),500)","v":4500}]
[null,"Totaal",null,{"$f":"SUM(D45:D46)","v":6500},{"$f":"SUM(E45:E46)","v":6000},6500,5500,7000,7000,6000,6000,5000]

{"sheet":"Kwaliteit EGW","index":9,"n_rows":17,"n_cols":26,"rows_kept":17,"cut":false,"hidden":false,"merged":[]}
["Nr","Criteria","A1.1","A1.2","A2.1","A2.2","A3.1","A3.2","A4.1","A4.2","B1.1","B1.2","B2.1","B2.2","B3.1","B3.2","B4.1","B4.2","C1.1","C1.2"]
[1,"Praktisch haalbaarheid",{"$f":"(ROUND(AVERAGE(6-_xlfn.XLOOKUP(C3,$X$4:$X$8,$Y$4:$Y$8,\"\"),6-_xlfn.XLOOKUP(C4,$X$4:$X$8,$Y$4:$Y$8,\"\"),6-_xlfn.XLOOKUP(C5,$X$4:$X$8,$Y$4:$Y$8,\"\")),0))","v":5},{"$f":"(ROUND(AVERAGE(6-_xlfn.XLOOKUP(D3,$X$4:$X$8,$Y$4:$Y$8,\"\"),6-_xlfn.XLOOKUP(D4,$X$4:$X$8,$Y$4:$Y$8,\"\"),6-_xlfn.XLOOKUP(D5,$X$4:$X$8,$Y$4:$Y$8,\"\")),0))","v":4},4,4,2,1,2,2,{"$f":"(ROUND(AVERAGE(6-_xlfn.XLOOKUP(K3,$X$4:$X$8,$Y$4:$Y$8,\"\"),6-_xlfn.XLOOKUP(K4,$X$4:$X$8,$Y$4:$Y$8,\"\"),6-_xlfn.XLOOKUP(K5,$X$4:$X$8,$Y$4:$Y$8,\"\")),0))","v":2},2,1,1,1,1,4,4,4,4]
["1.1","In hoeverre heeft de eigendomssituatie impact op de haalbaarheid?","1. Heel weining","1. Heel weining","2. Weinig ","2. Weinig ","2. Weinig ","4. Veel","2. Weinig ","2. Weinig ","5. Heel veel","5. Heel veel","5. Heel veel","5. Heel veel","5. Heel veel","5. Heel veel","5. Heel veel","5. Heel veel","1. Heel weining","1. Heel weining",null,null,"Kolom1","Kolom2","Kolom3","Kolom4"]
["1.2 ","In hoeverre zijn de leidingen zichtbaar vanaf de straatzijde (in verband met mogelijke toetsing van welstand)?","1. Heel weining","1. Heel weining","1. Heel weining","1. Heel weining","5. Heel veel","5. Heel veel","4. Veel","4. Veel","3. Neutraal","3. Neutraal","5. Heel veel","5. Heel veel","4. Veel","4. Veel","1. Heel weining","1. Heel weining","3. Neutraal","3. Neutraal",null,null,"1. Heel makkelijk","1. Heel weining",1,"1. Heel laag"]
["1.3","In hoeverre spelen veiligheidsrisico's een rol (bijv. lekage- en brandwerendheidrisico)?","2. Weinig ","3. Neutraal","2. Weinig ","3. Neutraal","5. Heel veel","5. Heel veel","5. Heel veel","5. Heel veel","5. Heel veel","5. Heel veel","5. Heel veel","5. Heel veel","5. Heel veel","5. Heel veel","1. Heel weining","1. Heel weining","1. Heel weining","1. Heel weining",null,null,"2. Makkelijk","2. Weinig ",2,"2. Laag"]
[2,"Overlast uitvoering",{"$f":"6-(ROUND(AVERAGE(_xlfn.XLOOKUP(C7,$X$4:$X$8,$Y$4:$Y$8,\"\"),_xlfn.XLOOKUP(C8,$X$4:$X$8,$Y$4:$Y$8,\"\"),_xlfn.XLOOKUP(C9,$X$4:$X$8,$Y$4:$Y$8,\"\")),0))","v":2},1,3,1,2,2,2,2,2,3,3,4,2,4,2,2,{"$f":"6-(ROUND(AVERAGE(_xlfn.XLOOKUP(S7,$X$4:$X$8,$Y$4:$Y$8,\"\"),_xlfn.XLOOKUP(S8,$X$4:$X$8,$Y$4:$Y$8,\"\"),_xlfn.XLOOKUP(S9,$X$4:$X$8,$Y$4:$Y$8,\"\")),0))","v":2},{"$f":"6-(ROUND(AVERAGE(_xlfn.XLOOKUP(T7,$X$4:$X$8,$Y$4:$Y$8,\"\"),_xlfn.XLOOKUP(T8,$X$4:$X$8,$Y$4:$Y$8,\"\"),_xlfn.XLOOKUP(T9,$X$4:$X$8,$Y$4:$Y$8,\"\")),0))","v":1},null,null,"3. Neutraal","3. Neutraal",3,"3. Neutraal"]
["2.1","Hoeveel graaf- en herstelwerkzaamheden zijn noodzakelijk in de straat, stoep en voortuin? ","5. Heel veel","5. Heel veel","5. Heel veel","5. Heel veel","5. Heel veel","5. Heel veel","5. Heel veel","5. Heel veel","2. Weinig ","2. Weinig ","2. Weinig ","2. Weinig ","2. Weinig ","2. Weinig ","5. Heel veel","5. Heel veel","5. Heel veel","5. Heel veel",null,null,"4. Moeilijk","4. Veel",4,"4. Hoog"]
["2.2","Hoeveel overlast is er inpandig tijdens de uitvoering (bijv. geluidsoverlast van boringen)?","3. Neutraal","4. Veel","3. Neutraal","4. Veel","4. Veel","3. Neutraal","4. Veel","3. Neutraal","5. Heel veel","4. Veel","3. Neutraal","2. Weinig ","5. Heel veel","2. Weinig ","4. Veel","4. Veel","3. Neutraal","5. Heel veel",null,null,"5. Heel moeilijk","5. Heel veel",5,"5. Heel hoog"]
["2.3","In hoeverre dienen bewoners zich tijdens de uitvoering aan te passen (bijv. opruimen, duur van werkzaamheden)","3. Neutraal","5. Heel veel","2. Weinig ","5. Heel veel","4. Veel","3. Neutraal","4. Veel","3. Neutraal","4. Veel","4. Veel","4. Veel","2. Weinig ","4. Veel","2. Weinig ","2. Weinig ","4. Veel","3. Neutraal","4. Veel"]
[3,"Impact woning",{"$f":"6-(ROUND(AVERAGE(_xlfn.XLOOKUP(C11,$X$4:$X$8,$Y$4:$Y$8,\"\"),_xlfn.XLOOKUP(C12,$X$4:$X$8,$Y$4:$Y$8,\"\"),_xlfn.XLOOKUP(C13,$X$4:$X$8,$Y$4:$Y$8,\"\")),0))","v":4},2,4,2,2,3,2,4,1,3,{"$f":"6-(ROUND(AVERAGE(_xlfn.XLOOKUP(M11,$X$4:$X$8,$Y$4:$Y$8,\"\"),_xlfn.XLOOKUP(M12,$X$4:$X$8,$Y$4:$Y$8,\"\"),_xlfn.XLOOKUP(M13,$X$4:$X$8,$Y$4:$Y$8,\"\")),0))","v":2},4,2,4,5,2,{"$f":"6-(ROUND(AVERAGE(_xlfn.XLOOKUP(S11,$X$4:$X$8,$Y$4:$Y$8,\"\"),_xlfn.XLOOKUP(S12,$X$4:$X$8,$Y$4:$Y$8,\"\"),_xlfn.XLOOKUP(S13,$X$4:$X$8,$Y$4:$Y$8,\"\")),0))","v":5},{"$f":"6-(ROUND(AVERAGE(_xlfn.XLOOKUP(T11,$X$4:$X$8,$Y$4:$Y$8,\"\"),_xlfn.XLOOKUP(T12,$X$4:$X$8,$Y$4:$Y$8,\"\"),_xlfn.XLOOKUP(T13,$X$4:$X$8,$Y$4:$Y$8,\"\")),0))","v":2}]
["3.1 ","Hoeveel ruimte moet er inpandig opgeofferd worden?","2. Weinig ","4. Veel","2. Weinig ","4. Veel","4. Veel","3. Neutraal","4. Veel","2. Weinig ","5. Heel veel","4. Veel","4. Veel","2. Weinig ","4. Veel","2. Weinig ","1. Heel weining","4. Veel","1. Heel weining","3. Neutraal"]
["3.2 ","Hoeveel leidingen zijn er inpandig zichtbaar? ","2. Weinig ","5. Heel veel","2. Weinig ","5. Heel veel","5. Heel veel","2. Weinig ","5. Heel veel","1. Heel weining","5. Heel veel","3. Neutraal","4. Veel","2. Weinig ","4. Veel","2. Weinig ","1. Heel weining","4. Veel","1. Heel weining","4. Veel"]
["3.3","Hoeveel dient de woning aangepast te worden voor de aansluiting?","2. Weinig ","4. Veel","1. Heel weining","4. Veel","4. Veel","3. Neutraal","4. Veel","2. Weinig ","5. Heel veel","3. Neutraal","4. Veel","2. Weinig ","5. Heel veel","1. Heel weining","1. Heel weining","4. Veel","1. Heel weining","4. Veel"]
[4,"Onderhoud",{"$f":"6-(ROUND(AVERAGE(_xlfn.XLOOKUP(C15,$W$4:$W$8,$Y$4:$Y$8,\"\"),_xlfn.XLOOKUP(C17,$W$4:$W$8,$Y$4:$Y$8,\"\"),_xlfn.XLOOKUP(C16,$W$4:$W$8,$Y$4:$Y$8,\"\")),0))","v":3},2,3,2,2,2,2,2,1,2,2,2,3,3,2,2,{"$f":"6-(ROUND(AVERAGE(_xlfn.XLOOKUP(S15,$W$4:$W$8,$Y$4:$Y$8,\"\"),_xlfn.XLOOKUP(S17,$W$4:$W$8,$Y$4:$Y$8,\"\"),_xlfn.XLOOKUP(S16,$W$4:$W$8,$Y$4:$Y$8,\"\")),0))","v":3},{"$f":"6-(ROUND(AVERAGE(_xlfn.XLOOKUP(T15,$W$4:$W$8,$Y$4:$Y$8,\"\"),_xlfn.XLOOKUP(T17,$W$4:$W$8,$Y$4:$Y$8,\"\"),_xlfn.XLOOKUP(T16,$W$4:$W$8,$Y$4:$Y$8,\"\")),0))","v":3}]
["4.1","In hoevere zijn de leidingen tot aan de afleverset te bereiken voor onderhoud?","4. Moeilijk","4. Moeilijk","4. Moeilijk","4. Moeilijk","5. Heel moeilijk","5. Heel moeilijk","5. Heel moeilijk","5. Heel moeilijk","5. Heel moeilijk","5. Heel moeilijk","4. Moeilijk","4. Moeilijk","3. Neutraal","3. Neutraal","5. Heel moeilijk","5. Heel moeilijk","3. Neutraal","3. Neutraal"]
["4.2","In hoeverre zijn lekkages op te sporen? ","4. Moeilijk","4. Moeilijk","4. Moeilijk","4. Moeilijk","4. Moeilijk","4. Moeilijk","4. Moeilijk","4. Moeilijk","5. Heel moeilijk","5. Heel moeilijk","4. Moeilijk","4. Moeilijk","3. Neutraal","3. Neutraal","5. Heel moeilijk","5. Heel moeilijk","3. Neutraal","3. Neutraal"]
["4.3","In hoevere zijn de leidingen na de afleverset te bereiken voor onderhoud?","1. Heel makkelijk","4. Moeilijk","1. Heel makkelijk","4. Moeilijk","4. Moeilijk","3. Neutraal","4. Moeilijk","3. Neutraal","4. Moeilijk","2. Makkelijk","4. Moeilijk","3. Neutraal","4. Moeilijk","3. Neutraal","3. Neutraal","3. Neutraal","3. Neutraal","4. Moeilijk"]

{"sheet":"Kwaliteit Portiek","index":10,"n_rows":16,"n_cols":17,"rows_kept":16,"cut":false,"hidden":false,"merged":[]}
["Nr","Criteria","A1","A2","A3","A4","B1","B2","B3","B4","C1"]
[1,"Praktisch haalbaarheid",{"$f":"(ROUND(AVERAGE(6-_xlfn.XLOOKUP(C3,$O$4:$O$8,$P$4:$P$8,\"\"),6-_xlfn.XLOOKUP(C4,$O$4:$O$8,$P$4:$P$8,\"\")),0))","v":3},3,2,2,4,2,5,5,4]
["1.1","In hoeverre zijn de leidingen zichtbaar vanaf de straatzijde (in verband met mogelijke toetsing van welstand)?","4. Veel","4. Veel","5. Heel veel","5. Heel veel","1. Heel weining","5. Heel veel","1. Heel weining","1. Heel weining","4. Veel",null,null,"Kolom1","Kolom2","Kolom3","Kolom4"]
["1.2 ","In hoeverre spelen veiligheidsrisico's een rol (bijv. lekage- en brandwerendheidrisico)?","2. Weinig ","2. Weinig ","3. Neutraal","3. Neutraal","4. Veel","3. Neutraal","1. Heel weining","1. Heel weining","1. Heel weining",null,null,"1. Heel makkelijk","1. Heel weining",1,"1. Heel laag"]
[2,"Overlast uitvoering",{"$f":"6-(ROUND(AVERAGE(_xlfn.XLOOKUP(C6,$O$4:$O$8,$P$4:$P$8,\"\"),_xlfn.XLOOKUP(C7,$O$4:$O$8,$P$4:$P$8,\"\"),_xlfn.XLOOKUP(C8,$O$4:$O$8,$P$4:$P$8,\"\")),0))","v":2},2,2,2,3,3,3,2,1,null,null,"2. Makkelijk","2. Weinig ",2,"2. Laag"]
["2.1","Hoeveel graaf- en herstelwerkzaamheden zijn noodzakelijk in de straat, stoep en voortuin? ","5. Heel veel","5. Heel veel","5. Heel veel","5. Heel veel","1. Heel weining","1. Heel weining","1. Heel weining","5. Heel veel","5. Heel veel",null,null,"3. Neutraal","3. Neutraal",3,"3. Neutraal"]
["2.2","Hoeveel overlast is er inpandig tijdens de uitvoering (bijv. geluidsoverlast van boringen)?","4. Veel","4. Veel","4. Veel","4. Veel","4. Veel","4. Veel","4. Veel","4. Veel","5. Heel veel",null,null,"4. Moeilijk","4. Veel",4,"4. Hoog"]
["2.3","In hoeverre dienen bewoners zich tijdens de uitvoering aan te passen (bijv. opruimen, duur van werkzaamheden)","4. Veel","4. Veel","4. Veel","4. Veel","4. Veel","3. Neutraal","4. Veel","4. Veel","4. Veel",null,null,"5. Heel moeilijk","5. Heel veel",5,"5. Heel hoog"]
[3,"Impact woning",{"$f":"6-(ROUND(AVERAGE(_xlfn.XLOOKUP(C10,$O$4:$O$8,$P$4:$P$8,\"\"),_xlfn.XLOOKUP(C11,$O$4:$O$8,$P$4:$P$8,\"\"),_xlfn.XLOOKUP(C12,$O$4:$O$8,$P$4:$P$8,\"\")),0))","v":2},2,2,2,4,2,4,4,2]
["3.1 ","Hoeveel ruimte moet er inpandig opgeofferd worden?","4. Veel","4. Veel","4. Veel","4. Veel","1. Heel weining","4. Veel","2. Weinig ","2. Weinig ","4. Veel"]
["3.2 ","Hoeveel leidingen zijn er inpandig zichtbaar? ","5. Heel veel","5. Heel veel","5. Heel veel","5. Heel veel","2. Weinig ","4. Veel","2. Weinig ","2. Weinig ","5. Heel veel"]
["3.3","Hoeveel dient de woning aangepast te worden voor de aansluiting?","4. Veel","4. Veel","4. Veel","4. Veel","2. Weinig ","4. Veel","2. Weinig ","2. Weinig ","4. Veel"]
[4,"Onderhoud ",{"$f":"6-(ROUND(AVERAGE(_xlfn.XLOOKUP(C14,$N$4:$N$8,$P$4:$P$8,\"\"),_xlfn.XLOOKUP(C15,$N$4:$N$8,$P$4:$P$8,\"\"),_xlfn.XLOOKUP(C16,$N$4:$N$8,$P$4:$P$8,\"\")),0))","v":3},3,2,2,2,1,2,2,3]
["4.1","In hoevere zijn de leidingen tot aan de afleverset te bereiken voor onderhoud?","3. Neutraal","3. Neutraal","3. Neutraal","3. Neutraal","4. Moeilijk","5. Heel moeilijk","5. Heel moeilijk","5. Heel moeilijk","3. Neutraal"]
["4.2","In hoeverre zijn lekkages op te sporen? ","3. Neutraal","3. Neutraal","4. Moeilijk","4. Moeilijk","4. Moeilijk","5. Heel moeilijk","5. Heel moeilijk","5. Heel moeilijk","3. Neutraal"]
["4.3","In hoevere zijn de leidingen na de afleverset te bereiken voor onderhoud?","4. Moeilijk","4. Moeilijk","4. Moeilijk","4. Moeilijk","3. Neutraal","4. Moeilijk","3. Neutraal","3. Neutraal","3. Neutraal"]

{"sheet":"Kwaliteit Galerij","index":11,"n_rows":16,"n_cols":17,"rows_kept":16,"cut":false,"hidden":false,"merged":[]}
["Nr","Criteria","A1","A2","A3","A4","B1","B2","B3","B4","C1"]
[1,"Praktisch haalbaarheid",{"$f":"(ROUND(AVERAGE(6-_xlfn.XLOOKUP(C3,$O$4:$O$8,$P$4:$P$8,\"\"),6-_xlfn.XLOOKUP(C4,$O$4:$O$8,$P$4:$P$8,\"\")),0))","v":2},3,3,4,3,2,2,5,2]
["1.1","In hoeverre zijn de leidingen zichtbaar vanaf de straatzijde (in verband met mogelijke toetsing van welstand)?","5. Heel veel","4. Veel","3. Neutraal","2. Weinig ","2. Weinig ","5. Heel veel","3. Neutraal","1. Heel weining","5. Heel veel",null,null,"Kolom1","Kolom2","Kolom3","Kolom4"]
["1.2 ","In hoeverre spelen veiligheidsrisico's een rol (bijv. lekage- en brandwerendheidrisico)?","3. Neutraal","3. Neutraal","3. Neutraal","3. Neutraal","5. Heel veel","3. Neutraal","5. Heel veel","1. Heel weining","3. Neutraal",null,null,"1. Heel makkelijk","1. Heel weining",1,"1. Heel laag"]
[2,"Overlast uitvoering",{"$f":"6-(ROUND(AVERAGE(_xlfn.XLOOKUP(C6,$O$4:$O$8,$P$4:$P$8,\"\"),_xlfn.XLOOKUP(C7,$O$4:$O$8,$P$4:$P$8,\"\"),_xlfn.XLOOKUP(C8,$O$4:$O$8,$P$4:$P$8,\"\")),0))","v":2},3,1,2,3,3,3,1,2,null,null,"2. Makkelijk","2. Weinig ",2,"2. Laag"]
["2.1","Hoeveel graaf- en herstelwerkzaamheden zijn noodzakelijk in de straat, stoep en voortuin? ","5. Heel veel","4. Veel","5. Heel veel","4. Veel","1. Heel weining","1. Heel weining","1. Heel weining","5. Heel veel","5. Heel veel",null,null,"3. Neutraal","3. Neutraal",3,"3. Neutraal"]
["2.2","Hoeveel overlast is er inpandig tijdens de uitvoering (bijv. geluidsoverlast van boringen)?","4. Veel","3. Neutraal","5. Heel veel","4. Veel","5. Heel veel","5. Heel veel","5. Heel veel","5. Heel veel","4. Veel",null,null,"4. Moeilijk","4. Veel",4,"4. Hoog"]
["2.3","In hoeverre dienen bewoners zich tijdens de uitvoering aan te passen (bijv. opruimen, duur van werkzaamheden)","4. Veel","3. Neutraal","4. Veel","4. Veel","4. Veel","4. Veel","4. Veel","4. Veel","3. Neutraal",null,null,"5. Heel moeilijk","5. Heel veel",5,"5. Heel hoog"]
[3,"Impact woning",{"$f":"6-(ROUND(AVERAGE(_xlfn.XLOOKUP(C10,$O$4:$O$8,$P$4:$P$8,\"\"),_xlfn.XLOOKUP(C11,$O$4:$O$8,$P$4:$P$8,\"\"),_xlfn.XLOOKUP(C12,$O$4:$O$8,$P$4:$P$8,\"\")),0))","v":2},2,2,2,4,1,4,4,3]
["3.1 ","Hoeveel ruimte moet er inpandig opgeofferd worden?","4. Veel","4. Veel","4. Veel","4. Veel","1. Heel weining","5. Heel veel","1. Heel weining","1. Heel weining","3. Neutraal"]
["3.2 ","Hoeveel leidingen zijn er inpandig zichtbaar? ","5. Heel veel","5. Heel veel","5. Heel veel","5. Heel veel","2. Weinig ","5. Heel veel","2. Weinig ","2. Weinig ","4. Veel"]
["3.3","Hoeveel dient de woning aangepast te worden voor de aansluiting?","4. Veel","4. Veel","4. Veel","4. Veel","2. Weinig ","5. Heel veel","2. Weinig ","2. Weinig ","2. Weinig "]
[4,"Onderhoud",{"$f":"6-(ROUND(AVERAGE(_xlfn.XLOOKUP(C14,$N$4:$N$8,$P$4:$P$8,\"\"),_xlfn.XLOOKUP(C15,$N$4:$N$8,$P$4:$P$8,\"\")),0))","v":2},2,3,2,1,2,1,1,3]
["4.1","In hoevere zijn de leidingen tot aan de afleverset te bereiken voor onderhoud?","4. Moeilijk","4. Moeilijk","3. Neutraal","3. Neutraal","5. Heel moeilijk","4. Moeilijk","5. Heel moeilijk","5. Heel moeilijk","3. Neutraal"]
["4.2","In hoeverre zijn lekkages op te sporen? ","4. Moeilijk","4. Moeilijk","3. Neutraal","4. Moeilijk","5. Heel moeilijk","4. Moeilijk","5. Heel moeilijk","5. Heel moeilijk","3. Neutraal"]
["4.3","In hoevere zijn de leidingen na de afleverset te bereiken voor onderhoud?","4. Moeilijk","4. Moeilijk","4. Moeilijk","4. Moeilijk","3. Neutraal","4. Moeilijk","3. Neutraal","3. Neutraal","3. Neutraal"]